Workbook

Sheet Kitchen
A1: Range | S1: Enter % | T1: Total Cost Ex Vat | U1: RRP Ex Vat | V1: Cash Margin | W1: Margin %
A2: Cabinet Colour | R2: My Furniture Discount | S2: 0.4 | T2: =SUM(T12:T1128) -> 75 | U2: =D9/1.2 -> 75 | V2: =U2-T2 -> 0 | W2: =V2/U2 -> 0
A3: Drawer Box | B3: Customer Name | R3: Add Retail Discount | S3: 0
A4: Rigid | B4: Order Ref
A5: Home Delivery | B5: Other Comments | R5: Additional Margin
R6: Lights | S6: 0.3
E7: =VLOOKUP('Data Validation Lists'!B1,'Data Validation Lists'!A2:D378,4,FALSE) -> 3 Week Lead Time | R7: Other | S7: 0.3
B8: Qty | C8: RRP | D8: Total RRP | E8: Part Code | H8: Drw Boxes
B9: 1 | D9: =SUM(D13:D1128) -> 90 | G9: Rigid | H9: Std | I9: Pan | J9: Low
A11: Base Units
A13: 150 HL Pull Out Base VS SUB | C13: =IF($E13="Not Available","",VLOOKUP(E13,'Prices Furniture'!A:F,5,FALSE)*(1-$S$3)) -> 410 | D13: =IF(B13="","",B13*C13) ->  | E13: =VLOOKUP(A13,Codes!$B:$OM,'Data Validation Lists'!$B$1+2,FALSE) -> @LK-ATP-BP15TY | G13: =IF(AND(B13>0,'Data Validation Lists'!$I$1=1),B13,"") ->  | R13: Furniture | T13: =IF(B13="","",SUM(D13/1.2)*(1-$S$2)/(1-$S$3)) -> 
A14: 300 HL Pull Out Base VS SUB | C14: =IF($E14="Not Available","",VLOOKUP(E14,'Prices Furniture'!A:F,5,FALSE)*(1-$S$3)) -> 641 | D14: =IF(B14="","",B14*C14) ->  | E14: =VLOOKUP(A14,Codes!$B:$OM,'Data Validation Lists'!$B$1+2,FALSE) -> @LK-ATP-BP3TY | G14: =IF(AND(B14>0,'Data Validation Lists'!$I$1=1),B14,"") ->  | R14: Furniture
G15: =IF(AND(B15>0,'Data Validation Lists'!$I$1=1),B15,"") ->  | R15: Furniture
A16: 150 HL Base Unit | C16: =IF($E16="Not Available","",VLOOKUP(E16,'Prices Furniture'!A:F,5,FALSE)*(1-$S$3)) -> 230 | D16: =IF(B16="","",B16*C16) ->  | E16: =VLOOKUP(A16,Codes!$B:$OM,'Data Validation Lists'!$B$1+2,FALSE) -> @LK-ATP-BH15 | G16: =IF(AND(B16>0,'Data Validation Lists'!$I$1=1),B16,"") ->  | R16: Furniture
A17: 300 HL Base Unit | C17: =IF($E17="Not Available","",VLOOKUP(E17,'Prices Furniture'!A:F,5,FALSE)*(1-$S$3)) -> 246 | E17: =VLOOKUP(A17,Codes!$B:$OM,'Data Validation Lists'!$B$1+2,FALSE) -> @LK-ATP-BH30 | G17: =IF(AND(B17>0,'Data Validation Lists'!$I$1=1),B17,"") ->  | R17: Furniture
A18: 350 HL Base Unit | C18: =IF($E18="Not Available","",VLOOKUP(E18,'Prices Furniture'!A:F,5,FALSE)*(1-$S$3)) -> 250 | E18: =VLOOKUP(A18,Codes!$B:$OM,'Data Validation Lists'!$B$1+2,FALSE) -> @LK-ATP-BH35 | G18: =IF(AND(B18>0,'Data Validation Lists'!$I$1=1),B18,"") ->  | R18: Furniture
A19: 400 HL Base Unit | C19: =IF($E19="Not Available","",VLOOKUP(E19,'Prices Furniture'!A:F,5,FALSE)*(1-$S$3)) -> 252 | E19: =VLOOKUP(A19,Codes!$B:$OM,'Data Validation Lists'!$B$1+2,FALSE) -> @LK-ATP-BH40 | G19: =IF(AND(B19>0,'Data Validation Lists'!$I$1=1),B19,"") ->  | R19: Furniture
A20: 450 HL Base Unit | C20: =IF($E20="Not Available","",VLOOKUP(E20,'Prices Furniture'!A:F,5,FALSE)*(1-$S$3)) -> 279 | E20: =VLOOKUP(A20,Codes!$B:$OM,'Data Validation Lists'!$B$1+2,FALSE) -> @LK-ATP-BH45 | G20: =IF(AND(B20>0,'Data Validation Lists'!$I$1=1),B20,"") ->  | R20: Furniture
A21: 500 HL Base Unit | C21: =IF($E21="Not Available","",VLOOKUP(E21,'Prices Furniture'!A:F,5,FALSE)*(1-$S$3)) -> 297 | E21: =VLOOKUP(A21,Codes!$B:$OM,'Data Validation Lists'!$B$1+2,FALSE) -> @LK-ATP-BH50 | G21: =IF(AND(B21>0,'Data Validation Lists'!$I$1=1),B21,"") ->  | R21: Furniture
A22: 500 HL Sink Base Unit (Inc Liner) | C22: =IF($E22="Not Available","",VLOOKUP(E22,'Prices Furniture'!A:F,5,FALSE)*(1-$S$3)) -> 327 | E22: =VLOOKUP(A22,Codes!$B:$OM,'Data Validation Lists'!$B$1+2,FALSE) -> @LK-ATP-BH50S | G22: =IF(AND(B22>0,'Data Validation Lists'!$I$1=1),B22,"") ->  | R22: Furniture
A23: 600 HL Base Unit | C23: =IF($E23="Not Available","",VLOOKUP(E23,'Prices Furniture'!A:F,5,FALSE)*(1-$S$3)) -> 328 | E23: =VLOOKUP(A23,Codes!$B:$OM,'Data Validation Lists'!$B$1+2,FALSE) -> @LK-ATP-BH60 | G23: =IF(AND(B23>0,'Data Validation Lists'!$I$1=1),B23,"") ->  | R23: Furniture
A24: 600 HL Sink Base Unit (Inc Liner) | C24: =IF($E24="Not Available","",VLOOKUP(E24,'Prices Furniture'!A:F,5,FALSE)*(1-$S$3)) -> 374 | E24: =VLOOKUP(A24,Codes!$B:$OM,'Data Validation Lists'!$B$1+2,FALSE) -> @LK-ATP-BH60S | G24: =IF(AND(B24>0,'Data Validation Lists'!$I$1=1),B24,"") ->  | R24: Furniture
A25: 700 HL Base Unit | C25: =IF($E25="Not Available","",VLOOKUP(E25,'Prices Furniture'!A:F,5,FALSE)*(1-$S$3)) -> 398 | E25: =VLOOKUP(A25,Codes!$B:$OM,'Data Validation Lists'!$B$1+2,FALSE) -> @LK-ATP-BH70 | G25: =IF(AND(B25>0,'Data Validation Lists'!$I$1=1),B25,"") ->  | R25: Furniture
A26: 800 HL Base Unit | C26: =IF($E26="Not Available","",VLOOKUP(E26,'Prices Furniture'!A:F,5,FALSE)*(1-$S$3)) -> 400 | D26: =IF(B26="","",B26*C26) ->  | E26: =VLOOKUP(A26,Codes!$B:$OM,'Data Validation Lists'!$B$1+2,FALSE) -> @LK-ATP-BH80 | G26: =IF(AND(B26>0,'Data Validation Lists'!$I$1=1),B26,"") ->  | R26: Furniture
A27: 800 HL Sink Base Unit (Inc Liner) | C27: =IF($E27="Not Available","",VLOOKUP(E27,'Prices Furniture'!A:F,5,FALSE)*(1-$S$3)) -> 446 | E27: =VLOOKUP(A27,Codes!$B:$OM,'Data Validation Lists'!$B$1+2,FALSE) -> @LK-ATP-BH80S | G27: =IF(AND(B27>0,'Data Validation Lists'!$I$1=1),B27,"") ->  | R27: Furniture
A28: 900 HL Base Unit | C28: =IF($E28="Not Available","",VLOOKUP(E28,'Prices Furniture'!A:F,5,FALSE)*(1-$S$3)) -> 432 | E28: =VLOOKUP(A28,Codes!$B:$OM,'Data Validation Lists'!$B$1+2,FALSE) -> @LK-ATP-BH90 | G28: =IF(AND(B28>0,'Data Validation Lists'!$I$1=1),B28,"") ->  | R28: Furniture
A29: 900 HL Sink Base Unit (Inc Liner) | C29: =IF($E29="Not Available","",VLOOKUP(E29,'Prices Furniture'!A:F,5,FALSE)*(1-$S$3)) -> 478 | E29: =VLOOKUP(A29,Codes!$B:$OM,'Data Validation Lists'!$B$1+2,FALSE) -> @LK-ATP-BH90S | G29: =IF(AND(B29>0,'Data Validation Lists'!$I$1=1),B29,"") ->  | R29: Furniture
A30: 1000 HL Base Unit | C30: =IF($E30="Not Available","",VLOOKUP(E30,'Prices Furniture'!A:F,5,FALSE)*(1-$S$3)) -> 467 | E30: =VLOOKUP(A30,Codes!$B:$OM,'Data Validation Lists'!$B$1+2,FALSE) -> @LK-ATP-BH100 | G30: =IF(AND(B30>0,'Data Validation Lists'!$I$1=1),B30,"") ->  | R30: Furniture
A31: 1000 HL Sink Base Unit (Inc Liner) | C31: =IF($E31="Not Available","",VLOOKUP(E31,'Prices Furniture'!A:F,5,FALSE)*(1-$S$3)) -> 513 | E31: =VLOOKUP(A31,Codes!$B:$OM,'Data Validation Lists'!$B$1+2,FALSE) -> @LK-ATP-BH10S | G31: =IF(AND(B31>0,'Data Validation Lists'!$I$1=1),B31,"") ->  | R31: Furniture
R32: Furniture
A33: 300 HL Base Unit & Bin | C33: =IF($E33="Not Available","",VLOOKUP(E33,'Prices Furniture'!A:F,5,FALSE)*(1-$S$3)) -> 614 | D33: =IF(B33="","",B33*C33) ->  | E33: =VLOOKUP(A33,Codes!$B:$OM,'Data Validation Lists'!$B$1+2,FALSE) -> @LK-ATP-BH3B | G33: =IF(AND(B33>0,'Data Validation Lists'!$I$1=1),B33,"") ->  | R33: Furniture
A34: 400 HL Base Unit & Bin | C34: =IF($E34="Not Available","",VLOOKUP(E34,'Prices Furniture'!A:F,5,FALSE)*(1-$S$3)) -> 685 | E34: =VLOOKUP(A34,Codes!$B:$OM,'Data Validation Lists'!$B$1+2,FALSE) -> @LK-ATP-BH4B | G34: =IF(AND(B34>0,'Data Validation Lists'!$I$1=1),B34,"") ->  | R34: Furniture
A35: 450 HL Base Unit & Bin | C35: =IF($E35="Not Available","",VLOOKUP(E35,'Prices Furniture'!A:F,5,FALSE)*(1-$S$3)) -> 717 | E35: =VLOOKUP(A35,Codes!$B:$OM,'Data Validation Lists'!$B$1+2,FALSE) -> @LK-ATP-BH45B | G35: =IF(AND(B35>0,'Data Validation Lists'!$I$1=1),B35,"") ->  | R35: Furniture
A36: 500 HL Base Unit & Bin | C36: =IF($E36="Not Available","",VLOOKUP(E36,'Prices Furniture'!A:F,5,FALSE)*(1-$S$3)) -> 741 | E36: =VLOOKUP(A36,Codes!$B:$OM,'Data Validation Lists'!$B$1+2,FALSE) -> @LK-ATP-BH5B | G36: =IF(AND(B36>0,'Data Validation Lists'!$I$1=1),B36,"") ->  | R36: Furniture
A37: 600 HL Base Unit & Bin (4 Bins) | C37: =IF($E37="Not Available","",VLOOKUP(E37,'Prices Furniture'!A:F,5,FALSE)*(1-$S$3)) -> 861 | E37: =VLOOKUP(A37,Codes!$B:$OM,'Data Validation Lists'!$B$1+2,FALSE) -> @LK-ATP-BH6B4 | G37: =IF(AND(B37>0,'Data Validation Lists'!$I$1=1),B37,"") ->  | R37: Furniture
A38: 600 HL Base Unit & Bin (2 Bins) | C38: =IF($E38="Not Available","",VLOOKUP(E38,'Prices Furniture'!A:F,5,FALSE)*(1-$S$3)) -> 809 | E38: =VLOOKUP(A38,Codes!$B:$OM,'Data Validation Lists'!$B$1+2,FALSE) -> @LK-ATP-BH6B2 | G38: =IF(AND(B38>0,'Data Validation Lists'!$I$1=1),B38,"") ->  | R38: Furniture
A40: 800 HL Cnr Base (300 Door) | C40: =IF($E40="Not Available","",VLOOKUP(E40,'Prices Furniture'!A:F,5,FALSE)*(1-$S$3)) -> 381 | D40: =IF(B40="","",B40*C40) ->  | E40: =VLOOKUP(A40,Codes!$B:$OM,'Data Validation Lists'!$B$1+2,FALSE) -> @LK-ATP-BC83 | G40: =IF(AND(B40>0,'Data Validation Lists'!$I$1=1),B40,"") ->  | R40: Furniture | T40: =IF(B40="","",SUM(D40/1.2)*(1-$S$2)/(1-$S$3)) -> 
A41: 800 HL Cnr Base Unit (400 Door) | C41: =IF($E41="Not Available","",VLOOKUP(E41,'Prices Furniture'!A:F,5,FALSE)*(1-$S$3)) -> 383 | E41: =VLOOKUP(A41,Codes!$B:$OM,'Data Validation Lists'!$B$1+2,FALSE) -> @LK-ATP-BC84 | G41: =IF(AND(B41>0,'Data Validation Lists'!$I$1=1),B41,"") ->  | R41: Furniture
A42: 800 HL Cnr Base (450 Door) | C42: =IF($E42="Not Available","",VLOOKUP(E42,'Prices Furniture'!A:F,5,FALSE)*(1-$S$3)) -> 399 | E42: =VLOOKUP(A42,Codes!$B:$OM,'Data Validation Lists'!$B$1+2,FALSE) -> @LK-ATP-BC845 | G42: =IF(AND(B42>0,'Data Validation Lists'!$I$1=1),B42,"") ->  | R42: Furniture
A43: 900 HL Cnr Base (450 Door) | C43: =IF($E43="Not Available","",VLOOKUP(E43,'Prices Furniture'!A:F,5,FALSE)*(1-$S$3)) -> 399 | E43: =VLOOKUP(A43,Codes!$B:$OM,'Data Validation Lists'!$B$1+2,FALSE) -> @LK-ATP-BC945 | G43: =IF(AND(B43>0,'Data Validation Lists'!$I$1=1),B43,"") ->  | R43: Furniture
A44: 1000 HL Cnr Base (450 Door) | C44: =IF($E44="Not Available","",VLOOKUP(E44,'Prices Furniture'!A:F,5,FALSE)*(1-$S$3)) -> 404 | E44: =VLOOKUP(A44,Codes!$B:$OM,'Data Validation Lists'!$B$1+2,FALSE) -> @LK-ATP-BC145 | G44: =IF(AND(B44>0,'Data Validation Lists'!$I$1=1),B44,"") ->  | R44: Furniture
A45: 1000 HL Cnr Base (500 Door) | C45: =IF($E45="Not Available","",VLOOKUP(E45,'Prices Furniture'!A:F,5,FALSE)*(1-$S$3)) -> 419 | E45: =VLOOKUP(A45,Codes!$B:$OM,'Data Validation Lists'!$B$1+2,FALSE) -> @LK-ATP-BC15 | G45: =IF(AND(B45>0,'Data Validation Lists'!$I$1=1),B45,"") ->  | R45: Furniture
A46: 1000 HL Cnr Base (600 Door) | C46: =IF($E46="Not Available","",VLOOKUP(E46,'Prices Furniture'!A:F,5,FALSE)*(1-$S$3)) -> 430 | E46: =VLOOKUP(A46,Codes!$B:$OM,'Data Validation Lists'!$B$1+2,FALSE) -> @LK-ATP-BC16 | G46: =IF(AND(B46>0,'Data Validation Lists'!$I$1=1),B46,"") ->  | R46: Furniture
A47: 1000 Cnr Base CORNERSTONE MAXX LH - 500 door | C47: =IF($E47="Not Available","",VLOOKUP(E47,'Prices Furniture'!A:F,5,FALSE)*(1-$S$3)) -> 1284 | E47: =VLOOKUP(A47,Codes!$B:$OM,'Data Validation Lists'!$B$1+2,FALSE) -> @LK-ATP-BCL15L | F47: Note: This unit is handed by the Wirework | G47: =IF(AND(B47>0,'Data Validation Lists'!$I$1=1),B47,"") ->  | R47: Furniture
A48: 1000 Cnr Base CORNERSTONE MAXX RH - 500 door | C48: =IF($E48="Not Available","",VLOOKUP(E48,'Prices Furniture'!A:F,5,FALSE)*(1-$S$3)) -> 1284 | E48: =VLOOKUP(A48,Codes!$B:$OM,'Data Validation Lists'!$B$1+2,FALSE) -> @LK-ATP-BCL15R | F48: Note: This unit is handed by the Wirework | G48: =IF(AND(B48>0,'Data Validation Lists'!$I$1=1),B48,"") ->  | R48: Furniture
A49: 1000 Cnr Base CORNERSTONE MAXX LH - 600 door | C49: =IF($E49="Not Available","",VLOOKUP(E49,'Prices Furniture'!A:F,5,FALSE)*(1-$S$3)) -> 1358 | E49: =VLOOKUP(A49,Codes!$B:$OM,'Data Validation Lists'!$B$1+2,FALSE) -> @LK-ATP-BCL16L | F49: Note: This unit is handed by the Wirework | G49: =IF(AND(B49>0,'Data Validation Lists'!$I$1=1),B49,"") ->  | R49: Furniture
A50: 1000 Cnr Base CORNERSTONE MAXX RH - 600 door | C50: =IF($E50="Not Available","",VLOOKUP(E50,'Prices Furniture'!A:F,5,FALSE)*(1-$S$3)) -> 1358 | E50: =VLOOKUP(A50,Codes!$B:$OM,'Data Validation Lists'!$B$1+2,FALSE) -> @LK-ATP-BCL16R | F50: Note: This unit is handed by the Wirework | G50: =IF(AND(B50>0,'Data Validation Lists'!$I$1=1),B50,"") ->  | R50: Furniture
A51: 900 Corner Base VS COR FLEX - 450 door | C51: =IF($E51="Not Available","",VLOOKUP(E51,'Prices Furniture'!A:F,5,FALSE)*(1-$S$3)) -> 1409 | E51: =VLOOKUP(A51,Codes!$B:$OM,'Data Validation Lists'!$B$1+2,FALSE) -> @LK-ATP-BCO945 | G51: =IF(AND(B51>0,'Data Validation Lists'!$I$1=1),B51,"") ->  | R51: Furniture
A52: 1000 Corner Base VS COR FLEX - 450 door | C52: =IF($E52="Not Available","",VLOOKUP(E52,'Prices Furniture'!A:F,5,FALSE)*(1-$S$3)) -> 1414 | E52: =VLOOKUP(A52,Codes!$B:$OM,'Data Validation Lists'!$B$1+2,FALSE) -> @LK-ATP-BCO145 | G52: =IF(AND(B52>0,'Data Validation Lists'!$I$1=1),B52,"") ->  | R52: Furniture
A53: 1000 Corner Base VS COR FLEX - 500 door | C53: =IF($E53="Not Available","",VLOOKUP(E53,'Prices Furniture'!A:F,5,FALSE)*(1-$S$3)) -> 1429 | E53: =VLOOKUP(A53,Codes!$B:$OM,'Data Validation Lists'!$B$1+2,FALSE) -> @LK-ATP-BCO15 | G53: =IF(AND(B53>0,'Data Validation Lists'!$I$1=1),B53,"") ->  | R53: Furniture
A54: 1000 Corner Base VS COR FLEX - 600 door | C54: =IF($E54="Not Available","",VLOOKUP(E54,'Prices Furniture'!A:F,5,FALSE)*(1-$S$3)) -> 1440 | E54: =VLOOKUP(A54,Codes!$B:$OM,'Data Validation Lists'!$B$1+2,FALSE) -> @LK-ATP-BCO16 | G54: =IF(AND(B54>0,'Data Validation Lists'!$I$1=1),B54,"") ->  | R54: Furniture
A55: 950 HL Cnr L Base | C55: =IF($E55="Not Available","",VLOOKUP(E55,'Prices Furniture'!A:F,5,FALSE)*(1-$S$3)) -> 658 | E55: =VLOOKUP(A55,Codes!$B:$OM,'Data Validation Lists'!$B$1+2,FALSE) -> @LK-ATP-BCL9 | G55: =IF(AND(B55>0,'Data Validation Lists'!$I$1=1),B55,"") ->  | R55: Furniture
R56: Furniture
A57: Curved Base Unit | C57: =IF($E57="Not Available","",VLOOKUP(E57,'Prices Furniture'!A:F,5,FALSE)*(1-$S$3)) ->  | D57: =IF(B57="","",B57*C57) ->  | E57: =VLOOKUP(A57,Codes!$B:$OM,'Data Validation Lists'!$B$1+2,FALSE) -> Not Available | G57: =IF(AND(B57>0,'Data Validation Lists'!$I$1=1),B57,"") ->  | R57: Furniture
A58: 600 Belfast Sink Unit (495mm High) | C58: =IF($E58="Not Available","",VLOOKUP(E58,'Prices Furniture'!A:F,5,FALSE)*(1-$S$3)) -> 262 | D58: =IF(B58="","",B58*C58) ->  | E58: =VLOOKUP(A58,Codes!$B:$OM,'Data Validation Lists'!$B$1+2,FALSE) -> @LK-ATP-BSU6495 | G58: =IF(AND(B58>0,'Data Validation Lists'!$I$1=1),B58,"") ->  | R58: Furniture
A59: 600 Belfast Sink Unit (450mm High) | C59: =IF($E59="Not Available","",VLOOKUP(E59,'Prices Furniture'!A:F,5,FALSE)*(1-$S$3)) -> 278 | D59: =IF(B59="","",B59*C59) ->  | E59: =VLOOKUP(A59,Codes!$B:$OM,'Data Validation Lists'!$B$1+2,FALSE) -> @LK-ATP-BSU6450 | G59: =IF(AND(B59>0,'Data Validation Lists'!$I$1=1),B59,"") ->  | R59: Furniture
A60: 800 Belfast Sink Unit (495mm High) | C60: =IF($E60="Not Available","",VLOOKUP(E60,'Prices Furniture'!A:F,5,FALSE)*(1-$S$3)) -> 488 | D60: =IF(B60="","",B60*C60) ->  | E60: =VLOOKUP(A60,Codes!$B:$OM,'Data Validation Lists'!$B$1+2,FALSE) -> @LK-ATP-BSU8495 | G60: =IF(AND(B60>0,'Data Validation Lists'!$I$1=1),B60,"") ->  | R60: Furniture
R61: Furniture
A62: 300 DL Base Unit | C62: =IF($E62="Not Available","",VLOOKUP(E62,'Prices Furniture'!A:F,5,FALSE)*(1-$S$3)) -> 415 | D62: =IF(B62="","",B62*C62) ->  | E62: =VLOOKUP(A62,Codes!$B:$OM,'Data Validation Lists'!$B$1+2,FALSE) -> @LK-ATP-BDL3 | G62: =IF(AND(B62>0,'Data Validation Lists'!$I$1=1),B62,"") ->  | H62: =IF(AND(B62>0,'Data Validation Lists'!$I$10>1),B62,"") ->  | R62: Furniture
A63: 400 DL Base Unit | C63: =IF($E63="Not Available","",VLOOKUP(E63,'Prices Furniture'!A:F,5,FALSE)*(1-$S$3)) -> 449 | D63: =IF(B63="","",B63*C63) ->  | E63: =VLOOKUP(A63,Codes!$B:$OM,'Data Validation Lists'!$B$1+2,FALSE) -> @LK-ATP-BDL4 | G63: =IF(AND(B63>0,'Data Validation Lists'!$I$1=1),B63,"") ->  | H63: =IF(AND(B63>0,'Data Validation Lists'!$I$10>1),B63,"") ->  | R63: Furniture
A64: 500 DL Base Unit | C64: =IF($E64="Not Available","",VLOOKUP(E64,'Prices Furniture'!A:F,5,FALSE)*(1-$S$3)) -> 473 | E64: =VLOOKUP(A64,Codes!$B:$OM,'Data Validation Lists'!$B$1+2,FALSE) -> @LK-ATP-BDL5 | G64: =IF(AND(B64>0,'Data Validation Lists'!$I$1=1),B64,"") ->  | H64: =IF(AND(B64>0,'Data Validation Lists'!$I$10>1),B64,"") ->  | R64: Furniture
A65: 600 DL Base Unit | C65: =IF($E65="Not Available","",VLOOKUP(E65,'Prices Furniture'!A:F,5,FALSE)*(1-$S$3)) -> 487 | E65: =VLOOKUP(A65,Codes!$B:$OM,'Data Validation Lists'!$B$1+2,FALSE) -> @LK-ATP-BDL6 | G65: =IF(AND(B65>0,'Data Validation Lists'!$I$1=1),B65,"") ->  | H65: =IF(AND(B65>0,'Data Validation Lists'!$I$10>1),B65,"") ->  | R65: Furniture
A66: 800 DL Base Unit | C66: =IF($E66="Not Available","",VLOOKUP(E66,'Prices Furniture'!A:F,5,FALSE)*(1-$S$3)) -> 794 | E66: =VLOOKUP(A66,Codes!$B:$OM,'Data Validation Lists'!$B$1+2,FALSE) -> @LK-ATP-BDL8 | G66: =IF(AND(B66>0,'Data Validation Lists'!$I$1=1),B66,"") ->  | H66: =IF(AND(B66>0,'Data Validation Lists'!$I$10>1),SUM(B66*2),"") ->  | R66: Furniture
A67: 1000 DL Base Unit | C67: =IF($E67="Not Available","",VLOOKUP(E67,'Prices Furniture'!A:F,5,FALSE)*(1-$S$3)) -> 819 | D67: =IF(B67="","",B67*C67) ->  | E67: =VLOOKUP(A67,Codes!$B:$OM,'Data Validation Lists'!$B$1+2,FALSE) -> @LK-ATP-BDL10 | G67: =IF(AND(B67>0,'Data Validation Lists'!$I$1=1),B67,"") ->  | H67: =IF(AND(B67>0,'Data Validation Lists'!$I$10>1),SUM(B67*2),"") ->  | R67: Furniture
R68: Furniture
A69: 800 DL Base Unit 1 Drawer 2 Doors | C69: =IF($E69="Not Available","",VLOOKUP(E69,'Prices Furniture'!A:F,5,FALSE)*(1-$S$3)) -> 682 | D69: =IF(B69="","",B69*C69) ->  | E69: =VLOOKUP(A69,Codes!$B:$OM,'Data Validation Lists'!$B$1+2,FALSE) -> @LK-ATP-BDL81DW | G69: =IF(AND(B69>0,'Data Validation Lists'!$I$1=1),B69,"") ->  | H69: =IF(AND(B69>0,'Data Validation Lists'!$I$10>1),B69,"") ->  | R69: Furniture
A70: 900 DL Base Unit 1 Drawer 2 Doors | C70: =IF($E70="Not Available","",VLOOKUP(E70,'Prices Furniture'!A:F,5,FALSE)*(1-$S$3)) -> 696 | D70: =IF(B70="","",B70*C70) ->  | E70: =VLOOKUP(A70,Codes!$B:$OM,'Data Validation Lists'!$B$1+2,FALSE) -> @LK-ATP-BDL91DW | G70: =IF(AND(B70>0,'Data Validation Lists'!$I$1=1),B70,"") ->  | H70: =IF(AND(B70>0,'Data Validation Lists'!$I$10>1),B70,"") ->  | R70: Furniture
A71: 1000 DL Base Unit 1 Drawer 2 Doors | C71: =IF($E71="Not Available","",VLOOKUP(E71,'Prices Furniture'!A:F,5,FALSE)*(1-$S$3)) -> 711 | D71: =IF(B71="","",B71*C71) ->  | E71: =VLOOKUP(A71,Codes!$B:$OM,'Data Validation Lists'!$B$1+2,FALSE) -> @LK-ATP-BDL101DW | G71: =IF(AND(B71>0,'Data Validation Lists'!$I$1=1),B71,"") ->  | H71: =IF(AND(B71>0,'Data Validation Lists'!$I$10>1),B71,"") ->  | R71: Furniture
R72: Furniture
A73: 800 DL Cnr Base (300 Door) | C73: =IF($E73="Not Available","",VLOOKUP(E73,'Prices Furniture'!A:F,5,FALSE)*(1-$S$3)) -> 550 | D73: =IF(B73="","",B73*C73) ->  | E73: =VLOOKUP(A73,Codes!$B:$OM,'Data Validation Lists'!$B$1+2,FALSE) -> @LK-ATP-BDLC83 | G73: =IF(AND(B73>0,'Data Validation Lists'!$I$1=1),B73,"") ->  | H73: =IF(AND(B73>0,'Data Validation Lists'!$I$10>1),B73,"") ->  | R73: Furniture
A74: 800 DL Cnr Base (400 Door) | C74: =IF($E74="Not Available","",VLOOKUP(E74,'Prices Furniture'!A:F,5,FALSE)*(1-$S$3)) -> 580 | D74: =IF(B74="","",B74*C74) ->  | E74: =VLOOKUP(A74,Codes!$B:$OM,'Data Validation Lists'!$B$1+2,FALSE) -> @LK-ATP-BDLC84 | G74: =IF(AND(B74>0,'Data Validation Lists'!$I$1=1),B74,"") ->  | H74: =IF(AND(B74>0,'Data Validation Lists'!$I$10>1),B74,"") ->  | R74: Furniture
A75: 800 DL Cnr Base (500 Door) | C75: =IF($E75="Not Available","",VLOOKUP(E75,'Prices Furniture'!A:F,5,FALSE)*(1-$S$3)) -> 590 | D75: =IF(B75="","",B75*C75) ->  | E75: =VLOOKUP(A75,Codes!$B:$OM,'Data Validation Lists'!$B$1+2,FALSE) -> @LK-ATP-BDLC85 | G75: =IF(AND(B75>0,'Data Validation Lists'!$I$1=1),B75,"") ->  | H75: =IF(AND(B75>0,'Data Validation Lists'!$I$10>1),B75,"") ->  | R75: Furniture
A76: 1000 DL Cnr Base (500 Door) | C76: =IF($E76="Not Available","",VLOOKUP(E76,'Prices Furniture'!A:F,5,FALSE)*(1-$S$3)) -> 595 | D76: =IF(B76="","",B76*C76) ->  | E76: =VLOOKUP(A76,Codes!$B:$OM,'Data Validation Lists'!$B$1+2,FALSE) -> @LK-ATP-BDLC15 | G76: =IF(AND(B76>0,'Data Validation Lists'!$I$1=1),B76,"") ->  | H76: =IF(AND(B76>0,'Data Validation Lists'!$I$10>1),B76,"") ->  | R76: Furniture
A77: 1000 DL Cnr Base (600 Door) | C77: =IF($E77="Not Available","",VLOOKUP(E77,'Prices Furniture'!A:F,5,FALSE)*(1-$S$3)) -> 589 | D77: =IF(B77="","",B77*C77) ->  | E77: =VLOOKUP(A77,Codes!$B:$OM,'Data Validation Lists'!$B$1+2,FALSE) -> @LK-ATP-BDLC16 | G77: =IF(AND(B77>0,'Data Validation Lists'!$I$1=1),B77,"") ->  | H77: =IF(AND(B77>0,'Data Validation Lists'!$I$10>1),B77,"") ->  | R77: Furniture
R78: Furniture
A79: 300 HL Pan Drawer Unit with 2 Internal Drawers | C79: =IF($E79="Not Available","",VLOOKUP(E79,'Prices Furniture'!A:F,5,FALSE)*(1-$S$3)) -> 635 | D79: =IF(B79="","",B79*C79) ->  | E79: =VLOOKUP(A79,Codes!$B:$OM,'Data Validation Lists'!$B$1+2,FALSE) -> @LK-ATP-BHD3 | G79: =IF(AND(B79>0,'Data Validation Lists'!$I$1=1),B79,"") ->  | H79: =IF(AND(B79>0,'Data Validation Lists'!$I$10>1),(B79*2),"") ->  | I79: =IF(AND($B79>0,'Data Validation Lists'!$I$10>1),SUM($B79*1),"") ->  | R79: Furniture | T79: =IF(B79="","",SUM(D79/1.2)*(1-$S$2)/(1-$S$3)) -> 
A80: 400 HL Pan Drawer Unit with 2 Internal Drawers | C80: =IF($E80="Not Available","",VLOOKUP(E80,'Prices Furniture'!A:F,5,FALSE)*(1-$S$3)) -> 680 | D80: =IF(B80="","",B80*C80) ->  | E80: =VLOOKUP(A80,Codes!$B:$OM,'Data Validation Lists'!$B$1+2,FALSE) -> @LK-ATP-BHD4 | G80: =IF(AND(B80>0,'Data Validation Lists'!$I$1=1),B80,"") ->  | H80: =IF(AND(B80>0,'Data Validation Lists'!$I$10>1),(B80*2),"") ->  | I80: =IF(AND($B80>0,'Data Validation Lists'!$I$10>1),SUM($B80*1),"") ->  | R80: Furniture
A81: 500 HL Pan Drawer Unit with 2 Internal Drawers | C81: =IF($E81="Not Available","",VLOOKUP(E81,'Prices Furniture'!A:F,5,FALSE)*(1-$S$3)) -> 754 | E81: =VLOOKUP(A81,Codes!$B:$OM,'Data Validation Lists'!$B$1+2,FALSE) -> @LK-ATP-BHD5 | G81: =IF(AND(B81>0,'Data Validation Lists'!$I$1=1),B81,"") ->  | H81: =IF(AND(B81>0,'Data Validation Lists'!$I$10>1),(B81*2),"") ->  | I81: =IF(AND($B81>0,'Data Validation Lists'!$I$10>1),SUM($B81*1),"") ->  | R81: Furniture
A82: 600 HL Pan Drawer Unit with 2 Internal Drawers | C82: =IF($E82="Not Available","",VLOOKUP(E82,'Prices Furniture'!A:F,5,FALSE)*(1-$S$3)) -> 805 | E82: =VLOOKUP(A82,Codes!$B:$OM,'Data Validation Lists'!$B$1+2,FALSE) -> @LK-ATP-BHD6 | G82: =IF(AND(B82>0,'Data Validation Lists'!$I$1=1),B82,"") ->  | H82: =IF(AND(B82>0,'Data Validation Lists'!$I$10>1),(B82*2),"") ->  | I82: =IF(AND($B82>0,'Data Validation Lists'!$I$10>1),SUM($B82*1),"") ->  | R82: Furniture
R83: Furniture
A84: 500 4 Drw Base Unit | C84: =IF($E84="Not Available","",VLOOKUP(E84,'Prices Furniture'!A:F,5,FALSE)*(1-$S$3)) -> 837 | D84: =IF(B84="","",B84*C84) ->  | E84: =VLOOKUP(A84,Codes!$B:$OM,'Data Validation Lists'!$B$1+2,FALSE) -> @LK-ATP-BD54 | G84: =IF(AND(B84>0,'Data Validation Lists'!$I$1=1),B84,"") ->  | H84: =IF(AND($B84>0,'Data Validation Lists'!$I$10>1),SUM($B84*3),"") ->  | I84: =IF(AND($B84>0,'Data Validation Lists'!$I$10>1),SUM($B84*1),"") ->  | R84: Furniture
R85: Furniture
A86: 500 3 Drw Base Unit | C86: =IF($E86="Not Available","",VLOOKUP(E86,'Prices Furniture'!A:F,5,FALSE)*(1-$S$3)) -> 696 | D86: =IF(B86="","",B86*C86) ->  | E86: =VLOOKUP(A86,Codes!$B:$OM,'Data Validation Lists'!$B$1+2,FALSE) -> @LK-ATP-BD53 | G86: =IF(AND(B86>0,'Data Validation Lists'!$I$1=1),B86,"") ->  | H86: =IF(AND($B86>0,'Data Validation Lists'!$I$10>1),SUM($B86*1),"") ->  | I86: =IF(AND($B86>0,'Data Validation Lists'!$I$10>1),SUM($B86*2),"") ->  | R86: Furniture
A87: 600 3 Drw Base Unit | C87: =IF($E87="Not Available","",VLOOKUP(E87,'Prices Furniture'!A:F,5,FALSE)*(1-$S$3)) -> 769 | E87: =VLOOKUP(A87,Codes!$B:$OM,'Data Validation Lists'!$B$1+2,FALSE) -> @LK-ATP-BD63 | G87: =IF(AND(B87>0,'Data Validation Lists'!$I$1=1),B87,"") ->  | H87: =IF(AND($B87>0,'Data Validation Lists'!$I$10>1),SUM($B87*1),"") ->  | I87: =IF(AND($B87>0,'Data Validation Lists'!$I$10>1),SUM($B87*2),"") ->  | R87: Furniture
A88: 800 3 Drw Base Unit | C88: =IF($E88="Not Available","",VLOOKUP(E88,'Prices Furniture'!A:F,5,FALSE)*(1-$S$3)) -> 808 | E88: =VLOOKUP(A88,Codes!$B:$OM,'Data Validation Lists'!$B$1+2,FALSE) -> @LK-ATP-BD83 | G88: =IF(AND(B88>0,'Data Validation Lists'!$I$1=1),B88,"") ->  | H88: =IF(AND($B88>0,'Data Validation Lists'!$I$10>1),SUM($B88*1),"") ->  | I88: =IF(AND($B88>0,'Data Validation Lists'!$I$10>1),SUM($B88*2),"") ->  | R88: Furniture
A89: 900 3 Drw Base Unit | C89: =IF($E89="Not Available","",VLOOKUP(E89,'Prices Furniture'!A:F,5,FALSE)*(1-$S$3)) -> 824 | E89: =VLOOKUP(A89,Codes!$B:$OM,'Data Validation Lists'!$B$1+2,FALSE) -> @LK-ATP-BD93 | G89: =IF(AND(B89>0,'Data Validation Lists'!$I$1=1),B89,"") ->  | H89: =IF(AND($B89>0,'Data Validation Lists'!$I$10>1),SUM($B89*1),"") ->  | I89: =IF(AND($B89>0,'Data Validation Lists'!$I$10>1),SUM($B89*2),"") ->  | R89: Furniture
A90: 1000 3 Drw Base Unit | C90: =IF($E90="Not Available","",VLOOKUP(E90,'Prices Furniture'!A:F,5,FALSE)*(1-$S$3)) -> 836 | E90: =VLOOKUP(A90,Codes!$B:$OM,'Data Validation Lists'!$B$1+2,FALSE) -> @LK-ATP-BD13 | G90: =IF(AND(B90>0,'Data Validation Lists'!$I$1=1),B90,"") ->  | H90: =IF(AND($B90>0,'Data Validation Lists'!$I$10>1),SUM($B90*1),"") ->  | I90: =IF(AND($B90>0,'Data Validation Lists'!$I$10>1),SUM($B90*2),"") ->  | R90: Furniture
R91: Furniture
A92: 600 2 Pan Drw Unit | C92: =IF($E92="Not Available","",VLOOKUP(E92,'Prices Furniture'!A:F,5,FALSE)*(1-$S$3)) -> 631 | D92: =IF(B92="","",B92*C92) ->  | E92: =VLOOKUP(A92,Codes!$B:$OM,'Data Validation Lists'!$B$1+2,FALSE) -> @LK-ATP-BD62 | G92: =IF(AND(B92>0,'Data Validation Lists'!$I$1=1),B92,"") ->  | I92: =IF(AND($B92>0,'Data Validation Lists'!$I$10>1),SUM($B92*2),"") ->  | R92: Furniture
A93: 800 2 Pan Drw Unit | C93: =IF($E93="Not Available","",VLOOKUP(E93,'Prices Furniture'!A:F,5,FALSE)*(1-$S$3)) ->  | D93: =IF(B93="","",B93*C93) ->  | E93: =VLOOKUP(A93,Codes!$B:$OM,'Data Validation Lists'!$B$1+2,FALSE) -> Not Available | G93: =IF(AND(B93>0,'Data Validation Lists'!$I$1=1),B93,"") ->  | I93: =IF(AND($B93>0,'Data Validation Lists'!$I$10>1),SUM($B93*2),"") ->  | R93: Furniture
A94: 900 2 Pan Drw Unit | C94: =IF($E94="Not Available","",VLOOKUP(E94,'Prices Furniture'!A:F,5,FALSE)*(1-$S$3)) -> 728 | D94: =IF(B94="","",B94*C94) ->  | E94: =VLOOKUP(A94,Codes!$B:$OM,'Data Validation Lists'!$B$1+2,FALSE) -> @LK-ATP-BD92 | G94: =IF(AND(B94>0,'Data Validation Lists'!$I$1=1),B94,"") ->  | I94: =IF(AND($B94>0,'Data Validation Lists'!$I$10>1),SUM($B94*2),"") ->  | R94: Furniture
A95: 1000 2 Pan Drw Unit | C95: =IF($E95="Not Available","",VLOOKUP(E95,'Prices Furniture'!A:F,5,FALSE)*(1-$S$3)) ->  | D95: =IF(B95="","",B95*C95) ->  | E95: =VLOOKUP(A95,Codes!$B:$OM,'Data Validation Lists'!$B$1+2,FALSE) -> Not Available | G95: =IF(AND(B95>0,'Data Validation Lists'!$I$1=1),B95,"") ->  | I95: =IF(AND($B95>0,'Data Validation Lists'!$I$10>1),SUM($B95*2),"") ->  | R95: Furniture
R96: Furniture
A97: 600 2 Pan Drw Unit + 1 Internal | C97: =IF($E97="Not Available","",VLOOKUP(E97,'Prices Furniture'!A:F,5,FALSE)*(1-$S$3)) -> 807 | D97: =IF(B97="","",B97*C97) ->  | E97: =VLOOKUP(A97,Codes!$B:$OM,'Data Validation Lists'!$B$1+2,FALSE) -> @LK-ATP-BD62I | G97: =IF(AND(B97>0,'Data Validation Lists'!$I$1=1),B97,"") ->  | H97: =IF(AND($B97>0,'Data Validation Lists'!$I$10>1),SUM($B97*1),"") ->  | I97: =IF(AND($B97>0,'Data Validation Lists'!$I$10>1),SUM($B97*2),"") ->  | R97: Furniture
A98: 800 2 Pan Drw Unit + 1 Internal | C98: =IF($E98="Not Available","",VLOOKUP(E98,'Prices Furniture'!A:F,5,FALSE)*(1-$S$3)) ->  | D98: =IF(B98="","",B98*C98) ->  | E98: =VLOOKUP(A98,Codes!$B:$OM,'Data Validation Lists'!$B$1+2,FALSE) -> Not Available | G98: =IF(AND(B98>0,'Data Validation Lists'!$I$1=1),B98,"") ->  | H98: =IF(AND($B98>0,'Data Validation Lists'!$I$10>1),SUM($B98*1),"") ->  | I98: =IF(AND($B98>0,'Data Validation Lists'!$I$10>1),SUM($B98*2),"") ->  | R98: Furniture
A99: 900 2 Pan Drw Unit + 1 Internal | C99: =IF($E99="Not Available","",VLOOKUP(E99,'Prices Furniture'!A:F,5,FALSE)*(1-$S$3)) -> 929 | D99: =IF(B99="","",B99*C99) ->  | E99: =VLOOKUP(A99,Codes!$B:$OM,'Data Validation Lists'!$B$1+2,FALSE) -> @LK-ATP-BD92I | G99: =IF(AND(B99>0,'Data Validation Lists'!$I$1=1),B99,"") ->  | H99: =IF(AND($B99>0,'Data Validation Lists'!$I$10>1),SUM($B99*1),"") ->  | I99: =IF(AND($B99>0,'Data Validation Lists'!$I$10>1),SUM($B99*2),"") ->  | R99: Furniture
A100: 1000 2 Pan Drw Unit + 1 Internal | C100: =IF($E100="Not Available","",VLOOKUP(E100,'Prices Furniture'!A:F,5,FALSE)*(1-$S$3)) ->  | D100: =IF(B100="","",B100*C100) ->  | E100: =VLOOKUP(A100,Codes!$B:$OM,'Data Validation Lists'!$B$1+2,FALSE) -> Not Available | G100: =IF(AND(B100>0,'Data Validation Lists'!$I$1=1),B100,"") ->  | H100: =IF(AND($B100>0,'Data Validation Lists'!$I$10>1),SUM($B100*1),"") ->  | I100: =IF(AND($B100>0,'Data Validation Lists'!$I$10>1),SUM($B100*2),"") ->  | R100: Furniture
R101: Furniture
A102: 600 Low Single Drawer unit 360 high | C102: =IF($E102="Not Available","",VLOOKUP(E102,'Prices Furniture'!A:F,5,FALSE)*(1-$S$3)) -> 358 | D102: =IF(B102="","",B102*C102) ->  | E102: =VLOOKUP(A102,Codes!$B:$OM,'Data Validation Lists'!$B$1+2,FALSE) -> @LK-ATP-BD635L | G102: =IF(AND(B102>0,'Data Validation Lists'!$I$1=1),B102,"") ->  | J102: =IF(AND($B102>0,'Data Validation Lists'!$I$10>1),SUM($B102*1),"") ->  | R102: Furniture | T102: =IF(B102="","",SUM(D102/1.2)*(1-$S$2)/(1-$S$3)) -> 
R103: Furniture
A104: Wall Units (575mm High) | R104: Furniture | T104: =IF(B104="","",SUM(D104/1.2)*(1-$S$2)/(1-$S$3)) -> 
R105: Furniture
A106: 300 Wall Unit (575mm High) | C106: =IF($E106="Not Available","",VLOOKUP(E106,'Prices Furniture'!A:F,5,FALSE)*(1-$S$3)) -> 249 | D106: =IF(B106="","",B106*C106) ->  | E106: =VLOOKUP(A106,Codes!$B:$OM,'Data Validation Lists'!$B$1+2,FALSE) -> @LK-ATP-W357 | G106: =IF(AND(B106>0,'Data Validation Lists'!$I$1=1),B106,"") ->  | R106: Furniture
A107: 400 Wall Unit (575mm High) | C107: =IF($E107="Not Available","",VLOOKUP(E107,'Prices Furniture'!A:F,5,FALSE)*(1-$S$3)) -> 274 | E107: =VLOOKUP(A107,Codes!$B:$OM,'Data Validation Lists'!$B$1+2,FALSE) -> @LK-ATP-W457 | G107: =IF(AND(B107>0,'Data Validation Lists'!$I$1=1),B107,"") ->  | R107: Furniture
A108: 450 Wall Unit (575mm High) | C108: =IF($E108="Not Available","",VLOOKUP(E108,'Prices Furniture'!A:F,5,FALSE)*(1-$S$3)) -> 283 | E108: =VLOOKUP(A108,Codes!$B:$OM,'Data Validation Lists'!$B$1+2,FALSE) -> @LK-ATP-W4557 | G108: =IF(AND(B108>0,'Data Validation Lists'!$I$1=1),B108,"") ->  | R108: Furniture
A109: 500 Wall Unit (575mm High) | C109: =IF($E109="Not Available","",VLOOKUP(E109,'Prices Furniture'!A:F,5,FALSE)*(1-$S$3)) -> 292 | E109: =VLOOKUP(A109,Codes!$B:$OM,'Data Validation Lists'!$B$1+2,FALSE) -> @LK-ATP-W557 | G109: =IF(AND(B109>0,'Data Validation Lists'!$I$1=1),B109,"") ->  | R109: Furniture
A110: 600 Wall Unit (575mm High) | C110: =IF($E110="Not Available","",VLOOKUP(E110,'Prices Furniture'!A:F,5,FALSE)*(1-$S$3)) -> 282 | E110: =VLOOKUP(A110,Codes!$B:$OM,'Data Validation Lists'!$B$1+2,FALSE) -> @LK-ATP-W657 | G110: =IF(AND(B110>0,'Data Validation Lists'!$I$1=1),B110,"") ->  | R110: Furniture
A111: 800 Wall Unit (575mm High) | C111: =IF($E111="Not Available","",VLOOKUP(E111,'Prices Furniture'!A:F,5,FALSE)*(1-$S$3)) -> 467 | E111: =VLOOKUP(A111,Codes!$B:$OM,'Data Validation Lists'!$B$1+2,FALSE) -> @LK-ATP-W857 | G111: =IF(AND(B111>0,'Data Validation Lists'!$I$1=1),B111,"") ->  | R111: Furniture
A112: 900 Wall Unit (575mm High) | C112: =IF($E112="Not Available","",VLOOKUP(E112,'Prices Furniture'!A:F,5,FALSE)*(1-$S$3)) -> 471 | E112: =VLOOKUP(A112,Codes!$B:$OM,'Data Validation Lists'!$B$1+2,FALSE) -> @LK-ATP-W957 | G112: =IF(AND(B112>0,'Data Validation Lists'!$I$1=1),B112,"") ->  | R112: Furniture
A113: 1000 Wall Unit (575mm High) | C113: =IF($E113="Not Available","",VLOOKUP(E113,'Prices Furniture'!A:F,5,FALSE)*(1-$S$3)) -> 486 | E113: =VLOOKUP(A113,Codes!$B:$OM,'Data Validation Lists'!$B$1+2,FALSE) -> @LK-ATP-W157 | G113: =IF(AND(B113>0,'Data Validation Lists'!$I$1=1),B113,"") ->  | R113: Furniture
A114: 600 Corner Wall Unit (575mm High) | C114: =IF($E114="Not Available","",VLOOKUP(E114,'Prices Furniture'!A:F,5,FALSE)*(1-$S$3)) -> 396 | D114: =IF(B114="","",B114*C114) ->  | E114: =VLOOKUP(A114,Codes!$B:$OM,'Data Validation Lists'!$B$1+2,FALSE) -> @LK-ATP-WC657 | G114: =IF(AND(B114>0,'Data Validation Lists'!$I$1=1),B114,"") ->  | R114: Furniture
A115: 900 Corner Wall Unit (575mm High) | C115: =IF($E115="Not Available","",VLOOKUP(E115,'Prices Furniture'!A:F,5,FALSE)*(1-$S$3)) -> 422 | D115: =IF(B115="","",B115*C115) ->  | E115: =VLOOKUP(A115,Codes!$B:$OM,'Data Validation Lists'!$B$1+2,FALSE) -> @LK-ATP-WC957 | G115: =IF(AND(B115>0,'Data Validation Lists'!$I$1=1),B115,"") ->  | R115: Furniture
R116: Furniture
A117: Wall Units (720mm High) | R117: Furniture
R118: Furniture
A119: 300 Wall Unit (720mm High) | C119: =IF($E119="Not Available","",VLOOKUP(E119,'Prices Furniture'!A:F,5,FALSE)*(1-$S$3)) -> 228 | D119: =IF(B119="","",B119*C119) ->  | E119: =VLOOKUP(A119,Codes!$B:$OM,'Data Validation Lists'!$B$1+2,FALSE) -> @LK-ATP-W30 | G119: =IF(AND(B119>0,'Data Validation Lists'!$I$1=1),B119,"") ->  | R119: Furniture
A120: 350 Wall Unit (720mm High) | C120: =IF($E120="Not Available","",VLOOKUP(E120,'Prices Furniture'!A:F,5,FALSE)*(1-$S$3)) -> 232 | E120: =VLOOKUP(A120,Codes!$B:$OM,'Data Validation Lists'!$B$1+2,FALSE) -> @LK-ATP-W35 | G120: =IF(AND(B120>0,'Data Validation Lists'!$I$1=1),B120,"") ->  | R120: Furniture
A121: 400 Wall Unit (720mm High) | C121: =IF($E121="Not Available","",VLOOKUP(E121,'Prices Furniture'!A:F,5,FALSE)*(1-$S$3)) -> 238 | E121: =VLOOKUP(A121,Codes!$B:$OM,'Data Validation Lists'!$B$1+2,FALSE) -> @LK-ATP-W40 | G121: =IF(AND(B121>0,'Data Validation Lists'!$I$1=1),B121,"") ->  | R121: Furniture
A122: 450 Wall Unit (720mm High) | C122: =IF($E122="Not Available","",VLOOKUP(E122,'Prices Furniture'!A:F,5,FALSE)*(1-$S$3)) -> 259 | E122: =VLOOKUP(A122,Codes!$B:$OM,'Data Validation Lists'!$B$1+2,FALSE) -> @LK-ATP-W45 | G122: =IF(AND(B122>0,'Data Validation Lists'!$I$1=1),B122,"") ->  | R122: Furniture
A123: 500 Wall Unit (720mm High) | C123: =IF($E123="Not Available","",VLOOKUP(E123,'Prices Furniture'!A:F,5,FALSE)*(1-$S$3)) -> 280 | E123: =VLOOKUP(A123,Codes!$B:$OM,'Data Validation Lists'!$B$1+2,FALSE) -> @LK-ATP-W50 | G123: =IF(AND(B123>0,'Data Validation Lists'!$I$1=1),B123,"") ->  | R123: Furniture
A124: 600 Wall Unit (720mm High) | C124: =IF($E124="Not Available","",VLOOKUP(E124,'Prices Furniture'!A:F,5,FALSE)*(1-$S$3)) -> 299 | E124: =VLOOKUP(A124,Codes!$B:$OM,'Data Validation Lists'!$B$1+2,FALSE) -> @LK-ATP-W60 | G124: =IF(AND(B124>0,'Data Validation Lists'!$I$1=1),B124,"") ->  | R124: Furniture
A125: 700 Wall Unit (720mm High) | C125: =IF($E125="Not Available","",VLOOKUP(E125,'Prices Furniture'!A:F,5,FALSE)*(1-$S$3)) -> 393 | E125: =VLOOKUP(A125,Codes!$B:$OM,'Data Validation Lists'!$B$1+2,FALSE) -> @LK-ATP-W70 | G125: =IF(AND(B125>0,'Data Validation Lists'!$I$1=1),B125,"") ->  | R125: Furniture
A126: 800 Wall Unit (720mm High) | C126: =IF($E126="Not Available","",VLOOKUP(E126,'Prices Furniture'!A:F,5,FALSE)*(1-$S$3)) -> 395 | E126: =VLOOKUP(A126,Codes!$B:$OM,'Data Validation Lists'!$B$1+2,FALSE) -> @LK-ATP-W80 | G126: =IF(AND(B126>0,'Data Validation Lists'!$I$1=1),B126,"") ->  | R126: Furniture
A127: 900 Wall Unit (720mm High) | C127: =IF($E127="Not Available","",VLOOKUP(E127,'Prices Furniture'!A:F,5,FALSE)*(1-$S$3)) -> 423 | D127: =IF(B127="","",B127*C127) ->  | E127: =VLOOKUP(A127,Codes!$B:$OM,'Data Validation Lists'!$B$1+2,FALSE) -> @LK-ATP-W90 | G127: =IF(AND(B127>0,'Data Validation Lists'!$I$1=1),B127,"") ->  | R127: Furniture
A128: 1000 Wall Unit (720mm High) | C128: =IF($E128="Not Available","",VLOOKUP(E128,'Prices Furniture'!A:F,5,FALSE)*(1-$S$3)) -> 462 | D128: =IF(B128="","",B128*C128) ->  | E128: =VLOOKUP(A128,Codes!$B:$OM,'Data Validation Lists'!$B$1+2,FALSE) -> @LK-ATP-W100 | G128: =IF(AND(B128>0,'Data Validation Lists'!$I$1=1),B128,"") ->  | R128: Furniture
R129: Furniture
A130: 600 Cnr Wall Unit (720mm High) | C130: =IF($E130="Not Available","",VLOOKUP(E130,'Prices Furniture'!A:F,5,FALSE)*(1-$S$3)) -> 343 | D130: =IF(B130="","",B130*C130) ->  | E130: =VLOOKUP(A130,Codes!$B:$OM,'Data Validation Lists'!$B$1+2,FALSE) -> @LK-ATP-WC6 | G130: =IF(AND(B130>0,'Data Validation Lists'!$I$1=1),B130,"") ->  | R130: Furniture
A131: 900 Cnr Wall Unit (720mm High) | C131: =IF($E131="Not Available","",VLOOKUP(E131,'Prices Furniture'!A:F,5,FALSE)*(1-$S$3)) -> 407 | D131: =IF(B131="","",B131*C131) ->  | E131: =VLOOKUP(A131,Codes!$B:$OM,'Data Validation Lists'!$B$1+2,FALSE) -> @LK-ATP-WC9 | G131: =IF(AND(B131>0,'Data Validation Lists'!$I$1=1),B131,"") ->  | R131: Furniture
A132: 650 L Cnr Wall Unit (720mm High) | C132: =IF($E132="Not Available","",VLOOKUP(E132,'Prices Furniture'!A:F,5,FALSE)*(1-$S$3)) -> 534 | D132: =IF(B132="","",B132*C132) ->  | E132: =VLOOKUP(A132,Codes!$B:$OM,'Data Validation Lists'!$B$1+2,FALSE) -> @LK-ATP-WCL65 | G132: =IF(AND(B132>0,'Data Validation Lists'!$I$1=1),B132,"") ->  | R132: Furniture
R133: Furniture
A134: 600 Wall Microwave Unit | C134: =IF($E134="Not Available","",VLOOKUP(E134,'Prices Furniture'!A:F,5,FALSE)*(1-$S$3)) -> 388 | D134: =IF(B134="","",B134*C134) ->  | E134: =VLOOKUP(A134,Codes!$B:$OM,'Data Validation Lists'!$B$1+2,FALSE) -> @LK-ATP-WM60 | G134: =IF(AND(B134>0,'Data Validation Lists'!$I$1=1),B134,"") ->  | R134: Furniture
A135: 600 Boiler Housing | C135: =IF($E135="Not Available","",VLOOKUP(E135,'Prices Furniture'!A:F,5,FALSE)*(1-$S$3)) -> 282 | D135: =IF(B135="","",B135*C135) ->  | E135: =VLOOKUP(A135,Codes!$B:$OM,'Data Validation Lists'!$B$1+2,FALSE) -> @LK-ATP-WBHU | R135: Furniture
R136: Furniture
A137: 600 Bifold Unit | C137: =IF($E137="Not Available","",VLOOKUP(E137,'Prices Furniture'!A:F,5,FALSE)*(1-$S$3)) -> 611 | D137: =IF(B137="","",B137*C137) ->  | E137: =VLOOKUP(A137,Codes!$B:$OM,'Data Validation Lists'!$B$1+2,FALSE) -> @LK-ATP-WBI60 | G137: =IF(AND(B137>0,'Data Validation Lists'!$I$1=1),B137,"") ->  | R137: Furniture
A138: 800 Bifold Unit | C138: =IF($E138="Not Available","",VLOOKUP(E138,'Prices Furniture'!A:F,5,FALSE)*(1-$S$3)) ->  | D138: =IF(B138="","",B138*C138) ->  | E138: =VLOOKUP(A138,Codes!$B:$OM,'Data Validation Lists'!$B$1+2,FALSE) -> Not Available | G138: =IF(AND(B138>0,'Data Validation Lists'!$I$1=1),B138,"") ->  | R138: Furniture
A139: 900 Bifold Unit | C139: =IF($E139="Not Available","",VLOOKUP(E139,'Prices Furniture'!A:F,5,FALSE)*(1-$S$3)) -> 727 | D139: =IF(B139="","",B139*C139) ->  | E139: =VLOOKUP(A139,Codes!$B:$OM,'Data Validation Lists'!$B$1+2,FALSE) -> @LK-ATP-WBI90 | G139: =IF(AND(B139>0,'Data Validation Lists'!$I$1=1),B139,"") ->  | R139: Furniture
A140: 1000 Bifold Unit | C140: =IF($E140="Not Available","",VLOOKUP(E140,'Prices Furniture'!A:F,5,FALSE)*(1-$S$3)) ->  | D140: =IF(B140="","",B140*C140) ->  | E140: =VLOOKUP(A140,Codes!$B:$OM,'Data Validation Lists'!$B$1+2,FALSE) -> Not Available | G140: =IF(AND(B140>0,'Data Validation Lists'!$I$1=1),B140,"") ->  | R140: Furniture
R141: Furniture
A142: 500 Glass Wall Unit | C142: =IF($E142="Not Available","",VLOOKUP(E142,'Prices Furniture'!A:F,5,FALSE)*(1-$S$3)) -> 312 | D142: =IF(B142="","",B142*C142) ->  | E142: =VLOOKUP(A142,Codes!$B:$OM,'Data Validation Lists'!$B$1+2,FALSE) -> @LK-ATP-WG5 | G142: =IF(AND(B142>0,'Data Validation Lists'!$I$1=1),B142,"") ->  | R142: Furniture
A143: 500 Dresser Unit | C143: =IF($E143="Not Available","",VLOOKUP(E143,'Prices Furniture'!A:F,5,FALSE)*(1-$S$3)) -> 673 | E143: =VLOOKUP(A143,Codes!$B:$OM,'Data Validation Lists'!$B$1+2,FALSE) -> @LK-ATP-WDR50 | G143: =IF(AND(B143>0,'Data Validation Lists'!$I$1=1),B143,"") ->  | H143: =IF(AND($B143>0,'Data Validation Lists'!$I$10>1),SUM($B143*1),"") ->  | R143: Furniture
A144: Smoked Glass Wall Unit - 500mm | C144: =IF($E144="Not Available","",VLOOKUP(E144,'Prices Furniture'!A:F,5,FALSE)*(1-$S$3)) ->  | E144: =VLOOKUP(A144,Codes!$B:$OM,'Data Validation Lists'!$B$1+2,FALSE) -> Not Available | G144: =IF(AND(B144>0,'Data Validation Lists'!$I$1=1),B144,"") ->  | R144: Furniture
A145: Smoked Glass Wall Unit - 600mm | C145: =IF($E145="Not Available","",VLOOKUP(E145,'Prices Furniture'!A:F,5,FALSE)*(1-$S$3)) ->  | E145: =VLOOKUP(A145,Codes!$B:$OM,'Data Validation Lists'!$B$1+2,FALSE) -> Not Available | G145: =IF(AND(B145>0,'Data Validation Lists'!$I$1=1),B145,"") ->  | R145: Furniture
A146: Reeded Glass Wall Unit - 500mm | C146: =IF($E146="Not Available","",VLOOKUP(E146,'Prices Furniture'!A:F,5,FALSE)*(1-$S$3)) ->  | D146: =IF(B146="","",B146*C146) ->  | E146: =VLOOKUP(A146,Codes!$B:$OM,'Data Validation Lists'!$B$1+2,FALSE) -> Not Available | G146: =IF(AND(B146>0,'Data Validation Lists'!$I$1=1),B146,"") ->  | R146: Furniture
A147: Reeded Glass Wall Unit - 600mm | C147: =IF($E147="Not Available","",VLOOKUP(E147,'Prices Furniture'!A:F,5,FALSE)*(1-$S$3)) ->  | E147: =VLOOKUP(A147,Codes!$B:$OM,'Data Validation Lists'!$B$1+2,FALSE) -> Not Available | G147: =IF(AND(B147>0,'Data Validation Lists'!$I$1=1),B147,"") ->  | R147: Furniture
A148: Glass Shelf 500 x 8mm | C148: =IF($E148="Not Available","",VLOOKUP(E148,'Prices Furniture'!A:F,5,FALSE)*(1-$S$3)) -> 70 | E148: =VLOOKUP(A148,Codes!$B:$OM,'Data Validation Lists'!$B$1+2,FALSE) -> LK-FC-GLSHLF5 | F148: Don't forget to order your glass shelves! | R148: Furniture
A149: Glass Shelf 600 x 8mm | C149: =IF($E149="Not Available","",VLOOKUP(E149,'Prices Furniture'!A:F,5,FALSE)*(1-$S$3)) -> 70 | E149: =VLOOKUP(A149,Codes!$B:$OM,'Data Validation Lists'!$B$1+2,FALSE) -> LK-FC-GLSHLF6 | F149: Don't forget to order your glass shelves! | R149: Furniture
A151: 1000 2 Door Breakfast Dresser 40mm Wtop | C151: =IF($E151="Not Available","",VLOOKUP(E151,'Prices Furniture'!A:F,5,FALSE)*(1-$S$3)) ->  | D151: =IF(B151="","",B151*C151) ->  | E151: =VLOOKUP(A151,Codes!$B:$OM,'Data Validation Lists'!$B$1+2,FALSE) -> Not Available | F151: Lead Time: 8 Weeks | G151: =IF(AND(B151>0,'Data Validation Lists'!$I$1=1),B151,"") ->  | R151: Furniture | T151: =IF(B151="","",SUM(D151/1.2)*(1-$S$2)/(1-$S$3)) -> 
A152: 1000 2 Door Breakfast Dresser 30mm Wtop | C152: =IF($E152="Not Available","",VLOOKUP(E152,'Prices Furniture'!A:F,5,FALSE)*(1-$S$3)) ->  | D152: =IF(B152="","",B152*C152) ->  | E152: =VLOOKUP(A152,Codes!$B:$OM,'Data Validation Lists'!$B$1+2,FALSE) -> Not Available | F152: Lead Time: 8 Weeks | G152: =IF(AND(B152>0,'Data Validation Lists'!$I$1=1),B152,"") ->  | R152: Furniture | T152: =IF(B152="","",SUM(D152/1.2)*(1-$S$2)/(1-$S$3)) -> 
A153: 1000 2 Door Breakfast Dresser 25mm Wtop | C153: =IF($E153="Not Available","",VLOOKUP(E153,'Prices Furniture'!A:F,5,FALSE)*(1-$S$3)) ->  | E153: =VLOOKUP(A153,Codes!$B:$OM,'Data Validation Lists'!$B$1+2,FALSE) -> Not Available | F153: Lead Time: 8 Weeks | G153: =IF(AND(B153>0,'Data Validation Lists'!$I$1=1),B153,"") ->  | R153: Furniture
A154: 1000 2 Door Breakfast Dresser 20mm Wtop | C154: =IF($E154="Not Available","",VLOOKUP(E154,'Prices Furniture'!A:F,5,FALSE)*(1-$S$3)) ->  | E154: =VLOOKUP(A154,Codes!$B:$OM,'Data Validation Lists'!$B$1+2,FALSE) -> Not Available | F154: Lead Time: 8 Weeks | G154: =IF(AND(B154>0,'Data Validation Lists'!$I$1=1),B154,"") ->  | R154: Furniture
A156: Curved Wall Unit | C156: =IF($E156="Not Available","",VLOOKUP(E156,'Prices Furniture'!A:F,5,FALSE)*(1-$S$3)) ->  | D156: =IF(B156="","",B156*C156) ->  | E156: =VLOOKUP(A156,Codes!$B:$OM,'Data Validation Lists'!$B$1+2,FALSE) -> Not Available | G156: =IF(AND(B156>0,'Data Validation Lists'!$I$1=1),B156,"") ->  | R156: Furniture
R157: Furniture
A158: 600 285 Bridging Unit | C158: =IF($E158="Not Available","",VLOOKUP(E158,'Prices Furniture'!A:F,5,FALSE)*(1-$S$3)) -> 265 | D158: =IF(B158="","",B158*C158) ->  | E158: =VLOOKUP(A158,Codes!$B:$OM,'Data Validation Lists'!$B$1+2,FALSE) -> @LK-ATP-WB62 | G158: =IF(AND(B158>0,'Data Validation Lists'!$I$1=1),B158,"") ->  | R158: Furniture
A159: 800 285 Bridging Unit | C159: =IF($E159="Not Available","",VLOOKUP(E159,'Prices Furniture'!A:F,5,FALSE)*(1-$S$3)) -> 317 | D159: =IF(B159="","",B159*C159) ->  | E159: =VLOOKUP(A159,Codes!$B:$OM,'Data Validation Lists'!$B$1+2,FALSE) -> @LK-ATP-WB82 | G159: =IF(AND(B159>0,'Data Validation Lists'!$I$1=1),B159,"") ->  | R159: Furniture
A160: 900 285 Bridging Unit | C160: =IF($E160="Not Available","",VLOOKUP(E160,'Prices Furniture'!A:F,5,FALSE)*(1-$S$3)) -> 338 | D160: =IF(B160="","",B160*C160) ->  | E160: =VLOOKUP(A160,Codes!$B:$OM,'Data Validation Lists'!$B$1+2,FALSE) -> @LK-ATP-WB92 | G160: =IF(AND(B160>0,'Data Validation Lists'!$I$1=1),B160,"") ->  | R160: Furniture
A161: 1000 285 Bridging Unit | C161: =IF($E161="Not Available","",VLOOKUP(E161,'Prices Furniture'!A:F,5,FALSE)*(1-$S$3)) -> 357 | D161: =IF(B161="","",B161*C161) ->  | E161: =VLOOKUP(A161,Codes!$B:$OM,'Data Validation Lists'!$B$1+2,FALSE) -> @LK-ATP-WB12 | G161: =IF(AND(B161>0,'Data Validation Lists'!$I$1=1),B161,"") ->  | R161: Furniture
R162: Furniture
A163: 600 355mm Bridging Unit | C163: =IF($E163="Not Available","",VLOOKUP(E163,'Prices Furniture'!A:F,5,FALSE)*(1-$S$3)) -> 297 | D163: =IF(B163="","",B163*C163) ->  | E163: =VLOOKUP(A163,Codes!$B:$OM,'Data Validation Lists'!$B$1+2,FALSE) -> @LK-ATP-WB63 | G163: =IF(AND(B163>0,'Data Validation Lists'!$I$1=1),B163,"") ->  | R163: Furniture
A164: 800 355mm Bridging Unit | C164: =IF($E164="Not Available","",VLOOKUP(E164,'Prices Furniture'!A:F,5,FALSE)*(1-$S$3)) -> 333 | D164: =IF(B164="","",B164*C164) ->  | E164: =VLOOKUP(A164,Codes!$B:$OM,'Data Validation Lists'!$B$1+2,FALSE) -> @LK-ATP-WB83 | G164: =IF(AND(B164>0,'Data Validation Lists'!$I$1=1),B164,"") ->  | R164: Furniture
A165: 900 355mm Bridging Unit | C165: =IF($E165="Not Available","",VLOOKUP(E165,'Prices Furniture'!A:F,5,FALSE)*(1-$S$3)) -> 378 | D165: =IF(B165="","",B165*C165) ->  | E165: =VLOOKUP(A165,Codes!$B:$OM,'Data Validation Lists'!$B$1+2,FALSE) -> @LK-ATP-WB93 | G165: =IF(AND(B165>0,'Data Validation Lists'!$I$1=1),B165,"") ->  | R165: Furniture
A166: 1000 355mm Bridging Unit | C166: =IF($E166="Not Available","",VLOOKUP(E166,'Prices Furniture'!A:F,5,FALSE)*(1-$S$3)) -> 390 | D166: =IF(B166="","",B166*C166) ->  | E166: =VLOOKUP(A166,Codes!$B:$OM,'Data Validation Lists'!$B$1+2,FALSE) -> @LK-ATP-WB13 | G166: =IF(AND(B166>0,'Data Validation Lists'!$I$1=1),B166,"") ->  | R166: Furniture
R167: Furniture
A168: Tall Wall Units (900mm High) | R168: Furniture
R169: Furniture
A170: 300 Tall Wall Unit (900mm High) | C170: =IF($E170="Not Available","",VLOOKUP(E170,'Prices Furniture'!A:F,5,FALSE)*(1-$S$3)) -> 279 | D170: =IF(B170="","",B170*C170) ->  | E170: =VLOOKUP(A170,Codes!$B:$OM,'Data Validation Lists'!$B$1+2,FALSE) -> @LK-ATP-TW30 | G170: =IF(AND(B170>0,'Data Validation Lists'!$I$1=1),B170,"") ->  | R170: Furniture
A171: 400 Tall Wall Unit (900mm High) | C171: =IF($E171="Not Available","",VLOOKUP(E171,'Prices Furniture'!A:F,5,FALSE)*(1-$S$3)) -> 291 | E171: =VLOOKUP(A171,Codes!$B:$OM,'Data Validation Lists'!$B$1+2,FALSE) -> @LK-ATP-TW40 | G171: =IF(AND(B171>0,'Data Validation Lists'!$I$1=1),B171,"") ->  | R171: Furniture
A172: 450 Tall Wall Unit (900mm High) | C172: =IF($E172="Not Available","",VLOOKUP(E172,'Prices Furniture'!A:F,5,FALSE)*(1-$S$3)) -> 309 | E172: =VLOOKUP(A172,Codes!$B:$OM,'Data Validation Lists'!$B$1+2,FALSE) -> @LK-ATP-TW45 | G172: =IF(AND(B172>0,'Data Validation Lists'!$I$1=1),B172,"") ->  | R172: Furniture | T172: =IF(B172="","",SUM(D172/1.2)*(1-$S$2)/(1-$S$3)) -> 
A173: 500 Tall Wall Unit (900mm High) | C173: =IF($E173="Not Available","",VLOOKUP(E173,'Prices Furniture'!A:F,5,FALSE)*(1-$S$3)) -> 329 | E173: =VLOOKUP(A173,Codes!$B:$OM,'Data Validation Lists'!$B$1+2,FALSE) -> @LK-ATP-TW50 | G173: =IF(AND(B173>0,'Data Validation Lists'!$I$1=1),B173,"") ->  | R173: Furniture
A174: 600 Tall Wall Unit (900mm High) | C174: =IF($E174="Not Available","",VLOOKUP(E174,'Prices Furniture'!A:F,5,FALSE)*(1-$S$3)) -> 312 | E174: =VLOOKUP(A174,Codes!$B:$OM,'Data Validation Lists'!$B$1+2,FALSE) -> @LK-ATP-TW60 | G174: =IF(AND(B174>0,'Data Validation Lists'!$I$1=1),B174,"") ->  | R174: Furniture
A175: 300 Tall Wall Unit LH (900mm High) | C175: =IF($E175="Not Available","",VLOOKUP(E175,'Prices Furniture'!A:F,5,FALSE)*(1-$S$3)) ->  | E175: =VLOOKUP(A175,Codes!$B:$OM,'Data Validation Lists'!$B$1+2,FALSE) -> Not Available | G175: =IF(AND(B175>0,'Data Validation Lists'!$I$1=1),B175,"") ->  | R175: Furniture
A176: 300 Tall Wall Unit RH (900mm High) | C176: =IF($E176="Not Available","",VLOOKUP(E176,'Prices Furniture'!A:F,5,FALSE)*(1-$S$3)) ->  | D176: =IF(B176="","",B176*C176) ->  | E176: =VLOOKUP(A176,Codes!$B:$OM,'Data Validation Lists'!$B$1+2,FALSE) -> Not Available | G176: =IF(AND(B176>0,'Data Validation Lists'!$I$1=1),B176,"") ->  | R176: Furniture
A177: 400 Tall Wall Unit LH (900mm High) | C177: =IF($E177="Not Available","",VLOOKUP(E177,'Prices Furniture'!A:F,5,FALSE)*(1-$S$3)) ->  | E177: =VLOOKUP(A177,Codes!$B:$OM,'Data Validation Lists'!$B$1+2,FALSE) -> Not Available | G177: =IF(AND(B177>0,'Data Validation Lists'!$I$1=1),B177,"") ->  | R177: Furniture
A178: 400 Tall Wall Unit RH (900mm High) | C178: =IF($E178="Not Available","",VLOOKUP(E178,'Prices Furniture'!A:F,5,FALSE)*(1-$S$3)) ->  | D178: =IF(B178="","",B178*C178) ->  | E178: =VLOOKUP(A178,Codes!$B:$OM,'Data Validation Lists'!$B$1+2,FALSE) -> Not Available | G178: =IF(AND(B178>0,'Data Validation Lists'!$I$1=1),B178,"") ->  | R178: Furniture
A179: 450 Tall Wall Unit LH (900mm High) | C179: =IF($E179="Not Available","",VLOOKUP(E179,'Prices Furniture'!A:F,5,FALSE)*(1-$S$3)) ->  | E179: =VLOOKUP(A179,Codes!$B:$OM,'Data Validation Lists'!$B$1+2,FALSE) -> Not Available | G179: =IF(AND(B179>0,'Data Validation Lists'!$I$1=1),B179,"") ->  | R179: Furniture
A180: 450 Tall Wall Unit RH (900mm High) | C180: =IF($E180="Not Available","",VLOOKUP(E180,'Prices Furniture'!A:F,5,FALSE)*(1-$S$3)) ->  | D180: =IF(B180="","",B180*C180) ->  | E180: =VLOOKUP(A180,Codes!$B:$OM,'Data Validation Lists'!$B$1+2,FALSE) -> Not Available | G180: =IF(AND(B180>0,'Data Validation Lists'!$I$1=1),B180,"") ->  | R180: Furniture
A181: 500 Tall Wall Unit LH (900mm High) | C181: =IF($E181="Not Available","",VLOOKUP(E181,'Prices Furniture'!A:F,5,FALSE)*(1-$S$3)) ->  | E181: =VLOOKUP(A181,Codes!$B:$OM,'Data Validation Lists'!$B$1+2,FALSE) -> Not Available | G181: =IF(AND(B181>0,'Data Validation Lists'!$I$1=1),B181,"") ->  | R181: Furniture
A182: 500 Tall Wall Unit RH (900mm High) | C182: =IF($E182="Not Available","",VLOOKUP(E182,'Prices Furniture'!A:F,5,FALSE)*(1-$S$3)) ->  | D182: =IF(B182="","",B182*C182) ->  | E182: =VLOOKUP(A182,Codes!$B:$OM,'Data Validation Lists'!$B$1+2,FALSE) -> Not Available | G182: =IF(AND(B182>0,'Data Validation Lists'!$I$1=1),B182,"") ->  | R182: Furniture
A183: 600 Tall Wall Unit LH (900mm High) | C183: =IF($E183="Not Available","",VLOOKUP(E183,'Prices Furniture'!A:F,5,FALSE)*(1-$S$3)) ->  | E183: =VLOOKUP(A183,Codes!$B:$OM,'Data Validation Lists'!$B$1+2,FALSE) -> Not Available | G183: =IF(AND(B183>0,'Data Validation Lists'!$I$1=1),B183,"") ->  | R183: Furniture
A184: 600 Tall Wall Unit RH (900mm High) | C184: =IF($E184="Not Available","",VLOOKUP(E184,'Prices Furniture'!A:F,5,FALSE)*(1-$S$3)) ->  | D184: =IF(B184="","",B184*C184) ->  | E184: =VLOOKUP(A184,Codes!$B:$OM,'Data Validation Lists'!$B$1+2,FALSE) -> Not Available | G184: =IF(AND(B184>0,'Data Validation Lists'!$I$1=1),B184,"") ->  | R184: Furniture
A185: 800 Tall Wall Unit (900mm High) | C185: =IF($E185="Not Available","",VLOOKUP(E185,'Prices Furniture'!A:F,5,FALSE)*(1-$S$3)) -> 464 | D185: =IF(B185="","",B185*C185) ->  | E185: =VLOOKUP(A185,Codes!$B:$OM,'Data Validation Lists'!$B$1+2,FALSE) -> @LK-ATP-TW80 | G185: =IF(AND(B185>0,'Data Validation Lists'!$I$1=1),B185,"") ->  | R185: Furniture
A186: 900 Tall Wall Unit (900mm High) | C186: =IF($E186="Not Available","",VLOOKUP(E186,'Prices Furniture'!A:F,5,FALSE)*(1-$S$3)) -> 492 | E186: =VLOOKUP(A186,Codes!$B:$OM,'Data Validation Lists'!$B$1+2,FALSE) -> @LK-ATP-TW90 | G186: =IF(AND(B186>0,'Data Validation Lists'!$I$1=1),B186,"") ->  | R186: Furniture
A187: 1000 Tall Wall Unit (900mm High) | C187: =IF($E187="Not Available","",VLOOKUP(E187,'Prices Furniture'!A:F,5,FALSE)*(1-$S$3)) -> 522 | E187: =VLOOKUP(A187,Codes!$B:$OM,'Data Validation Lists'!$B$1+2,FALSE) -> @LK-ATP-TW100 | G187: =IF(AND(B187>0,'Data Validation Lists'!$I$1=1),B187,"") ->  | R187: Furniture
A188: 600 Tall Cnr Wall Unit (900mm High) | C188: =IF($E188="Not Available","",VLOOKUP(E188,'Prices Furniture'!A:F,5,FALSE)*(1-$S$3)) -> 416 | E188: =VLOOKUP(A188,Codes!$B:$OM,'Data Validation Lists'!$B$1+2,FALSE) -> @LK-ATP-TWC6 | G188: =IF(AND(B188>0,'Data Validation Lists'!$I$1=1),B188,"") ->  | R188: Furniture
A189: 900 Tall Cnr Wall Unit (900mm High) | C189: =IF($E189="Not Available","",VLOOKUP(E189,'Prices Furniture'!A:F,5,FALSE)*(1-$S$3)) -> 438 | E189: =VLOOKUP(A189,Codes!$B:$OM,'Data Validation Lists'!$B$1+2,FALSE) -> @LK-ATP-TWC9 | G189: =IF(AND(B189>0,'Data Validation Lists'!$I$1=1),B189,"") ->  | R189: Furniture
A190: 600 Tall Cnr Wall Unit LH (900mm High) | C190: =IF($E190="Not Available","",VLOOKUP(E190,'Prices Furniture'!A:F,5,FALSE)*(1-$S$3)) ->  | E190: =VLOOKUP(A190,Codes!$B:$OM,'Data Validation Lists'!$B$1+2,FALSE) -> Not Available | G190: =IF(AND(B190>0,'Data Validation Lists'!$I$1=1),B190,"") ->  | R190: Furniture
A191: 600 Tall Cnr Wall Unit RH (900mm High) | C191: =IF($E191="Not Available","",VLOOKUP(E191,'Prices Furniture'!A:F,5,FALSE)*(1-$S$3)) ->  | E191: =VLOOKUP(A191,Codes!$B:$OM,'Data Validation Lists'!$B$1+2,FALSE) -> Not Available | G191: =IF(AND(B191>0,'Data Validation Lists'!$I$1=1),B191,"") ->  | R191: Furniture
A192: 900 Tall Cnr Wall Unit LH (900mm High) | C192: =IF($E192="Not Available","",VLOOKUP(E192,'Prices Furniture'!A:F,5,FALSE)*(1-$S$3)) ->  | E192: =VLOOKUP(A192,Codes!$B:$OM,'Data Validation Lists'!$B$1+2,FALSE) -> Not Available | G192: =IF(AND(B192>0,'Data Validation Lists'!$I$1=1),B192,"") ->  | R192: Furniture
A193: 900 Tall Cnr Wall Unit RH (900mm High) | C193: =IF($E193="Not Available","",VLOOKUP(E193,'Prices Furniture'!A:F,5,FALSE)*(1-$S$3)) ->  | E193: =VLOOKUP(A193,Codes!$B:$OM,'Data Validation Lists'!$B$1+2,FALSE) -> Not Available | G193: =IF(AND(B193>0,'Data Validation Lists'!$I$1=1),B193,"") ->  | R193: Furniture
R194: Furniture
A195: Over Counter Corner Appliance Housings (1248mm High) | R195: Furniture | T195: =IF(B195="","",SUM(D195/1.2)*(1-$S$2)/(1-$S$3)) -> 
R196: Furniture
A197: 600 Corner Single Oven Housing | C197: =IF($E197="Not Available","",VLOOKUP(E197,'Prices Furniture'!A:F,5,FALSE)*(1-$S$3)) -> 644 | D197: =IF(B197="","",B197*C197) ->  | E197: =VLOOKUP(A197,Codes!$B:$OM,'Data Validation Lists'!$B$1+2,FALSE) -> @LK-ATP-CH-SO | R197: Furniture
A198: 600 Corner Compact App/Micro Housing | C198: =IF($E198="Not Available","",VLOOKUP(E198,'Prices Furniture'!A:F,5,FALSE)*(1-$S$3)) -> 703 | D198: =IF(B198="","",B198*C198) ->  | E198: =VLOOKUP(A198,Codes!$B:$OM,'Data Validation Lists'!$B$1+2,FALSE) -> @LK-ATP-CH-MW | H198: =IF(AND($B198>0,'Data Validation Lists'!$I$10>1),SUM($B198*1),"") ->  | R198: Furniture
A199: 600 Corner Storage Unit | C199: =IF($E199="Not Available","",VLOOKUP(E199,'Prices Furniture'!A:F,5,FALSE)*(1-$S$3)) -> 890 | D199: =IF(B199="","",B199*C199) ->  | E199: =VLOOKUP(A199,Codes!$B:$OM,'Data Validation Lists'!$B$1+2,FALSE) -> @LK-ATP-CH-ST | H199: =IF(AND($B199>0,'Data Validation Lists'!$I$10>1),SUM($B199*1),"") ->  | R199: Furniture
R200: Furniture
A201: Appliance Housings (1968mm High) | R201: Furniture
R202: Furniture
A203: 600 50/50 FF Housing Unit | C203: =IF($E203="Not Available","",VLOOKUP(E203,'Prices Furniture'!A:F,5,FALSE)*(1-$S$3)) -> 731 | D203: =IF(B203="","",B203*C203) ->  | E203: =VLOOKUP(A203,Codes!$B:$OM,'Data Validation Lists'!$B$1+2,FALSE) -> @LK-ATP-AH-F55 | R203: Furniture
A204: 600 70/30 FF Housing Unit | C204: =IF($E204="Not Available","",VLOOKUP(E204,'Prices Furniture'!A:F,5,FALSE)*(1-$S$3)) -> 720 | D204: =IF(B204="","",B204*C204) ->  | E204: =VLOOKUP(A204,Codes!$B:$OM,'Data Validation Lists'!$B$1+2,FALSE) -> @LK-ATP-AH-F73 | R204: Furniture
R205: Furniture
... 891 more rows

Sheet Summary
A2: YOUR LOGO HERE
B3: Summary Quote
A6: Your Company Name | B6: =TODAY() -> 2025-08-15
A7: Your Address
A8: Your Address
A9: Your Address
A11: Your Telephone
A12: Your Email
A13: Customer Name:
A14: Customer Address:
A18: Tel. Home:
A19: Tel. Mobile:
A20: Email:
A21: Range | B21: Sales Person
A22: LochAnna Kitchens | B22: NAME
A23: =VLOOKUP('Data Validation Lists'!B1,'Data Validation Lists'!A2:B280,2,FALSE) -> PG3A Ainsdale Taupe
A25: Description | B25: Sub Total
A26: Furniture | B26: =SUMIF(Kitchen!R:R,Summary!A26,Kitchen!D:D) -> 0
A27: Lighting | B27: =SUMIF(Kitchen!R:R,Summary!A27,Kitchen!D:D) -> 0
A28: Other Items | B28: =SUMIF(Kitchen!R:R,Summary!A28,Kitchen!D:D) -> 0
A29: Worktops
A30: Delivery | B30: =Kitchen!D1128 -> 90
A31: Installation
B34: Total (inc VAT)
B35: =SUM(B26:B32) -> 90
A40: This quote is indicative and subject to change. Upon acceptance of this quote a survey will be carried out and any changes required may result in a change to the final costs. The price quoted includes VAT (unless otherwise stated). VAT will be charged at the rate applying at the time of delivery.
A46: To accept this quotation, sign here and return: __________________________________________________________________

Sheet Data Validation Lists (hidden)
B1: 40 | H1: Rigid | I1: 1 | Q1: Woodgrain Painted MTM Panel | R1: 1 | S1: 2 | T1: 3 | U1: 4 | V1: 5 | W1: 6 | X1: 7 | Y1: 8 | Z1: 9 | AA1: 10 | AB1: 11 | AC1: 12 | AD1: 13
A2: 1 | B2: PG1 Euro Matt Dove Grey | D2: Stocked | E2: EMD | H2: 1 | I2: Yes | R2: 150 | S2: 300 | T2: 400 | U2: 450 | V2: 500 | W2: 550 | X2: 600 | Y2: 700 | Z2: 800 | AA2: 900 | AB2: 1000 | AC2: 1100 | AD2: 1200
A3: 2 | B3: PG1 Euro Matt Dust Grey | D3: Stocked | E3: EMY | H3: 2 | I3: No | P3: 1 | Q3: 100 | R3: 14 | S3: 23 | T3: 29 | U3: 32 | V3: 35 | W3: 38 | X3: 41 | Y3: 47 | Z3: 53 | AA3: 59 | AB3: 65 | AC3: 71 | AD3: 77
A4: 3 | B4: PG1 Euro Matt Graphite | D4: 4 Week Lead Time | E4: EMG | P4: 2 | Q4: 200 | R4: 21 | S4: 33 | T4: 40 | U4: 44 | V4: 48 | W4: 52 | X4: 56 | Y4: 64 | Z4: 72 | AA4: 80 | AB4: 88 | AC4: 96 | AD4: 104
A5: 4 | B5: PG1 Euro Matt Mussel | D5: Stocked | E5: EMM | H5: Butler's Pantry Drawer Upgrade | I5: 2 | P5: 3 | Q5: 300 | R5: 28 | S5: 42 | T5: 52 | U5: 57 | V5: 62 | W5: 67 | X5: 72 | Y5: 82 | Z5: 92 | AA5: 101 | AB5: 111 | AC5: 121 | AD5: 131
A6: 5 | B6: PG1 Euro Matt Sea Blue | D6: Stocked | E6: EMS | H6: 1 | I6: Select your Butler's Pantry drawer upgrade | P6: 4 | Q6: 400 | R6: 35 | S6: 52 | T6: 64 | U6: 70 | V6: 76 | W6: 82 | X6: 87 | Y6: 99 | Z6: 111 | AA6: 123 | AB6: 134 | AC6: 146 | AD6: 158
A7: 6 | B7: PG1 Opaco Cashmere | D7: 4 Week Lead Time | E7: OPC | H7: 2 | I7: Legrabox | J7: 1 x @LK-DB-LRC6 and 2 x @LK-DB-LRC6PD | K7: 380 | P7: 5 | Q7: 500 | R7: 42 | S7: 62 | T7: 76 | U7: 83 | V7: 89 | W7: 96 | X7: 103 | Y7: 117 | Z7: 130 | AA7: 144 | AB7: 158 | AC7: 171 | AD7: 185
A8: 7 | B8: PG1 Opaco Dove Grey | D8: Stocked | E8: OPD | H8: 3 | I8: Oak Internal | J8: 2 x @LK-IDB-OAK6 and 2 x @LK-IDB-OAK6PD | K8: 813 | P8: 6 | Q8: 600 | R8: 49 | S8: 72 | T8: 87 | U8: 95 | V8: 103 | W8: 111 | X8: 119 | Y8: 134 | Z8: 150 | AA8: 165 | AB8: 181 | AC8: 196 | AD8: 212
A9: 8 | B9: PG1 Opaco Dust Grey | D9: Stocked | E9: OPY | P9: 7 | Q9: 800 | R9: 62 | S9: 92 | T9: 111 | U9: 121 | V9: 130 | W9: 140 | X9: 150 | Y9: 169 | Z9: 189 | AA9: 208 | AB9: 227 | AC9: 247 | AD9: 266
A10: 9 | B10: PG1 Opaco Fjord | D10: Stocked | E10: OPF | H10: D Box Upgrade | I10: 3 | P10: 8 | Q10: 900 | R10: 69 | S10: 101 | T10: 123 | U10: 133 | V10: 144 | W10: 155 | X10: 165 | Y10: 187 | Z10: 208 | AA10: 229 | AB10: 250 | AC10: 272 | AD10: 293
A11: 10 | B11: PG1 Opaco Graphite | D11: 4 Week Lead Time | E11: OPG | H11: 1 | I11: Excel | P11: 9 | Q11: 1000 | R11: 76 | S11: 111 | T11: 134 | U11: 146 | V11: 158 | W11: 169 | X11: 181 | Y11: 204 | Z11: 227 | AA11: 250 | AB11: NA | AC11: NA | AD11: NA
A12: 11 | B12: PG1 Opaco Mussel | D12: Stocked | E12: OPM | H12: 2 | I12: Legrabox | P12: 10 | Q12: 1100 | R12: 83 | S12: 121 | T12: 146 | U12: 159 | V12: 171 | W12: 184 | X12: 196 | Y12: 222 | Z12: 247 | AA12: 272 | AB12: NA | AC12: NA | AD12: NA
A13: 12 | B13: PG1 Opaco Reed Green | D13: 4 Week Lead Time | E13: OPR | H13: 3 | I13: Oak | P13: 11 | Q13: 1250 | R13: 94 | S13: 136 | T13: 164 | U13: 178 | V13: 192 | W13: 206 | X13: 220 | Y13: 248 | Z13: 276 | AA13: 304 | AB13: NA | AC13: NA | AD13: NA
A14: 13 | B14: PG1 Opaco Sea Blue | D14: Stocked | E14: OPS | P14: 12 | Q14: 1500 | R14: 111 | S14: 160 | T14: 193 | U14: 210 | V14: 226 | W14: 242 | X14: 259 | Y14: 291 | Z14: 324 | AA14: NA | AB14: NA | AC14: NA | AD14: NA
A15: 14 | B15: PG1 Opaco White | D15: 4 Week Lead Time | E15: OPW | P15: 13 | Q15: 1600 | R15: 118 | S15: 170 | T15: 205 | U15: 222 | V15: 240 | W15: 257 | X15: 274 | Y15: 309 | Z15: 344 | AA15: NA | AB15: NA | AC15: NA | AD15: NA
A16: 15 | B16: PG2 Brompton Cashmere | D16: Stocked | E16: BCS | H16: Home Delivery | I16: 1 | P16: 14 | Q16: 1700 | R16: 125 | S16: 180 | T16: 217 | U16: 235 | V16: 253 | W16: 272 | X16: 290 | Y16: 326 | Z16: 363 | AA16: NA | AB16: NA | AC16: NA | AD16: NA
A17: 16 | B17: PG2 Brompton Dove Grey | D17: Stocked | E17: BDG | H17: 1 | I17: Yes | P17: 15 | Q17: 2000 | R17: 155 | S17: 222 | T17: 267 | U17: 290 | V17: 312 | W17: 334 | X17: 357 | Y17: 402 | Z17: 447 | AA17: NA | AB17: NA | AC17: NA | AD17: NA
A18: 17 | B18: PG2 Brompton Dust Grey | D18: Stocked | E18: BDY | H18: 2 | I18: No | P18: 16 | Q18: 2200 | R18: 170 | S18: 243 | T18: 292 | U18: 317 | V18: 341 | W18: 365 | X18: 390 | Y18: 439 | Z18: 488 | AA18: NA | AB18: NA | AC18: NA | AD18: NA
A19: 18 | B19: PG2 Brompton Graphite | D19: 4 Week Lead Time | E19: BGP | P19: 17 | Q19: 2300 | R19: 177 | S19: 254 | T19: 305 | U19: 330 | V19: 356 | W19: 381 | X19: 406 | Y19: 457 | Z19: 508 | AA19: NA | AB19: NA | AC19: NA | AD19: NA
A20: 19 | B20: PG2 Brompton Stone Grey | D20: 4 Week Lead Time | E20: BSG | P20: 18 | Q20: 2500 | R20: 192 | S20: 275 | T20: 330 | U20: 357 | V20: 385 | W20: 412 | X20: 439 | Y20: 494 | Z20: 604 | AA20: NA | AB20: NA | AC20: NA | AD20: NA
A21: 20 | B21: PG2 Brompton White | D21: 4 Week Lead Time | E21: BWH | H21: Cab Colour | I21: 1
A22: 21 | B22: PG2 Grained Cashmere | D22: Stocked | E22: CSW | I22: Default | Q22: Strato Painted MTM Panel | R22: 1 | S22: 2 | T22: 3 | U22: 4 | V22: 5 | W22: 6 | X22: 7 | Y22: 8 | Z22: 9 | AA22: 10 | AB22: 11 | AC22: 12 | AD22: 13
A23: 22 | B23: PG2 Grained Dakar | D23: 4 Week Lead Time | E23: DSS | I23: Anthracite Linen | R23: 150 | S23: 300 | T23: 400 | U23: 450 | V23: 500 | W23: 550 | X23: 600 | Y23: 700 | Z23: 800 | AA23: 900 | AB23: 1000 | AC23: 1100 | AD23: 1200
A24: 23 | B24: PG2 Grained Dove Grey | D24: Stocked | E24: DGW | I24: Grey Linen | P24: 1 | Q24: 100 | R24: 13 | S24: 23 | T24: 29 | U24: 32 | V24: 35 | W24: 38 | X24: 42 | Y24: 48 | Z24: 54 | AA24: 60 | AB24: 67 | AC24: 73 | AD24: 79
A25: 24 | B25: PG2 Grained Dust Grey | D25: Stocked | E25: DYW | I25: Oak | P25: 2 | Q25: 200 | R25: 21 | S25: 34 | T25: 43 | U25: 48 | V25: 52 | W25: 57 | X25: 61 | Y25: 70 | Z25: 79 | AA25: 88 | AB25: 97 | AC25: 106 | AD25: 115
A26: 25 | B26: PG2 Grained Graphite | D26: 4 Week Lead Time | E26: GPW | I26: Stone Grey | P26: 3 | Q26: 300 | R26: 29 | S26: 46 | T26: 58 | U26: 63 | V26: 69 | W26: 75 | X26: 81 | Y26: 92 | Z26: 104 | AA26: 115 | AB26: 127 | AC26: 139 | AD26: 150
A27: 26 | B27: PG2 Grained Indigo | D27: 4 Week Lead Time | E27: INW | I27: Walnut | P27: 4 | Q27: 400 | R27: 36 | S27: 58 | T27: 72 | U27: 79 | V27: 86 | W27: 93 | X27: 100 | Y27: 115 | Z27: 129 | AA27: 143 | AB27: 157 | AC27: 172 | AD27: 186
A28: 27 | B28: PG2 Grained Ivory | D28: Stocked | E28: ISW | I28: White | P28: 5 | Q28: 500 | R28: 44 | S28: 69 | T28: 86 | U28: 95 | V28: 103 | W28: 111 | X28: 120 | Y28: 137 | Z28: 154 | AA28: 171 | AB28: 188 | AC28: 204 | AD28: 221
A29: 28 | B29: PG2 Grained Mussel | D29: Stocked | E29: MSW | P29: 6 | Q29: 600 | R29: 51 | S29: 81 | T29: 100 | U29: 110 | V29: 120 | W29: 130 | X29: 139 | Y29: 159 | Z29: 179 | AA29: 198 | AB29: 218 | AC29: 237 | AD29: 257
A30: 29 | B30: PG2 Grained Reed Green | D30: 4 Week Lead Time | E30: RGW | P30: 7 | Q30: 800 | R30: 67 | S30: 104 | T30: 129 | U30: 141 | V30: 154 | W30: 166 | X30: 179 | Y30: 204 | Z30: 228 | AA30: 253 | AB30: 278 | AC30: 303 | AD30: 328
A31: 30 | B31: PG2 Grained Sea Blue | D31: Stocked | E31: NVW | P31: 8 | Q31: 900 | R31: 74 | S31: 115 | T31: 143 | U31: 157 | V31: 171 | W31: 184 | X31: 198 | Y31: 226 | Z31: 253 | AA31: 281 | AB31: 309 | AC31: 336 | AD31: 364
A32: 31 | B32: PG2 Grained Spruce Green | D32: 4 Week Lead Time | E32: SPW | P32: 9 | Q32: 1000 | R32: 82 | S32: 127 | T32: 157 | U32: 172 | V32: 188 | W32: 203 | X32: 218 | Y32: 248 | Z32: 278 | AA32: 309 | AB32: NA | AC32: NA | AD32: NA
A33: 32 | B33: PG2 Grained Stone Grey | D33: 4 Week Lead Time | E33: STW | P33: 10 | Q33: 1100 | R33: 89 | S33: 139 | T33: 172 | U33: 188 | V33: 204 | W33: 221 | X33: 237 | Y33: 270 | Z33: 303 | AA33: 336 | AB33: NA | AC33: NA | AD33: NA
A34: 33 | B34: PG2 Grained White | D34: 4 Week Lead Time | E34: WSW | P34: 11 | Q34: 1250 | R34: 97 | S34: 150 | T34: 186 | U34: 204 | V34: 221 | W34: 239 | X34: 257 | Y34: 293 | Z34: 328 | AA34: 364 | AB34: NA | AC34: NA | AD34: NA
A35: 34 | B35: PG3A Ainsdale Beige Oak | D35: 3 Week Lead Time | E35: AOK | P35: 12 | Q35: 1500 | R35: 120 | S35: 185 | T35: 229 | U35: 250 | V35: 272 | W35: 294 | X35: 316 | Y35: 359 | Z35: 403 | AA35: NA | AB35: NA | AC35: NA | AD35: NA
A36: 35 | B36: PG3A Ainsdale Black | D36: 3 Week Lead Time | E36: ABL | P36: 13 | Q36: 1600 | R36: 127 | S36: 197 | T36: 243 | U36: 266 | V36: 289 | W36: 312 | X36: 335 | Y36: 382 | Z36: 428 | AA36: NA | AB36: NA | AC36: NA | AD36: NA
A37: 36 | B37: PG3A Ainsdale Chalk | D37: 3 Week Lead Time | E37: ACH | P37: 14 | Q37: 1700 | R37: 135 | S37: 208 | T37: 257 | U37: 281 | V37: 306 | W37: 330 | X37: 355 | Y37: 404 | Z37: 453 | AA37: NA | AB37: NA | AC37: NA | AD37: NA
A38: 37 | B38: PG3A Ainsdale Dust Grey | D38: 3 Week Lead Time | E38: ALG | P38: 15 | Q38: 2000 | R38: 157 | S38: 243 | T38: 300 | U38: 328 | V38: 357 | W38: 385 | X38: 414 | Y38: 471 | Z38: 527 | AA38: NA | AB38: NA | AC38: NA | AD38: NA
A39: 38 | B39: PG3A Ainsdale Reed Green | D39: 3 Week Lead Time | E39: ARG | P39: 16 | Q39: 2200 | R39: 173 | S39: 266 | T39: 328 | U39: 359 | V39: 391 | W39: 422 | X39: 453 | Y39: 515 | Z39: 577 | AA39: NA | AB39: NA | AC39: NA | AD39: NA
A40: 39 | B40: PG3A Ainsdale Forest | D40: 3 Week Lead Time | E40: ADG | P40: 17 | Q40: 2300 | R40: 180 | S40: 278 | T40: 343 | U40: 375 | V40: 407 | W40: 440 | X40: 472 | Y40: 537 | Z40: 602 | AA40: NA | AB40: NA | AC40: NA | AD40: NA
A41: 40 | B41: PG3A Ainsdale Taupe | D41: 3 Week Lead Time | E41: ATP | P41: 18 | Q41: 2500 | R41: 195 | S41: 301 | T41: 371 | U41: 406 | V41: 441 | W41: 476 | X41: 512 | Y41: 582 | Z41: 652 | AA41: NA | AB41: NA | AC41: NA | AD41: NA
A42: 41 | B42: PG3A Ainsdale Light Grey | D42: 3 Week Lead Time | E42: AFR
A43: 42 | B43: PG3A Ainsdale Indigo | D43: 3 Week Lead Time | E43: AIN | Q43: Strato Stained MTM Panel | R43: 1 | S43: 2 | T43: 3 | U43: 4 | V43: 5 | W43: 6 | X43: 7 | Y43: 8 | Z43: 9 | AA43: 10 | AB43: 11 | AC43: 12 | AD43: 13
A44: 43 | B44: PG3A Kirkham Chalk | D44: 3 Week Lead Time | E44: KCH | R44: 150 | S44: 300 | T44: 400 | U44: 450 | V44: 500 | W44: 550 | X44: 600 | Y44: 700 | Z44: 800 | AA44: 900 | AB44: 1000 | AC44: 1100 | AD44: 1200
A45: 44 | B45: PG3A Kirkham Light Grey | D45: 3 Week Lead Time | E45: KLG | P45: 1 | Q45: 100 | R45: 20 | S45: 35 | T45: 44 | U45: 49 | V45: 54 | W45: 59 | X45: 64 | Y45: 73 | Z45: 83 | AA45: 92 | AB45: 102 | AC45: 112 | AD45: 121
A46: 45 | B46: PG3A Kirkham Dust Grey | D46: 3 Week Lead Time | E46: KDG | P46: 2 | Q46: 200 | R46: 32 | S46: 53 | T46: 66 | U46: 73 | V46: 80 | W46: 87 | X46: 94 | Y46: 107 | Z46: 121 | AA46: 135 | AB46: 149 | AC46: 162 | AD46: 176
A47: 46 | B47: PG3A Kirkham Graphite | D47: 3 Week Lead Time | E47: KGP | P47: 3 | Q47: 300 | R47: 44 | S47: 70 | T47: 88 | U47: 97 | V47: 106 | W47: 115 | X47: 124 | Y47: 142 | Z47: 160 | AA47: 177 | AB47: 195 | AC47: 213 | AD47: 231
A48: 47 | B48: PG3A Kirkham Taupe | D48: 3 Week Lead Time | E48: KTP | P48: 4 | Q48: 400 | R48: 55 | S48: 88 | T48: 110 | U48: 121 | V48: 132 | W48: 143 | X48: 154 | Y48: 176 | Z48: 198 | AA48: 220 | AB48: 242 | AC48: 264 | AD48: 286
A49: 48 | B49: PG3A Kirkham Reed Green | D49: 3 Week Lead Time | E49: KRG | P49: 5 | Q49: 500 | R49: 67 | S49: 106 | T49: 132 | U49: 145 | V49: 158 | W49: 171 | X49: 184 | Y49: 210 | Z49: 236 | AA49: 262 | AB49: 288 | AC49: 314 | AD49: 340
A50: 49 | B50: PG3A Kirkham Forest | D50: 3 Week Lead Time | E50: KFR | P50: 6 | Q50: 600 | R50: 79 | S50: 124 | T50: 154 | U50: 169 | V50: 184 | W50: 199 | X50: 214 | Y50: 244 | Z50: 275 | AA50: 305 | AB50: 335 | AC50: 365 | AD50: 395
A51: 50 | B51: PG3A Kirkham Indigo | D51: 3 Week Lead Time | E51: KIN | H51: Solutions Open Units | P51: 7 | Q51: 800 | R51: 102 | S51: 160 | T51: 198 | U51: 217 | V51: 236 | W51: 255 | X51: 275 | Y51: 313 | Z51: 351 | AA51: 390 | AB51: 428 | AC51: 466 | AD51: 505
A52: 51 | B52: PG3B Mala Gloss Cashmere | D52: 4 Week Lead Time | E52: MCS | P52: 8 | Q52: 900 | R52: 114 | S52: 177 | T52: 220 | U52: 241 | V52: 262 | W52: 283 | X52: 305 | Y52: 347 | Z52: 390 | AA52: 432 | AB52: 474 | AC52: 517 | AD52: 559
A53: 52 | B53: PG3B Mala Gloss Dove Grey | D53: 4 Week Lead Time | E53: MGD | H53: 1 | I53: Select Range | J53: =VLOOKUP(Kitchen!$A950,$I54:$J57,2,FALSE) ->  | K53: =VLOOKUP(Kitchen!$A954,$I54:$J57,2,FALSE) ->  | L53: =VLOOKUP(Kitchen!$A958,$I54:$J57,2,FALSE) ->  | P53: 9 | Q53: 1000 | R53: 125 | S53: 195 | T53: 242 | U53: 265 | V53: 288 | W53: 312 | X53: 335 | Y53: 381 | Z53: 428 | AA53: 474 | AB53: NA | AC53: NA | AD53: NA
A54: 53 | B54: PG3B Mala Gloss Dust Grey | D54: 4 Week Lead Time | E54: MDS | H54: 2 | I54: Natural Oak Open Unit | J54: HNO | P54: 10 | Q54: 1100 | R54: 137 | S54: 213 | T54: 264 | U54: 289 | V54: 314 | W54: 340 | X54: 365 | Y54: 416 | Z54: 466 | AA54: 517 | AB54: NA | AC54: NA | AD54: NA
A55: 54 | B55: PG3B Mala Gloss Graphite | D55: 4 Week Lead Time | E55: MGP | H55: 3 | I55: Tobacco Oak Open Unit | J55: HTO | P55: 11 | Q55: 1250 | R55: 149 | S55: 231 | T55: 286 | U55: 313 | V55: 340 | W55: 368 | X55: 395 | Y55: 450 | Z55: 505 | AA55: 559 | AB55: NA | AC55: NA | AD55: NA
A56: 55 | B56: PG3B Mala Gloss Porcelain | D56: 4 Week Lead Time | E56: MPN | H56: 4 | I56: White Oak Open Unit | J56: HWO | P56: 12 | Q56: 1500 | R56: 184 | S56: 284 | T56: 351 | U56: 385 | V56: 418 | W56: 452 | X56: 485 | Y56: 552 | Z56: 620 | AA56: NA | AB56: NA | AC56: NA | AD56: NA
A57: 56 | B57: PG3B Mala Gloss White | D57: 4 Week Lead Time | E57: MGW | P57: 13 | Q57: 1600 | R57: 195 | S57: 302 | T57: 373 | U57: 409 | V57: 444 | W57: 480 | X57: 516 | Y57: 587 | Z57: 658 | AA57: NA | AB57: NA | AC57: NA | AD57: NA
A58: 57 | B58: PG3B Mala Matt Cashmere | D58: 4 Week Lead Time | E58: MCM | P58: 14 | Q58: 1700 | R58: 207 | S58: 320 | T58: 395 | U58: 433 | V58: 470 | W58: 508 | X58: 546 | Y58: 621 | Z58: 696 | AA58: NA | AB58: NA | AC58: NA | AD58: NA
A59: 58 | B59: PG3B Mala Matt Dove Grey | D59: 4 Week Lead Time | E59: MDM | H59: 1 | I59: 2 | J59: 3 | K59: 4 | L59: 5 | P59: 15 | Q59: 2000 | R59: 242 | S59: 373 | T59: 461 | U59: 505 | V59: 548 | W59: 592 | X59: 636 | Y59: 724 | Z59: 811 | AA59: NA | AB59: NA | AC59: NA | AD59: NA
A60: 59 | B60: PG3B Mala Matt Dust Grey | D60: 4 Week Lead Time | E60: MTM | G60: Sizes | H60: 286 | I60: 360 | J60: 720 | K60: 900 | L60: 1960 | P60: 16 | Q60: 2200 | R60: 265 | S60: 409 | T60: 505 | U60: 553 | V60: 601 | W60: 648 | X60: 696 | Y60: 792 | Z60: 888 | AA60: NA | AB60: NA | AC60: NA | AD60: NA
A61: 60 | B61: PG3B Mala Matt Graphite | D61: 4 Week Lead Time | E61: MGM | F61: 1 | G61: 150 | H61: 255 | I61: 255 | J61: 281 | K61: 309 | L61: 566 | P61: 17 | Q61: 2300 | R61: 277 | S61: 427 | T61: 527 | U61: 577 | V61: 627 | W61: 676 | X61: 726 | Y61: 826 | Z61: 926 | AA61: NA | AB61: NA | AC61: NA | AD61: NA
A62: 61 | B62: PG3B Mala Matt Navy Blue | D62: 4 Week Lead Time | E62: MIM | F62: 2 | G62: 300 | H62: 255 | I62: 255 | J62: 281 | K62: 309 | L62: 566 | P62: 18 | Q62: 2500 | R62: 300 | S62: 462 | T62: 571 | U62: 625 | V62: 679 | W62: 733 | X62: 787 | Y62: 895 | Z62: 1003 | AA62: NA | AB62: NA | AC62: NA | AD62: NA
A63: 62 | B63: PG3B Mala Matt Moss Green | D63: 4 Week Lead Time | E63: MGR | F63: 3 | G63: 400 | H63: 255 | I63: 255 | J63: 281 | K63: 309 | L63: 566
A64: 63 | B64: PG3B Mala Matt Platinum Grey | D64: 4 Week Lead Time | E64: MSM | F64: 4 | G64: 500 | H64: 255 | I64: 255 | J64: 281 | K64: 309 | L64: 566
A65: 64 | B65: PG3B Mala Matt Porcelain | D65: 4 Week Lead Time | E65: MPM | F65: 5 | G65: 600 | H65: 255 | I65: 255 | J65: 281 | K65: 309 | L65: 618
A66: 65 | B66: PG3B Mala Matt Taupe Grey | D66: 4 Week Lead Time | E66: MTP | F66: 6 | G66: 700 | H66: 281 | I66: 281 | J66: 309 | K66: 330 | L66: Not Available
A67: 66 | B67: PG3B Mala Matt White | D67: 4 Week Lead Time | E67: MWM | F67: 7 | G67: 800 | H67: 281 | I67: 281 | J67: 309 | K67: 330 | L67: Not Available
A68: 67 | B68: PG4 Eterna Ossido Grigio | D68: 4 Week Lead Time | E68: EOG | F68: 8 | G68: 900 | H68: 281 | I68: 281 | J68: 309 | K68: 330 | L68: Not Available
A69: 68 | B69: PG4 Eterna Ossido Marrone | D69: 4 Week Lead Time | E69: EOM | F69: 9 | G69: 1000 | H69: 281 | I69: 281 | J69: 309 | K69: 330 | L69: Not Available
A70: 69 | B70: PG4 Eterna Patagonia Marble | D70: 4 Week Lead Time | E70: EPM | F70: 10 | G70: 1200 | H70: 309 | I70: 309 | J70: Not Available | K70: Not Available | L70: Not Available
A71: 70 | B71: PG4 Eterna Venato Marble | D71: 4 Week Lead Time | E71: EVM
A72: 71 | B72: PG4 Eterna Nero Marble | D72: 4 Week Lead Time | E72: ENM
A73: 72 | B73: PG4 Eterna Laguna Grey Aged Oak | D73: 4 Week Lead Time | E73: ELA
A74: 73 | B74: PG4 Eterna Laguna Dark Oak | D74: 4 Week Lead Time | E74: ELD | H74: Open Unit 1 | J74: Height | K74: =IFERROR(INDEX($H$59:$L$59,MATCH(I75,$H$60:$L$60,1)),1) -> 1
A75: 74 | B75: PG4 Eterna Chalet Light Walnut | D75: 4 Week Lead Time | E75: ELW | H75: Chosen Height | I75: =Kitchen!$A$951 -> ENTER HEIGHT HERE | J75: Width | K75: =IFERROR(INDEX($F$61:$F$70,MATCH(I76,$G$61:$G$70,1)),1) -> 1
A76: 75 | B76: PG6A Clarkwell Aegean | D76: 5 Week Lead Time | E76: CAG | H76: Chosen Width | I76: =Kitchen!$A$952 -> ENTER WIDTH HERE | J76: Price | K76: =IFERROR(VLOOKUP(K75,$F$61:$L$70,MATCH(K74,$F$59:$L$59,0),0),"") -> 255
A77: 76 | B77: PG6A Clarkwell Atlantic | D77: 4 Week Lead Time | E77: CAT
A78: 77 | B78: PG6A Clarkwell Auburn | D78: 5 Week Lead Time | E78: CAB | H78: Open Unit 2 | J78: Height | K78: =IFERROR(INDEX($H$59:$L$59,MATCH(I79,$H$60:$L$60,1)),1) -> 1
A79: 78 | B79: PG6A Clarkwell Breeze | D79: 5 Week Lead Time | E79: CBR | H79: Chosen Height | I79: =Kitchen!$A$955 -> ENTER HEIGHT HERE | J79: Width | K79: =IFERROR(INDEX($F$61:$F$70,MATCH(I80,$G$61:$G$70,1)),1) -> 1
A80: 79 | B80: PG6A Clarkwell Brigade | D80: 5 Week Lead Time | E80: CBG | H80: Chosen Width | I80: =Kitchen!$A$956 -> ENTER WIDTH HERE | J80: Price | K80: =IFERROR(VLOOKUP(K79,$F$61:$L$70,MATCH(K78,$F$59:$L$59,0),0),"") -> 255
A81: 80 | B81: PG6A Clarkwell Bright White | D81: 5 Week Lead Time | E81: CBW
A82: 81 | B82: PG6A Clarkwell Cashmere | D82: 5 Week Lead Time | E82: CCS | H82: Open Unit 3 | J82: Height | K82: =IFERROR(INDEX($H$59:$L$59,MATCH(I83,$H$60:$L$60,1)),1) -> 1
A83: 82 | B83: PG6A Clarkwell Damson | D83: 5 Week Lead Time | E83: CDM | H83: Chosen Height | I83: =Kitchen!$A$959 -> ENTER HEIGHT HERE | J83: Width | K83: =IFERROR(INDEX($F$61:$F$70,MATCH(I84,$G$61:$G$70,1)),1) -> 1
A84: 83 | B84: PG6A Clarkwell Desert Pink | D84: 5 Week Lead Time | E84: CDR | H84: Chosen Width | I84: =Kitchen!$A$960 -> ENTER WIDTH HERE | J84: Price | K84: =IFERROR(VLOOKUP(K83,$F$61:$L$70,MATCH(K82,$F$59:$L$59,0),0),"") -> 255
A85: 84 | B85: PG6A Clarkwell Dust Grey | D85: 4 Week Lead Time | E85: CDG
A86: 85 | B86: PG6A Clarkwell Graphite | D86: 5 Week Lead Time | E86: CHG
A87: 86 | B87: PG6A Clarkwell Heather Green | D87: 5 Week Lead Time | E87: CGP
A88: 87 | B88: PG6A Clarkwell Indigo | D88: 5 Week Lead Time | E88: CIN | H88: 1 | I88: 2 | J88: 3 | K88: 4
A89: 88 | B89: PG6A Clarkwell Ivory | D89: 4 Week Lead Time | E89: CIV | H89: 286 | I89: 720 | J89: 900 | K89: 1960
A90: 89 | B90: PG6A Clarkwell Laurel Green | D90: 5 Week Lead Time | E90: CLR | F90: 1 | G90: 150 | H90: 255 | I90: 281 | J90: 309 | K90: 330
A91: 90 | B91: PG6A Clarkwell Light Grey | D91: 4 Week Lead Time | E91: CLG | F91: 2 | G91: 300 | H91: 255 | I91: 281 | J91: 309 | K91: 566
A92: 91 | B92: PG6A Clarkwell Meadow | D92: 5 Week Lead Time | E92: CMW
A93: 92 | B93: PG6A Clarkwell Midnight | D93: 5 Week Lead Time | E93: CMN
A94: 93 | B94: PG6A Clarkwell Mussel | D94: 4 Week Lead Time | E94: CMU | H94: Wine Rack 1 | J94: Height | K94: =IFERROR(INDEX($H$88:$K$88,MATCH(I95,$H$89:$K$89,1)),1) -> 1
A95: 94 | B95: PG6A Clarkwell Olive Green | D95: 5 Week Lead Time | E95: COV | H95: Chosen Height | I95: =Kitchen!$A$964 -> ENTER HEIGHT HERE | J95: Width | K95: =IFERROR(INDEX($F$90:$F$91,MATCH(I96,$G$90:$G$91,1)),1) -> 1
A96: 95 | B96: PG6A Clarkwell Pale Teal | D96: 5 Week Lead Time | E96: CPT | H96: Chosen Width | I96: =Kitchen!$A$965 -> ENTER WIDTH HERE | J96: Price | K96: =IFERROR(VLOOKUP(K95,$F$90:$K$91,MATCH(K94,$F$88:$K$88,0),0),"") -> 255
A97: 96 | B97: PG6A Clarkwell Pearl | D97: 5 Week Lead Time | E97: CPE
A98: 97 | B98: PG6A Clarkwell Pebble Grey | D98: 5 Week Lead Time | E98: CPG | H98: Wine Rack 2 | J98: Height | K98: =IFERROR(INDEX($H$88:$K$88,MATCH(I99,$H$89:$K$89,1)),1) -> 1
A99: 98 | B99: PG6A Clarkwell Porcelain | D99: 4 Week Lead Time | E99: CPN | H99: Chosen Height | I99: =Kitchen!$A$968 -> ENTER HEIGHT HERE | J99: Width | K99: =IFERROR(INDEX($F$90:$F$91,MATCH(I100,$G$90:$G$91,1)),1) -> 1
A100: 99 | B100: PG6A Clarkwell Sage | D100: 4 Week Lead Time | E100: CSG | H100: Chosen Width | I100: =Kitchen!$A$969 -> ENTER WIDTH HERE | J100: Price | K100: =IFERROR(VLOOKUP(K99,$F$90:$K$91,MATCH(K98,$F$88:$K$88,0),0),"") -> 255
A101: 100 | B101: PG6A Clarkwell Sapphire | D101: 5 Week Lead Time | E101: CSP
A102: 101 | B102: PG6A Clarkwell Soft Black | D102: 5 Week Lead Time | E102: CSB | H102: Wine Rack 3 | J102: Height | K102: =IFERROR(INDEX($H$88:$K$88,MATCH(I103,$H$89:$K$89,1)),1) -> 1
A103: 102 | B103: PG6A Clarkwell Soot | D103: 5 Week Lead Time | E103: CSO | H103: Chosen Height | I103: =Kitchen!$A$972 -> ENTER HEIGHT HERE | J103: Width | K103: =IFERROR(INDEX($F$90:$F$91,MATCH(I104,$G$90:$G$91,1)),1) -> 1
A104: 103 | B104: PG6A Clarkwell Steel Grey | D104: 5 Week Lead Time | E104: CSY | H104: Chosen Width | I104: =Kitchen!$A$973 -> ENTER WIDTH HERE | J104: Price | K104: =IFERROR(VLOOKUP(K103,$F$90:$K$91,MATCH(K102,$F$88:$K$88,0),0),"") -> 255
A105: 104 | B105: PG6A Clarkwell Stone | D105: 4 Week Lead Time | E105: CST
A106: 105 | B106: PG6A Clarkwell Taupe | D106: 5 Week Lead Time | E106: CTP
A107: 106 | B107: PG6A Clarkwell Thicket | D107: 5 Week Lead Time | E107: CTK
A108: 107 | B108: PG6A Clarkwell Warm Earth | D108: 5 Week Lead Time | E108: CWE | H108: Solutions Wine Racks
A109: 108 | B109: PG6A Georgian Aegean | D109: 5 Week Lead Time | E109: GAG
A110: 109 | B110: PG6A Georgian Atlantic | D110: 4 Week Lead Time | E110: GAT | H110: 1 | I110: Select Range | J110: =VLOOKUP(Kitchen!$A963,$I111:$J114,2,FALSE) ->  | K110: =VLOOKUP(Kitchen!$A967,$I111:$J114,2,FALSE) ->  | L110: =VLOOKUP(Kitchen!$A971,$I111:$J114,2,FALSE) -> 
A111: 110 | B111: PG6A Georgian Auburn | D111: 5 Week Lead Time | E111: GAB | H111: 2 | I111: Natural Oak Wine Rack | J111: HNO
A112: 111 | B112: PG6A Georgian Breeze | D112: 5 Week Lead Time | E112: GBR | H112: 3 | I112: Tobacco Oak Wine Rack | J112: HTO
A113: 112 | B113: PG6A Georgian Brigade | D113: 5 Week Lead Time | E113: GBG | H113: 4 | I113: White Oak Wine Rack | J113: HWO
A114: 113 | B114: PG6A Georgian Bright White | D114: 5 Week Lead Time | E114: GBW
A115: 114 | B115: PG6A Georgian Cashmere | D115: 5 Week Lead Time | E115: GCS
A116: 115 | B116: PG6A Georgian Damson | D116: 5 Week Lead Time | E116: GDM | H116: Eterna Open Units
A117: 116 | B117: PG6A Georgian Desert Pink | D117: 5 Week Lead Time | E117: GDR
A118: 117 | B118: PG6A Georgian Dust Grey | D118: 4 Week Lead Time | E118: GDG | H118: 1 | I118: Select Range | J118: =VLOOKUP(Kitchen!$A977,$I119:$J126,2,FALSE) ->  | K118: =VLOOKUP(Kitchen!$A981,$I119:$J126,2,FALSE) ->  | L118: =VLOOKUP(Kitchen!$A985,$I119:$J126,2,FALSE) -> 
A119: 118 | B119: PG6A Georgian Graphite | D119: 5 Week Lead Time | E119: GHG | H119: 2 | I119: Ossido Grigio Open Unit | J119: EOG
A120: 119 | B120: PG6A Georgian Heather Green | D120: 5 Week Lead Time | E120: GGP | H120: 3 | I120: Ossido Marrone Open Unit | J120: EOM
A121: 120 | B121: PG6A Georgian Indigo | D121: 5 Week Lead Time | E121: GIN | H121: 4 | I121: Patagonia Marble Open Unit | J121: EPM
A122: 121 | B122: PG6A Georgian Ivory | D122: 4 Week Lead Time | E122: GIV | H122: 5 | I122: Venato Marble Open Unit | J122: EVM
A123: 122 | B123: PG6A Georgian Laurel Green | D123: 5 Week Lead Time | E123: GLR | H123: 6 | I123: Nero Marble Open Unit | J123: ENM
A124: 123 | B124: PG6A Georgian Light Grey | D124: 4 Week Lead Time | E124: GLG | H124: 7 | I124: Laguna Grey Aged Oak Open Unit | J124: ELA
A125: 124 | B125: PG6A Georgian Meadow | D125: 5 Week Lead Time | E125: GMW | H125: 8 | I125: Laguna Dark Oak Open Unit | J125: ELD
A126: 125 | B126: PG6A Georgian Midnight | D126: 5 Week Lead Time | E126: GMN | H126: 9 | I126: Chalet Light Walnut Open Unit | J126: ELW
A127: 126 | B127: PG6A Georgian Mussel | D127: 4 Week Lead Time | E127: GMU
A128: 127 | B128: PG6A Georgian Olive Green | D128: 5 Week Lead Time | E128: GOV | H128: Eterna Wine Racks
A129: 128 | B129: PG6A Georgian Pale Teal | D129: 5 Week Lead Time | E129: GPT | H129: 1 | I129: Select Range | J129: =VLOOKUP(Kitchen!$A990,$I130:$J137,2,FALSE) ->  | K129: =VLOOKUP(Kitchen!$A994,$I130:$J137,2,FALSE) ->  | L129: =VLOOKUP(Kitchen!$A998,$I130:$J137,2,FALSE) -> 
A130: 129 | B130: PG6A Georgian Pearl | D130: 5 Week Lead Time | E130: GPE | H130: 2 | I130: Ossido Grigio Wine Rack | J130: EOG
A131: 130 | B131: PG6A Georgian Pebble Grey | D131: 5 Week Lead Time | E131: GPG | H131: 3 | I131: Ossido Marrone Wine Rack | J131: EOM
A132: 131 | B132: PG6A Georgian Porcelain | D132: 4 Week Lead Time | E132: GPN | H132: 4 | I132: Patagonia Marble Wine Rack | J132: EPM
A133: 132 | B133: PG6A Georgian Sage | D133: 4 Week Lead Time | E133: GSG | H133: 5 | I133: Venato Marble Wine Rack | J133: EVM
A134: 133 | B134: PG6A Georgian Sapphire | D134: 5 Week Lead Time | E134: GSP | H134: 6 | I134: Nero Marble Wine Rack | J134: ENM
A135: 134 | B135: PG6A Georgian Soft Black | D135: 5 Week Lead Time | E135: GSB | H135: 7 | I135: Laguna Grey Aged Oak Wine Rack | J135: ELA
A136: 135 | B136: PG6A Georgian Soot | D136: 5 Week Lead Time | E136: GSO | H136: 8 | I136: Laguna Dark Oak Wine Rack | J136: ELD
A137: 136 | B137: PG6A Georgian Steel Grey | D137: 5 Week Lead Time | E137: GSY | H137: 9 | I137: Chalet Light Walnut Wine Rack | J137: ELW
A138: 137 | B138: PG6A Georgian Stone | D138: 4 Week Lead Time | E138: GST
A139: 138 | B139: PG6A Georgian Taupe | D139: 5 Week Lead Time | E139: GTP
A140: 139 | B140: PG6A Georgian Thicket | D140: 5 Week Lead Time | E140: GTK
A141: 140 | B141: PG6A Georgian Warm Earth | D141: 5 Week Lead Time | E141: GWE | H141: 1 | I141: 2 | J141: 3 | K141: 4 | L141: 5
A142: 141 | B142: PG6B Elswick Aegean | D142: 5 Week Lead Time | E142: EAG | G142: Sizes | H142: 286 | I142: 360 | J142: 720 | K142: 900 | L142: 1960
A143: 142 | B143: PG6B Elswick Atlantic | D143: 4 Week Lead Time | E143: EAT | F143: 1 | G143: 150 | H143: 228 | I143: 228 | J143: 254 | K143: 280 | L143: 648
A144: 143 | B144: PG6B Elswick Auburn | D144: 5 Week Lead Time | E144: EAB | F144: 2 | G144: 300 | H144: 228 | I144: 228 | J144: 254 | K144: 280 | L144: 648
A145: 144 | B145: PG6B Elswick Breeze | D145: 5 Week Lead Time | E145: EBR | F145: 3 | G145: 400 | H145: 252 | I145: 252 | J145: 268 | K145: 292 | L145: 662
A146: 145 | B146: PG6B Elswick Brigade | D146: 5 Week Lead Time | E146: EBG | F146: 4 | G146: 500 | H146: 254 | I146: 254 | J146: 287 | K146: 312 | L146: 707
A147: 146 | B147: PG6B Elswick Bright White | D147: 5 Week Lead Time | E147: EBW | F147: 5 | G147: 600 | H147: 274 | I147: 274 | J147: 305 | K147: 338 | L147: 771
A148: 147 | B148: PG6B Elswick Cashmere | D148: 5 Week Lead Time | E148: ECS | F148: 6 | G148: 700 | H148: 330 | I148: 330 | J148: 369 | K148: 401 | L148: Not Available
A149: 148 | B149: PG6B Elswick Damson | D149: 5 Week Lead Time | E149: EDM | F149: 7 | G149: 800 | H149: 344 | I149: 344 | J149: 381 | K149: 419 | L149: Not Available
A150: 149 | B150: PG6B Elswick Desert Pink | D150: 5 Week Lead Time | E150: EDP | F150: 8 | G150: 900 | H150: 356 | I150: 356 | J150: 394 | K150: 440 | L150: Not Available
A151: 150 | B151: PG6B Elswick Dust Grey | D151: 4 Week Lead Time | E151: EDS | F151: 9 | G151: 1000 | H151: 369 | I151: 369 | J151: 407 | K151: 444 | L151: Not Available
A152: 151 | B152: PG6B Elswick Graphite | D152: 4 Week Lead Time | E152: EHG | F152: 10 | G152: 1200 | H152: 394 | I152: 394 | J152: Not Available | K152: Not Available | L152: Not Available
A153: 152 | B153: PG6B Elswick Heather Green | D153: 4 Week Lead Time | E153: EGP
A154: 153 | B154: PG6B Elswick Indigo | D154: 5 Week Lead Time | E154: EIN
A155: 154 | B155: PG6B Elswick Ivory | D155: 5 Week Lead Time | E155: EIV
A156: 155 | B156: PG6B Elswick Laurel Green | D156: 5 Week Lead Time | E156: ELN | H156: Open Unit 1 | J156: Height | K156: =IFERROR(INDEX($H$141:$L$141,MATCH(I157,$H$142:$L$142,1)),1) -> 1
A157: 156 | B157: PG6B Elswick Light Grey | D157: 4 Week Lead Time | E157: EDG | H157: Chosen Height | I157: =Kitchen!$A$978 -> ENTER HEIGHT HERE | J157: Width | K157: =IFERROR(INDEX($F$143:$F$152,MATCH(I158,$G$143:$G$152,1)),1) -> 1
A158: 157 | B158: PG6B Elswick Meadow | D158: 5 Week Lead Time | E158: EME | H158: Chosen Width | I158: =Kitchen!$A$979 -> ENTER WIDTH HERE | J158: Price | K158: =IFERROR(VLOOKUP(K157,$F$143:$L$152,MATCH(K156,$F$141:$L$141,0),0),"") -> 228
A159: 158 | B159: PG6B Elswick Midnight | D159: 5 Week Lead Time | E159: EMN
A160: 159 | B160: PG6B Elswick Mussel | D160: 5 Week Lead Time | E160: EMU | H160: Open Unit 2 | J160: Height | K160: =IFERROR(INDEX($H$141:$L$141,MATCH($I161,$H$142:$L$142,1)),1) -> 1
A161: 160 | B161: PG6B Elswick Olive Green | D161: 5 Week Lead Time | E161: EOV | H161: Chosen Height | I161: =Kitchen!$A$982 -> ENTER HEIGHT HERE | J161: Width | K161: =IFERROR(INDEX($F$143:$F$152,MATCH($I162,$G$143:$G$152,1)),1) -> 1
A162: 161 | B162: PG6B Elswick Pale Teal | D162: 5 Week Lead Time | E162: EPT | H162: Chosen Width | I162: =Kitchen!$A$983 -> ENTER WIDTH HERE | J162: Price | K162: =IFERROR(VLOOKUP(K161,$F$143:$L$152,MATCH(K160,$F$141:$L$141,0),0),"") -> 228
A163: 162 | B163: PG6B Elswick Pearl | D163: 5 Week Lead Time | E163: EPE
A164: 163 | B164: PG6B Elswick Pebble Grey | D164: 5 Week Lead Time | E164: EPG | H164: Open Unit 3 | J164: Height | K164: =IFERROR(INDEX($H$141:$L$141,MATCH($I165,$H$142:$L$142,1)),1) -> 1
A165: 164 | B165: PG6B Elswick Porcelain | D165: 4 Week Lead Time | E165: EPN | H165: Chosen Height | I165: =Kitchen!$A$986 -> ENTER HEIGHT HERE | J165: Width | K165: =IFERROR(INDEX($F$143:$F$152,MATCH($I166,$G$143:$G$152,1)),1) -> 1
A166: 165 | B166: PG6B Elswick Sage | D166: 5 Week Lead Time | E166: ESG | H166: Chosen Width | I166: =Kitchen!$A$987 -> ENTER WIDTH HERE | J166: Price | K166: =IFERROR(VLOOKUP(K165,$F$143:$L$152,MATCH(K164,$F$141:$L$141,0),0),"") -> 228
A167: 166 | B167: PG6B Elswick Sapphire | D167: 5 Week Lead Time | E167: ESP
A168: 167 | B168: PG6B Elswick Soft Black | D168: 5 Week Lead Time | E168: ESK
A169: 168 | B169: PG6B Elswick Soot | D169: 5 Week Lead Time | E169: ESO
A170: 169 | B170: PG6B Elswick Steel Grey | D170: 5 Week Lead Time | E170: ESY | H170: 1 | I170: 2 | J170: 3 | K170: 4
A171: 170 | B171: PG6B Elswick Stone | D171: 4 Week Lead Time | E171: ESN | H171: 286 | I171: 720 | J171: 900 | K171: 1960
A172: 171 | B172: PG6B Elswick Taupe | D172: 5 Week Lead Time | E172: ETP | F172: 1 | G172: 150 | H172: 254 | I172: 344 | J172: 381 | K172: 762
A173: 172 | B173: PG6B Elswick Thicket | D173: 5 Week Lead Time | E173: ETK | F173: 2 | G173: 300 | H173: 330 | I173: 496 | J173: 585 | K173: 1017
A174: 173 | B174: PG6B Elswick Warm Earth | D174: 5 Week Lead Time | E174: EWE
A175: 174 | B175: PG6B Rowan Aegean | D175: 5 Week Lead Time | E175: RAG
A176: 175 | B176: PG6B Rowan Atlantic | D176: 5 Week Lead Time | E176: RAT | H176: Wine Rack 1 | J176: Height | K176: =IFERROR(INDEX($H$170:$K$170,MATCH(I177,$H$171:$K$171,1)),1) -> 1
A177: 176 | B177: PG6B Rowan Auburn | D177: 5 Week Lead Time | E177: RAB | H177: Chosen Height | I177: =Kitchen!$A$991 -> ENTER HEIGHT HERE | J177: Width | K177: =IFERROR(INDEX($F$172:$F$173,MATCH(I178,$G$172:$G$173,1)),1) -> 1
A178: 177 | B178: PG6B Rowan Breeze | D178: 5 Week Lead Time | E178: RBR | H178: Chosen Width | I178: =Kitchen!$A$992 -> ENTER WIDTH HERE | J178: Price | K178: =IFERROR(VLOOKUP(K177,$F$172:$K$173,MATCH(K176,$F$170:$K$170,0),0),"") -> 254
A179: 178 | B179: PG6B Rowan Brigade | D179: 5 Week Lead Time | E179: RBG
A180: 179 | B180: PG6B Rowan Bright White | D180: 5 Week Lead Time | E180: RBW | H180: Wine Rack 2 | J180: Height | K180: =IFERROR(INDEX($H$170:$K$170,MATCH(I181,$H$171:$K$171,1)),1) -> 1
A181: 180 | B181: PG6B Rowan Cashmere | D181: 5 Week Lead Time | E181: RCS | H181: Chosen Height | I181: =Kitchen!$A$995 -> ENTER HEIGHT HERE | J181: Width | K181: =IFERROR(INDEX($F$172:$F$173,MATCH(I182,$G$172:$G$173,1)),1) -> 1
A182: 181 | B182: PG6B Rowan Damson | D182: 5 Week Lead Time | E182: RDM | H182: Chosen Width | I182: =Kitchen!$A$996 -> ENTER WIDTH HERE | J182: Price | K182: =IFERROR(VLOOKUP(K181,$F$172:$K$173,MATCH(K180,$F$170:$K$170,0),0),"") -> 254
A183: 182 | B183: PG6B Rowan Desert Pink | D183: 5 Week Lead Time | E183: RDP
A184: 183 | B184: PG6B Rowan Dust Grey | D184: 5 Week Lead Time | E184: RDS | H184: Wine Rack 3 | J184: Height | K184: =IFERROR(INDEX($H$170:$K$170,MATCH(I185,$H$171:$K$171,1)),1) -> 1
A185: 184 | B185: PG6B Rowan Graphite | D185: 5 Week Lead Time | E185: RGP | H185: Chosen Height | I185: =Kitchen!$A$999 -> ENTER HEIGHT HERE | J185: Width | K185: =IFERROR(INDEX($F$172:$F$173,MATCH(I186,$G$172:$G$173,1)),1) -> 1
A186: 185 | B186: PG6B Rowan Heather Green | D186: 5 Week Lead Time | E186: RHG | H186: Chosen Width | I186: =Kitchen!$A$1000 -> ENTER WIDTH HERE | J186: Price | K186: =IFERROR(VLOOKUP(K185,$F$172:$K$173,MATCH(K184,$F$170:$K$170,0),0),"") -> 254
A187: 186 | B187: PG6B Rowan Indigo | D187: 5 Week Lead Time | E187: RIN
A188: 187 | B188: PG6B Rowan Ivory | D188: 5 Week Lead Time | E188: RIV
A189: 188 | B189: PG6B Rowan Laurel Green | D189: 5 Week Lead Time | E189: RLR
A190: 189 | B190: PG6B Rowan Light Grey | D190: 5 Week Lead Time | E190: RDG
A191: 190 | B191: PG6B Rowan Meadow | D191: 5 Week Lead Time | E191: RMW
A192: 191 | B192: PG6B Rowan Midnight | D192: 5 Week Lead Time | E192: RMN | H192: Assembled Talls | I192: 1
A193: 192 | B193: PG6B Rowan Mussel | D193: 5 Week Lead Time | E193: RMU | H193: 1 | I193: Yes
A194: 193 | B194: PG6B Rowan Olive Green | D194: 5 Week Lead Time | E194: ROV | H194: 2 | I194: No
A195: 194 | B195: PG6B Rowan Pale Teal | D195: 5 Week Lead Time | E195: RPT
A196: 195 | B196: PG6B Rowan Pearl | D196: 5 Week Lead Time | E196: RPE
A197: 196 | B197: PG6B Rowan Pebble Grey | D197: 5 Week Lead Time | E197: RPG | H197: Timber MTM Panels
A198: 197 | B198: PG6B Rowan Porcelain | D198: 5 Week Lead Time | E198: RPO
A199: 198 | B199: PG6B Rowan Sage | D199: 5 Week Lead Time | E199: RSG | H199: 1 | I199: Select Range | J199: =VLOOKUP($B$1,A2:E378,5,0) -> ATP
A200: 199 | B200: PG6B Rowan Sapphire | D200: 5 Week Lead Time | E200: RSP | H200: 2 | I200: Woodgrain Painted MTM Panel
... 178 more rows

Sheet Codes (hidden)
B1: @LK- | C1: LK-C- | D1: 1 | E1: 2 | F1: 3 | G1: 4 | H1: 5 | I1: 6 | J1: 7 | K1: 8 | L1: 9 | M1: 10 | N1: 11 | O1: 12 | P1: 13 | Q1: 14 | R1: 15 | S1: 16 | T1: 17 | U1: 18 | V1: 19 | W1: 20 | X1: 21 | Y1: 22 | Z1: 23 | AA1: 24 | AB1: 25 | AC1: 26 | AD1: 27 | AE1: 28 | AF1: 29 | AG1: 30 | AH1: 31 | AI1: 32 | AJ1: 33 | AK1: 34 | AL1: 35 | AM1: 36 | AN1: 37 | AO1: 38 | AP1: 39 | AQ1: 40 | AR1: 41 | AS1: 42 | AT1: 43 | AU1: 44 | AV1: 45 | AW1: 46 | AX1: 47 | AY1: 48 | AZ1: 49 | BA1: 50 | BB1: 51 | BC1: 52 | BD1: 53 | BE1: 54 | BF1: 55 | BG1: 56 | BH1: 57 | BI1: 58 | BJ1: 59 | BK1: 60 | BL1: 61 | BM1: 62 | BN1: 63 | BO1: 64 | BP1: 65 | BQ1: 66 | BR1: 67 | BS1: 68 | BT1: 69 | BU1: 70 | BV1: 71 | BW1: 72 | BX1: 73 | BY1: 74 | BZ1: 75 | CA1: 76 | CB1: 77 | CC1: 78 | CD1: 79 | CE1: 80 | CF1: 81 | CG1: 82 | CH1: 83 | CI1: 84 | CJ1: 85 | CK1: 86 | CL1: 87 | CM1: 88 | CN1: 89 | CO1: 90 | CP1: 91 | CQ1: 92 | CR1: 93 | CS1: 94 | CT1: 95 | CU1: 96 | CV1: 97 | CW1: 98 | CX1: 99 | CY1: 100 | CZ1: 101 | DA1: 102 | DB1: 103 | DC1: 104 | DD1: 105 | DE1: 106 | DF1: 107 | DG1: 108 | DH1: 109 | DI1: 110 | DJ1: 111 | DK1: 112 | DL1: 113 | DM1: 114 | DN1: 115 | DO1: 116 | DP1: 117 | DQ1: 118 | DR1: 119 | DS1: 120 | DT1: 121 | DU1: 122 | DV1: 123 | DW1: 124 | DX1: 125 | DY1: 126 | DZ1: 127 | EA1: 128 | EB1: 129 | EC1: 130 | ED1: 131 | EE1: 132 | EF1: 133 | EG1: 134 | EH1: 135 | EI1: 136 | EJ1: 137 | EK1: 138 | EL1: 139 | EM1: 140 | EN1: 141 | EO1: 142 | EP1: 143 | EQ1: 144 | ER1: 145 | ES1: 146 | ET1: 147 | EU1: 148 | EV1: 149 | EW1: 150 | EX1: 151 | EY1: 152 | EZ1: 153 | FA1: 154 | FB1: 155 | FC1: 156 | FD1: 157 | FE1: 158 | FF1: 159 | FG1: 160 | FH1: 161 | FI1: 162 | FJ1: 163 | FK1: 164 | FL1: 165 | FM1: 166 | FN1: 167 | FO1: 168 | FP1: 169 | FQ1: 170 | FR1: 171 | FS1: 172 | FT1: 173 | FU1: 174 | FV1: 175 | FW1: 176 | FX1: 177 | FY1: 178 | FZ1: 179 | GA1: 180 | GB1: 181 | GC1: 182 | GD1: 183 | GE1: 184 | GF1: 185 | GG1: 186 | GH1: 187 | GI1: 188 | GJ1: 189 | GK1: 190 | GL1: 191 | GM1: 192 | GN1: 193 | GO1: 194 | GP1: 195 | GQ1: 196 | GR1: 197 | GS1: 198 | GT1: 199 | GU1: 200 | GV1: 201 | GW1: 202 | GX1: 203 | GY1: 204 | GZ1: 205 | HA1: 206 | HB1: 207 | HC1: 208 | HD1: 209 | HE1: 210 | HF1: 211 | HG1: 212 | HH1: 213 | HI1: 214 | HJ1: 215 | HK1: 216 | HL1: 217 | HM1: 218 | HN1: 219 | HO1: 220 | HP1: 221 | HQ1: 222 | HR1: 223 | HS1: 224 | HT1: 225 | HU1: 226 | HV1: 227 | HW1: 228 | HX1: 229 | HY1: 230 | HZ1: 231 | IA1: 232 | IB1: 233 | IC1: 234 | ID1: 235 | IE1: 236 | IF1: 237 | IG1: 238 | IH1: 239 | II1: 240 | IJ1: 241 | IK1: 242 | IL1: 243 | IM1: 244 | IN1: 245 | IO1: 246 | IP1: 247 | IQ1: 248 | IR1: 249 | IS1: 250 | IT1: 251 | IU1: 252 | IV1: 253 | IW1: 254 | IX1: 255 | IY1: 256 | IZ1: 257 | JA1: 258 | JB1: 259 | JC1: 260 | JD1: 261 | JE1: 262 | JF1: 263 | JG1: 264 | JH1: 265 | JI1: 266 | JJ1: 267 | JK1: 268 | JL1: 269 | JM1: 270 | JN1: 271 | JO1: 272 | JP1: 273 | JQ1: 274 | JR1: 275 | JS1: 276 | JT1: 277 | JU1: 278 | JV1: 279 | JW1: 280 | JX1: 281 | JY1: 282 | JZ1: 283 | KA1: 284 | KB1: 285 | KC1: 286 | KD1: 287 | KE1: 288 | KF1: 289 | KG1: 290 | KH1: 291 | KI1: 292 | KJ1: 293 | KK1: 294 | KL1: 295 | KM1: 296 | KN1: 297 | KO1: 298 | KP1: 299 | KQ1: 300 | KR1: 301 | KS1: 302 | KT1: 303 | KU1: 304 | KV1: 305 | KW1: 306 | KX1: 307 | KY1: 308 | KZ1: 309 | LA1: 310 | LB1: 311 | LC1: 312 | LD1: 313 | LE1: 314 | LF1: 315 | LG1: 316 | LH1: 317 | LI1: 318 | LJ1: 319 | LK1: 320 | LL1: 321 | LM1: 322 | LN1: 323 | LO1: 324 | LP1: 325 | LQ1: 326 | LR1: 327 | LS1: 328 | LT1: 329 | LU1: 330 | LV1: 331 | LW1: 332 | LX1: 333 | LY1: 334 | LZ1: 335 | MA1: 336 | MB1: 337 | MC1: 338 | MD1: 339 | ME1: 340 | MF1: 341 | MG1: 342 | MH1: 343 | MI1: 344 | MJ1: 345 | MK1: 346 | ML1: 347 | MM1: 348 | MN1: 349 | MO1: 350 | MP1: 351 | MQ1: 352 | MR1: 353 | MS1: 354 | MT1: 355 | MU1: 356 | MV1: 357 | MW1: 358 | MX1: 359 | MY1: 360 | MZ1: 361 | NA1: 362 | NB1: 363 | NC1: 364 | ND1: 365 | NE1: 366 | NF1: 367 | NG1: 368 | NH1: 369 | NI1: 370 | NJ1: 371 | NK1: 372 | NL1: 373 | NM1: 374 | NN1: 375 | NO1: 376 | NP1: 377
B2: LK-A- | C2: @LK-A- | D2: Euro Matt Dove Grey | E2: Euro Matt Dust Grey | F2: Euro Matt Graphite | G2: Euro Matt Mussel | H2: Euro Matt Sea Blue | I2: Opaco Cashmere | J2: Opaco Dove Grey | K2: Opaco Dust Grey | L2: Opaco Fjord | M2: Opaco Graphite | N2: Opaco Mussel | O2: Opaco Reed Green | P2: Opaco Sea Blue | Q2: Opaco White | R2: Brompton Cashmere | S2: Brompton Dove Grey | T2: Brompton Dust Grey | U2: Brompton Graphite | V2: Brompton Stone Grey | W2: Brompton White | X2: Grained Cashmere | Y2: Grained Dakar | Z2: Grained Dove Grey | AA2: Grained Dust Grey | AB2: Grained Graphite | AC2: Grained Indigo | AD2: Grained Ivory | AE2: Grained Mussel | AF2: Grained Reed Green | AG2: Grained Sea Blue | AH2: Grained Spruce Green | AI2: Grained Stone Grey | AJ2: Grained White | AK2: Ainsdale Beige Oak | AL2: Ainsdale Black | AM2: Ainsdale Chalk | AN2: Ainsdale Dust Grey | AO2: Ainsdale Reed Green | AP2: Ainsdale Forest | AQ2: Ainsdale Taupe | AR2: Ainsdale Light Grey | AS2: Ainsdale Indigo | AT2: Kirkham Chalk | AU2: Kirkham Light Grey | AV2: Kirkham Dust Grey | AW2: Kirkham Graphite | AX2: Kirkham Taupe | AY2: Kirkham Reed Green | AZ2: Kirkham Forest | BA2: Kirkham Indigo | BB2: Mala Gloss Cashmere | BC2: Mala Gloss Dove Grey | BD2: Mala Gloss Dust Grey | BE2: Mala Gloss Graphite | BF2: Mala Gloss Porcelain | BG2: Mala Gloss White | BH2: Mala Matt Cashmere | BI2: Mala Matt Dove Grey | BJ2: Mala Matt Dust Grey | BK2: Mala Matt Graphite | BL2: Mala Matt Navy Blue | BM2: Mala Matt Moss Green | BN2: Mala Matt Platinum Grey | BO2: Mala Matt Porcelain | BP2: Mala Matt Taupe Grey | BQ2: Mala Matt White | BR2: Eterna Ossido Grigio | BS2: Eterna Ossido Marrone | BT2: Eterna Patagonia Marble | BU2: Eterna Venato Marble | BV2: Eterna Nero Marble | BW2: Eterna Laguna Grey Aged Oak | BX2: Eterna Laguna Dark Oak | BY2: Eterna Chalet Light Walnut | BZ2: Clarkwell Aegean | CA2: Clarkwell Atlantic | CB2: Clarkwell Auburn | CC2: Clarkwell Breeze | CD2: Clarkwell Brigade | CE2: Clarkwell Bright White | CF2: Clarkwell Cashmere | CG2: Clarkwell Damson | CH2: Clarkwell Desert Pink | CI2: Clarkwell Dust Grey | CJ2: Clarkwell Graphite | CK2: Clarkwell Heather Green | CL2: Clarkwell Indigo | CM2: Clarkwell Ivory | CN2: Clarkwell Laurel Green | CO2: Clarkwell Light Grey | CP2: Clarkwell Meadow | CQ2: Clarkwell Midnight | CR2: Clarkwell Mussel | CS2: Clarkwell Olive Green | CT2: Clarkwell Pale Teal | CU2: Clarkwell Pearl | CV2: Clarkwell Pebble Grey | CW2: Clarkwell Porcelain | CX2: Clarkwell Sage | CY2: Clarkwell Sapphire | CZ2: Clarkwell Soft Black | DA2: Clarkwell Soot | DB2: Clarkwell Steel Grey | DC2: Clarkwell Stone | DD2: Clarkwell Taupe | DE2: Clarkwell Thicket | DF2: Clarkwell Warm Earth | DG2: Georgian Aegean | DH2: Georgian Atlantic | DI2: Georgian Auburn | DJ2: Georgian Breeze | DK2: Georgian Brigade | DL2: Georgian Bright White | DM2: Georgian Cashmere | DN2: Georgian Damson | DO2: Georgian Desert Pink | DP2: Georgian Dust Grey | DQ2: Georgian Graphite | DR2: Georgian Heather Green | DS2: Georgian Indigo | DT2: Georgian Ivory | DU2: Georgian Laurel Green | DV2: Georgian Light Grey | DW2: Georgian Meadow | DX2: Georgian Midnight | DY2: Georgian Mussel | DZ2: Georgian Olive Green | EA2: Georgian Pale Teal | EB2: Georgian Pearl | EC2: Georgian Pebble Grey | ED2: Georgian Porcelain | EE2: Georgian Sage | EF2: Georgian Sapphire | EG2: Georgian Soft Black | EH2: Georgian Soot | EI2: Georgian Steel Grey | EJ2: Georgian Stone | EK2: Georgian Taupe | EL2: Georgian Thicket | EM2: Georgian Warm Earth | EN2: Elswick Aegean | EO2: Elswick Atlantic | EP2: Elswick Auburn | EQ2: Elswick Breeze | ER2: Elswick Brigade | ES2: Elswick Bright White | ET2: Elswick Cashmere | EU2: Elswick Damson | EV2: Elswick Desert Pink | EW2: Elswick Dust Grey | EX2: Elswick Graphite | EY2: Elswick Heather Green | EZ2: Elswick Indigo | FA2: Elswick Ivory | FB2: Elswick Laurel Green | FC2: Elswick Light Grey | FD2: Elswick Meadow | FE2: Elswick Midnight | FF2: Elswick Mussel | FG2: Elswick Olive Green | FH2: Elswick Pale Teal | FI2: Elswick Pearl | FJ2: Elswick Pebble Grey | FK2: Elswick Porcelain | FL2: Elswick Sage | FM2: Elswick Sapphire | FN2: Elswick Soft Black | FO2: Elswick Soot | FP2: Elswick Steel Grey | FQ2: Elswick Stone | FR2: Elswick Taupe | FS2: Elswick Thicket | FT2: Elswick Warm Earth | FU2: Rowan Aegean | FV2: Rowan Atlantic | FW2: Rowan Auburn | FX2: Rowan Breeze | FY2: Rowan Brigade | FZ2: Rowan Bright White | GA2: Rowan Cashmere | GB2: Rowan Damson | GC2: Rowan Desert Pink | GD2: Rowan Dust Grey | GE2: Rowan Graphite | GF2: Rowan Heather Green | GG2: Rowan Indigo | GH2: Rowan Ivory | GI2: Rowan Laurel Green | GJ2: Rowan Light Grey | GK2: Rowan Meadow | GL2: Rowan Midnight | GM2: Rowan Mussel | GN2: Rowan Olive Green | GO2: Rowan Pale Teal | GP2: Rowan Pearl | GQ2: Rowan Pebble Grey | GR2: Rowan Porcelain | GS2: Rowan Sage | GT2: Rowan Sapphire | GU2: Rowan Soft Black | GV2: Rowan Soot | GW2: Rowan Steel Grey | GX2: Rowan Stone | GY2: Rowan Taupe | GZ2: Rowan Thicket | HA2: Rowan Warm Earth | HB2: Valina Aegean | HC2: Valina Atlantic | HD2: Valina Auburn | HE2: Valina Breeze | HF2: Valina Brigade | HG2: Valina Bright White | HH2: Valina Cashmere | HI2: Valina Damson | HJ2: Valina Desert Pink | HK2: Valina Dust Grey | HL2: Valina Graphite | HM2: Valina Heather Green | HN2: Valina Indigo | HO2: Valina Ivory | HP2: Valina Laurel Green | HQ2: Valina Light Grey | HR2: Valina Meadow | HS2: Valina Midnight | HT2: Valina Mussel | HU2: Valina Olive Green | HV2: Valina Pale Teal | HW2: Valina Pearl | HX2: Valina Pebble Grey | HY2: Valina Porcelain | HZ2: Valina Sage | IA2: Valina Sapphire | IB2: Valina Soft Black | IC2: Valina Soot | ID2: Valina Steel Grey | IE2: Valina Stone | IF2: Valina Taupe | IG2: Valina Thicket | IH2: Valina Warm Earth | II2: Thistleton Aegean | IJ2: Thistleton Atlantic | IK2: Thistleton Auburn | IL2: Thistleton Breeze | IM2: Thistleton Brigade | IN2: Thistleton Bright White | IO2: Thistleton Cashmere | IP2: Thistleton Damson | IQ2: Thistleton Desert Pink | IR2: Thistleton Dust Grey | IS2: Thistleton Graphite | IT2: Thistleton Heather Green | IU2: Thistleton Indigo | IV2: Thistleton Ivory | IW2: Thistleton Laurel Green | IX2: Thistleton Light Grey | IY2: Thistleton Meadow | IZ2: Thistleton Midnight | JA2: Thistleton Mussel | JB2: Thistleton Olive Green | JC2: Thistleton Pale Teal | JD2: Thistleton Pearl | JE2: Thistleton Pebble Grey | JF2: Thistleton Porcelain | JG2: Thistleton Sage | JH2: Thistleton Sapphire | JI2: Thistleton Soft Black | JJ2: Thistleton Soot | JK2: Thistleton Steel Grey | JL2: Thistleton Stone | JM2: Thistleton Taupe | JN2: Thistleton Thicket | JO2: Thistleton Warm Earth | JP2: Washington Aegean | JQ2: Washington Atlantic | JR2: Washington Auburn | JS2: Washington Breeze | JT2: Washington Brigade | JU2: Washington Bright White | JV2: Washington Cashmere | JW2: Washington Damson | JX2: Washington Desert Pink | JY2: Washington Dust Grey | JZ2: Washington Graphite | KA2: Washington Heather Green | KB2: Washington Indigo | KC2: Washington Ivory | KD2: Washington Laurel Green | KE2: Washington Light Grey | KF2: Washington Meadow | KG2: Washington Midnight | KH2: Washington Mussel | KI2: Washington Olive Green | KJ2: Washington Pale Teal | KK2: Washington Pearl | KL2: Washington Pebble Grey | KM2: Washington Porcelain | KN2: Washington Sage | KO2: Washington Sapphire | KP2: Washington Soft Black | KQ2: Washington Soot | KR2: Washington Steel Grey | KS2: Washington Stone | KT2: Washington Taupe | KU2: Washington Thicket | KV2: Washington Warm Earth | KW2: Hutton Aegean | KX2: Hutton Atlantic | KY2: Hutton Auburn | KZ2: Hutton Breeze | LA2: Hutton Brigade | LB2: Hutton Bright White | LC2: Hutton Cashmere | LD2: Hutton Damson | LE2: Hutton Desert Pink | LF2: Hutton Dust Grey | LG2: Hutton Graphite | LH2: Hutton Heather Green | LI2: Hutton Indigo | LJ2: Hutton Ivory | LK2: Hutton Laurel Green | LL2: Hutton Light Grey | LM2: Hutton Meadow | LN2: Hutton Midnight | LO2: Hutton Mussel | LP2: Hutton Olive Green | LQ2: Hutton Pale Teal | LR2: Hutton Pearl | LS2: Hutton Pebble Grey | LT2: Hutton Porcelain | LU2: Hutton Sage | LV2: Hutton Sapphire | LW2: Hutton Soft Black | LX2: Hutton Soot | LY2: Hutton Steel Grey | LZ2: Hutton Stone | MA2: Hutton Taupe | MB2: Hutton Thicket | MC2: Hutton Warm Earth | MD2: Strato Aegean | ME2: Strato Atlantic | MF2: Strato Auburn | MG2: Strato Breeze | MH2: Strato Brigade | MI2: Strato Bright White | MJ2: Strato Cashmere | MK2: Strato Damson | ML2: Strato Desert Pink | MM2: Strato Dust Grey | MN2: Strato Graphite | MO2: Strato Heather Green | MP2: Strato Indigo | MQ2: Strato Ivory | MR2: Strato Laurel Green | MS2: Strato Light Grey | MT2: Strato Meadow | MU2: Strato Midnight | MV2: Strato Mussel | MW2: Strato Olive Green | MX2: Strato Pale Teal | MY2: Strato Pearl | MZ2: Strato Pebble Grey | NA2: Strato Porcelain | NB2: Strato Sage | NC2: Strato Sapphire | ND2: Strato Soft Black | NE2: Strato Soot | NF2: Strato Steel Grey | NG2: Strato Stone | NH2: Strato Taupe | NI2: Strato Thicket | NJ2: Strato Warm Earth | NK2: Strato Bronze | NL2: Strato Buff | NM2: Strato Charcoal Black | NN2: Strato Mezzo | NO2: Strato Mocha | NP2: Strato Pale Oak
B3: Product Description | C3: BOM / Prod ID | D3: EMD- | E3: EMY- | F3: EMG- | G3: EMM- | H3: EMS- | I3: OPC- | J3: OPD- | K3: OPY- | L3: OPF- | M3: OPG- | N3: OPM- | O3: OPR- | P3: OPS- | Q3: OPW- | R3: BCS- | S3: BDG- | T3: BDY- | U3: BGP- | V3: BSG- | W3: BWH- | X3: CSW- | Y3: DSS- | Z3: DGW- | AA3: DYW- | AB3: GPW- | AC3: INW- | AD3: ISW- | AE3: MSW- | AF3: RGW- | AG3: NVW- | AH3: SPW- | AI3: STW- | AJ3: WSW- | AK3: AOK- | AL3: ABL- | AM3: ACH- | AN3: ADG- | AO3: ARG- | AP3: AFR- | AQ3: ATP- | AR3: ALG- | AS3: AIN- | AT3: KCH- | AU3: KLG- | AV3: KDG- | AW3: KGP- | AX3: KTP- | AY3: KRG- | AZ3: KFR- | BA3: KIN- | BB3: MCS- | BC3: MGD- | BD3: MDS- | BE3: MGP- | BF3: MPN- | BG3: MGW- | BH3: MCM- | BI3: MDM- | BJ3: MTM- | BK3: MGM- | BL3: MIM- | BM3: MGR- | BN3: MSM- | BO3: MPM- | BP3: MTP- | BQ3: MWM- | BR3: EOG- | BS3: EOM- | BT3: EPM- | BU3: EVM- | BV3: ENM- | BW3: ELA- | BX3: ELD- | BY3: ELW- | BZ3: CAG- | CA3: CAT- | CB3: CAB- | CC3: CBR- | CD3: CBG- | CE3: CBW- | CF3: CCS- | CG3: CDM- | CH3: CDR- | CI3: CDG- | CJ3: CGP- | CK3: CHG- | CL3: CIN- | CM3: CIV- | CN3: CLR- | CO3: CLG- | CP3: CMW- | CQ3: CMN- | CR3: CMU- | CS3: COV- | CT3: CPT- | CU3: CPE- | CV3: CPG- | CW3: CPN- | CX3: CSG- | CY3: CSP- | CZ3: CSB- | DA3: CSO- | DB3: CSY- | DC3: CST- | DD3: CTP- | DE3: CTK- | DF3: CWE- | DG3: GAG- | DH3: GAT- | DI3: GAB- | DJ3: GBR- | DK3: GBG- | DL3: GBW- | DM3: GCS- | DN3: GDM- | DO3: GDR- | DP3: GDG- | DQ3: GGP- | DR3: GHG- | DS3: GIN- | DT3: GIV- | DU3: GLR- | DV3: GLG- | DW3: GMW- | DX3: GMN- | DY3: GMU- | DZ3: GOV- | EA3: GPT- | EB3: GPE- | EC3: GPG- | ED3: GPN- | EE3: GSG- | EF3: GSP- | EG3: GSB- | EH3: GSO- | EI3: GSY- | EJ3: GST- | EK3: GTP- | EL3: GTK- | EM3: GWE- | EN3: EAG- | EO3: EAT- | EP3: EAB- | EQ3: EBR- | ER3: EBG- | ES3: EBW- | ET3: ECS- | EU3: EDM- | EV3: EDP- | EW3: EDS- | EX3: EGP- | EY3: EHG- | EZ3: EIN- | FA3: EIV- | FB3: ELN- | FC3: EDG- | FD3: EME- | FE3: EMN- | FF3: EMU- | FG3: EOV- | FH3: EPT- | FI3: EPE- | FJ3: EPG- | FK3: EPN- | FL3: ESG- | FM3: ESP- | FN3: ESK- | FO3: ESO- | FP3: ESY- | FQ3: ESN- | FR3: ETP- | FS3: ETK- | FT3: EWE- | FU3: RAG- | FV3: RAT- | FW3: RAB- | FX3: RBR- | FY3: RBG- | FZ3: RBW- | GA3: RCS- | GB3: RDM- | GC3: RDP- | GD3: RDS- | GE3: RGP- | GF3: RHG- | GG3: RIN- | GH3: RIV- | GI3: RLR- | GJ3: RDG- | GK3: RMW- | GL3: RMN- | GM3: RMU- | GN3: ROV- | GO3: RPT- | GP3: RPE- | GQ3: RPG- | GR3: RPO- | GS3: RSG- | GT3: RSP- | GU3: RSK- | GV3: RST- | GW3: RSY- | GX3: RSN- | GY3: RTP- | GZ3: RTK- | HA3: RWE- | HB3: VAG- | HC3: VAT- | HD3: VAB- | HE3: VBR- | HF3: VBG- | HG3: VBW- | HH3: VCS- | HI3: VDM- | HJ3: VDP- | HK3: VDS- | HL3: VGP- | HM3: VHG- | HN3: VIN- | HO3: VIY- | HP3: VLN- | HQ3: VDG- | HR3: VME- | HS3: VMN- | HT3: VMU- | HU3: VOV- | HV3: VPT- | HW3: VPE- | HX3: VPG- | HY3: VPN- | HZ3: VSG- | IA3: VSP- | IB3: VSB- | IC3: VSO- | ID3: VSY- | IE3: VSN- | IF3: VTP- | IG3: VTK- | IH3: VWE- | II3: TAG- | IJ3: TAT- | IK3: TAB- | IL3: TBR- | IM3: TBG- | IN3: TBW- | IO3: TCS- | IP3: TDM- | IQ3: TDR- | IR3: TDS- | IS3: TGP- | IT3: THG- | IU3: TIN- | IV3: TIV- | IW3: TLR- | IX3: TLG- | IY3: TMW- | IZ3: TMN- | JA3: TMU- | JB3: TOV- | JC3: TPT- | JD3: TPE- | JE3: TPG- | JF3: TPN- | JG3: TSG- | JH3: TSP- | JI3: TSK- | JJ3: TSO- | JK3: TSY- | JL3: TST- | JM3: TTP- | JN3: TTK- | JO3: TWE- | JP3: WAG- | JQ3: WAT- | JR3: WAB- | JS3: WBR- | JT3: WBG- | JU3: WBW- | JV3: WCS- | JW3: WDM- | JX3: WDR- | JY3: WDS- | JZ3: WGP- | KA3: WHE- | KB3: WIN- | KC3: WIV- | KD3: WLR- | KE3: WDG- | KF3: WMW- | KG3: WMN- | KH3: WMU- | KI3: WOV- | KJ3: WPT- | KK3: WPE- | KL3: WPG- | KM3: WPN- | KN3: WSG- | KO3: WSP- | KP3: WSB- | KQ3: WSO- | KR3: WSY- | KS3: WST- | KT3: WTP- | KU3: WTK- | KV3: WWE- | KW3: HAG- | KX3: HAT- | KY3: HAB- | KZ3: HBR- | LA3: HBG- | LB3: HBW- | LC3: HCS- | LD3: HDM- | LE3: HDP- | LF3: HDS- | LG3: HGP- | LH3: HHG- | LI3: HIN- | LJ3: HIV- | LK3: HLR- | LL3: HLG- | LM3: HMW- | LN3: HMN- | LO3: HMU- | LP3: HOV- | LQ3: HPT- | LR3: HPE- | LS3: HPG- | LT3: HPN- | LU3: HSG- | LV3: HSP- | LW3: HSK- | LX3: HSO- | LY3: HSY- | LZ3: HST- | MA3: HTP- | MB3: HTK- | MC3: HWE- | MD3: SAG- | ME3: SAT- | MF3: SAB- | MG3: SBR- | MH3: SBG- | MI3: SBW- | MJ3: SCS- | MK3: SDM- | ML3: SDP- | MM3: SDS- | MN3: SGP- | MO3: SHG- | MP3: SIN- | MQ3: SIV- | MR3: SLR- | MS3: SDG- | MT3: SMW- | MU3: SMN- | MV3: SMU- | MW3: SOV- | MX3: SPT- | MY3: SPE- | MZ3: SPG- | NA3: SPN- | NB3: SSG- | NC3: SSP- | ND3: SSB- | NE3: SSO- | NF3: SSY- | NG3: SST- | NH3: STP- | NI3: STK- | NJ3: SWE- | NK3: SBZ- | NL3: SBF- | NM3: SCB- | NN3: SMZ- | NO3: SMC- | NP3: SPO-
A4: BP15TY | B4: 150 HL Pull Out Base VS SUB | C4: BP15TY | D4: @LK-EMD-BP15TY | E4: @LK-EMY-BP15TY | F4: @LK-EMG-BP15TY | G4: @LK-EMM-BP15TY | H4: @LK-EMS-BP15TY | I4: @LK-OPC-BP15TY | J4: @LK-OPD-BP15TY | K4: @LK-OPY-BP15TY | L4: @LK-OPF-BP15TY | M4: @LK-OPG-BP15TY | N4: @LK-OPM-BP15TY | O4: @LK-OPR-BP15TY | P4: @LK-OPS-BP15TY | Q4: @LK-OPW-BP15TY | R4: @LK-BCS-BP15TY | S4: @LK-BDG-BP15TY | T4: @LK-BDY-BP15TY | U4: @LK-BGP-BP15TY | V4: @LK-BSG-BP15TY | W4: @LK-BWH-BP15TY | X4: @LK-CSW-BP15TY | Y4: @LK-DSS-BP15TY | Z4: @LK-DGW-BP15TY | AA4: @LK-DYW-BP15TY | AB4: @LK-GPW-BP15TY | AC4: @LK-INW-BP15TY | AD4: @LK-ISW-BP15TY | AE4: @LK-MSW-BP15TY | AF4: @LK-RGW-BP15TY | AG4: @LK-NVW-BP15TY | AH4: @LK-SPW-BP15TY | AI4: @LK-STW-BP15TY | AJ4: @LK-WSW-BP15TY | AK4: @LK-AOK-BP15TY | AL4: @LK-ABL-BP15TY | AM4: @LK-ACH-BP15TY | AN4: @LK-ADG-BP15TY | AO4: @LK-ARG-BP15TY | AP4: @LK-AFR-BP15TY | AQ4: @LK-ATP-BP15TY | AR4: @LK-ALG-BP15TY | AS4: @LK-AIN-BP15TY | AT4: @LK-KCH-BP15TY | AU4: @LK-KLG-BP15TY | AV4: @LK-KDG-BP15TY | AW4: @LK-KGP-BP15TY | AX4: @LK-KTP-BP15TY | AY4: @LK-KRG-BP15TY | AZ4: @LK-KFR-BP15TY | BA4: @LK-KIN-BP15TY | BB4: @LK-MCS-BP15TY | BC4: @LK-MGD-BP15TY | BD4: @LK-MDS-BP15TY | BE4: @LK-MGP-BP15TY | BF4: @LK-MPN-BP15TY | BG4: @LK-MGW-BP15TY | BH4: @LK-MCM-BP15TY | BI4: @LK-MDM-BP15TY | BJ4: @LK-MTM-BP15TY | BK4: @LK-MGM-BP15TY | BL4: @LK-MIM-BP15TY | BM4: @LK-MGR-BP15TY | BN4: @LK-MSM-BP15TY | BO4: @LK-MPM-BP15TY | BP4: @LK-MTP-BP15TY | BQ4: @LK-MWM-BP15TY | BR4: @LK-EOG-BP15TY | BS4: @LK-EOM-BP15TY | BT4: @LK-EPM-BP15TY | BU4: @LK-EVM-BP15TY | BV4: @LK-ENM-BP15TY | BW4: @LK-ELA-BP15TY | BX4: @LK-ELD-BP15TY | BY4: @LK-ELW-BP15TY | BZ4: @LK-CAG-BP15TY | CA4: @LK-CAT-BP15TY | CB4: @LK-CAB-BP15TY | CC4: @LK-CBR-BP15TY | CD4: @LK-CBG-BP15TY | CE4: @LK-CBW-BP15TY | CF4: @LK-CCS-BP15TY | CG4: @LK-CDM-BP15TY | CH4: @LK-CDR-BP15TY | CI4: @LK-CDG-BP15TY | CJ4: @LK-CGP-BP15TY | CK4: @LK-CHG-BP15TY | CL4: @LK-CIN-BP15TY | CM4: @LK-CIV-BP15TY | CN4: @LK-CLR-BP15TY | CO4: @LK-CLG-BP15TY | CP4: @LK-CMW-BP15TY | CQ4: @LK-CMN-BP15TY | CR4: @LK-CMU-BP15TY | CS4: @LK-COV-BP15TY | CT4: @LK-CPT-BP15TY | CU4: @LK-CPE-BP15TY | CV4: @LK-CPG-BP15TY | CW4: @LK-CPN-BP15TY | CX4: @LK-CSG-BP15TY | CY4: @LK-CSP-BP15TY | CZ4: @LK-CSB-BP15TY | DA4: @LK-CSO-BP15TY | DB4: @LK-CSY-BP15TY | DC4: @LK-CST-BP15TY | DD4: @LK-CTP-BP15TY | DE4: @LK-CTK-BP15TY | DF4: @LK-CWE-BP15TY | DG4: @LK-GAG-BP15TY | DH4: @LK-GAT-BP15TY | DI4: @LK-GAB-BP15TY | DJ4: @LK-GBR-BP15TY | DK4: @LK-GBG-BP15TY | DL4: @LK-GBW-BP15TY | DM4: @LK-GCS-BP15TY | DN4: @LK-GDM-BP15TY | DO4: @LK-GDR-BP15TY | DP4: @LK-GDG-BP15TY | DQ4: @LK-GGP-BP15TY | DR4: @LK-GHG-BP15TY | DS4: @LK-GIN-BP15TY | DT4: @LK-GIV-BP15TY | DU4: @LK-GLR-BP15TY | DV4: @LK-GLG-BP15TY | DW4: @LK-GMW-BP15TY | DX4: @LK-GMN-BP15TY | DY4: @LK-GMU-BP15TY | DZ4: @LK-GOV-BP15TY | EA4: @LK-GPT-BP15TY | EB4: @LK-GPE-BP15TY | EC4: @LK-GPG-BP15TY | ED4: @LK-GPN-BP15TY | EE4: @LK-GSG-BP15TY | EF4: @LK-GSP-BP15TY | EG4: @LK-GSB-BP15TY | EH4: @LK-GSO-BP15TY | EI4: @LK-GSY-BP15TY | EJ4: @LK-GST-BP15TY | EK4: @LK-GTP-BP15TY | EL4: @LK-GTK-BP15TY | EM4: @LK-GWE-BP15TY | EN4: @LK-EAG-BP15TY | EO4: @LK-EAT-BP15TY | EP4: @LK-EAB-BP15TY | EQ4: @LK-EBR-BP15TY | ER4: @LK-EBG-BP15TY | ES4: @LK-EBW-BP15TY | ET4: @LK-ECS-BP15TY | EU4: @LK-EDM-BP15TY | EV4: @LK-EDP-BP15TY | EW4: @LK-EDS-BP15TY | EX4: @LK-EGP-BP15TY | EY4: @LK-EHG-BP15TY | EZ4: @LK-EIN-BP15TY | FA4: @LK-EIV-BP15TY | FB4: @LK-ELN-BP15TY | FC4: @LK-EDG-BP15TY | FD4: @LK-EME-BP15TY | FE4: @LK-EMN-BP15TY | FF4: @LK-EMU-BP15TY | FG4: @LK-EOV-BP15TY | FH4: @LK-EPT-BP15TY | FI4: @LK-EPE-BP15TY | FJ4: @LK-EPG-BP15TY | FK4: @LK-EPN-BP15TY | FL4: @LK-ESG-BP15TY | FM4: @LK-ESP-BP15TY | FN4: @LK-ESK-BP15TY | FO4: @LK-ESO-BP15TY | FP4: @LK-ESY-BP15TY | FQ4: @LK-ESN-BP15TY | FR4: @LK-ETP-BP15TY | FS4: @LK-ETK-BP15TY | FT4: @LK-EWE-BP15TY | FU4: @LK-RAG-BP15TY | FV4: @LK-RAT-BP15TY | FW4: @LK-RAB-BP15TY | FX4: @LK-RBR-BP15TY | FY4: @LK-RBG-BP15TY | FZ4: @LK-RBW-BP15TY | GA4: @LK-RCS-BP15TY | GB4: @LK-RDM-BP15TY | GC4: @LK-RDP-BP15TY | GD4: @LK-RDS-BP15TY | GE4: @LK-RGP-BP15TY | GF4: @LK-RHG-BP15TY | GG4: @LK-RIN-BP15TY | GH4: @LK-RIV-BP15TY | GI4: @LK-RLR-BP15TY | GJ4: @LK-RDG-BP15TY | GK4: @LK-RMW-BP15TY | GL4: @LK-RMN-BP15TY | GM4: @LK-RMU-BP15TY | GN4: @LK-ROV-BP15TY | GO4: @LK-RPT-BP15TY | GP4: @LK-RPE-BP15TY | GQ4: @LK-RPG-BP15TY | GR4: @LK-RPO-BP15TY | GS4: @LK-RSG-BP15TY | GT4: @LK-RSP-BP15TY | GU4: @LK-RSK-BP15TY | GV4: @LK-RST-BP15TY | GW4: @LK-RSY-BP15TY | GX4: @LK-RSN-BP15TY | GY4: @LK-RTP-BP15TY | GZ4: @LK-RTK-BP15TY | HA4: @LK-RWE-BP15TY | HB4: @LK-VAG-BP15TY | HC4: @LK-VAT-BP15TY | HD4: @LK-VAB-BP15TY | HE4: @LK-VBR-BP15TY | HF4: @LK-VBG-BP15TY | HG4: @LK-VBW-BP15TY | HH4: @LK-VCS-BP15TY | HI4: @LK-VDM-BP15TY | HJ4: @LK-VDP-BP15TY | HK4: @LK-VDS-BP15TY | HL4: @LK-VGP-BP15TY | HM4: @LK-VHG-BP15TY | HN4: @LK-VIN-BP15TY | HO4: @LK-VIY-BP15TY | HP4: @LK-VLN-BP15TY | HQ4: @LK-VDG-BP15TY | HR4: @LK-VME-BP15TY | HS4: @LK-VMN-BP15TY | HT4: @LK-VMU-BP15TY | HU4: @LK-VOV-BP15TY | HV4: @LK-VPT-BP15TY | HW4: @LK-VPE-BP15TY | HX4: @LK-VPG-BP15TY | HY4: @LK-VPN-BP15TY | HZ4: @LK-VSG-BP15TY | IA4: @LK-VSP-BP15TY | IB4: @LK-VSB-BP15TY | IC4: @LK-VSO-BP15TY | ID4: @LK-VSY-BP15TY | IE4: @LK-VSN-BP15TY | IF4: @LK-VTP-BP15TY | IG4: @LK-VTK-BP15TY | IH4: @LK-VWE-BP15TY | II4: @LK-TAG-BP15TY | IJ4: @LK-TAT-BP15TY | IK4: @LK-TAB-BP15TY | IL4: @LK-TBR-BP15TY | IM4: @LK-TBG-BP15TY | IN4: @LK-TBW-BP15TY | IO4: @LK-TCS-BP15TY | IP4: @LK-TDM-BP15TY | IQ4: @LK-TDR-BP15TY | IR4: @LK-TDS-BP15TY | IS4: @LK-TGP-BP15TY | IT4: @LK-THG-BP15TY | IU4: @LK-TIN-BP15TY | IV4: @LK-TIV-BP15TY | IW4: @LK-TLR-BP15TY | IX4: @LK-TLG-BP15TY | IY4: @LK-TMW-BP15TY | IZ4: @LK-TMN-BP15TY | JA4: @LK-TMU-BP15TY | JB4: @LK-TOV-BP15TY | JC4: @LK-TPT-BP15TY | JD4: @LK-TPE-BP15TY | JE4: @LK-TPG-BP15TY | JF4: @LK-TPN-BP15TY | JG4: @LK-TSG-BP15TY | JH4: @LK-TSP-BP15TY | JI4: @LK-TSK-BP15TY | JJ4: @LK-TSO-BP15TY | JK4: @LK-TSY-BP15TY | JL4: @LK-TST-BP15TY | JM4: @LK-TTP-BP15TY | JN4: @LK-TTK-BP15TY | JO4: @LK-TWE-BP15TY | JP4: @LK-WAG-BP15TY | JQ4: @LK-WAT-BP15TY | JR4: @LK-WAB-BP15TY | JS4: @LK-WBR-BP15TY | JT4: @LK-WBG-BP15TY | JU4: @LK-WBW-BP15TY | JV4: @LK-WCS-BP15TY | JW4: @LK-WDM-BP15TY | JX4: @LK-WDR-BP15TY | JY4: @LK-WDS-BP15TY | JZ4: @LK-WGP-BP15TY | KA4: @LK-WHE-BP15TY | KB4: @LK-WIN-BP15TY | KC4: @LK-WIV-BP15TY | KD4: @LK-WLR-BP15TY | KE4: @LK-WDG-BP15TY | KF4: @LK-WMW-BP15TY | KG4: @LK-WMN-BP15TY | KH4: @LK-WMU-BP15TY | KI4: @LK-WOV-BP15TY | KJ4: @LK-WPT-BP15TY | KK4: @LK-WPE-BP15TY | KL4: @LK-WPG-BP15TY | KM4: @LK-WPN-BP15TY | KN4: @LK-WSG-BP15TY | KO4: @LK-WSP-BP15TY | KP4: @LK-WSB-BP15TY | KQ4: @LK-WSO-BP15TY | KR4: @LK-WSY-BP15TY | KS4: @LK-WST-BP15TY | KT4: @LK-WTP-BP15TY | KU4: @LK-WTK-BP15TY | KV4: @LK-WWE-BP15TY | KW4: @LK-HAG-BP15TY | KX4: @LK-HAT-BP15TY | KY4: @LK-HAB-BP15TY | KZ4: @LK-HBR-BP15TY | LA4: @LK-HBG-BP15TY | LB4: @LK-HBW-BP15TY | LC4: @LK-HCS-BP15TY | LD4: @LK-HDM-BP15TY | LE4: @LK-HDP-BP15TY | LF4: @LK-HDS-BP15TY | LG4: @LK-HGP-BP15TY | LH4: @LK-HHG-BP15TY | LI4: @LK-HIN-BP15TY | LJ4: @LK-HIV-BP15TY | LK4: @LK-HLR-BP15TY | LL4: @LK-HLG-BP15TY | LM4: @LK-HMW-BP15TY | LN4: @LK-HMN-BP15TY | LO4: @LK-HMU-BP15TY | LP4: @LK-HOV-BP15TY | LQ4: @LK-HPT-BP15TY | LR4: @LK-HPE-BP15TY | LS4: @LK-HPG-BP15TY | LT4: @LK-HPN-BP15TY | LU4: @LK-HSG-BP15TY | LV4: @LK-HSP-BP15TY | LW4: @LK-HSK-BP15TY | LX4: @LK-HSO-BP15TY | LY4: @LK-HSY-BP15TY | LZ4: @LK-HST-BP15TY | MA4: @LK-HTP-BP15TY | MB4: @LK-HTK-BP15TY | MC4: @LK-HWE-BP15TY | MD4: @LK-SAG-BP15TY | ME4: @LK-SAT-BP15TY | MF4: @LK-SAB-BP15TY | MG4: @LK-SBR-BP15TY | MH4: @LK-SBG-BP15TY | MI4: @LK-SBW-BP15TY | MJ4: @LK-SCS-BP15TY | MK4: @LK-SDM-BP15TY | ML4: @LK-SDP-BP15TY | MM4: @LK-SDS-BP15TY | MN4: @LK-SGP-BP15TY | MO4: @LK-SHG-BP15TY | MP4: @LK-SIN-BP15TY | MQ4: @LK-SIV-BP15TY | MR4: @LK-SLR-BP15TY | MS4: @LK-SDG-BP15TY | MT4: @LK-SMW-BP15TY | MU4: @LK-SMN-BP15TY | MV4: @LK-SMU-BP15TY | MW4: @LK-SOV-BP15TY | MX4: @LK-SPT-BP15TY | MY4: @LK-SPE-BP15TY | MZ4: @LK-SPG-BP15TY | NA4: @LK-SPN-BP15TY | NB4: @LK-SSG-BP15TY | NC4: @LK-SSP-BP15TY | ND4: @LK-SSB-BP15TY | NE4: @LK-SSO-BP15TY | NF4: @LK-SSY-BP15TY | NG4: @LK-SST-BP15TY | NH4: @LK-STP-BP15TY | NI4: @LK-STK-BP15TY | NJ4: @LK-SWE-BP15TY | NK4: @LK-SBZ-BP15TY | NL4: @LK-SBF-BP15TY | NM4: @LK-SCB-BP15TY | NN4: @LK-SMZ-BP15TY | NO4: @LK-SMC-BP15TY | NP4: @LK-SPO-BP15TY
A5: BP3TY | B5: 300 HL Pull Out Base VS SUB | C5: BP3TY | D5: @LK-EMD-BP3TY | E5: @LK-EMY-BP3TY | F5: @LK-EMG-BP3TY | G5: @LK-EMM-BP3TY | H5: @LK-EMS-BP3TY | I5: @LK-OPC-BP3TY | J5: @LK-OPD-BP3TY | K5: @LK-OPY-BP3TY | L5: @LK-OPF-BP3TY | M5: @LK-OPG-BP3TY | N5: @LK-OPM-BP3TY | O5: @LK-OPR-BP3TY | P5: @LK-OPS-BP3TY | Q5: @LK-OPW-BP3TY | R5: @LK-BCS-BP3TY | S5: @LK-BDG-BP3TY | T5: @LK-BDY-BP3TY | U5: @LK-BGP-BP3TY | V5: @LK-BSG-BP3TY | W5: @LK-BWH-BP3TY | X5: @LK-CSW-BP3TY | Y5: @LK-DSS-BP3TY | Z5: @LK-DGW-BP3TY | AA5: @LK-DYW-BP3TY | AB5: @LK-GPW-BP3TY | AC5: @LK-INW-BP3TY | AD5: @LK-ISW-BP3TY | AE5: @LK-MSW-BP3TY | AF5: @LK-RGW-BP3TY | AG5: @LK-NVW-BP3TY | AH5: @LK-SPW-BP3TY | AI5: @LK-STW-BP3TY | AJ5: @LK-WSW-BP3TY | AK5: @LK-AOK-BP3TY | AL5: @LK-ABL-BP3TY | AM5: @LK-ACH-BP3TY | AN5: @LK-ADG-BP3TY | AO5: @LK-ARG-BP3TY | AP5: @LK-AFR-BP3TY | AQ5: @LK-ATP-BP3TY | AR5: @LK-ALG-BP3TY | AS5: @LK-AIN-BP3TY | AT5: @LK-KCH-BP3TY | AU5: @LK-KLG-BP3TY | AV5: @LK-KDG-BP3TY | AW5: @LK-KGP-BP3TY | AX5: @LK-KTP-BP3TY | AY5: @LK-KRG-BP3TY | AZ5: @LK-KFR-BP3TY | BA5: @LK-KIN-BP3TY | BB5: @LK-MCS-BP3TY | BC5: @LK-MGD-BP3TY | BD5: @LK-MDS-BP3TY | BE5: @LK-MGP-BP3TY | BF5: @LK-MPN-BP3TY | BG5: @LK-MGW-BP3TY | BH5: @LK-MCM-BP3TY | BI5: @LK-MDM-BP3TY | BJ5: @LK-MTM-BP3TY | BK5: @LK-MGM-BP3TY | BL5: @LK-MIM-BP3TY | BM5: @LK-MGR-BP3TY | BN5: @LK-MSM-BP3TY | BO5: @LK-MPM-BP3TY | BP5: @LK-MTP-BP3TY | BQ5: @LK-MWM-BP3TY | BR5: @LK-EOG-BP3TY | BS5: @LK-EOM-BP3TY | BT5: @LK-EPM-BP3TY | BU5: @LK-EVM-BP3TY | BV5: @LK-ENM-BP3TY | BW5: @LK-ELA-BP3TY | BX5: @LK-ELD-BP3TY | BY5: @LK-ELW-BP3TY | BZ5: @LK-CAG-BP3TY | CA5: @LK-CAT-BP3TY | CB5: @LK-CAB-BP3TY | CC5: @LK-CBR-BP3TY | CD5: @LK-CBG-BP3TY | CE5: @LK-CBW-BP3TY | CF5: @LK-CCS-BP3TY | CG5: @LK-CDM-BP3TY | CH5: @LK-CDR-BP3TY | CI5: @LK-CDG-BP3TY | CJ5: @LK-CGP-BP3TY | CK5: @LK-CHG-BP3TY | CL5: @LK-CIN-BP3TY | CM5: @LK-CIV-BP3TY | CN5: @LK-CLR-BP3TY | CO5: @LK-CLG-BP3TY | CP5: @LK-CMW-BP3TY | CQ5: @LK-CMN-BP3TY | CR5: @LK-CMU-BP3TY | CS5: @LK-COV-BP3TY | CT5: @LK-CPT-BP3TY | CU5: @LK-CPE-BP3TY | CV5: @LK-CPG-BP3TY | CW5: @LK-CPN-BP3TY | CX5: @LK-CSG-BP3TY | CY5: @LK-CSP-BP3TY | CZ5: @LK-CSB-BP3TY | DA5: @LK-CSO-BP3TY | DB5: @LK-CSY-BP3TY | DC5: @LK-CST-BP3TY | DD5: @LK-CTP-BP3TY | DE5: @LK-CTK-BP3TY | DF5: @LK-CWE-BP3TY | DG5: @LK-GAG-BP3TY | DH5: @LK-GAT-BP3TY | DI5: @LK-GAB-BP3TY | DJ5: @LK-GBR-BP3TY | DK5: @LK-GBG-BP3TY | DL5: @LK-GBW-BP3TY | DM5: @LK-GCS-BP3TY | DN5: @LK-GDM-BP3TY | DO5: @LK-GDR-BP3TY | DP5: @LK-GDG-BP3TY | DQ5: @LK-GGP-BP3TY | DR5: @LK-GHG-BP3TY | DS5: @LK-GIN-BP3TY | DT5: @LK-GIV-BP3TY | DU5: @LK-GLR-BP3TY | DV5: @LK-GLG-BP3TY | DW5: @LK-GMW-BP3TY | DX5: @LK-GMN-BP3TY | DY5: @LK-GMU-BP3TY | DZ5: @LK-GOV-BP3TY | EA5: @LK-GPT-BP3TY | EB5: @LK-GPE-BP3TY | EC5: @LK-GPG-BP3TY | ED5: @LK-GPN-BP3TY | EE5: @LK-GSG-BP3TY | EF5: @LK-GSP-BP3TY | EG5: @LK-GSB-BP3TY | EH5: @LK-GSO-BP3TY | EI5: @LK-GSY-BP3TY | EJ5: @LK-GST-BP3TY | EK5: @LK-GTP-BP3TY | EL5: @LK-GTK-BP3TY | EM5: @LK-GWE-BP3TY | EN5: @LK-EAG-BP3TY | EO5: @LK-EAT-BP3TY | EP5: @LK-EAB-BP3TY | EQ5: @LK-EBR-BP3TY | ER5: @LK-EBG-BP3TY | ES5: @LK-EBW-BP3TY | ET5: @LK-ECS-BP3TY | EU5: @LK-EDM-BP3TY | EV5: @LK-EDP-BP3TY | EW5: @LK-EDS-BP3TY | EX5: @LK-EGP-BP3TY | EY5: @LK-EHG-BP3TY | EZ5: @LK-EIN-BP3TY | FA5: @LK-EIV-BP3TY | FB5: @LK-ELN-BP3TY | FC5: @LK-EDG-BP3TY | FD5: @LK-EME-BP3TY | FE5: @LK-EMN-BP3TY | FF5: @LK-EMU-BP3TY | FG5: @LK-EOV-BP3TY | FH5: @LK-EPT-BP3TY | FI5: @LK-EPE-BP3TY | FJ5: @LK-EPG-BP3TY | FK5: @LK-EPN-BP3TY | FL5: @LK-ESG-BP3TY | FM5: @LK-ESP-BP3TY | FN5: @LK-ESK-BP3TY | FO5: @LK-ESO-BP3TY | FP5: @LK-ESY-BP3TY | FQ5: @LK-ESN-BP3TY | FR5: @LK-ETP-BP3TY | FS5: @LK-ETK-BP3TY | FT5: @LK-EWE-BP3TY | FU5: @LK-RAG-BP3TY | FV5: @LK-RAT-BP3TY | FW5: @LK-RAB-BP3TY | FX5: @LK-RBR-BP3TY | FY5: @LK-RBG-BP3TY | FZ5: @LK-RBW-BP3TY | GA5: @LK-RCS-BP3TY | GB5: @LK-RDM-BP3TY | GC5: @LK-RDP-BP3TY | GD5: @LK-RDS-BP3TY | GE5: @LK-RGP-BP3TY | GF5: @LK-RHG-BP3TY | GG5: @LK-RIN-BP3TY | GH5: @LK-RIV-BP3TY | GI5: @LK-RLR-BP3TY | GJ5: @LK-RDG-BP3TY | GK5: @LK-RMW-BP3TY | GL5: @LK-RMN-BP3TY | GM5: @LK-RMU-BP3TY | GN5: @LK-ROV-BP3TY | GO5: @LK-RPT-BP3TY | GP5: @LK-RPE-BP3TY | GQ5: @LK-RPG-BP3TY | GR5: @LK-RPO-BP3TY | GS5: @LK-RSG-BP3TY | GT5: @LK-RSP-BP3TY | GU5: @LK-RSK-BP3TY | GV5: @LK-RST-BP3TY | GW5: @LK-RSY-BP3TY | GX5: @LK-RSN-BP3TY | GY5: @LK-RTP-BP3TY | GZ5: @LK-RTK-BP3TY | HA5: @LK-RWE-BP3TY | HB5: @LK-VAG-BP3TY | HC5: @LK-VAT-BP3TY | HD5: @LK-VAB-BP3TY | HE5: @LK-VBR-BP3TY | HF5: @LK-VBG-BP3TY | HG5: @LK-VBW-BP3TY | HH5: @LK-VCS-BP3TY | HI5: @LK-VDM-BP3TY | HJ5: @LK-VDP-BP3TY | HK5: @LK-VDS-BP3TY | HL5: @LK-VGP-BP3TY | HM5: @LK-VHG-BP3TY | HN5: @LK-VIN-BP3TY | HO5: @LK-VIY-BP3TY | HP5: @LK-VLN-BP3TY | HQ5: @LK-VDG-BP3TY | HR5: @LK-VME-BP3TY | HS5: @LK-VMN-BP3TY | HT5: @LK-VMU-BP3TY | HU5: @LK-VOV-BP3TY | HV5: @LK-VPT-BP3TY | HW5: @LK-VPE-BP3TY | HX5: @LK-VPG-BP3TY | HY5: @LK-VPN-BP3TY | HZ5: @LK-VSG-BP3TY | IA5: @LK-VSP-BP3TY | IB5: @LK-VSB-BP3TY | IC5: @LK-VSO-BP3TY | ID5: @LK-VSY-BP3TY | IE5: @LK-VSN-BP3TY | IF5: @LK-VTP-BP3TY | IG5: @LK-VTK-BP3TY | IH5: @LK-VWE-BP3TY | II5: @LK-TAG-BP3TY | IJ5: @LK-TAT-BP3TY | IK5: @LK-TAB-BP3TY | IL5: @LK-TBR-BP3TY | IM5: @LK-TBG-BP3TY | IN5: @LK-TBW-BP3TY | IO5: @LK-TCS-BP3TY | IP5: @LK-TDM-BP3TY | IQ5: @LK-TDR-BP3TY | IR5: @LK-TDS-BP3TY | IS5: @LK-TGP-BP3TY | IT5: @LK-THG-BP3TY | IU5: @LK-TIN-BP3TY | IV5: @LK-TIV-BP3TY | IW5: @LK-TLR-BP3TY | IX5: @LK-TLG-BP3TY | IY5: @LK-TMW-BP3TY | IZ5: @LK-TMN-BP3TY | JA5: @LK-TMU-BP3TY | JB5: @LK-TOV-BP3TY | JC5: @LK-TPT-BP3TY | JD5: @LK-TPE-BP3TY | JE5: @LK-TPG-BP3TY | JF5: @LK-TPN-BP3TY | JG5: @LK-TSG-BP3TY | JH5: @LK-TSP-BP3TY | JI5: @LK-TSK-BP3TY | JJ5: @LK-TSO-BP3TY | JK5: @LK-TSY-BP3TY | JL5: @LK-TST-BP3TY | JM5: @LK-TTP-BP3TY | JN5: @LK-TTK-BP3TY | JO5: @LK-TWE-BP3TY | JP5: @LK-WAG-BP3TY | JQ5: @LK-WAT-BP3TY | JR5: @LK-WAB-BP3TY | JS5: @LK-WBR-BP3TY | JT5: @LK-WBG-BP3TY | JU5: @LK-WBW-BP3TY | JV5: @LK-WCS-BP3TY | JW5: @LK-WDM-BP3TY | JX5: @LK-WDR-BP3TY | JY5: @LK-WDS-BP3TY | JZ5: @LK-WGP-BP3TY | KA5: @LK-WHE-BP3TY | KB5: @LK-WIN-BP3TY | KC5: @LK-WIV-BP3TY | KD5: @LK-WLR-BP3TY | KE5: @LK-WDG-BP3TY | KF5: @LK-WMW-BP3TY | KG5: @LK-WMN-BP3TY | KH5: @LK-WMU-BP3TY | KI5: @LK-WOV-BP3TY | KJ5: @LK-WPT-BP3TY | KK5: @LK-WPE-BP3TY | KL5: @LK-WPG-BP3TY | KM5: @LK-WPN-BP3TY | KN5: @LK-WSG-BP3TY | KO5: @LK-WSP-BP3TY | KP5: @LK-WSB-BP3TY | KQ5: @LK-WSO-BP3TY | KR5: @LK-WSY-BP3TY | KS5: @LK-WST-BP3TY | KT5: @LK-WTP-BP3TY | KU5: @LK-WTK-BP3TY | KV5: @LK-WWE-BP3TY | KW5: @LK-HAG-BP3TY | KX5: @LK-HAT-BP3TY | KY5: @LK-HAB-BP3TY | KZ5: @LK-HBR-BP3TY | LA5: @LK-HBG-BP3TY | LB5: @LK-HBW-BP3TY | LC5: @LK-HCS-BP3TY | LD5: @LK-HDM-BP3TY | LE5: @LK-HDP-BP3TY | LF5: @LK-HDS-BP3TY | LG5: @LK-HGP-BP3TY | LH5: @LK-HHG-BP3TY | LI5: @LK-HIN-BP3TY | LJ5: @LK-HIV-BP3TY | LK5: @LK-HLR-BP3TY | LL5: @LK-HLG-BP3TY | LM5: @LK-HMW-BP3TY | LN5: @LK-HMN-BP3TY | LO5: @LK-HMU-BP3TY | LP5: @LK-HOV-BP3TY | LQ5: @LK-HPT-BP3TY | LR5: @LK-HPE-BP3TY | LS5: @LK-HPG-BP3TY | LT5: @LK-HPN-BP3TY | LU5: @LK-HSG-BP3TY | LV5: @LK-HSP-BP3TY | LW5: @LK-HSK-BP3TY | LX5: @LK-HSO-BP3TY | LY5: @LK-HSY-BP3TY | LZ5: @LK-HST-BP3TY | MA5: @LK-HTP-BP3TY | MB5: @LK-HTK-BP3TY | MC5: @LK-HWE-BP3TY | MD5: @LK-SAG-BP3TY | ME5: @LK-SAT-BP3TY | MF5: @LK-SAB-BP3TY | MG5: @LK-SBR-BP3TY | MH5: @LK-SBG-BP3TY | MI5: @LK-SBW-BP3TY | MJ5: @LK-SCS-BP3TY | MK5: @LK-SDM-BP3TY | ML5: @LK-SDP-BP3TY | MM5: @LK-SDS-BP3TY | MN5: @LK-SGP-BP3TY | MO5: @LK-SHG-BP3TY | MP5: @LK-SIN-BP3TY | MQ5: @LK-SIV-BP3TY | MR5: @LK-SLR-BP3TY | MS5: @LK-SDG-BP3TY | MT5: @LK-SMW-BP3TY | MU5: @LK-SMN-BP3TY | MV5: @LK-SMU-BP3TY | MW5: @LK-SOV-BP3TY | MX5: @LK-SPT-BP3TY | MY5: @LK-SPE-BP3TY | MZ5: @LK-SPG-BP3TY | NA5: @LK-SPN-BP3TY | NB5: @LK-SSG-BP3TY | NC5: @LK-SSP-BP3TY | ND5: @LK-SSB-BP3TY | NE5: @LK-SSO-BP3TY | NF5: @LK-SSY-BP3TY | NG5: @LK-SST-BP3TY | NH5: @LK-STP-BP3TY | NI5: @LK-STK-BP3TY | NJ5: @LK-SWE-BP3TY | NK5: @LK-SBZ-BP3TY | NL5: @LK-SBF-BP3TY | NM5: @LK-SCB-BP3TY | NN5: @LK-SMZ-BP3TY | NO5: @LK-SMC-BP3TY | NP5: @LK-SPO-BP3TY
A6: BH15 | B6: 150 HL Base Unit | C6: BH15 | D6: @LK-EMD-BH15 | E6: @LK-EMY-BH15 | F6: @LK-EMG-BH15 | G6: @LK-EMM-BH15 | H6: @LK-EMS-BH15 | I6: @LK-OPC-BH15 | J6: @LK-OPD-BH15 | K6: @LK-OPY-BH15 | L6: @LK-OPF-BH15 | M6: @LK-OPG-BH15 | N6: @LK-OPM-BH15 | O6: @LK-OPR-BH15 | P6: @LK-OPS-BH15 | Q6: @LK-OPW-BH15 | R6: @LK-BCS-BH15 | S6: @LK-BDG-BH15 | T6: @LK-BDY-BH15 | U6: @LK-BGP-BH15 | V6: @LK-BSG-BH15 | W6: @LK-BWH-BH15 | X6: @LK-CSW-BH15 | Y6: @LK-DSS-BH15 | Z6: @LK-DGW-BH15 | AA6: @LK-DYW-BH15 | AB6: @LK-GPW-BH15 | AC6: @LK-INW-BH15 | AD6: @LK-ISW-BH15 | AE6: @LK-MSW-BH15 | AF6: @LK-RGW-BH15 | AG6: @LK-NVW-BH15 | AH6: @LK-SPW-BH15 | AI6: @LK-STW-BH15 | AJ6: @LK-WSW-BH15 | AK6: @LK-AOK-BH15 | AL6: @LK-ABL-BH15 | AM6: @LK-ACH-BH15 | AN6: @LK-ADG-BH15 | AO6: @LK-ARG-BH15 | AP6: @LK-AFR-BH15 | AQ6: @LK-ATP-BH15 | AR6: @LK-ALG-BH15 | AS6: @LK-AIN-BH15 | AT6: @LK-KCH-BH15 | AU6: @LK-KLG-BH15 | AV6: @LK-KDG-BH15 | AW6: @LK-KGP-BH15 | AX6: @LK-KTP-BH15 | AY6: @LK-KRG-BH15 | AZ6: @LK-KFR-BH15 | BA6: @LK-KIN-BH15 | BB6: @LK-MCS-BH15 | BC6: @LK-MGD-BH15 | BD6: @LK-MDS-BH15 | BE6: @LK-MGP-BH15 | BF6: @LK-MPN-BH15 | BG6: @LK-MGW-BH15 | BH6: @LK-MCM-BH15 | BI6: @LK-MDM-BH15 | BJ6: @LK-MTM-BH15 | BK6: @LK-MGM-BH15 | BL6: @LK-MIM-BH15 | BM6: @LK-MGR-BH15 | BN6: @LK-MSM-BH15 | BO6: @LK-MPM-BH15 | BP6: @LK-MTP-BH15 | BQ6: @LK-MWM-BH15 | BR6: @LK-EOG-BH15 | BS6: @LK-EOM-BH15 | BT6: @LK-EPM-BH15 | BU6: @LK-EVM-BH15 | BV6: @LK-ENM-BH15 | BW6: @LK-ELA-BH15 | BX6: @LK-ELD-BH15 | BY6: @LK-ELW-BH15 | BZ6: @LK-CAG-BH15 | CA6: @LK-CAT-BH15 | CB6: @LK-CAB-BH15 | CC6: @LK-CBR-BH15 | CD6: @LK-CBG-BH15 | CE6: @LK-CBW-BH15 | CF6: @LK-CCS-BH15 | CG6: @LK-CDM-BH15 | CH6: @LK-CDR-BH15 | CI6: @LK-CDG-BH15 | CJ6: @LK-CGP-BH15 | CK6: @LK-CHG-BH15 | CL6: @LK-CIN-BH15 | CM6: @LK-CIV-BH15 | CN6: @LK-CLR-BH15 | CO6: @LK-CLG-BH15 | CP6: @LK-CMW-BH15 | CQ6: @LK-CMN-BH15 | CR6: @LK-CMU-BH15 | CS6: @LK-COV-BH15 | CT6: @LK-CPT-BH15 | CU6: @LK-CPE-BH15 | CV6: @LK-CPG-BH15 | CW6: @LK-CPN-BH15 | CX6: @LK-CSG-BH15 | CY6: @LK-CSP-BH15 | CZ6: @LK-CSB-BH15 | DA6: @LK-CSO-BH15 | DB6: @LK-CSY-BH15 | DC6: @LK-CST-BH15 | DD6: @LK-CTP-BH15 | DE6: @LK-CTK-BH15 | DF6: @LK-CWE-BH15 | DG6: @LK-GAG-BH15 | DH6: @LK-GAT-BH15 | DI6: @LK-GAB-BH15 | DJ6: @LK-GBR-BH15 | DK6: @LK-GBG-BH15 | DL6: @LK-GBW-BH15 | DM6: @LK-GCS-BH15 | DN6: @LK-GDM-BH15 | DO6: @LK-GDR-BH15 | DP6: @LK-GDG-BH15 | DQ6: @LK-GGP-BH15 | DR6: @LK-GHG-BH15 | DS6: @LK-GIN-BH15 | DT6: @LK-GIV-BH15 | DU6: @LK-GLR-BH15 | DV6: @LK-GLG-BH15 | DW6: @LK-GMW-BH15 | DX6: @LK-GMN-BH15 | DY6: @LK-GMU-BH15 | DZ6: @LK-GOV-BH15 | EA6: @LK-GPT-BH15 | EB6: @LK-GPE-BH15 | EC6: @LK-GPG-BH15 | ED6: @LK-GPN-BH15 | EE6: @LK-GSG-BH15 | EF6: @LK-GSP-BH15 | EG6: @LK-GSB-BH15 | EH6: @LK-GSO-BH15 | EI6: @LK-GSY-BH15 | EJ6: @LK-GST-BH15 | EK6: @LK-GTP-BH15 | EL6: @LK-GTK-BH15 | EM6: @LK-GWE-BH15 | EN6: @LK-EAG-BH15 | EO6: @LK-EAT-BH15 | EP6: @LK-EAB-BH15 | EQ6: @LK-EBR-BH15 | ER6: @LK-EBG-BH15 | ES6: @LK-EBW-BH15 | ET6: @LK-ECS-BH15 | EU6: @LK-EDM-BH15 | EV6: @LK-EDP-BH15 | EW6: @LK-EDS-BH15 | EX6: @LK-EGP-BH15 | EY6: @LK-EHG-BH15 | EZ6: @LK-EIN-BH15 | FA6: @LK-EIV-BH15 | FB6: @LK-ELN-BH15 | FC6: @LK-EDG-BH15 | FD6: @LK-EME-BH15 | FE6: @LK-EMN-BH15 | FF6: @LK-EMU-BH15 | FG6: @LK-EOV-BH15 | FH6: @LK-EPT-BH15 | FI6: @LK-EPE-BH15 | FJ6: @LK-EPG-BH15 | FK6: @LK-EPN-BH15 | FL6: @LK-ESG-BH15 | FM6: @LK-ESP-BH15 | FN6: @LK-ESK-BH15 | FO6: @LK-ESO-BH15 | FP6: @LK-ESY-BH15 | FQ6: @LK-ESN-BH15 | FR6: @LK-ETP-BH15 | FS6: @LK-ETK-BH15 | FT6: @LK-EWE-BH15 | FU6: @LK-RAG-BH15 | FV6: @LK-RAT-BH15 | FW6: @LK-RAB-BH15 | FX6: @LK-RBR-BH15 | FY6: @LK-RBG-BH15 | FZ6: @LK-RBW-BH15 | GA6: @LK-RCS-BH15 | GB6: @LK-RDM-BH15 | GC6: @LK-RDP-BH15 | GD6: @LK-RDS-BH15 | GE6: @LK-RGP-BH15 | GF6: @LK-RHG-BH15 | GG6: @LK-RIN-BH15 | GH6: @LK-RIV-BH15 | GI6: @LK-RLR-BH15 | GJ6: @LK-RDG-BH15 | GK6: @LK-RMW-BH15 | GL6: @LK-RMN-BH15 | GM6: @LK-RMU-BH15 | GN6: @LK-ROV-BH15 | GO6: @LK-RPT-BH15 | GP6: @LK-RPE-BH15 | GQ6: @LK-RPG-BH15 | GR6: @LK-RPO-BH15 | GS6: @LK-RSG-BH15 | GT6: @LK-RSP-BH15 | GU6: @LK-RSK-BH15 | GV6: @LK-RST-BH15 | GW6: @LK-RSY-BH15 | GX6: @LK-RSN-BH15 | GY6: @LK-RTP-BH15 | GZ6: @LK-RTK-BH15 | HA6: @LK-RWE-BH15 | HB6: @LK-VAG-BH15 | HC6: @LK-VAT-BH15 | HD6: @LK-VAB-BH15 | HE6: @LK-VBR-BH15 | HF6: @LK-VBG-BH15 | HG6: @LK-VBW-BH15 | HH6: @LK-VCS-BH15 | HI6: @LK-VDM-BH15 | HJ6: @LK-VDP-BH15 | HK6: @LK-VDS-BH15 | HL6: @LK-VGP-BH15 | HM6: @LK-VHG-BH15 | HN6: @LK-VIN-BH15 | HO6: @LK-VIY-BH15 | HP6: @LK-VLN-BH15 | HQ6: @LK-VDG-BH15 | HR6: @LK-VME-BH15 | HS6: @LK-VMN-BH15 | HT6: @LK-VMU-BH15 | HU6: @LK-VOV-BH15 | HV6: @LK-VPT-BH15 | HW6: @LK-VPE-BH15 | HX6: @LK-VPG-BH15 | HY6: @LK-VPN-BH15 | HZ6: @LK-VSG-BH15 | IA6: @LK-VSP-BH15 | IB6: @LK-VSB-BH15 | IC6: @LK-VSO-BH15 | ID6: @LK-VSY-BH15 | IE6: @LK-VSN-BH15 | IF6: @LK-VTP-BH15 | IG6: @LK-VTK-BH15 | IH6: @LK-VWE-BH15 | II6: @LK-TAG-BH15 | IJ6: @LK-TAT-BH15 | IK6: @LK-TAB-BH15 | IL6: @LK-TBR-BH15 | IM6: @LK-TBG-BH15 | IN6: @LK-TBW-BH15 | IO6: @LK-TCS-BH15 | IP6: @LK-TDM-BH15 | IQ6: @LK-TDR-BH15 | IR6: @LK-TDS-BH15 | IS6: @LK-TGP-BH15 | IT6: @LK-THG-BH15 | IU6: @LK-TIN-BH15 | IV6: @LK-TIV-BH15 | IW6: @LK-TLR-BH15 | IX6: @LK-TLG-BH15 | IY6: @LK-TMW-BH15 | IZ6: @LK-TMN-BH15 | JA6: @LK-TMU-BH15 | JB6: @LK-TOV-BH15 | JC6: @LK-TPT-BH15 | JD6: @LK-TPE-BH15 | JE6: @LK-TPG-BH15 | JF6: @LK-TPN-BH15 | JG6: @LK-TSG-BH15 | JH6: @LK-TSP-BH15 | JI6: @LK-TSK-BH15 | JJ6: @LK-TSO-BH15 | JK6: @LK-TSY-BH15 | JL6: @LK-TST-BH15 | JM6: @LK-TTP-BH15 | JN6: @LK-TTK-BH15 | JO6: @LK-TWE-BH15 | JP6: @LK-WAG-BH15 | JQ6: @LK-WAT-BH15 | JR6: @LK-WAB-BH15 | JS6: @LK-WBR-BH15 | JT6: @LK-WBG-BH15 | JU6: @LK-WBW-BH15 | JV6: @LK-WCS-BH15 | JW6: @LK-WDM-BH15 | JX6: @LK-WDR-BH15 | JY6: @LK-WDS-BH15 | JZ6: @LK-WGP-BH15 | KA6: @LK-WHE-BH15 | KB6: @LK-WIN-BH15 | KC6: @LK-WIV-BH15 | KD6: @LK-WLR-BH15 | KE6: @LK-WDG-BH15 | KF6: @LK-WMW-BH15 | KG6: @LK-WMN-BH15 | KH6: @LK-WMU-BH15 | KI6: @LK-WOV-BH15 | KJ6: @LK-WPT-BH15 | KK6: @LK-WPE-BH15 | KL6: @LK-WPG-BH15 | KM6: @LK-WPN-BH15 | KN6: @LK-WSG-BH15 | KO6: @LK-WSP-BH15 | KP6: @LK-WSB-BH15 | KQ6: @LK-WSO-BH15 | KR6: @LK-WSY-BH15 | KS6: @LK-WST-BH15 | KT6: @LK-WTP-BH15 | KU6: @LK-WTK-BH15 | KV6: @LK-WWE-BH15 | KW6: @LK-HAG-BH15 | KX6: @LK-HAT-BH15 | KY6: @LK-HAB-BH15 | KZ6: @LK-HBR-BH15 | LA6: @LK-HBG-BH15 | LB6: @LK-HBW-BH15 | LC6: @LK-HCS-BH15 | LD6: @LK-HDM-BH15 | LE6: @LK-HDP-BH15 | LF6: @LK-HDS-BH15 | LG6: @LK-HGP-BH15 | LH6: @LK-HHG-BH15 | LI6: @LK-HIN-BH15 | LJ6: @LK-HIV-BH15 | LK6: @LK-HLR-BH15 | LL6: @LK-HLG-BH15 | LM6: @LK-HMW-BH15 | LN6: @LK-HMN-BH15 | LO6: @LK-HMU-BH15 | LP6: @LK-HOV-BH15 | LQ6: @LK-HPT-BH15 | LR6: @LK-HPE-BH15 | LS6: @LK-HPG-BH15 | LT6: @LK-HPN-BH15 | LU6: @LK-HSG-BH15 | LV6: @LK-HSP-BH15 | LW6: @LK-HSK-BH15 | LX6: @LK-HSO-BH15 | LY6: @LK-HSY-BH15 | LZ6: @LK-HST-BH15 | MA6: @LK-HTP-BH15 | MB6: @LK-HTK-BH15 | MC6: @LK-HWE-BH15 | MD6: @LK-SAG-BH15 | ME6: @LK-SAT-BH15 | MF6: @LK-SAB-BH15 | MG6: @LK-SBR-BH15 | MH6: @LK-SBG-BH15 | MI6: @LK-SBW-BH15 | MJ6: @LK-SCS-BH15 | MK6: @LK-SDM-BH15 | ML6: @LK-SDP-BH15 | MM6: @LK-SDS-BH15 | MN6: @LK-SGP-BH15 | MO6: @LK-SHG-BH15 | MP6: @LK-SIN-BH15 | MQ6: @LK-SIV-BH15 | MR6: @LK-SLR-BH15 | MS6: @LK-SDG-BH15 | MT6: @LK-SMW-BH15 | MU6: @LK-SMN-BH15 | MV6: @LK-SMU-BH15 | MW6: @LK-SOV-BH15 | MX6: @LK-SPT-BH15 | MY6: @LK-SPE-BH15 | MZ6: @LK-SPG-BH15 | NA6: @LK-SPN-BH15 | NB6: @LK-SSG-BH15 | NC6: @LK-SSP-BH15 | ND6: @LK-SSB-BH15 | NE6: @LK-SSO-BH15 | NF6: @LK-SSY-BH15 | NG6: @LK-SST-BH15 | NH6: @LK-STP-BH15 | NI6: @LK-STK-BH15 | NJ6: @LK-SWE-BH15 | NK6: @LK-SBZ-BH15 | NL6: @LK-SBF-BH15 | NM6: @LK-SCB-BH15 | NN6: @LK-SMZ-BH15 | NO6: @LK-SMC-BH15 | NP6: @LK-SPO-BH15
A7: BH30 | B7: 300 HL Base Unit | C7: BH30 | D7: @LK-EMD-BH30 | E7: @LK-EMY-BH30 | F7: @LK-EMG-BH30 | G7: @LK-EMM-BH30 | H7: @LK-EMS-BH30 | I7: @LK-OPC-BH30 | J7: @LK-OPD-BH30 | K7: @LK-OPY-BH30 | L7: @LK-OPF-BH30 | M7: @LK-OPG-BH30 | N7: @LK-OPM-BH30 | O7: @LK-OPR-BH30 | P7: @LK-OPS-BH30 | Q7: @LK-OPW-BH30 | R7: @LK-BCS-BH30 | S7: @LK-BDG-BH30 | T7: @LK-BDY-BH30 | U7: @LK-BGP-BH30 | V7: @LK-BSG-BH30 | W7: @LK-BWH-BH30 | X7: @LK-CSW-BH30 | Y7: @LK-DSS-BH30 | Z7: @LK-DGW-BH30 | AA7: @LK-DYW-BH30 | AB7: @LK-GPW-BH30 | AC7: @LK-INW-BH30 | AD7: @LK-ISW-BH30 | AE7: @LK-MSW-BH30 | AF7: @LK-RGW-BH30 | AG7: @LK-NVW-BH30 | AH7: @LK-SPW-BH30 | AI7: @LK-STW-BH30 | AJ7: @LK-WSW-BH30 | AK7: @LK-AOK-BH30 | AL7: @LK-ABL-BH30 | AM7: @LK-ACH-BH30 | AN7: @LK-ADG-BH30 | AO7: @LK-ARG-BH30 | AP7: @LK-AFR-BH30 | AQ7: @LK-ATP-BH30 | AR7: @LK-ALG-BH30 | AS7: @LK-AIN-BH30 | AT7: @LK-KCH-BH30 | AU7: @LK-KLG-BH30 | AV7: @LK-KDG-BH30 | AW7: @LK-KGP-BH30 | AX7: @LK-KTP-BH30 | AY7: @LK-KRG-BH30 | AZ7: @LK-KFR-BH30 | BA7: @LK-KIN-BH30 | BB7: @LK-MCS-BH30 | BC7: @LK-MGD-BH30 | BD7: @LK-MDS-BH30 | BE7: @LK-MGP-BH30 | BF7: @LK-MPN-BH30 | BG7: @LK-MGW-BH30 | BH7: @LK-MCM-BH30 | BI7: @LK-MDM-BH30 | BJ7: @LK-MTM-BH30 | BK7: @LK-MGM-BH30 | BL7: @LK-MIM-BH30 | BM7: @LK-MGR-BH30 | BN7: @LK-MSM-BH30 | BO7: @LK-MPM-BH30 | BP7: @LK-MTP-BH30 | BQ7: @LK-MWM-BH30 | BR7: @LK-EOG-BH30 | BS7: @LK-EOM-BH30 | BT7: @LK-EPM-BH30 | BU7: @LK-EVM-BH30 | BV7: @LK-ENM-BH30 | BW7: @LK-ELA-BH30 | BX7: @LK-ELD-BH30 | BY7: @LK-ELW-BH30 | BZ7: @LK-CAG-BH30 | CA7: @LK-CAT-BH30 | CB7: @LK-CAB-BH30 | CC7: @LK-CBR-BH30 | CD7: @LK-CBG-BH30 | CE7: @LK-CBW-BH30 | CF7: @LK-CCS-BH30 | CG7: @LK-CDM-BH30 | CH7: @LK-CDR-BH30 | CI7: @LK-CDG-BH30 | CJ7: @LK-CGP-BH30 | CK7: @LK-CHG-BH30 | CL7: @LK-CIN-BH30 | CM7: @LK-CIV-BH30 | CN7: @LK-CLR-BH30 | CO7: @LK-CLG-BH30 | CP7: @LK-CMW-BH30 | CQ7: @LK-CMN-BH30 | CR7: @LK-CMU-BH30 | CS7: @LK-COV-BH30 | CT7: @LK-CPT-BH30 | CU7: @LK-CPE-BH30 | CV7: @LK-CPG-BH30 | CW7: @LK-CPN-BH30 | CX7: @LK-CSG-BH30 | CY7: @LK-CSP-BH30 | CZ7: @LK-CSB-BH30 | DA7: @LK-CSO-BH30 | DB7: @LK-CSY-BH30 | DC7: @LK-CST-BH30 | DD7: @LK-CTP-BH30 | DE7: @LK-CTK-BH30 | DF7: @LK-CWE-BH30 | DG7: @LK-GAG-BH30 | DH7: @LK-GAT-BH30 | DI7: @LK-GAB-BH30 | DJ7: @LK-GBR-BH30 | DK7: @LK-GBG-BH30 | DL7: @LK-GBW-BH30 | DM7: @LK-GCS-BH30 | DN7: @LK-GDM-BH30 | DO7: @LK-GDR-BH30 | DP7: @LK-GDG-BH30 | DQ7: @LK-GGP-BH30 | DR7: @LK-GHG-BH30 | DS7: @LK-GIN-BH30 | DT7: @LK-GIV-BH30 | DU7: @LK-GLR-BH30 | DV7: @LK-GLG-BH30 | DW7: @LK-GMW-BH30 | DX7: @LK-GMN-BH30 | DY7: @LK-GMU-BH30 | DZ7: @LK-GOV-BH30 | EA7: @LK-GPT-BH30 | EB7: @LK-GPE-BH30 | EC7: @LK-GPG-BH30 | ED7: @LK-GPN-BH30 | EE7: @LK-GSG-BH30 | EF7: @LK-GSP-BH30 | EG7: @LK-GSB-BH30 | EH7: @LK-GSO-BH30 | EI7: @LK-GSY-BH30 | EJ7: @LK-GST-BH30 | EK7: @LK-GTP-BH30 | EL7: @LK-GTK-BH30 | EM7: @LK-GWE-BH30 | EN7: @LK-EAG-BH30 | EO7: @LK-EAT-BH30 | EP7: @LK-EAB-BH30 | EQ7: @LK-EBR-BH30 | ER7: @LK-EBG-BH30 | ES7: @LK-EBW-BH30 | ET7: @LK-ECS-BH30 | EU7: @LK-EDM-BH30 | EV7: @LK-EDP-BH30 | EW7: @LK-EDS-BH30 | EX7: @LK-EGP-BH30 | EY7: @LK-EHG-BH30 | EZ7: @LK-EIN-BH30 | FA7: @LK-EIV-BH30 | FB7: @LK-ELN-BH30 | FC7: @LK-EDG-BH30 | FD7: @LK-EME-BH30 | FE7: @LK-EMN-BH30 | FF7: @LK-EMU-BH30 | FG7: @LK-EOV-BH30 | FH7: @LK-EPT-BH30 | FI7: @LK-EPE-BH30 | FJ7: @LK-EPG-BH30 | FK7: @LK-EPN-BH30 | FL7: @LK-ESG-BH30 | FM7: @LK-ESP-BH30 | FN7: @LK-ESK-BH30 | FO7: @LK-ESO-BH30 | FP7: @LK-ESY-BH30 | FQ7: @LK-ESN-BH30 | FR7: @LK-ETP-BH30 | FS7: @LK-ETK-BH30 | FT7: @LK-EWE-BH30 | FU7: @LK-RAG-BH30 | FV7: @LK-RAT-BH30 | FW7: @LK-RAB-BH30 | FX7: @LK-RBR-BH30 | FY7: @LK-RBG-BH30 | FZ7: @LK-RBW-BH30 | GA7: @LK-RCS-BH30 | GB7: @LK-RDM-BH30 | GC7: @LK-RDP-BH30 | GD7: @LK-RDS-BH30 | GE7: @LK-RGP-BH30 | GF7: @LK-RHG-BH30 | GG7: @LK-RIN-BH30 | GH7: @LK-RIV-BH30 | GI7: @LK-RLR-BH30 | GJ7: @LK-RDG-BH30 | GK7: @LK-RMW-BH30 | GL7: @LK-RMN-BH30 | GM7: @LK-RMU-BH30 | GN7: @LK-ROV-BH30 | GO7: @LK-RPT-BH30 | GP7: @LK-RPE-BH30 | GQ7: @LK-RPG-BH30 | GR7: @LK-RPO-BH30 | GS7: @LK-RSG-BH30 | GT7: @LK-RSP-BH30 | GU7: @LK-RSK-BH30 | GV7: @LK-RST-BH30 | GW7: @LK-RSY-BH30 | GX7: @LK-RSN-BH30 | GY7: @LK-RTP-BH30 | GZ7: @LK-RTK-BH30 | HA7: @LK-RWE-BH30 | HB7: @LK-VAG-BH30 | HC7: @LK-VAT-BH30 | HD7: @LK-VAB-BH30 | HE7: @LK-VBR-BH30 | HF7: @LK-VBG-BH30 | HG7: @LK-VBW-BH30 | HH7: @LK-VCS-BH30 | HI7: @LK-VDM-BH30 | HJ7: @LK-VDP-BH30 | HK7: @LK-VDS-BH30 | HL7: @LK-VGP-BH30 | HM7: @LK-VHG-BH30 | HN7: @LK-VIN-BH30 | HO7: @LK-VIY-BH30 | HP7: @LK-VLN-BH30 | HQ7: @LK-VDG-BH30 | HR7: @LK-VME-BH30 | HS7: @LK-VMN-BH30 | HT7: @LK-VMU-BH30 | HU7: @LK-VOV-BH30 | HV7: @LK-VPT-BH30 | HW7: @LK-VPE-BH30 | HX7: @LK-VPG-BH30 | HY7: @LK-VPN-BH30 | HZ7: @LK-VSG-BH30 | IA7: @LK-VSP-BH30 | IB7: @LK-VSB-BH30 | IC7: @LK-VSO-BH30 | ID7: @LK-VSY-BH30 | IE7: @LK-VSN-BH30 | IF7: @LK-VTP-BH30 | IG7: @LK-VTK-BH30 | IH7: @LK-VWE-BH30 | II7: @LK-TAG-BH30 | IJ7: @LK-TAT-BH30 | IK7: @LK-TAB-BH30 | IL7: @LK-TBR-BH30 | IM7: @LK-TBG-BH30 | IN7: @LK-TBW-BH30 | IO7: @LK-TCS-BH30 | IP7: @LK-TDM-BH30 | IQ7: @LK-TDR-BH30 | IR7: @LK-TDS-BH30 | IS7: @LK-TGP-BH30 | IT7: @LK-THG-BH30 | IU7: @LK-TIN-BH30 | IV7: @LK-TIV-BH30 | IW7: @LK-TLR-BH30 | IX7: @LK-TLG-BH30 | IY7: @LK-TMW-BH30 | IZ7: @LK-TMN-BH30 | JA7: @LK-TMU-BH30 | JB7: @LK-TOV-BH30 | JC7: @LK-TPT-BH30 | JD7: @LK-TPE-BH30 | JE7: @LK-TPG-BH30 | JF7: @LK-TPN-BH30 | JG7: @LK-TSG-BH30 | JH7: @LK-TSP-BH30 | JI7: @LK-TSK-BH30 | JJ7: @LK-TSO-BH30 | JK7: @LK-TSY-BH30 | JL7: @LK-TST-BH30 | JM7: @LK-TTP-BH30 | JN7: @LK-TTK-BH30 | JO7: @LK-TWE-BH30 | JP7: @LK-WAG-BH30 | JQ7: @LK-WAT-BH30 | JR7: @LK-WAB-BH30 | JS7: @LK-WBR-BH30 | JT7: @LK-WBG-BH30 | JU7: @LK-WBW-BH30 | JV7: @LK-WCS-BH30 | JW7: @LK-WDM-BH30 | JX7: @LK-WDR-BH30 | JY7: @LK-WDS-BH30 | JZ7: @LK-WGP-BH30 | KA7: @LK-WHE-BH30 | KB7: @LK-WIN-BH30 | KC7: @LK-WIV-BH30 | KD7: @LK-WLR-BH30 | KE7: @LK-WDG-BH30 | KF7: @LK-WMW-BH30 | KG7: @LK-WMN-BH30 | KH7: @LK-WMU-BH30 | KI7: @LK-WOV-BH30 | KJ7: @LK-WPT-BH30 | KK7: @LK-WPE-BH30 | KL7: @LK-WPG-BH30 | KM7: @LK-WPN-BH30 | KN7: @LK-WSG-BH30 | KO7: @LK-WSP-BH30 | KP7: @LK-WSB-BH30 | KQ7: @LK-WSO-BH30 | KR7: @LK-WSY-BH30 | KS7: @LK-WST-BH30 | KT7: @LK-WTP-BH30 | KU7: @LK-WTK-BH30 | KV7: @LK-WWE-BH30 | KW7: @LK-HAG-BH30 | KX7: @LK-HAT-BH30 | KY7: @LK-HAB-BH30 | KZ7: @LK-HBR-BH30 | LA7: @LK-HBG-BH30 | LB7: @LK-HBW-BH30 | LC7: @LK-HCS-BH30 | LD7: @LK-HDM-BH30 | LE7: @LK-HDP-BH30 | LF7: @LK-HDS-BH30 | LG7: @LK-HGP-BH30 | LH7: @LK-HHG-BH30 | LI7: @LK-HIN-BH30 | LJ7: @LK-HIV-BH30 | LK7: @LK-HLR-BH30 | LL7: @LK-HLG-BH30 | LM7: @LK-HMW-BH30 | LN7: @LK-HMN-BH30 | LO7: @LK-HMU-BH30 | LP7: @LK-HOV-BH30 | LQ7: @LK-HPT-BH30 | LR7: @LK-HPE-BH30 | LS7: @LK-HPG-BH30 | LT7: @LK-HPN-BH30 | LU7: @LK-HSG-BH30 | LV7: @LK-HSP-BH30 | LW7: @LK-HSK-BH30 | LX7: @LK-HSO-BH30 | LY7: @LK-HSY-BH30 | LZ7: @LK-HST-BH30 | MA7: @LK-HTP-BH30 | MB7: @LK-HTK-BH30 | MC7: @LK-HWE-BH30 | MD7: @LK-SAG-BH30 | ME7: @LK-SAT-BH30 | MF7: @LK-SAB-BH30 | MG7: @LK-SBR-BH30 | MH7: @LK-SBG-BH30 | MI7: @LK-SBW-BH30 | MJ7: @LK-SCS-BH30 | MK7: @LK-SDM-BH30 | ML7: @LK-SDP-BH30 | MM7: @LK-SDS-BH30 | MN7: @LK-SGP-BH30 | MO7: @LK-SHG-BH30 | MP7: @LK-SIN-BH30 | MQ7: @LK-SIV-BH30 | MR7: @LK-SLR-BH30 | MS7: @LK-SDG-BH30 | MT7: @LK-SMW-BH30 | MU7: @LK-SMN-BH30 | MV7: @LK-SMU-BH30 | MW7: @LK-SOV-BH30 | MX7: @LK-SPT-BH30 | MY7: @LK-SPE-BH30 | MZ7: @LK-SPG-BH30 | NA7: @LK-SPN-BH30 | NB7: @LK-SSG-BH30 | NC7: @LK-SSP-BH30 | ND7: @LK-SSB-BH30 | NE7: @LK-SSO-BH30 | NF7: @LK-SSY-BH30 | NG7: @LK-SST-BH30 | NH7: @LK-STP-BH30 | NI7: @LK-STK-BH30 | NJ7: @LK-SWE-BH30 | NK7: @LK-SBZ-BH30 | NL7: @LK-SBF-BH30 | NM7: @LK-SCB-BH30 | NN7: @LK-SMZ-BH30 | NO7: @LK-SMC-BH30 | NP7: @LK-SPO-BH30
A8: BH3B | B8: 300 HL Base Unit & Bin | C8: BH3B | D8: @LK-EMD-BH3B | E8: @LK-EMY-BH3B | F8: @LK-EMG-BH3B | G8: @LK-EMM-BH3B | H8: @LK-EMS-BH3B | I8: @LK-OPC-BH3B | J8: @LK-OPD-BH3B | K8: @LK-OPY-BH3B | L8: @LK-OPF-BH3B | M8: @LK-OPG-BH3B | N8: @LK-OPM-BH3B | O8: @LK-OPR-BH3B | P8: @LK-OPS-BH3B | Q8: @LK-OPW-BH3B | R8: @LK-BCS-BH3B | S8: @LK-BDG-BH3B | T8: @LK-BDY-BH3B | U8: @LK-BGP-BH3B | V8: @LK-BSG-BH3B | W8: @LK-BWH-BH3B | X8: @LK-CSW-BH3B | Y8: @LK-DSS-BH3B | Z8: @LK-DGW-BH3B | AA8: @LK-DYW-BH3B | AB8: @LK-GPW-BH3B | AC8: @LK-INW-BH3B | AD8: @LK-ISW-BH3B | AE8: @LK-MSW-BH3B | AF8: @LK-RGW-BH3B | AG8: @LK-NVW-BH3B | AH8: @LK-SPW-BH3B | AI8: @LK-STW-BH3B | AJ8: @LK-WSW-BH3B | AK8: @LK-AOK-BH3B | AL8: @LK-ABL-BH3B | AM8: @LK-ACH-BH3B | AN8: @LK-ADG-BH3B | AO8: @LK-ARG-BH3B | AP8: @LK-AFR-BH3B | AQ8: @LK-ATP-BH3B | AR8: @LK-ALG-BH3B | AS8: @LK-AIN-BH3B | AT8: @LK-KCH-BH3B | AU8: @LK-KLG-BH3B | AV8: @LK-KDG-BH3B | AW8: @LK-KGP-BH3B | AX8: @LK-KTP-BH3B | AY8: @LK-KRG-BH3B | AZ8: @LK-KFR-BH3B | BA8: @LK-KIN-BH3B | BB8: @LK-MCS-BH3B | BC8: @LK-MGD-BH3B | BD8: @LK-MDS-BH3B | BE8: @LK-MGP-BH3B | BF8: @LK-MPN-BH3B | BG8: @LK-MGW-BH3B | BH8: @LK-MCM-BH3B | BI8: @LK-MDM-BH3B | BJ8: @LK-MTM-BH3B | BK8: @LK-MGM-BH3B | BL8: @LK-MIM-BH3B | BM8: @LK-MGR-BH3B | BN8: @LK-MSM-BH3B | BO8: @LK-MPM-BH3B | BP8: @LK-MTP-BH3B | BQ8: @LK-MWM-BH3B | BR8: @LK-EOG-BH3B | BS8: @LK-EOM-BH3B | BT8: @LK-EPM-BH3B | BU8: @LK-EVM-BH3B | BV8: @LK-ENM-BH3B | BW8: @LK-ELA-BH3B | BX8: @LK-ELD-BH3B | BY8: @LK-ELW-BH3B | BZ8: @LK-CAG-BH3B | CA8: @LK-CAT-BH3B | CB8: @LK-CAB-BH3B | CC8: @LK-CBR-BH3B | CD8: @LK-CBG-BH3B | CE8: @LK-CBW-BH3B | CF8: @LK-CCS-BH3B | CG8: @LK-CDM-BH3B | CH8: @LK-CDR-BH3B | CI8: @LK-CDG-BH3B | CJ8: @LK-CGP-BH3B | CK8: @LK-CHG-BH3B | CL8: @LK-CIN-BH3B | CM8: @LK-CIV-BH3B | CN8: @LK-CLR-BH3B | CO8: @LK-CLG-BH3B | CP8: @LK-CMW-BH3B | CQ8: @LK-CMN-BH3B | CR8: @LK-CMU-BH3B | CS8: @LK-COV-BH3B | CT8: @LK-CPT-BH3B | CU8: @LK-CPE-BH3B | CV8: @LK-CPG-BH3B | CW8: @LK-CPN-BH3B | CX8: @LK-CSG-BH3B | CY8: @LK-CSP-BH3B | CZ8: @LK-CSB-BH3B | DA8: @LK-CSO-BH3B | DB8: @LK-CSY-BH3B | DC8: @LK-CST-BH3B | DD8: @LK-CTP-BH3B | DE8: @LK-CTK-BH3B | DF8: @LK-CWE-BH3B | DG8: @LK-GAG-BH3B | DH8: @LK-GAT-BH3B | DI8: @LK-GAB-BH3B | DJ8: @LK-GBR-BH3B | DK8: @LK-GBG-BH3B | DL8: @LK-GBW-BH3B | DM8: @LK-GCS-BH3B | DN8: @LK-GDM-BH3B | DO8: @LK-GDR-BH3B | DP8: @LK-GDG-BH3B | DQ8: @LK-GGP-BH3B | DR8: @LK-GHG-BH3B | DS8: @LK-GIN-BH3B | DT8: @LK-GIV-BH3B | DU8: @LK-GLR-BH3B | DV8: @LK-GLG-BH3B | DW8: @LK-GMW-BH3B | DX8: @LK-GMN-BH3B | DY8: @LK-GMU-BH3B | DZ8: @LK-GOV-BH3B | EA8: @LK-GPT-BH3B | EB8: @LK-GPE-BH3B | EC8: @LK-GPG-BH3B | ED8: @LK-GPN-BH3B | EE8: @LK-GSG-BH3B | EF8: @LK-GSP-BH3B | EG8: @LK-GSB-BH3B | EH8: @LK-GSO-BH3B | EI8: @LK-GSY-BH3B | EJ8: @LK-GST-BH3B | EK8: @LK-GTP-BH3B | EL8: @LK-GTK-BH3B | EM8: @LK-GWE-BH3B | EN8: @LK-EAG-BH3B | EO8: @LK-EAT-BH3B | EP8: @LK-EAB-BH3B | EQ8: @LK-EBR-BH3B | ER8: @LK-EBG-BH3B | ES8: @LK-EBW-BH3B | ET8: @LK-ECS-BH3B | EU8: @LK-EDM-BH3B | EV8: @LK-EDP-BH3B | EW8: @LK-EDS-BH3B | EX8: @LK-EGP-BH3B | EY8: @LK-EHG-BH3B | EZ8: @LK-EIN-BH3B | FA8: @LK-EIV-BH3B | FB8: @LK-ELN-BH3B | FC8: @LK-EDG-BH3B | FD8: @LK-EME-BH3B | FE8: @LK-EMN-BH3B | FF8: @LK-EMU-BH3B | FG8: @LK-EOV-BH3B | FH8: @LK-EPT-BH3B | FI8: @LK-EPE-BH3B | FJ8: @LK-EPG-BH3B | FK8: @LK-EPN-BH3B | FL8: @LK-ESG-BH3B | FM8: @LK-ESP-BH3B | FN8: @LK-ESK-BH3B | FO8: @LK-ESO-BH3B | FP8: @LK-ESY-BH3B | FQ8: @LK-ESN-BH3B | FR8: @LK-ETP-BH3B | FS8: @LK-ETK-BH3B | FT8: @LK-EWE-BH3B | FU8: @LK-RAG-BH3B | FV8: @LK-RAT-BH3B | FW8: @LK-RAB-BH3B | FX8: @LK-RBR-BH3B | FY8: @LK-RBG-BH3B | FZ8: @LK-RBW-BH3B | GA8: @LK-RCS-BH3B | GB8: @LK-RDM-BH3B | GC8: @LK-RDP-BH3B | GD8: @LK-RDS-BH3B | GE8: @LK-RGP-BH3B | GF8: @LK-RHG-BH3B | GG8: @LK-RIN-BH3B | GH8: @LK-RIV-BH3B | GI8: @LK-RLR-BH3B | GJ8: @LK-RDG-BH3B | GK8: @LK-RMW-BH3B | GL8: @LK-RMN-BH3B | GM8: @LK-RMU-BH3B | GN8: @LK-ROV-BH3B | GO8: @LK-RPT-BH3B | GP8: @LK-RPE-BH3B | GQ8: @LK-RPG-BH3B | GR8: @LK-RPO-BH3B | GS8: @LK-RSG-BH3B | GT8: @LK-RSP-BH3B | GU8: @LK-RSK-BH3B | GV8: @LK-RST-BH3B | GW8: @LK-RSY-BH3B | GX8: @LK-RSN-BH3B | GY8: @LK-RTP-BH3B | GZ8: @LK-RTK-BH3B | HA8: @LK-RWE-BH3B | HB8: @LK-VAG-BH3B | HC8: @LK-VAT-BH3B | HD8: @LK-VAB-BH3B | HE8: @LK-VBR-BH3B | HF8: @LK-VBG-BH3B | HG8: @LK-VBW-BH3B | HH8: @LK-VCS-BH3B | HI8: @LK-VDM-BH3B | HJ8: @LK-VDP-BH3B | HK8: @LK-VDS-BH3B | HL8: @LK-VGP-BH3B | HM8: @LK-VHG-BH3B | HN8: @LK-VIN-BH3B | HO8: @LK-VIY-BH3B | HP8: @LK-VLN-BH3B | HQ8: @LK-VDG-BH3B | HR8: @LK-VME-BH3B | HS8: @LK-VMN-BH3B | HT8: @LK-VMU-BH3B | HU8: @LK-VOV-BH3B | HV8: @LK-VPT-BH3B | HW8: @LK-VPE-BH3B | HX8: @LK-VPG-BH3B | HY8: @LK-VPN-BH3B | HZ8: @LK-VSG-BH3B | IA8: @LK-VSP-BH3B | IB8: @LK-VSB-BH3B | IC8: @LK-VSO-BH3B | ID8: @LK-VSY-BH3B | IE8: @LK-VSN-BH3B | IF8: @LK-VTP-BH3B | IG8: @LK-VTK-BH3B | IH8: @LK-VWE-BH3B | II8: @LK-TAG-BH3B | IJ8: @LK-TAT-BH3B | IK8: @LK-TAB-BH3B | IL8: @LK-TBR-BH3B | IM8: @LK-TBG-BH3B | IN8: @LK-TBW-BH3B | IO8: @LK-TCS-BH3B | IP8: @LK-TDM-BH3B | IQ8: @LK-TDR-BH3B | IR8: @LK-TDS-BH3B | IS8: @LK-TGP-BH3B | IT8: @LK-THG-BH3B | IU8: @LK-TIN-BH3B | IV8: @LK-TIV-BH3B | IW8: @LK-TLR-BH3B | IX8: @LK-TLG-BH3B | IY8: @LK-TMW-BH3B | IZ8: @LK-TMN-BH3B | JA8: @LK-TMU-BH3B | JB8: @LK-TOV-BH3B | JC8: @LK-TPT-BH3B | JD8: @LK-TPE-BH3B | JE8: @LK-TPG-BH3B | JF8: @LK-TPN-BH3B | JG8: @LK-TSG-BH3B | JH8: @LK-TSP-BH3B | JI8: @LK-TSK-BH3B | JJ8: @LK-TSO-BH3B | JK8: @LK-TSY-BH3B | JL8: @LK-TST-BH3B | JM8: @LK-TTP-BH3B | JN8: @LK-TTK-BH3B | JO8: @LK-TWE-BH3B | JP8: @LK-WAG-BH3B | JQ8: @LK-WAT-BH3B | JR8: @LK-WAB-BH3B | JS8: @LK-WBR-BH3B | JT8: @LK-WBG-BH3B | JU8: @LK-WBW-BH3B | JV8: @LK-WCS-BH3B | JW8: @LK-WDM-BH3B | JX8: @LK-WDR-BH3B | JY8: @LK-WDS-BH3B | JZ8: @LK-WGP-BH3B | KA8: @LK-WHE-BH3B | KB8: @LK-WIN-BH3B | KC8: @LK-WIV-BH3B | KD8: @LK-WLR-BH3B | KE8: @LK-WDG-BH3B | KF8: @LK-WMW-BH3B | KG8: @LK-WMN-BH3B | KH8: @LK-WMU-BH3B | KI8: @LK-WOV-BH3B | KJ8: @LK-WPT-BH3B | KK8: @LK-WPE-BH3B | KL8: @LK-WPG-BH3B | KM8: @LK-WPN-BH3B | KN8: @LK-WSG-BH3B | KO8: @LK-WSP-BH3B | KP8: @LK-WSB-BH3B | KQ8: @LK-WSO-BH3B | KR8: @LK-WSY-BH3B | KS8: @LK-WST-BH3B | KT8: @LK-WTP-BH3B | KU8: @LK-WTK-BH3B | KV8: @LK-WWE-BH3B | KW8: @LK-HAG-BH3B | KX8: @LK-HAT-BH3B | KY8: @LK-HAB-BH3B | KZ8: @LK-HBR-BH3B | LA8: @LK-HBG-BH3B | LB8: @LK-HBW-BH3B | LC8: @LK-HCS-BH3B | LD8: @LK-HDM-BH3B | LE8: @LK-HDP-BH3B | LF8: @LK-HDS-BH3B | LG8: @LK-HGP-BH3B | LH8: @LK-HHG-BH3B | LI8: @LK-HIN-BH3B | LJ8: @LK-HIV-BH3B | LK8: @LK-HLR-BH3B | LL8: @LK-HLG-BH3B | LM8: @LK-HMW-BH3B | LN8: @LK-HMN-BH3B | LO8: @LK-HMU-BH3B | LP8: @LK-HOV-BH3B | LQ8: @LK-HPT-BH3B | LR8: @LK-HPE-BH3B | LS8: @LK-HPG-BH3B | LT8: @LK-HPN-BH3B | LU8: @LK-HSG-BH3B | LV8: @LK-HSP-BH3B | LW8: @LK-HSK-BH3B | LX8: @LK-HSO-BH3B | LY8: @LK-HSY-BH3B | LZ8: @LK-HST-BH3B | MA8: @LK-HTP-BH3B | MB8: @LK-HTK-BH3B | MC8: @LK-HWE-BH3B | MD8: @LK-SAG-BH3B | ME8: @LK-SAT-BH3B | MF8: @LK-SAB-BH3B | MG8: @LK-SBR-BH3B | MH8: @LK-SBG-BH3B | MI8: @LK-SBW-BH3B | MJ8: @LK-SCS-BH3B | MK8: @LK-SDM-BH3B | ML8: @LK-SDP-BH3B | MM8: @LK-SDS-BH3B | MN8: @LK-SGP-BH3B | MO8: @LK-SHG-BH3B | MP8: @LK-SIN-BH3B | MQ8: @LK-SIV-BH3B | MR8: @LK-SLR-BH3B | MS8: @LK-SDG-BH3B | MT8: @LK-SMW-BH3B | MU8: @LK-SMN-BH3B | MV8: @LK-SMU-BH3B | MW8: @LK-SOV-BH3B | MX8: @LK-SPT-BH3B | MY8: @LK-SPE-BH3B | MZ8: @LK-SPG-BH3B | NA8: @LK-SPN-BH3B | NB8: @LK-SSG-BH3B | NC8: @LK-SSP-BH3B | ND8: @LK-SSB-BH3B | NE8: @LK-SSO-BH3B | NF8: @LK-SSY-BH3B | NG8: @LK-SST-BH3B | NH8: @LK-STP-BH3B | NI8: @LK-STK-BH3B | NJ8: @LK-SWE-BH3B | NK8: @LK-SBZ-BH3B | NL8: @LK-SBF-BH3B | NM8: @LK-SCB-BH3B | NN8: @LK-SMZ-BH3B | NO8: @LK-SMC-BH3B | NP8: @LK-SPO-BH3B
A9: BH35 | B9: 350 HL Base Unit | C9: BH35 | D9: @LK-EMD-BH35 | E9: @LK-EMY-BH35 | F9: @LK-EMG-BH35 | G9: @LK-EMM-BH35 | H9: @LK-EMS-BH35 | I9: @LK-OPC-BH35 | J9: @LK-OPD-BH35 | K9: @LK-OPY-BH35 | L9: @LK-OPF-BH35 | M9: @LK-OPG-BH35 | N9: @LK-OPM-BH35 | O9: @LK-OPR-BH35 | P9: @LK-OPS-BH35 | Q9: @LK-OPW-BH35 | R9: @LK-BCS-BH35 | S9: @LK-BDG-BH35 | T9: @LK-BDY-BH35 | U9: @LK-BGP-BH35 | V9: @LK-BSG-BH35 | W9: @LK-BWH-BH35 | X9: @LK-CSW-BH35 | Y9: @LK-DSS-BH35 | Z9: @LK-DGW-BH35 | AA9: @LK-DYW-BH35 | AB9: @LK-GPW-BH35 | AC9: @LK-INW-BH35 | AD9: @LK-ISW-BH35 | AE9: @LK-MSW-BH35 | AF9: @LK-RGW-BH35 | AG9: @LK-NVW-BH35 | AH9: @LK-SPW-BH35 | AI9: @LK-STW-BH35 | AJ9: @LK-WSW-BH35 | AK9: @LK-AOK-BH35 | AL9: @LK-ABL-BH35 | AM9: @LK-ACH-BH35 | AN9: @LK-ADG-BH35 | AO9: @LK-ARG-BH35 | AP9: @LK-AFR-BH35 | AQ9: @LK-ATP-BH35 | AR9: @LK-ALG-BH35 | AS9: @LK-AIN-BH35 | AT9: @LK-KCH-BH35 | AU9: @LK-KLG-BH35 | AV9: @LK-KDG-BH35 | AW9: @LK-KGP-BH35 | AX9: @LK-KTP-BH35 | AY9: @LK-KRG-BH35 | AZ9: @LK-KFR-BH35 | BA9: @LK-KIN-BH35 | BB9: @LK-MCS-BH35 | BC9: @LK-MGD-BH35 | BD9: @LK-MDS-BH35 | BE9: @LK-MGP-BH35 | BF9: @LK-MPN-BH35 | BG9: @LK-MGW-BH35 | BH9: @LK-MCM-BH35 | BI9: @LK-MDM-BH35 | BJ9: @LK-MTM-BH35 | BK9: @LK-MGM-BH35 | BL9: @LK-MIM-BH35 | BM9: @LK-MGR-BH35 | BN9: @LK-MSM-BH35 | BO9: @LK-MPM-BH35 | BP9: @LK-MTP-BH35 | BQ9: @LK-MWM-BH35 | BR9: @LK-EOG-BH35 | BS9: @LK-EOM-BH35 | BT9: @LK-EPM-BH35 | BU9: @LK-EVM-BH35 | BV9: @LK-ENM-BH35 | BW9: @LK-ELA-BH35 | BX9: @LK-ELD-BH35 | BY9: @LK-ELW-BH35 | BZ9: @LK-CAG-BH35 | CA9: @LK-CAT-BH35 | CB9: @LK-CAB-BH35 | CC9: @LK-CBR-BH35 | CD9: @LK-CBG-BH35 | CE9: @LK-CBW-BH35 | CF9: @LK-CCS-BH35 | CG9: @LK-CDM-BH35 | CH9: @LK-CDR-BH35 | CI9: @LK-CDG-BH35 | CJ9: @LK-CGP-BH35 | CK9: @LK-CHG-BH35 | CL9: @LK-CIN-BH35 | CM9: @LK-CIV-BH35 | CN9: @LK-CLR-BH35 | CO9: @LK-CLG-BH35 | CP9: @LK-CMW-BH35 | CQ9: @LK-CMN-BH35 | CR9: @LK-CMU-BH35 | CS9: @LK-COV-BH35 | CT9: @LK-CPT-BH35 | CU9: @LK-CPE-BH35 | CV9: @LK-CPG-BH35 | CW9: @LK-CPN-BH35 | CX9: @LK-CSG-BH35 | CY9: @LK-CSP-BH35 | CZ9: @LK-CSB-BH35 | DA9: @LK-CSO-BH35 | DB9: @LK-CSY-BH35 | DC9: @LK-CST-BH35 | DD9: @LK-CTP-BH35 | DE9: @LK-CTK-BH35 | DF9: @LK-CWE-BH35 | DG9: @LK-GAG-BH35 | DH9: @LK-GAT-BH35 | DI9: @LK-GAB-BH35 | DJ9: @LK-GBR-BH35 | DK9: @LK-GBG-BH35 | DL9: @LK-GBW-BH35 | DM9: @LK-GCS-BH35 | DN9: @LK-GDM-BH35 | DO9: @LK-GDR-BH35 | DP9: @LK-GDG-BH35 | DQ9: @LK-GGP-BH35 | DR9: @LK-GHG-BH35 | DS9: @LK-GIN-BH35 | DT9: @LK-GIV-BH35 | DU9: @LK-GLR-BH35 | DV9: @LK-GLG-BH35 | DW9: @LK-GMW-BH35 | DX9: @LK-GMN-BH35 | DY9: @LK-GMU-BH35 | DZ9: @LK-GOV-BH35 | EA9: @LK-GPT-BH35 | EB9: @LK-GPE-BH35 | EC9: @LK-GPG-BH35 | ED9: @LK-GPN-BH35 | EE9: @LK-GSG-BH35 | EF9: @LK-GSP-BH35 | EG9: @LK-GSB-BH35 | EH9: @LK-GSO-BH35 | EI9: @LK-GSY-BH35 | EJ9: @LK-GST-BH35 | EK9: @LK-GTP-BH35 | EL9: @LK-GTK-BH35 | EM9: @LK-GWE-BH35 | EN9: @LK-EAG-BH35 | EO9: @LK-EAT-BH35 | EP9: @LK-EAB-BH35 | EQ9: @LK-EBR-BH35 | ER9: @LK-EBG-BH35 | ES9: @LK-EBW-BH35 | ET9: @LK-ECS-BH35 | EU9: @LK-EDM-BH35 | EV9: @LK-EDP-BH35 | EW9: @LK-EDS-BH35 | EX9: @LK-EGP-BH35 | EY9: @LK-EHG-BH35 | EZ9: @LK-EIN-BH35 | FA9: @LK-EIV-BH35 | FB9: @LK-ELN-BH35 | FC9: @LK-EDG-BH35 | FD9: @LK-EME-BH35 | FE9: @LK-EMN-BH35 | FF9: @LK-EMU-BH35 | FG9: @LK-EOV-BH35 | FH9: @LK-EPT-BH35 | FI9: @LK-EPE-BH35 | FJ9: @LK-EPG-BH35 | FK9: @LK-EPN-BH35 | FL9: @LK-ESG-BH35 | FM9: @LK-ESP-BH35 | FN9: @LK-ESK-BH35 | FO9: @LK-ESO-BH35 | FP9: @LK-ESY-BH35 | FQ9: @LK-ESN-BH35 | FR9: @LK-ETP-BH35 | FS9: @LK-ETK-BH35 | FT9: @LK-EWE-BH35 | FU9: @LK-RAG-BH35 | FV9: @LK-RAT-BH35 | FW9: @LK-RAB-BH35 | FX9: @LK-RBR-BH35 | FY9: @LK-RBG-BH35 | FZ9: @LK-RBW-BH35 | GA9: @LK-RCS-BH35 | GB9: @LK-RDM-BH35 | GC9: @LK-RDP-BH35 | GD9: @LK-RDS-BH35 | GE9: @LK-RGP-BH35 | GF9: @LK-RHG-BH35 | GG9: @LK-RIN-BH35 | GH9: @LK-RIV-BH35 | GI9: @LK-RLR-BH35 | GJ9: @LK-RDG-BH35 | GK9: @LK-RMW-BH35 | GL9: @LK-RMN-BH35 | GM9: @LK-RMU-BH35 | GN9: @LK-ROV-BH35 | GO9: @LK-RPT-BH35 | GP9: @LK-RPE-BH35 | GQ9: @LK-RPG-BH35 | GR9: @LK-RPO-BH35 | GS9: @LK-RSG-BH35 | GT9: @LK-RSP-BH35 | GU9: @LK-RSK-BH35 | GV9: @LK-RST-BH35 | GW9: @LK-RSY-BH35 | GX9: @LK-RSN-BH35 | GY9: @LK-RTP-BH35 | GZ9: @LK-RTK-BH35 | HA9: @LK-RWE-BH35 | HB9: @LK-VAG-BH35 | HC9: @LK-VAT-BH35 | HD9: @LK-VAB-BH35 | HE9: @LK-VBR-BH35 | HF9: @LK-VBG-BH35 | HG9: @LK-VBW-BH35 | HH9: @LK-VCS-BH35 | HI9: @LK-VDM-BH35 | HJ9: @LK-VDP-BH35 | HK9: @LK-VDS-BH35 | HL9: @LK-VGP-BH35 | HM9: @LK-VHG-BH35 | HN9: @LK-VIN-BH35 | HO9: @LK-VIY-BH35 | HP9: @LK-VLN-BH35 | HQ9: @LK-VDG-BH35 | HR9: @LK-VME-BH35 | HS9: @LK-VMN-BH35 | HT9: @LK-VMU-BH35 | HU9: @LK-VOV-BH35 | HV9: @LK-VPT-BH35 | HW9: @LK-VPE-BH35 | HX9: @LK-VPG-BH35 | HY9: @LK-VPN-BH35 | HZ9: @LK-VSG-BH35 | IA9: @LK-VSP-BH35 | IB9: @LK-VSB-BH35 | IC9: @LK-VSO-BH35 | ID9: @LK-VSY-BH35 | IE9: @LK-VSN-BH35 | IF9: @LK-VTP-BH35 | IG9: @LK-VTK-BH35 | IH9: @LK-VWE-BH35 | II9: @LK-TAG-BH35 | IJ9: @LK-TAT-BH35 | IK9: @LK-TAB-BH35 | IL9: @LK-TBR-BH35 | IM9: @LK-TBG-BH35 | IN9: @LK-TBW-BH35 | IO9: @LK-TCS-BH35 | IP9: @LK-TDM-BH35 | IQ9: @LK-TDR-BH35 | IR9: @LK-TDS-BH35 | IS9: @LK-TGP-BH35 | IT9: @LK-THG-BH35 | IU9: @LK-TIN-BH35 | IV9: @LK-TIV-BH35 | IW9: @LK-TLR-BH35 | IX9: @LK-TLG-BH35 | IY9: @LK-TMW-BH35 | IZ9: @LK-TMN-BH35 | JA9: @LK-TMU-BH35 | JB9: @LK-TOV-BH35 | JC9: @LK-TPT-BH35 | JD9: @LK-TPE-BH35 | JE9: @LK-TPG-BH35 | JF9: @LK-TPN-BH35 | JG9: @LK-TSG-BH35 | JH9: @LK-TSP-BH35 | JI9: @LK-TSK-BH35 | JJ9: @LK-TSO-BH35 | JK9: @LK-TSY-BH35 | JL9: @LK-TST-BH35 | JM9: @LK-TTP-BH35 | JN9: @LK-TTK-BH35 | JO9: @LK-TWE-BH35 | JP9: @LK-WAG-BH35 | JQ9: @LK-WAT-BH35 | JR9: @LK-WAB-BH35 | JS9: @LK-WBR-BH35 | JT9: @LK-WBG-BH35 | JU9: @LK-WBW-BH35 | JV9: @LK-WCS-BH35 | JW9: @LK-WDM-BH35 | JX9: @LK-WDR-BH35 | JY9: @LK-WDS-BH35 | JZ9: @LK-WGP-BH35 | KA9: @LK-WHE-BH35 | KB9: @LK-WIN-BH35 | KC9: @LK-WIV-BH35 | KD9: @LK-WLR-BH35 | KE9: @LK-WDG-BH35 | KF9: @LK-WMW-BH35 | KG9: @LK-WMN-BH35 | KH9: @LK-WMU-BH35 | KI9: @LK-WOV-BH35 | KJ9: @LK-WPT-BH35 | KK9: @LK-WPE-BH35 | KL9: @LK-WPG-BH35 | KM9: @LK-WPN-BH35 | KN9: @LK-WSG-BH35 | KO9: @LK-WSP-BH35 | KP9: @LK-WSB-BH35 | KQ9: @LK-WSO-BH35 | KR9: @LK-WSY-BH35 | KS9: @LK-WST-BH35 | KT9: @LK-WTP-BH35 | KU9: @LK-WTK-BH35 | KV9: @LK-WWE-BH35 | KW9: @LK-HAG-BH35 | KX9: @LK-HAT-BH35 | KY9: @LK-HAB-BH35 | KZ9: @LK-HBR-BH35 | LA9: @LK-HBG-BH35 | LB9: @LK-HBW-BH35 | LC9: @LK-HCS-BH35 | LD9: @LK-HDM-BH35 | LE9: @LK-HDP-BH35 | LF9: @LK-HDS-BH35 | LG9: @LK-HGP-BH35 | LH9: @LK-HHG-BH35 | LI9: @LK-HIN-BH35 | LJ9: @LK-HIV-BH35 | LK9: @LK-HLR-BH35 | LL9: @LK-HLG-BH35 | LM9: @LK-HMW-BH35 | LN9: @LK-HMN-BH35 | LO9: @LK-HMU-BH35 | LP9: @LK-HOV-BH35 | LQ9: @LK-HPT-BH35 | LR9: @LK-HPE-BH35 | LS9: @LK-HPG-BH35 | LT9: @LK-HPN-BH35 | LU9: @LK-HSG-BH35 | LV9: @LK-HSP-BH35 | LW9: @LK-HSK-BH35 | LX9: @LK-HSO-BH35 | LY9: @LK-HSY-BH35 | LZ9: @LK-HST-BH35 | MA9: @LK-HTP-BH35 | MB9: @LK-HTK-BH35 | MC9: @LK-HWE-BH35 | MD9: @LK-SAG-BH35 | ME9: @LK-SAT-BH35 | MF9: @LK-SAB-BH35 | MG9: @LK-SBR-BH35 | MH9: @LK-SBG-BH35 | MI9: @LK-SBW-BH35 | MJ9: @LK-SCS-BH35 | MK9: @LK-SDM-BH35 | ML9: @LK-SDP-BH35 | MM9: @LK-SDS-BH35 | MN9: @LK-SGP-BH35 | MO9: @LK-SHG-BH35 | MP9: @LK-SIN-BH35 | MQ9: @LK-SIV-BH35 | MR9: @LK-SLR-BH35 | MS9: @LK-SDG-BH35 | MT9: @LK-SMW-BH35 | MU9: @LK-SMN-BH35 | MV9: @LK-SMU-BH35 | MW9: @LK-SOV-BH35 | MX9: @LK-SPT-BH35 | MY9: @LK-SPE-BH35 | MZ9: @LK-SPG-BH35 | NA9: @LK-SPN-BH35 | NB9: @LK-SSG-BH35 | NC9: @LK-SSP-BH35 | ND9: @LK-SSB-BH35 | NE9: @LK-SSO-BH35 | NF9: @LK-SSY-BH35 | NG9: @LK-SST-BH35 | NH9: @LK-STP-BH35 | NI9: @LK-STK-BH35 | NJ9: @LK-SWE-BH35 | NK9: @LK-SBZ-BH35 | NL9: @LK-SBF-BH35 | NM9: @LK-SCB-BH35 | NN9: @LK-SMZ-BH35 | NO9: @LK-SMC-BH35 | NP9: @LK-SPO-BH35
A10: BH40 | B10: 400 HL Base Unit | C10: BH40 | D10: @LK-EMD-BH40 | E10: @LK-EMY-BH40 | F10: @LK-EMG-BH40 | G10: @LK-EMM-BH40 | H10: @LK-EMS-BH40 | I10: @LK-OPC-BH40 | J10: @LK-OPD-BH40 | K10: @LK-OPY-BH40 | L10: @LK-OPF-BH40 | M10: @LK-OPG-BH40 | N10: @LK-OPM-BH40 | O10: @LK-OPR-BH40 | P10: @LK-OPS-BH40 | Q10: @LK-OPW-BH40 | R10: @LK-BCS-BH40 | S10: @LK-BDG-BH40 | T10: @LK-BDY-BH40 | U10: @LK-BGP-BH40 | V10: @LK-BSG-BH40 | W10: @LK-BWH-BH40 | X10: @LK-CSW-BH40 | Y10: @LK-DSS-BH40 | Z10: @LK-DGW-BH40 | AA10: @LK-DYW-BH40 | AB10: @LK-GPW-BH40 | AC10: @LK-INW-BH40 | AD10: @LK-ISW-BH40 | AE10: @LK-MSW-BH40 | AF10: @LK-RGW-BH40 | AG10: @LK-NVW-BH40 | AH10: @LK-SPW-BH40 | AI10: @LK-STW-BH40 | AJ10: @LK-WSW-BH40 | AK10: @LK-AOK-BH40 | AL10: @LK-ABL-BH40 | AM10: @LK-ACH-BH40 | AN10: @LK-ADG-BH40 | AO10: @LK-ARG-BH40 | AP10: @LK-AFR-BH40 | AQ10: @LK-ATP-BH40 | AR10: @LK-ALG-BH40 | AS10: @LK-AIN-BH40 | AT10: @LK-KCH-BH40 | AU10: @LK-KLG-BH40 | AV10: @LK-KDG-BH40 | AW10: @LK-KGP-BH40 | AX10: @LK-KTP-BH40 | AY10: @LK-KRG-BH40 | AZ10: @LK-KFR-BH40 | BA10: @LK-KIN-BH40 | BB10: @LK-MCS-BH40 | BC10: @LK-MGD-BH40 | BD10: @LK-MDS-BH40 | BE10: @LK-MGP-BH40 | BF10: @LK-MPN-BH40 | BG10: @LK-MGW-BH40 | BH10: @LK-MCM-BH40 | BI10: @LK-MDM-BH40 | BJ10: @LK-MTM-BH40 | BK10: @LK-MGM-BH40 | BL10: @LK-MIM-BH40 | BM10: @LK-MGR-BH40 | BN10: @LK-MSM-BH40 | BO10: @LK-MPM-BH40 | BP10: @LK-MTP-BH40 | BQ10: @LK-MWM-BH40 | BR10: @LK-EOG-BH40 | BS10: @LK-EOM-BH40 | BT10: @LK-EPM-BH40 | BU10: @LK-EVM-BH40 | BV10: @LK-ENM-BH40 | BW10: @LK-ELA-BH40 | BX10: @LK-ELD-BH40 | BY10: @LK-ELW-BH40 | BZ10: @LK-CAG-BH40 | CA10: @LK-CAT-BH40 | CB10: @LK-CAB-BH40 | CC10: @LK-CBR-BH40 | CD10: @LK-CBG-BH40 | CE10: @LK-CBW-BH40 | CF10: @LK-CCS-BH40 | CG10: @LK-CDM-BH40 | CH10: @LK-CDR-BH40 | CI10: @LK-CDG-BH40 | CJ10: @LK-CGP-BH40 | CK10: @LK-CHG-BH40 | CL10: @LK-CIN-BH40 | CM10: @LK-CIV-BH40 | CN10: @LK-CLR-BH40 | CO10: @LK-CLG-BH40 | CP10: @LK-CMW-BH40 | CQ10: @LK-CMN-BH40 | CR10: @LK-CMU-BH40 | CS10: @LK-COV-BH40 | CT10: @LK-CPT-BH40 | CU10: @LK-CPE-BH40 | CV10: @LK-CPG-BH40 | CW10: @LK-CPN-BH40 | CX10: @LK-CSG-BH40 | CY10: @LK-CSP-BH40 | CZ10: @LK-CSB-BH40 | DA10: @LK-CSO-BH40 | DB10: @LK-CSY-BH40 | DC10: @LK-CST-BH40 | DD10: @LK-CTP-BH40 | DE10: @LK-CTK-BH40 | DF10: @LK-CWE-BH40 | DG10: @LK-GAG-BH40 | DH10: @LK-GAT-BH40 | DI10: @LK-GAB-BH40 | DJ10: @LK-GBR-BH40 | DK10: @LK-GBG-BH40 | DL10: @LK-GBW-BH40 | DM10: @LK-GCS-BH40 | DN10: @LK-GDM-BH40 | DO10: @LK-GDR-BH40 | DP10: @LK-GDG-BH40 | DQ10: @LK-GGP-BH40 | DR10: @LK-GHG-BH40 | DS10: @LK-GIN-BH40 | DT10: @LK-GIV-BH40 | DU10: @LK-GLR-BH40 | DV10: @LK-GLG-BH40 | DW10: @LK-GMW-BH40 | DX10: @LK-GMN-BH40 | DY10: @LK-GMU-BH40 | DZ10: @LK-GOV-BH40 | EA10: @LK-GPT-BH40 | EB10: @LK-GPE-BH40 | EC10: @LK-GPG-BH40 | ED10: @LK-GPN-BH40 | EE10: @LK-GSG-BH40 | EF10: @LK-GSP-BH40 | EG10: @LK-GSB-BH40 | EH10: @LK-GSO-BH40 | EI10: @LK-GSY-BH40 | EJ10: @LK-GST-BH40 | EK10: @LK-GTP-BH40 | EL10: @LK-GTK-BH40 | EM10: @LK-GWE-BH40 | EN10: @LK-EAG-BH40 | EO10: @LK-EAT-BH40 | EP10: @LK-EAB-BH40 | EQ10: @LK-EBR-BH40 | ER10: @LK-EBG-BH40 | ES10: @LK-EBW-BH40 | ET10: @LK-ECS-BH40 | EU10: @LK-EDM-BH40 | EV10: @LK-EDP-BH40 | EW10: @LK-EDS-BH40 | EX10: @LK-EGP-BH40 | EY10: @LK-EHG-BH40 | EZ10: @LK-EIN-BH40 | FA10: @LK-EIV-BH40 | FB10: @LK-ELN-BH40 | FC10: @LK-EDG-BH40 | FD10: @LK-EME-BH40 | FE10: @LK-EMN-BH40 | FF10: @LK-EMU-BH40 | FG10: @LK-EOV-BH40 | FH10: @LK-EPT-BH40 | FI10: @LK-EPE-BH40 | FJ10: @LK-EPG-BH40 | FK10: @LK-EPN-BH40 | FL10: @LK-ESG-BH40 | FM10: @LK-ESP-BH40 | FN10: @LK-ESK-BH40 | FO10: @LK-ESO-BH40 | FP10: @LK-ESY-BH40 | FQ10: @LK-ESN-BH40 | FR10: @LK-ETP-BH40 | FS10: @LK-ETK-BH40 | FT10: @LK-EWE-BH40 | FU10: @LK-RAG-BH40 | FV10: @LK-RAT-BH40 | FW10: @LK-RAB-BH40 | FX10: @LK-RBR-BH40 | FY10: @LK-RBG-BH40 | FZ10: @LK-RBW-BH40 | GA10: @LK-RCS-BH40 | GB10: @LK-RDM-BH40 | GC10: @LK-RDP-BH40 | GD10: @LK-RDS-BH40 | GE10: @LK-RGP-BH40 | GF10: @LK-RHG-BH40 | GG10: @LK-RIN-BH40 | GH10: @LK-RIV-BH40 | GI10: @LK-RLR-BH40 | GJ10: @LK-RDG-BH40 | GK10: @LK-RMW-BH40 | GL10: @LK-RMN-BH40 | GM10: @LK-RMU-BH40 | GN10: @LK-ROV-BH40 | GO10: @LK-RPT-BH40 | GP10: @LK-RPE-BH40 | GQ10: @LK-RPG-BH40 | GR10: @LK-RPO-BH40 | GS10: @LK-RSG-BH40 | GT10: @LK-RSP-BH40 | GU10: @LK-RSK-BH40 | GV10: @LK-RST-BH40 | GW10: @LK-RSY-BH40 | GX10: @LK-RSN-BH40 | GY10: @LK-RTP-BH40 | GZ10: @LK-RTK-BH40 | HA10: @LK-RWE-BH40 | HB10: @LK-VAG-BH40 | HC10: @LK-VAT-BH40 | HD10: @LK-VAB-BH40 | HE10: @LK-VBR-BH40 | HF10: @LK-VBG-BH40 | HG10: @LK-VBW-BH40 | HH10: @LK-VCS-BH40 | HI10: @LK-VDM-BH40 | HJ10: @LK-VDP-BH40 | HK10: @LK-VDS-BH40 | HL10: @LK-VGP-BH40 | HM10: @LK-VHG-BH40 | HN10: @LK-VIN-BH40 | HO10: @LK-VIY-BH40 | HP10: @LK-VLN-BH40 | HQ10: @LK-VDG-BH40 | HR10: @LK-VME-BH40 | HS10: @LK-VMN-BH40 | HT10: @LK-VMU-BH40 | HU10: @LK-VOV-BH40 | HV10: @LK-VPT-BH40 | HW10: @LK-VPE-BH40 | HX10: @LK-VPG-BH40 | HY10: @LK-VPN-BH40 | HZ10: @LK-VSG-BH40 | IA10: @LK-VSP-BH40 | IB10: @LK-VSB-BH40 | IC10: @LK-VSO-BH40 | ID10: @LK-VSY-BH40 | IE10: @LK-VSN-BH40 | IF10: @LK-VTP-BH40 | IG10: @LK-VTK-BH40 | IH10: @LK-VWE-BH40 | II10: @LK-TAG-BH40 | IJ10: @LK-TAT-BH40 | IK10: @LK-TAB-BH40 | IL10: @LK-TBR-BH40 | IM10: @LK-TBG-BH40 | IN10: @LK-TBW-BH40 | IO10: @LK-TCS-BH40 | IP10: @LK-TDM-BH40 | IQ10: @LK-TDR-BH40 | IR10: @LK-TDS-BH40 | IS10: @LK-TGP-BH40 | IT10: @LK-THG-BH40 | IU10: @LK-TIN-BH40 | IV10: @LK-TIV-BH40 | IW10: @LK-TLR-BH40 | IX10: @LK-TLG-BH40 | IY10: @LK-TMW-BH40 | IZ10: @LK-TMN-BH40 | JA10: @LK-TMU-BH40 | JB10: @LK-TOV-BH40 | JC10: @LK-TPT-BH40 | JD10: @LK-TPE-BH40 | JE10: @LK-TPG-BH40 | JF10: @LK-TPN-BH40 | JG10: @LK-TSG-BH40 | JH10: @LK-TSP-BH40 | JI10: @LK-TSK-BH40 | JJ10: @LK-TSO-BH40 | JK10: @LK-TSY-BH40 | JL10: @LK-TST-BH40 | JM10: @LK-TTP-BH40 | JN10: @LK-TTK-BH40 | JO10: @LK-TWE-BH40 | JP10: @LK-WAG-BH40 | JQ10: @LK-WAT-BH40 | JR10: @LK-WAB-BH40 | JS10: @LK-WBR-BH40 | JT10: @LK-WBG-BH40 | JU10: @LK-WBW-BH40 | JV10: @LK-WCS-BH40 | JW10: @LK-WDM-BH40 | JX10: @LK-WDR-BH40 | JY10: @LK-WDS-BH40 | JZ10: @LK-WGP-BH40 | KA10: @LK-WHE-BH40 | KB10: @LK-WIN-BH40 | KC10: @LK-WIV-BH40 | KD10: @LK-WLR-BH40 | KE10: @LK-WDG-BH40 | KF10: @LK-WMW-BH40 | KG10: @LK-WMN-BH40 | KH10: @LK-WMU-BH40 | KI10: @LK-WOV-BH40 | KJ10: @LK-WPT-BH40 | KK10: @LK-WPE-BH40 | KL10: @LK-WPG-BH40 | KM10: @LK-WPN-BH40 | KN10: @LK-WSG-BH40 | KO10: @LK-WSP-BH40 | KP10: @LK-WSB-BH40 | KQ10: @LK-WSO-BH40 | KR10: @LK-WSY-BH40 | KS10: @LK-WST-BH40 | KT10: @LK-WTP-BH40 | KU10: @LK-WTK-BH40 | KV10: @LK-WWE-BH40 | KW10: @LK-HAG-BH40 | KX10: @LK-HAT-BH40 | KY10: @LK-HAB-BH40 | KZ10: @LK-HBR-BH40 | LA10: @LK-HBG-BH40 | LB10: @LK-HBW-BH40 | LC10: @LK-HCS-BH40 | LD10: @LK-HDM-BH40 | LE10: @LK-HDP-BH40 | LF10: @LK-HDS-BH40 | LG10: @LK-HGP-BH40 | LH10: @LK-HHG-BH40 | LI10: @LK-HIN-BH40 | LJ10: @LK-HIV-BH40 | LK10: @LK-HLR-BH40 | LL10: @LK-HLG-BH40 | LM10: @LK-HMW-BH40 | LN10: @LK-HMN-BH40 | LO10: @LK-HMU-BH40 | LP10: @LK-HOV-BH40 | LQ10: @LK-HPT-BH40 | LR10: @LK-HPE-BH40 | LS10: @LK-HPG-BH40 | LT10: @LK-HPN-BH40 | LU10: @LK-HSG-BH40 | LV10: @LK-HSP-BH40 | LW10: @LK-HSK-BH40 | LX10: @LK-HSO-BH40 | LY10: @LK-HSY-BH40 | LZ10: @LK-HST-BH40 | MA10: @LK-HTP-BH40 | MB10: @LK-HTK-BH40 | MC10: @LK-HWE-BH40 | MD10: @LK-SAG-BH40 | ME10: @LK-SAT-BH40 | MF10: @LK-SAB-BH40 | MG10: @LK-SBR-BH40 | MH10: @LK-SBG-BH40 | MI10: @LK-SBW-BH40 | MJ10: @LK-SCS-BH40 | MK10: @LK-SDM-BH40 | ML10: @LK-SDP-BH40 | MM10: @LK-SDS-BH40 | MN10: @LK-SGP-BH40 | MO10: @LK-SHG-BH40 | MP10: @LK-SIN-BH40 | MQ10: @LK-SIV-BH40 | MR10: @LK-SLR-BH40 | MS10: @LK-SDG-BH40 | MT10: @LK-SMW-BH40 | MU10: @LK-SMN-BH40 | MV10: @LK-SMU-BH40 | MW10: @LK-SOV-BH40 | MX10: @LK-SPT-BH40 | MY10: @LK-SPE-BH40 | MZ10: @LK-SPG-BH40 | NA10: @LK-SPN-BH40 | NB10: @LK-SSG-BH40 | NC10: @LK-SSP-BH40 | ND10: @LK-SSB-BH40 | NE10: @LK-SSO-BH40 | NF10: @LK-SSY-BH40 | NG10: @LK-SST-BH40 | NH10: @LK-STP-BH40 | NI10: @LK-STK-BH40 | NJ10: @LK-SWE-BH40 | NK10: @LK-SBZ-BH40 | NL10: @LK-SBF-BH40 | NM10: @LK-SCB-BH40 | NN10: @LK-SMZ-BH40 | NO10: @LK-SMC-BH40 | NP10: @LK-SPO-BH40
A11: BH4B | B11: 400 HL Base Unit & Bin | C11: BH4B | D11: @LK-EMD-BH4B | E11: @LK-EMY-BH4B | F11: @LK-EMG-BH4B | G11: @LK-EMM-BH4B | H11: @LK-EMS-BH4B | I11: @LK-OPC-BH4B | J11: @LK-OPD-BH4B | K11: @LK-OPY-BH4B | L11: @LK-OPF-BH4B | M11: @LK-OPG-BH4B | N11: @LK-OPM-BH4B | O11: @LK-OPR-BH4B | P11: @LK-OPS-BH4B | Q11: @LK-OPW-BH4B | R11: @LK-BCS-BH4B | S11: @LK-BDG-BH4B | T11: @LK-BDY-BH4B | U11: @LK-BGP-BH4B | V11: @LK-BSG-BH4B | W11: @LK-BWH-BH4B | X11: @LK-CSW-BH4B | Y11: @LK-DSS-BH4B | Z11: @LK-DGW-BH4B | AA11: @LK-DYW-BH4B | AB11: @LK-GPW-BH4B | AC11: @LK-INW-BH4B | AD11: @LK-ISW-BH4B | AE11: @LK-MSW-BH4B | AF11: @LK-RGW-BH4B | AG11: @LK-NVW-BH4B | AH11: @LK-SPW-BH4B | AI11: @LK-STW-BH4B | AJ11: @LK-WSW-BH4B | AK11: @LK-AOK-BH4B | AL11: @LK-ABL-BH4B | AM11: @LK-ACH-BH4B | AN11: @LK-ADG-BH4B | AO11: @LK-ARG-BH4B | AP11: @LK-AFR-BH4B | AQ11: @LK-ATP-BH4B | AR11: @LK-ALG-BH4B | AS11: @LK-AIN-BH4B | AT11: @LK-KCH-BH4B | AU11: @LK-KLG-BH4B | AV11: @LK-KDG-BH4B | AW11: @LK-KGP-BH4B | AX11: @LK-KTP-BH4B | AY11: @LK-KRG-BH4B | AZ11: @LK-KFR-BH4B | BA11: @LK-KIN-BH4B | BB11: @LK-MCS-BH4B | BC11: @LK-MGD-BH4B | BD11: @LK-MDS-BH4B | BE11: @LK-MGP-BH4B | BF11: @LK-MPN-BH4B | BG11: @LK-MGW-BH4B | BH11: @LK-MCM-BH4B | BI11: @LK-MDM-BH4B | BJ11: @LK-MTM-BH4B | BK11: @LK-MGM-BH4B | BL11: @LK-MIM-BH4B | BM11: @LK-MGR-BH4B | BN11: @LK-MSM-BH4B | BO11: @LK-MPM-BH4B | BP11: @LK-MTP-BH4B | BQ11: @LK-MWM-BH4B | BR11: @LK-EOG-BH4B | BS11: @LK-EOM-BH4B | BT11: @LK-EPM-BH4B | BU11: @LK-EVM-BH4B | BV11: @LK-ENM-BH4B | BW11: @LK-ELA-BH4B | BX11: @LK-ELD-BH4B | BY11: @LK-ELW-BH4B | BZ11: @LK-CAG-BH4B | CA11: @LK-CAT-BH4B | CB11: @LK-CAB-BH4B | CC11: @LK-CBR-BH4B | CD11: @LK-CBG-BH4B | CE11: @LK-CBW-BH4B | CF11: @LK-CCS-BH4B | CG11: @LK-CDM-BH4B | CH11: @LK-CDR-BH4B | CI11: @LK-CDG-BH4B | CJ11: @LK-CGP-BH4B | CK11: @LK-CHG-BH4B | CL11: @LK-CIN-BH4B | CM11: @LK-CIV-BH4B | CN11: @LK-CLR-BH4B | CO11: @LK-CLG-BH4B | CP11: @LK-CMW-BH4B | CQ11: @LK-CMN-BH4B | CR11: @LK-CMU-BH4B | CS11: @LK-COV-BH4B | CT11: @LK-CPT-BH4B | CU11: @LK-CPE-BH4B | CV11: @LK-CPG-BH4B | CW11: @LK-CPN-BH4B | CX11: @LK-CSG-BH4B | CY11: @LK-CSP-BH4B | CZ11: @LK-CSB-BH4B | DA11: @LK-CSO-BH4B | DB11: @LK-CSY-BH4B | DC11: @LK-CST-BH4B | DD11: @LK-CTP-BH4B | DE11: @LK-CTK-BH4B | DF11: @LK-CWE-BH4B | DG11: @LK-GAG-BH4B | DH11: @LK-GAT-BH4B | DI11: @LK-GAB-BH4B | DJ11: @LK-GBR-BH4B | DK11: @LK-GBG-BH4B | DL11: @LK-GBW-BH4B | DM11: @LK-GCS-BH4B | DN11: @LK-GDM-BH4B | DO11: @LK-GDR-BH4B | DP11: @LK-GDG-BH4B | DQ11: @LK-GGP-BH4B | DR11: @LK-GHG-BH4B | DS11: @LK-GIN-BH4B | DT11: @LK-GIV-BH4B | DU11: @LK-GLR-BH4B | DV11: @LK-GLG-BH4B | DW11: @LK-GMW-BH4B | DX11: @LK-GMN-BH4B | DY11: @LK-GMU-BH4B | DZ11: @LK-GOV-BH4B | EA11: @LK-GPT-BH4B | EB11: @LK-GPE-BH4B | EC11: @LK-GPG-BH4B | ED11: @LK-GPN-BH4B | EE11: @LK-GSG-BH4B | EF11: @LK-GSP-BH4B | EG11: @LK-GSB-BH4B | EH11: @LK-GSO-BH4B | EI11: @LK-GSY-BH4B | EJ11: @LK-GST-BH4B | EK11: @LK-GTP-BH4B | EL11: @LK-GTK-BH4B | EM11: @LK-GWE-BH4B | EN11: @LK-EAG-BH4B | EO11: @LK-EAT-BH4B | EP11: @LK-EAB-BH4B | EQ11: @LK-EBR-BH4B | ER11: @LK-EBG-BH4B | ES11: @LK-EBW-BH4B | ET11: @LK-ECS-BH4B | EU11: @LK-EDM-BH4B | EV11: @LK-EDP-BH4B | EW11: @LK-EDS-BH4B | EX11: @LK-EGP-BH4B | EY11: @LK-EHG-BH4B | EZ11: @LK-EIN-BH4B | FA11: @LK-EIV-BH4B | FB11: @LK-ELN-BH4B | FC11: @LK-EDG-BH4B | FD11: @LK-EME-BH4B | FE11: @LK-EMN-BH4B | FF11: @LK-EMU-BH4B | FG11: @LK-EOV-BH4B | FH11: @LK-EPT-BH4B | FI11: @LK-EPE-BH4B | FJ11: @LK-EPG-BH4B | FK11: @LK-EPN-BH4B | FL11: @LK-ESG-BH4B | FM11: @LK-ESP-BH4B | FN11: @LK-ESK-BH4B | FO11: @LK-ESO-BH4B | FP11: @LK-ESY-BH4B | FQ11: @LK-ESN-BH4B | FR11: @LK-ETP-BH4B | FS11: @LK-ETK-BH4B | FT11: @LK-EWE-BH4B | FU11: @LK-RAG-BH4B | FV11: @LK-RAT-BH4B | FW11: @LK-RAB-BH4B | FX11: @LK-RBR-BH4B | FY11: @LK-RBG-BH4B | FZ11: @LK-RBW-BH4B | GA11: @LK-RCS-BH4B | GB11: @LK-RDM-BH4B | GC11: @LK-RDP-BH4B | GD11: @LK-RDS-BH4B | GE11: @LK-RGP-BH4B | GF11: @LK-RHG-BH4B | GG11: @LK-RIN-BH4B | GH11: @LK-RIV-BH4B | GI11: @LK-RLR-BH4B | GJ11: @LK-RDG-BH4B | GK11: @LK-RMW-BH4B | GL11: @LK-RMN-BH4B | GM11: @LK-RMU-BH4B | GN11: @LK-ROV-BH4B | GO11: @LK-RPT-BH4B | GP11: @LK-RPE-BH4B | GQ11: @LK-RPG-BH4B | GR11: @LK-RPO-BH4B | GS11: @LK-RSG-BH4B | GT11: @LK-RSP-BH4B | GU11: @LK-RSK-BH4B | GV11: @LK-RST-BH4B | GW11: @LK-RSY-BH4B | GX11: @LK-RSN-BH4B | GY11: @LK-RTP-BH4B | GZ11: @LK-RTK-BH4B | HA11: @LK-RWE-BH4B | HB11: @LK-VAG-BH4B | HC11: @LK-VAT-BH4B | HD11: @LK-VAB-BH4B | HE11: @LK-VBR-BH4B | HF11: @LK-VBG-BH4B | HG11: @LK-VBW-BH4B | HH11: @LK-VCS-BH4B | HI11: @LK-VDM-BH4B | HJ11: @LK-VDP-BH4B | HK11: @LK-VDS-BH4B | HL11: @LK-VGP-BH4B | HM11: @LK-VHG-BH4B | HN11: @LK-VIN-BH4B | HO11: @LK-VIY-BH4B | HP11: @LK-VLN-BH4B | HQ11: @LK-VDG-BH4B | HR11: @LK-VME-BH4B | HS11: @LK-VMN-BH4B | HT11: @LK-VMU-BH4B | HU11: @LK-VOV-BH4B | HV11: @LK-VPT-BH4B | HW11: @LK-VPE-BH4B | HX11: @LK-VPG-BH4B | HY11: @LK-VPN-BH4B | HZ11: @LK-VSG-BH4B | IA11: @LK-VSP-BH4B | IB11: @LK-VSB-BH4B | IC11: @LK-VSO-BH4B | ID11: @LK-VSY-BH4B | IE11: @LK-VSN-BH4B | IF11: @LK-VTP-BH4B | IG11: @LK-VTK-BH4B | IH11: @LK-VWE-BH4B | II11: @LK-TAG-BH4B | IJ11: @LK-TAT-BH4B | IK11: @LK-TAB-BH4B | IL11: @LK-TBR-BH4B | IM11: @LK-TBG-BH4B | IN11: @LK-TBW-BH4B | IO11: @LK-TCS-BH4B | IP11: @LK-TDM-BH4B | IQ11: @LK-TDR-BH4B | IR11: @LK-TDS-BH4B | IS11: @LK-TGP-BH4B | IT11: @LK-THG-BH4B | IU11: @LK-TIN-BH4B | IV11: @LK-TIV-BH4B | IW11: @LK-TLR-BH4B | IX11: @LK-TLG-BH4B | IY11: @LK-TMW-BH4B | IZ11: @LK-TMN-BH4B | JA11: @LK-TMU-BH4B | JB11: @LK-TOV-BH4B | JC11: @LK-TPT-BH4B | JD11: @LK-TPE-BH4B | JE11: @LK-TPG-BH4B | JF11: @LK-TPN-BH4B | JG11: @LK-TSG-BH4B | JH11: @LK-TSP-BH4B | JI11: @LK-TSK-BH4B | JJ11: @LK-TSO-BH4B | JK11: @LK-TSY-BH4B | JL11: @LK-TST-BH4B | JM11: @LK-TTP-BH4B | JN11: @LK-TTK-BH4B | JO11: @LK-TWE-BH4B | JP11: @LK-WAG-BH4B | JQ11: @LK-WAT-BH4B | JR11: @LK-WAB-BH4B | JS11: @LK-WBR-BH4B | JT11: @LK-WBG-BH4B | JU11: @LK-WBW-BH4B | JV11: @LK-WCS-BH4B | JW11: @LK-WDM-BH4B | JX11: @LK-WDR-BH4B | JY11: @LK-WDS-BH4B | JZ11: @LK-WGP-BH4B | KA11: @LK-WHE-BH4B | KB11: @LK-WIN-BH4B | KC11: @LK-WIV-BH4B | KD11: @LK-WLR-BH4B | KE11: @LK-WDG-BH4B | KF11: @LK-WMW-BH4B | KG11: @LK-WMN-BH4B | KH11: @LK-WMU-BH4B | KI11: @LK-WOV-BH4B | KJ11: @LK-WPT-BH4B | KK11: @LK-WPE-BH4B | KL11: @LK-WPG-BH4B | KM11: @LK-WPN-BH4B | KN11: @LK-WSG-BH4B | KO11: @LK-WSP-BH4B | KP11: @LK-WSB-BH4B | KQ11: @LK-WSO-BH4B | KR11: @LK-WSY-BH4B | KS11: @LK-WST-BH4B | KT11: @LK-WTP-BH4B | KU11: @LK-WTK-BH4B | KV11: @LK-WWE-BH4B | KW11: @LK-HAG-BH4B | KX11: @LK-HAT-BH4B | KY11: @LK-HAB-BH4B | KZ11: @LK-HBR-BH4B | LA11: @LK-HBG-BH4B | LB11: @LK-HBW-BH4B | LC11: @LK-HCS-BH4B | LD11: @LK-HDM-BH4B | LE11: @LK-HDP-BH4B | LF11: @LK-HDS-BH4B | LG11: @LK-HGP-BH4B | LH11: @LK-HHG-BH4B | LI11: @LK-HIN-BH4B | LJ11: @LK-HIV-BH4B | LK11: @LK-HLR-BH4B | LL11: @LK-HLG-BH4B | LM11: @LK-HMW-BH4B | LN11: @LK-HMN-BH4B | LO11: @LK-HMU-BH4B | LP11: @LK-HOV-BH4B | LQ11: @LK-HPT-BH4B | LR11: @LK-HPE-BH4B | LS11: @LK-HPG-BH4B | LT11: @LK-HPN-BH4B | LU11: @LK-HSG-BH4B | LV11: @LK-HSP-BH4B | LW11: @LK-HSK-BH4B | LX11: @LK-HSO-BH4B | LY11: @LK-HSY-BH4B | LZ11: @LK-HST-BH4B | MA11: @LK-HTP-BH4B | MB11: @LK-HTK-BH4B | MC11: @LK-HWE-BH4B | MD11: @LK-SAG-BH4B | ME11: @LK-SAT-BH4B | MF11: @LK-SAB-BH4B | MG11: @LK-SBR-BH4B | MH11: @LK-SBG-BH4B | MI11: @LK-SBW-BH4B | MJ11: @LK-SCS-BH4B | MK11: @LK-SDM-BH4B | ML11: @LK-SDP-BH4B | MM11: @LK-SDS-BH4B | MN11: @LK-SGP-BH4B | MO11: @LK-SHG-BH4B | MP11: @LK-SIN-BH4B | MQ11: @LK-SIV-BH4B | MR11: @LK-SLR-BH4B | MS11: @LK-SDG-BH4B | MT11: @LK-SMW-BH4B | MU11: @LK-SMN-BH4B | MV11: @LK-SMU-BH4B | MW11: @LK-SOV-BH4B | MX11: @LK-SPT-BH4B | MY11: @LK-SPE-BH4B | MZ11: @LK-SPG-BH4B | NA11: @LK-SPN-BH4B | NB11: @LK-SSG-BH4B | NC11: @LK-SSP-BH4B | ND11: @LK-SSB-BH4B | NE11: @LK-SSO-BH4B | NF11: @LK-SSY-BH4B | NG11: @LK-SST-BH4B | NH11: @LK-STP-BH4B | NI11: @LK-STK-BH4B | NJ11: @LK-SWE-BH4B | NK11: @LK-SBZ-BH4B | NL11: @LK-SBF-BH4B | NM11: @LK-SCB-BH4B | NN11: @LK-SMZ-BH4B | NO11: @LK-SMC-BH4B | NP11: @LK-SPO-BH4B
A12: BH45 | B12: 450 HL Base Unit | C12: BH45 | D12: @LK-EMD-BH45 | E12: @LK-EMY-BH45 | F12: @LK-EMG-BH45 | G12: @LK-EMM-BH45 | H12: @LK-EMS-BH45 | I12: @LK-OPC-BH45 | J12: @LK-OPD-BH45 | K12: @LK-OPY-BH45 | L12: @LK-OPF-BH45 | M12: @LK-OPG-BH45 | N12: @LK-OPM-BH45 | O12: @LK-OPR-BH45 | P12: @LK-OPS-BH45 | Q12: @LK-OPW-BH45 | R12: @LK-BCS-BH45 | S12: @LK-BDG-BH45 | T12: @LK-BDY-BH45 | U12: @LK-BGP-BH45 | V12: @LK-BSG-BH45 | W12: @LK-BWH-BH45 | X12: @LK-CSW-BH45 | Y12: @LK-DSS-BH45 | Z12: @LK-DGW-BH45 | AA12: @LK-DYW-BH45 | AB12: @LK-GPW-BH45 | AC12: @LK-INW-BH45 | AD12: @LK-ISW-BH45 | AE12: @LK-MSW-BH45 | AF12: @LK-RGW-BH45 | AG12: @LK-NVW-BH45 | AH12: @LK-SPW-BH45 | AI12: @LK-STW-BH45 | AJ12: @LK-WSW-BH45 | AK12: @LK-AOK-BH45 | AL12: @LK-ABL-BH45 | AM12: @LK-ACH-BH45 | AN12: @LK-ADG-BH45 | AO12: @LK-ARG-BH45 | AP12: @LK-AFR-BH45 | AQ12: @LK-ATP-BH45 | AR12: @LK-ALG-BH45 | AS12: @LK-AIN-BH45 | AT12: @LK-KCH-BH45 | AU12: @LK-KLG-BH45 | AV12: @LK-KDG-BH45 | AW12: @LK-KGP-BH45 | AX12: @LK-KTP-BH45 | AY12: @LK-KRG-BH45 | AZ12: @LK-KFR-BH45 | BA12: @LK-KIN-BH45 | BB12: @LK-MCS-BH45 | BC12: @LK-MGD-BH45 | BD12: @LK-MDS-BH45 | BE12: @LK-MGP-BH45 | BF12: @LK-MPN-BH45 | BG12: @LK-MGW-BH45 | BH12: @LK-MCM-BH45 | BI12: @LK-MDM-BH45 | BJ12: @LK-MTM-BH45 | BK12: @LK-MGM-BH45 | BL12: @LK-MIM-BH45 | BM12: @LK-MGR-BH45 | BN12: @LK-MSM-BH45 | BO12: @LK-MPM-BH45 | BP12: @LK-MTP-BH45 | BQ12: @LK-MWM-BH45 | BR12: @LK-EOG-BH45 | BS12: @LK-EOM-BH45 | BT12: @LK-EPM-BH45 | BU12: @LK-EVM-BH45 | BV12: @LK-ENM-BH45 | BW12: @LK-ELA-BH45 | BX12: @LK-ELD-BH45 | BY12: @LK-ELW-BH45 | BZ12: @LK-CAG-BH45 | CA12: @LK-CAT-BH45 | CB12: @LK-CAB-BH45 | CC12: @LK-CBR-BH45 | CD12: @LK-CBG-BH45 | CE12: @LK-CBW-BH45 | CF12: @LK-CCS-BH45 | CG12: @LK-CDM-BH45 | CH12: @LK-CDR-BH45 | CI12: @LK-CDG-BH45 | CJ12: @LK-CGP-BH45 | CK12: @LK-CHG-BH45 | CL12: @LK-CIN-BH45 | CM12: @LK-CIV-BH45 | CN12: @LK-CLR-BH45 | CO12: @LK-CLG-BH45 | CP12: @LK-CMW-BH45 | CQ12: @LK-CMN-BH45 | CR12: @LK-CMU-BH45 | CS12: @LK-COV-BH45 | CT12: @LK-CPT-BH45 | CU12: @LK-CPE-BH45 | CV12: @LK-CPG-BH45 | CW12: @LK-CPN-BH45 | CX12: @LK-CSG-BH45 | CY12: @LK-CSP-BH45 | CZ12: @LK-CSB-BH45 | DA12: @LK-CSO-BH45 | DB12: @LK-CSY-BH45 | DC12: @LK-CST-BH45 | DD12: @LK-CTP-BH45 | DE12: @LK-CTK-BH45 | DF12: @LK-CWE-BH45 | DG12: @LK-GAG-BH45 | DH12: @LK-GAT-BH45 | DI12: @LK-GAB-BH45 | DJ12: @LK-GBR-BH45 | DK12: @LK-GBG-BH45 | DL12: @LK-GBW-BH45 | DM12: @LK-GCS-BH45 | DN12: @LK-GDM-BH45 | DO12: @LK-GDR-BH45 | DP12: @LK-GDG-BH45 | DQ12: @LK-GGP-BH45 | DR12: @LK-GHG-BH45 | DS12: @LK-GIN-BH45 | DT12: @LK-GIV-BH45 | DU12: @LK-GLR-BH45 | DV12: @LK-GLG-BH45 | DW12: @LK-GMW-BH45 | DX12: @LK-GMN-BH45 | DY12: @LK-GMU-BH45 | DZ12: @LK-GOV-BH45 | EA12: @LK-GPT-BH45 | EB12: @LK-GPE-BH45 | EC12: @LK-GPG-BH45 | ED12: @LK-GPN-BH45 | EE12: @LK-GSG-BH45 | EF12: @LK-GSP-BH45 | EG12: @LK-GSB-BH45 | EH12: @LK-GSO-BH45 | EI12: @LK-GSY-BH45 | EJ12: @LK-GST-BH45 | EK12: @LK-GTP-BH45 | EL12: @LK-GTK-BH45 | EM12: @LK-GWE-BH45 | EN12: @LK-EAG-BH45 | EO12: @LK-EAT-BH45 | EP12: @LK-EAB-BH45 | EQ12: @LK-EBR-BH45 | ER12: @LK-EBG-BH45 | ES12: @LK-EBW-BH45 | ET12: @LK-ECS-BH45 | EU12: @LK-EDM-BH45 | EV12: @LK-EDP-BH45 | EW12: @LK-EDS-BH45 | EX12: @LK-EGP-BH45 | EY12: @LK-EHG-BH45 | EZ12: @LK-EIN-BH45 | FA12: @LK-EIV-BH45 | FB12: @LK-ELN-BH45 | FC12: @LK-EDG-BH45 | FD12: @LK-EME-BH45 | FE12: @LK-EMN-BH45 | FF12: @LK-EMU-BH45 | FG12: @LK-EOV-BH45 | FH12: @LK-EPT-BH45 | FI12: @LK-EPE-BH45 | FJ12: @LK-EPG-BH45 | FK12: @LK-EPN-BH45 | FL12: @LK-ESG-BH45 | FM12: @LK-ESP-BH45 | FN12: @LK-ESK-BH45 | FO12: @LK-ESO-BH45 | FP12: @LK-ESY-BH45 | FQ12: @LK-ESN-BH45 | FR12: @LK-ETP-BH45 | FS12: @LK-ETK-BH45 | FT12: @LK-EWE-BH45 | FU12: @LK-RAG-BH45 | FV12: @LK-RAT-BH45 | FW12: @LK-RAB-BH45 | FX12: @LK-RBR-BH45 | FY12: @LK-RBG-BH45 | FZ12: @LK-RBW-BH45 | GA12: @LK-RCS-BH45 | GB12: @LK-RDM-BH45 | GC12: @LK-RDP-BH45 | GD12: @LK-RDS-BH45 | GE12: @LK-RGP-BH45 | GF12: @LK-RHG-BH45 | GG12: @LK-RIN-BH45 | GH12: @LK-RIV-BH45 | GI12: @LK-RLR-BH45 | GJ12: @LK-RDG-BH45 | GK12: @LK-RMW-BH45 | GL12: @LK-RMN-BH45 | GM12: @LK-RMU-BH45 | GN12: @LK-ROV-BH45 | GO12: @LK-RPT-BH45 | GP12: @LK-RPE-BH45 | GQ12: @LK-RPG-BH45 | GR12: @LK-RPO-BH45 | GS12: @LK-RSG-BH45 | GT12: @LK-RSP-BH45 | GU12: @LK-RSK-BH45 | GV12: @LK-RST-BH45 | GW12: @LK-RSY-BH45 | GX12: @LK-RSN-BH45 | GY12: @LK-RTP-BH45 | GZ12: @LK-RTK-BH45 | HA12: @LK-RWE-BH45 | HB12: @LK-VAG-BH45 | HC12: @LK-VAT-BH45 | HD12: @LK-VAB-BH45 | HE12: @LK-VBR-BH45 | HF12: @LK-VBG-BH45 | HG12: @LK-VBW-BH45 | HH12: @LK-VCS-BH45 | HI12: @LK-VDM-BH45 | HJ12: @LK-VDP-BH45 | HK12: @LK-VDS-BH45 | HL12: @LK-VGP-BH45 | HM12: @LK-VHG-BH45 | HN12: @LK-VIN-BH45 | HO12: @LK-VIY-BH45 | HP12: @LK-VLN-BH45 | HQ12: @LK-VDG-BH45 | HR12: @LK-VME-BH45 | HS12: @LK-VMN-BH45 | HT12: @LK-VMU-BH45 | HU12: @LK-VOV-BH45 | HV12: @LK-VPT-BH45 | HW12: @LK-VPE-BH45 | HX12: @LK-VPG-BH45 | HY12: @LK-VPN-BH45 | HZ12: @LK-VSG-BH45 | IA12: @LK-VSP-BH45 | IB12: @LK-VSB-BH45 | IC12: @LK-VSO-BH45 | ID12: @LK-VSY-BH45 | IE12: @LK-VSN-BH45 | IF12: @LK-VTP-BH45 | IG12: @LK-VTK-BH45 | IH12: @LK-VWE-BH45 | II12: @LK-TAG-BH45 | IJ12: @LK-TAT-BH45 | IK12: @LK-TAB-BH45 | IL12: @LK-TBR-BH45 | IM12: @LK-TBG-BH45 | IN12: @LK-TBW-BH45 | IO12: @LK-TCS-BH45 | IP12: @LK-TDM-BH45 | IQ12: @LK-TDR-BH45 | IR12: @LK-TDS-BH45 | IS12: @LK-TGP-BH45 | IT12: @LK-THG-BH45 | IU12: @LK-TIN-BH45 | IV12: @LK-TIV-BH45 | IW12: @LK-TLR-BH45 | IX12: @LK-TLG-BH45 | IY12: @LK-TMW-BH45 | IZ12: @LK-TMN-BH45 | JA12: @LK-TMU-BH45 | JB12: @LK-TOV-BH45 | JC12: @LK-TPT-BH45 | JD12: @LK-TPE-BH45 | JE12: @LK-TPG-BH45 | JF12: @LK-TPN-BH45 | JG12: @LK-TSG-BH45 | JH12: @LK-TSP-BH45 | JI12: @LK-TSK-BH45 | JJ12: @LK-TSO-BH45 | JK12: @LK-TSY-BH45 | JL12: @LK-TST-BH45 | JM12: @LK-TTP-BH45 | JN12: @LK-TTK-BH45 | JO12: @LK-TWE-BH45 | JP12: @LK-WAG-BH45 | JQ12: @LK-WAT-BH45 | JR12: @LK-WAB-BH45 | JS12: @LK-WBR-BH45 | JT12: @LK-WBG-BH45 | JU12: @LK-WBW-BH45 | JV12: @LK-WCS-BH45 | JW12: @LK-WDM-BH45 | JX12: @LK-WDR-BH45 | JY12: @LK-WDS-BH45 | JZ12: @LK-WGP-BH45 | KA12: @LK-WHE-BH45 | KB12: @LK-WIN-BH45 | KC12: @LK-WIV-BH45 | KD12: @LK-WLR-BH45 | KE12: @LK-WDG-BH45 | KF12: @LK-WMW-BH45 | KG12: @LK-WMN-BH45 | KH12: @LK-WMU-BH45 | KI12: @LK-WOV-BH45 | KJ12: @LK-WPT-BH45 | KK12: @LK-WPE-BH45 | KL12: @LK-WPG-BH45 | KM12: @LK-WPN-BH45 | KN12: @LK-WSG-BH45 | KO12: @LK-WSP-BH45 | KP12: @LK-WSB-BH45 | KQ12: @LK-WSO-BH45 | KR12: @LK-WSY-BH45 | KS12: @LK-WST-BH45 | KT12: @LK-WTP-BH45 | KU12: @LK-WTK-BH45 | KV12: @LK-WWE-BH45 | KW12: @LK-HAG-BH45 | KX12: @LK-HAT-BH45 | KY12: @LK-HAB-BH45 | KZ12: @LK-HBR-BH45 | LA12: @LK-HBG-BH45 | LB12: @LK-HBW-BH45 | LC12: @LK-HCS-BH45 | LD12: @LK-HDM-BH45 | LE12: @LK-HDP-BH45 | LF12: @LK-HDS-BH45 | LG12: @LK-HGP-BH45 | LH12: @LK-HHG-BH45 | LI12: @LK-HIN-BH45 | LJ12: @LK-HIV-BH45 | LK12: @LK-HLR-BH45 | LL12: @LK-HLG-BH45 | LM12: @LK-HMW-BH45 | LN12: @LK-HMN-BH45 | LO12: @LK-HMU-BH45 | LP12: @LK-HOV-BH45 | LQ12: @LK-HPT-BH45 | LR12: @LK-HPE-BH45 | LS12: @LK-HPG-BH45 | LT12: @LK-HPN-BH45 | LU12: @LK-HSG-BH45 | LV12: @LK-HSP-BH45 | LW12: @LK-HSK-BH45 | LX12: @LK-HSO-BH45 | LY12: @LK-HSY-BH45 | LZ12: @LK-HST-BH45 | MA12: @LK-HTP-BH45 | MB12: @LK-HTK-BH45 | MC12: @LK-HWE-BH45 | MD12: @LK-SAG-BH45 | ME12: @LK-SAT-BH45 | MF12: @LK-SAB-BH45 | MG12: @LK-SBR-BH45 | MH12: @LK-SBG-BH45 | MI12: @LK-SBW-BH45 | MJ12: @LK-SCS-BH45 | MK12: @LK-SDM-BH45 | ML12: @LK-SDP-BH45 | MM12: @LK-SDS-BH45 | MN12: @LK-SGP-BH45 | MO12: @LK-SHG-BH45 | MP12: @LK-SIN-BH45 | MQ12: @LK-SIV-BH45 | MR12: @LK-SLR-BH45 | MS12: @LK-SDG-BH45 | MT12: @LK-SMW-BH45 | MU12: @LK-SMN-BH45 | MV12: @LK-SMU-BH45 | MW12: @LK-SOV-BH45 | MX12: @LK-SPT-BH45 | MY12: @LK-SPE-BH45 | MZ12: @LK-SPG-BH45 | NA12: @LK-SPN-BH45 | NB12: @LK-SSG-BH45 | NC12: @LK-SSP-BH45 | ND12: @LK-SSB-BH45 | NE12: @LK-SSO-BH45 | NF12: @LK-SSY-BH45 | NG12: @LK-SST-BH45 | NH12: @LK-STP-BH45 | NI12: @LK-STK-BH45 | NJ12: @LK-SWE-BH45 | NK12: @LK-SBZ-BH45 | NL12: @LK-SBF-BH45 | NM12: @LK-SCB-BH45 | NN12: @LK-SMZ-BH45 | NO12: @LK-SMC-BH45 | NP12: @LK-SPO-BH45
A13: BH45B | B13: 450 HL Base Unit & Bin | C13: BH45B | D13: @LK-EMD-BH45B | E13: @LK-EMY-BH45B | F13: @LK-EMG-BH45B | G13: @LK-EMM-BH45B | H13: @LK-EMS-BH45B | I13: @LK-OPC-BH45B | J13: @LK-OPD-BH45B | K13: @LK-OPY-BH45B | L13: @LK-OPF-BH45B | M13: @LK-OPG-BH45B | N13: @LK-OPM-BH45B | O13: @LK-OPR-BH45B | P13: @LK-OPS-BH45B | Q13: @LK-OPW-BH45B | R13: @LK-BCS-BH45B | S13: @LK-BDG-BH45B | T13: @LK-BDY-BH45B | U13: @LK-BGP-BH45B | V13: @LK-BSG-BH45B | W13: @LK-BWH-BH45B | X13: @LK-CSW-BH45B | Y13: @LK-DSS-BH45B | Z13: @LK-DGW-BH45B | AA13: @LK-DYW-BH45B | AB13: @LK-GPW-BH45B | AC13: @LK-INW-BH45B | AD13: @LK-ISW-BH45B | AE13: @LK-MSW-BH45B | AF13: @LK-RGW-BH45B | AG13: @LK-NVW-BH45B | AH13: @LK-SPW-BH45B | AI13: @LK-STW-BH45B | AJ13: @LK-WSW-BH45B | AK13: @LK-AOK-BH45B | AL13: @LK-ABL-BH45B | AM13: @LK-ACH-BH45B | AN13: @LK-ADG-BH45B | AO13: @LK-ARG-BH45B | AP13: @LK-AFR-BH45B | AQ13: @LK-ATP-BH45B | AR13: @LK-ALG-BH45B | AS13: @LK-AIN-BH45B | AT13: @LK-KCH-BH45B | AU13: @LK-KLG-BH45B | AV13: @LK-KDG-BH45B | AW13: @LK-KGP-BH45B | AX13: @LK-KTP-BH45B | AY13: @LK-KRG-BH45B | AZ13: @LK-KFR-BH45B | BA13: @LK-KIN-BH45B | BB13: @LK-MCS-BH45B | BC13: @LK-MGD-BH45B | BD13: @LK-MDS-BH45B | BE13: @LK-MGP-BH45B | BF13: @LK-MPN-BH45B | BG13: @LK-MGW-BH45B | BH13: @LK-MCM-BH45B | BI13: @LK-MDM-BH45B | BJ13: @LK-MTM-BH45B | BK13: @LK-MGM-BH45B | BL13: @LK-MIM-BH45B | BM13: @LK-MGR-BH45B | BN13: @LK-MSM-BH45B | BO13: @LK-MPM-BH45B | BP13: @LK-MTP-BH45B | BQ13: @LK-MWM-BH45B | BR13: @LK-EOG-BH45B | BS13: @LK-EOM-BH45B | BT13: @LK-EPM-BH45B | BU13: @LK-EVM-BH45B | BV13: @LK-ENM-BH45B | BW13: @LK-ELA-BH45B | BX13: @LK-ELD-BH45B | BY13: @LK-ELW-BH45B | BZ13: @LK-CAG-BH45B | CA13: @LK-CAT-BH45B | CB13: @LK-CAB-BH45B | CC13: @LK-CBR-BH45B | CD13: @LK-CBG-BH45B | CE13: @LK-CBW-BH45B | CF13: @LK-CCS-BH45B | CG13: @LK-CDM-BH45B | CH13: @LK-CDR-BH45B | CI13: @LK-CDG-BH45B | CJ13: @LK-CGP-BH45B | CK13: @LK-CHG-BH45B | CL13: @LK-CIN-BH45B | CM13: @LK-CIV-BH45B | CN13: @LK-CLR-BH45B | CO13: @LK-CLG-BH45B | CP13: @LK-CMW-BH45B | CQ13: @LK-CMN-BH45B | CR13: @LK-CMU-BH45B | CS13: @LK-COV-BH45B | CT13: @LK-CPT-BH45B | CU13: @LK-CPE-BH45B | CV13: @LK-CPG-BH45B | CW13: @LK-CPN-BH45B | CX13: @LK-CSG-BH45B | CY13: @LK-CSP-BH45B | CZ13: @LK-CSB-BH45B | DA13: @LK-CSO-BH45B | DB13: @LK-CSY-BH45B | DC13: @LK-CST-BH45B | DD13: @LK-CTP-BH45B | DE13: @LK-CTK-BH45B | DF13: @LK-CWE-BH45B | DG13: @LK-GAG-BH45B | DH13: @LK-GAT-BH45B | DI13: @LK-GAB-BH45B | DJ13: @LK-GBR-BH45B | DK13: @LK-GBG-BH45B | DL13: @LK-GBW-BH45B | DM13: @LK-GCS-BH45B | DN13: @LK-GDM-BH45B | DO13: @LK-GDR-BH45B | DP13: @LK-GDG-BH45B | DQ13: @LK-GGP-BH45B | DR13: @LK-GHG-BH45B | DS13: @LK-GIN-BH45B | DT13: @LK-GIV-BH45B | DU13: @LK-GLR-BH45B | DV13: @LK-GLG-BH45B | DW13: @LK-GMW-BH45B | DX13: @LK-GMN-BH45B | DY13: @LK-GMU-BH45B | DZ13: @LK-GOV-BH45B | EA13: @LK-GPT-BH45B | EB13: @LK-GPE-BH45B | EC13: @LK-GPG-BH45B | ED13: @LK-GPN-BH45B | EE13: @LK-GSG-BH45B | EF13: @LK-GSP-BH45B | EG13: @LK-GSB-BH45B | EH13: @LK-GSO-BH45B | EI13: @LK-GSY-BH45B | EJ13: @LK-GST-BH45B | EK13: @LK-GTP-BH45B | EL13: @LK-GTK-BH45B | EM13: @LK-GWE-BH45B | EN13: @LK-EAG-BH45B | EO13: @LK-EAT-BH45B | EP13: @LK-EAB-BH45B | EQ13: @LK-EBR-BH45B | ER13: @LK-EBG-BH45B | ES13: @LK-EBW-BH45B | ET13: @LK-ECS-BH45B | EU13: @LK-EDM-BH45B | EV13: @LK-EDP-BH45B | EW13: @LK-EDS-BH45B | EX13: @LK-EGP-BH45B | EY13: @LK-EHG-BH45B | EZ13: @LK-EIN-BH45B | FA13: @LK-EIV-BH45B | FB13: @LK-ELN-BH45B | FC13: @LK-EDG-BH45B | FD13: @LK-EME-BH45B | FE13: @LK-EMN-BH45B | FF13: @LK-EMU-BH45B | FG13: @LK-EOV-BH45B | FH13: @LK-EPT-BH45B | FI13: @LK-EPE-BH45B | FJ13: @LK-EPG-BH45B | FK13: @LK-EPN-BH45B | FL13: @LK-ESG-BH45B | FM13: @LK-ESP-BH45B | FN13: @LK-ESK-BH45B | FO13: @LK-ESO-BH45B | FP13: @LK-ESY-BH45B | FQ13: @LK-ESN-BH45B | FR13: @LK-ETP-BH45B | FS13: @LK-ETK-BH45B | FT13: @LK-EWE-BH45B | FU13: @LK-RAG-BH45B | FV13: @LK-RAT-BH45B | FW13: @LK-RAB-BH45B | FX13: @LK-RBR-BH45B | FY13: @LK-RBG-BH45B | FZ13: @LK-RBW-BH45B | GA13: @LK-RCS-BH45B | GB13: @LK-RDM-BH45B | GC13: @LK-RDP-BH45B | GD13: @LK-RDS-BH45B | GE13: @LK-RGP-BH45B | GF13: @LK-RHG-BH45B | GG13: @LK-RIN-BH45B | GH13: @LK-RIV-BH45B | GI13: @LK-RLR-BH45B | GJ13: @LK-RDG-BH45B | GK13: @LK-RMW-BH45B | GL13: @LK-RMN-BH45B | GM13: @LK-RMU-BH45B | GN13: @LK-ROV-BH45B | GO13: @LK-RPT-BH45B | GP13: @LK-RPE-BH45B | GQ13: @LK-RPG-BH45B | GR13: @LK-RPO-BH45B | GS13: @LK-RSG-BH45B | GT13: @LK-RSP-BH45B | GU13: @LK-RSK-BH45B | GV13: @LK-RST-BH45B | GW13: @LK-RSY-BH45B | GX13: @LK-RSN-BH45B | GY13: @LK-RTP-BH45B | GZ13: @LK-RTK-BH45B | HA13: @LK-RWE-BH45B | HB13: @LK-VAG-BH45B | HC13: @LK-VAT-BH45B | HD13: @LK-VAB-BH45B | HE13: @LK-VBR-BH45B | HF13: @LK-VBG-BH45B | HG13: @LK-VBW-BH45B | HH13: @LK-VCS-BH45B | HI13: @LK-VDM-BH45B | HJ13: @LK-VDP-BH45B | HK13: @LK-VDS-BH45B | HL13: @LK-VGP-BH45B | HM13: @LK-VHG-BH45B | HN13: @LK-VIN-BH45B | HO13: @LK-VIY-BH45B | HP13: @LK-VLN-BH45B | HQ13: @LK-VDG-BH45B | HR13: @LK-VME-BH45B | HS13: @LK-VMN-BH45B | HT13: @LK-VMU-BH45B | HU13: @LK-VOV-BH45B | HV13: @LK-VPT-BH45B | HW13: @LK-VPE-BH45B | HX13: @LK-VPG-BH45B | HY13: @LK-VPN-BH45B | HZ13: @LK-VSG-BH45B | IA13: @LK-VSP-BH45B | IB13: @LK-VSB-BH45B | IC13: @LK-VSO-BH45B | ID13: @LK-VSY-BH45B | IE13: @LK-VSN-BH45B | IF13: @LK-VTP-BH45B | IG13: @LK-VTK-BH45B | IH13: @LK-VWE-BH45B | II13: @LK-TAG-BH45B | IJ13: @LK-TAT-BH45B | IK13: @LK-TAB-BH45B | IL13: @LK-TBR-BH45B | IM13: @LK-TBG-BH45B | IN13: @LK-TBW-BH45B | IO13: @LK-TCS-BH45B | IP13: @LK-TDM-BH45B | IQ13: @LK-TDR-BH45B | IR13: @LK-TDS-BH45B | IS13: @LK-TGP-BH45B | IT13: @LK-THG-BH45B | IU13: @LK-TIN-BH45B | IV13: @LK-TIV-BH45B | IW13: @LK-TLR-BH45B | IX13: @LK-TLG-BH45B | IY13: @LK-TMW-BH45B | IZ13: @LK-TMN-BH45B | JA13: @LK-TMU-BH45B | JB13: @LK-TOV-BH45B | JC13: @LK-TPT-BH45B | JD13: @LK-TPE-BH45B | JE13: @LK-TPG-BH45B | JF13: @LK-TPN-BH45B | JG13: @LK-TSG-BH45B | JH13: @LK-TSP-BH45B | JI13: @LK-TSK-BH45B | JJ13: @LK-TSO-BH45B | JK13: @LK-TSY-BH45B | JL13: @LK-TST-BH45B | JM13: @LK-TTP-BH45B | JN13: @LK-TTK-BH45B | JO13: @LK-TWE-BH45B | JP13: @LK-WAG-BH45B | JQ13: @LK-WAT-BH45B | JR13: @LK-WAB-BH45B | JS13: @LK-WBR-BH45B | JT13: @LK-WBG-BH45B | JU13: @LK-WBW-BH45B | JV13: @LK-WCS-BH45B | JW13: @LK-WDM-BH45B | JX13: @LK-WDR-BH45B | JY13: @LK-WDS-BH45B | JZ13: @LK-WGP-BH45B | KA13: @LK-WHE-BH45B | KB13: @LK-WIN-BH45B | KC13: @LK-WIV-BH45B | KD13: @LK-WLR-BH45B | KE13: @LK-WDG-BH45B | KF13: @LK-WMW-BH45B | KG13: @LK-WMN-BH45B | KH13: @LK-WMU-BH45B | KI13: @LK-WOV-BH45B | KJ13: @LK-WPT-BH45B | KK13: @LK-WPE-BH45B | KL13: @LK-WPG-BH45B | KM13: @LK-WPN-BH45B | KN13: @LK-WSG-BH45B | KO13: @LK-WSP-BH45B | KP13: @LK-WSB-BH45B | KQ13: @LK-WSO-BH45B | KR13: @LK-WSY-BH45B | KS13: @LK-WST-BH45B | KT13: @LK-WTP-BH45B | KU13: @LK-WTK-BH45B | KV13: @LK-WWE-BH45B | KW13: @LK-HAG-BH45B | KX13: @LK-HAT-BH45B | KY13: @LK-HAB-BH45B | KZ13: @LK-HBR-BH45B | LA13: @LK-HBG-BH45B | LB13: @LK-HBW-BH45B | LC13: @LK-HCS-BH45B | LD13: @LK-HDM-BH45B | LE13: @LK-HDP-BH45B | LF13: @LK-HDS-BH45B | LG13: @LK-HGP-BH45B | LH13: @LK-HHG-BH45B | LI13: @LK-HIN-BH45B | LJ13: @LK-HIV-BH45B | LK13: @LK-HLR-BH45B | LL13: @LK-HLG-BH45B | LM13: @LK-HMW-BH45B | LN13: @LK-HMN-BH45B | LO13: @LK-HMU-BH45B | LP13: @LK-HOV-BH45B | LQ13: @LK-HPT-BH45B | LR13: @LK-HPE-BH45B | LS13: @LK-HPG-BH45B | LT13: @LK-HPN-BH45B | LU13: @LK-HSG-BH45B | LV13: @LK-HSP-BH45B | LW13: @LK-HSK-BH45B | LX13: @LK-HSO-BH45B | LY13: @LK-HSY-BH45B | LZ13: @LK-HST-BH45B | MA13: @LK-HTP-BH45B | MB13: @LK-HTK-BH45B | MC13: @LK-HWE-BH45B | MD13: @LK-SAG-BH45B | ME13: @LK-SAT-BH45B | MF13: @LK-SAB-BH45B | MG13: @LK-SBR-BH45B | MH13: @LK-SBG-BH45B | MI13: @LK-SBW-BH45B | MJ13: @LK-SCS-BH45B | MK13: @LK-SDM-BH45B | ML13: @LK-SDP-BH45B | MM13: @LK-SDS-BH45B | MN13: @LK-SGP-BH45B | MO13: @LK-SHG-BH45B | MP13: @LK-SIN-BH45B | MQ13: @LK-SIV-BH45B | MR13: @LK-SLR-BH45B | MS13: @LK-SDG-BH45B | MT13: @LK-SMW-BH45B | MU13: @LK-SMN-BH45B | MV13: @LK-SMU-BH45B | MW13: @LK-SOV-BH45B | MX13: @LK-SPT-BH45B | MY13: @LK-SPE-BH45B | MZ13: @LK-SPG-BH45B | NA13: @LK-SPN-BH45B | NB13: @LK-SSG-BH45B | NC13: @LK-SSP-BH45B | ND13: @LK-SSB-BH45B | NE13: @LK-SSO-BH45B | NF13: @LK-SSY-BH45B | NG13: @LK-SST-BH45B | NH13: @LK-STP-BH45B | NI13: @LK-STK-BH45B | NJ13: @LK-SWE-BH45B | NK13: @LK-SBZ-BH45B | NL13: @LK-SBF-BH45B | NM13: @LK-SCB-BH45B | NN13: @LK-SMZ-BH45B | NO13: @LK-SMC-BH45B | NP13: @LK-SPO-BH45B
A14: BH50 | B14: 500 HL Base Unit | C14: BH50 | D14: @LK-EMD-BH50 | E14: @LK-EMY-BH50 | F14: @LK-EMG-BH50 | G14: @LK-EMM-BH50 | H14: @LK-EMS-BH50 | I14: @LK-OPC-BH50 | J14: @LK-OPD-BH50 | K14: @LK-OPY-BH50 | L14: @LK-OPF-BH50 | M14: @LK-OPG-BH50 | N14: @LK-OPM-BH50 | O14: @LK-OPR-BH50 | P14: @LK-OPS-BH50 | Q14: @LK-OPW-BH50 | R14: @LK-BCS-BH50 | S14: @LK-BDG-BH50 | T14: @LK-BDY-BH50 | U14: @LK-BGP-BH50 | V14: @LK-BSG-BH50 | W14: @LK-BWH-BH50 | X14: @LK-CSW-BH50 | Y14: @LK-DSS-BH50 | Z14: @LK-DGW-BH50 | AA14: @LK-DYW-BH50 | AB14: @LK-GPW-BH50 | AC14: @LK-INW-BH50 | AD14: @LK-ISW-BH50 | AE14: @LK-MSW-BH50 | AF14: @LK-RGW-BH50 | AG14: @LK-NVW-BH50 | AH14: @LK-SPW-BH50 | AI14: @LK-STW-BH50 | AJ14: @LK-WSW-BH50 | AK14: @LK-AOK-BH50 | AL14: @LK-ABL-BH50 | AM14: @LK-ACH-BH50 | AN14: @LK-ADG-BH50 | AO14: @LK-ARG-BH50 | AP14: @LK-AFR-BH50 | AQ14: @LK-ATP-BH50 | AR14: @LK-ALG-BH50 | AS14: @LK-AIN-BH50 | AT14: @LK-KCH-BH50 | AU14: @LK-KLG-BH50 | AV14: @LK-KDG-BH50 | AW14: @LK-KGP-BH50 | AX14: @LK-KTP-BH50 | AY14: @LK-KRG-BH50 | AZ14: @LK-KFR-BH50 | BA14: @LK-KIN-BH50 | BB14: @LK-MCS-BH50 | BC14: @LK-MGD-BH50 | BD14: @LK-MDS-BH50 | BE14: @LK-MGP-BH50 | BF14: @LK-MPN-BH50 | BG14: @LK-MGW-BH50 | BH14: @LK-MCM-BH50 | BI14: @LK-MDM-BH50 | BJ14: @LK-MTM-BH50 | BK14: @LK-MGM-BH50 | BL14: @LK-MIM-BH50 | BM14: @LK-MGR-BH50 | BN14: @LK-MSM-BH50 | BO14: @LK-MPM-BH50 | BP14: @LK-MTP-BH50 | BQ14: @LK-MWM-BH50 | BR14: @LK-EOG-BH50 | BS14: @LK-EOM-BH50 | BT14: @LK-EPM-BH50 | BU14: @LK-EVM-BH50 | BV14: @LK-ENM-BH50 | BW14: @LK-ELA-BH50 | BX14: @LK-ELD-BH50 | BY14: @LK-ELW-BH50 | BZ14: @LK-CAG-BH50 | CA14: @LK-CAT-BH50 | CB14: @LK-CAB-BH50 | CC14: @LK-CBR-BH50 | CD14: @LK-CBG-BH50 | CE14: @LK-CBW-BH50 | CF14: @LK-CCS-BH50 | CG14: @LK-CDM-BH50 | CH14: @LK-CDR-BH50 | CI14: @LK-CDG-BH50 | CJ14: @LK-CGP-BH50 | CK14: @LK-CHG-BH50 | CL14: @LK-CIN-BH50 | CM14: @LK-CIV-BH50 | CN14: @LK-CLR-BH50 | CO14: @LK-CLG-BH50 | CP14: @LK-CMW-BH50 | CQ14: @LK-CMN-BH50 | CR14: @LK-CMU-BH50 | CS14: @LK-COV-BH50 | CT14: @LK-CPT-BH50 | CU14: @LK-CPE-BH50 | CV14: @LK-CPG-BH50 | CW14: @LK-CPN-BH50 | CX14: @LK-CSG-BH50 | CY14: @LK-CSP-BH50 | CZ14: @LK-CSB-BH50 | DA14: @LK-CSO-BH50 | DB14: @LK-CSY-BH50 | DC14: @LK-CST-BH50 | DD14: @LK-CTP-BH50 | DE14: @LK-CTK-BH50 | DF14: @LK-CWE-BH50 | DG14: @LK-GAG-BH50 | DH14: @LK-GAT-BH50 | DI14: @LK-GAB-BH50 | DJ14: @LK-GBR-BH50 | DK14: @LK-GBG-BH50 | DL14: @LK-GBW-BH50 | DM14: @LK-GCS-BH50 | DN14: @LK-GDM-BH50 | DO14: @LK-GDR-BH50 | DP14: @LK-GDG-BH50 | DQ14: @LK-GGP-BH50 | DR14: @LK-GHG-BH50 | DS14: @LK-GIN-BH50 | DT14: @LK-GIV-BH50 | DU14: @LK-GLR-BH50 | DV14: @LK-GLG-BH50 | DW14: @LK-GMW-BH50 | DX14: @LK-GMN-BH50 | DY14: @LK-GMU-BH50 | DZ14: @LK-GOV-BH50 | EA14: @LK-GPT-BH50 | EB14: @LK-GPE-BH50 | EC14: @LK-GPG-BH50 | ED14: @LK-GPN-BH50 | EE14: @LK-GSG-BH50 | EF14: @LK-GSP-BH50 | EG14: @LK-GSB-BH50 | EH14: @LK-GSO-BH50 | EI14: @LK-GSY-BH50 | EJ14: @LK-GST-BH50 | EK14: @LK-GTP-BH50 | EL14: @LK-GTK-BH50 | EM14: @LK-GWE-BH50 | EN14: @LK-EAG-BH50 | EO14: @LK-EAT-BH50 | EP14: @LK-EAB-BH50 | EQ14: @LK-EBR-BH50 | ER14: @LK-EBG-BH50 | ES14: @LK-EBW-BH50 | ET14: @LK-ECS-BH50 | EU14: @LK-EDM-BH50 | EV14: @LK-EDP-BH50 | EW14: @LK-EDS-BH50 | EX14: @LK-EGP-BH50 | EY14: @LK-EHG-BH50 | EZ14: @LK-EIN-BH50 | FA14: @LK-EIV-BH50 | FB14: @LK-ELN-BH50 | FC14: @LK-EDG-BH50 | FD14: @LK-EME-BH50 | FE14: @LK-EMN-BH50 | FF14: @LK-EMU-BH50 | FG14: @LK-EOV-BH50 | FH14: @LK-EPT-BH50 | FI14: @LK-EPE-BH50 | FJ14: @LK-EPG-BH50 | FK14: @LK-EPN-BH50 | FL14: @LK-ESG-BH50 | FM14: @LK-ESP-BH50 | FN14: @LK-ESK-BH50 | FO14: @LK-ESO-BH50 | FP14: @LK-ESY-BH50 | FQ14: @LK-ESN-BH50 | FR14: @LK-ETP-BH50 | FS14: @LK-ETK-BH50 | FT14: @LK-EWE-BH50 | FU14: @LK-RAG-BH50 | FV14: @LK-RAT-BH50 | FW14: @LK-RAB-BH50 | FX14: @LK-RBR-BH50 | FY14: @LK-RBG-BH50 | FZ14: @LK-RBW-BH50 | GA14: @LK-RCS-BH50 | GB14: @LK-RDM-BH50 | GC14: @LK-RDP-BH50 | GD14: @LK-RDS-BH50 | GE14: @LK-RGP-BH50 | GF14: @LK-RHG-BH50 | GG14: @LK-RIN-BH50 | GH14: @LK-RIV-BH50 | GI14: @LK-RLR-BH50 | GJ14: @LK-RDG-BH50 | GK14: @LK-RMW-BH50 | GL14: @LK-RMN-BH50 | GM14: @LK-RMU-BH50 | GN14: @LK-ROV-BH50 | GO14: @LK-RPT-BH50 | GP14: @LK-RPE-BH50 | GQ14: @LK-RPG-BH50 | GR14: @LK-RPO-BH50 | GS14: @LK-RSG-BH50 | GT14: @LK-RSP-BH50 | GU14: @LK-RSK-BH50 | GV14: @LK-RST-BH50 | GW14: @LK-RSY-BH50 | GX14: @LK-RSN-BH50 | GY14: @LK-RTP-BH50 | GZ14: @LK-RTK-BH50 | HA14: @LK-RWE-BH50 | HB14: @LK-VAG-BH50 | HC14: @LK-VAT-BH50 | HD14: @LK-VAB-BH50 | HE14: @LK-VBR-BH50 | HF14: @LK-VBG-BH50 | HG14: @LK-VBW-BH50 | HH14: @LK-VCS-BH50 | HI14: @LK-VDM-BH50 | HJ14: @LK-VDP-BH50 | HK14: @LK-VDS-BH50 | HL14: @LK-VGP-BH50 | HM14: @LK-VHG-BH50 | HN14: @LK-VIN-BH50 | HO14: @LK-VIY-BH50 | HP14: @LK-VLN-BH50 | HQ14: @LK-VDG-BH50 | HR14: @LK-VME-BH50 | HS14: @LK-VMN-BH50 | HT14: @LK-VMU-BH50 | HU14: @LK-VOV-BH50 | HV14: @LK-VPT-BH50 | HW14: @LK-VPE-BH50 | HX14: @LK-VPG-BH50 | HY14: @LK-VPN-BH50 | HZ14: @LK-VSG-BH50 | IA14: @LK-VSP-BH50 | IB14: @LK-VSB-BH50 | IC14: @LK-VSO-BH50 | ID14: @LK-VSY-BH50 | IE14: @LK-VSN-BH50 | IF14: @LK-VTP-BH50 | IG14: @LK-VTK-BH50 | IH14: @LK-VWE-BH50 | II14: @LK-TAG-BH50 | IJ14: @LK-TAT-BH50 | IK14: @LK-TAB-BH50 | IL14: @LK-TBR-BH50 | IM14: @LK-TBG-BH50 | IN14: @LK-TBW-BH50 | IO14: @LK-TCS-BH50 | IP14: @LK-TDM-BH50 | IQ14: @LK-TDR-BH50 | IR14: @LK-TDS-BH50 | IS14: @LK-TGP-BH50 | IT14: @LK-THG-BH50 | IU14: @LK-TIN-BH50 | IV14: @LK-TIV-BH50 | IW14: @LK-TLR-BH50 | IX14: @LK-TLG-BH50 | IY14: @LK-TMW-BH50 | IZ14: @LK-TMN-BH50 | JA14: @LK-TMU-BH50 | JB14: @LK-TOV-BH50 | JC14: @LK-TPT-BH50 | JD14: @LK-TPE-BH50 | JE14: @LK-TPG-BH50 | JF14: @LK-TPN-BH50 | JG14: @LK-TSG-BH50 | JH14: @LK-TSP-BH50 | JI14: @LK-TSK-BH50 | JJ14: @LK-TSO-BH50 | JK14: @LK-TSY-BH50 | JL14: @LK-TST-BH50 | JM14: @LK-TTP-BH50 | JN14: @LK-TTK-BH50 | JO14: @LK-TWE-BH50 | JP14: @LK-WAG-BH50 | JQ14: @LK-WAT-BH50 | JR14: @LK-WAB-BH50 | JS14: @LK-WBR-BH50 | JT14: @LK-WBG-BH50 | JU14: @LK-WBW-BH50 | JV14: @LK-WCS-BH50 | JW14: @LK-WDM-BH50 | JX14: @LK-WDR-BH50 | JY14: @LK-WDS-BH50 | JZ14: @LK-WGP-BH50 | KA14: @LK-WHE-BH50 | KB14: @LK-WIN-BH50 | KC14: @LK-WIV-BH50 | KD14: @LK-WLR-BH50 | KE14: @LK-WDG-BH50 | KF14: @LK-WMW-BH50 | KG14: @LK-WMN-BH50 | KH14: @LK-WMU-BH50 | KI14: @LK-WOV-BH50 | KJ14: @LK-WPT-BH50 | KK14: @LK-WPE-BH50 | KL14: @LK-WPG-BH50 | KM14: @LK-WPN-BH50 | KN14: @LK-WSG-BH50 | KO14: @LK-WSP-BH50 | KP14: @LK-WSB-BH50 | KQ14: @LK-WSO-BH50 | KR14: @LK-WSY-BH50 | KS14: @LK-WST-BH50 | KT14: @LK-WTP-BH50 | KU14: @LK-WTK-BH50 | KV14: @LK-WWE-BH50 | KW14: @LK-HAG-BH50 | KX14: @LK-HAT-BH50 | KY14: @LK-HAB-BH50 | KZ14: @LK-HBR-BH50 | LA14: @LK-HBG-BH50 | LB14: @LK-HBW-BH50 | LC14: @LK-HCS-BH50 | LD14: @LK-HDM-BH50 | LE14: @LK-HDP-BH50 | LF14: @LK-HDS-BH50 | LG14: @LK-HGP-BH50 | LH14: @LK-HHG-BH50 | LI14: @LK-HIN-BH50 | LJ14: @LK-HIV-BH50 | LK14: @LK-HLR-BH50 | LL14: @LK-HLG-BH50 | LM14: @LK-HMW-BH50 | LN14: @LK-HMN-BH50 | LO14: @LK-HMU-BH50 | LP14: @LK-HOV-BH50 | LQ14: @LK-HPT-BH50 | LR14: @LK-HPE-BH50 | LS14: @LK-HPG-BH50 | LT14: @LK-HPN-BH50 | LU14: @LK-HSG-BH50 | LV14: @LK-HSP-BH50 | LW14: @LK-HSK-BH50 | LX14: @LK-HSO-BH50 | LY14: @LK-HSY-BH50 | LZ14: @LK-HST-BH50 | MA14: @LK-HTP-BH50 | MB14: @LK-HTK-BH50 | MC14: @LK-HWE-BH50 | MD14: @LK-SAG-BH50 | ME14: @LK-SAT-BH50 | MF14: @LK-SAB-BH50 | MG14: @LK-SBR-BH50 | MH14: @LK-SBG-BH50 | MI14: @LK-SBW-BH50 | MJ14: @LK-SCS-BH50 | MK14: @LK-SDM-BH50 | ML14: @LK-SDP-BH50 | MM14: @LK-SDS-BH50 | MN14: @LK-SGP-BH50 | MO14: @LK-SHG-BH50 | MP14: @LK-SIN-BH50 | MQ14: @LK-SIV-BH50 | MR14: @LK-SLR-BH50 | MS14: @LK-SDG-BH50 | MT14: @LK-SMW-BH50 | MU14: @LK-SMN-BH50 | MV14: @LK-SMU-BH50 | MW14: @LK-SOV-BH50 | MX14: @LK-SPT-BH50 | MY14: @LK-SPE-BH50 | MZ14: @LK-SPG-BH50 | NA14: @LK-SPN-BH50 | NB14: @LK-SSG-BH50 | NC14: @LK-SSP-BH50 | ND14: @LK-SSB-BH50 | NE14: @LK-SSO-BH50 | NF14: @LK-SSY-BH50 | NG14: @LK-SST-BH50 | NH14: @LK-STP-BH50 | NI14: @LK-STK-BH50 | NJ14: @LK-SWE-BH50 | NK14: @LK-SBZ-BH50 | NL14: @LK-SBF-BH50 | NM14: @LK-SCB-BH50 | NN14: @LK-SMZ-BH50 | NO14: @LK-SMC-BH50 | NP14: @LK-SPO-BH50
A15: BH5B | B15: 500 HL Base Unit & Bin | C15: BH5B | D15: @LK-EMD-BH5B | E15: @LK-EMY-BH5B | F15: @LK-EMG-BH5B | G15: @LK-EMM-BH5B | H15: @LK-EMS-BH5B | I15: @LK-OPC-BH5B | J15: @LK-OPD-BH5B | K15: @LK-OPY-BH5B | L15: @LK-OPF-BH5B | M15: @LK-OPG-BH5B | N15: @LK-OPM-BH5B | O15: @LK-OPR-BH5B | P15: @LK-OPS-BH5B | Q15: @LK-OPW-BH5B | R15: @LK-BCS-BH5B | S15: @LK-BDG-BH5B | T15: @LK-BDY-BH5B | U15: @LK-BGP-BH5B | V15: @LK-BSG-BH5B | W15: @LK-BWH-BH5B | X15: @LK-CSW-BH5B | Y15: @LK-DSS-BH5B | Z15: @LK-DGW-BH5B | AA15: @LK-DYW-BH5B | AB15: @LK-GPW-BH5B | AC15: @LK-INW-BH5B | AD15: @LK-ISW-BH5B | AE15: @LK-MSW-BH5B | AF15: @LK-RGW-BH5B | AG15: @LK-NVW-BH5B | AH15: @LK-SPW-BH5B | AI15: @LK-STW-BH5B | AJ15: @LK-WSW-BH5B | AK15: @LK-AOK-BH5B | AL15: @LK-ABL-BH5B | AM15: @LK-ACH-BH5B | AN15: @LK-ADG-BH5B | AO15: @LK-ARG-BH5B | AP15: @LK-AFR-BH5B | AQ15: @LK-ATP-BH5B | AR15: @LK-ALG-BH5B | AS15: @LK-AIN-BH5B | AT15: @LK-KCH-BH5B | AU15: @LK-KLG-BH5B | AV15: @LK-KDG-BH5B | AW15: @LK-KGP-BH5B | AX15: @LK-KTP-BH5B | AY15: @LK-KRG-BH5B | AZ15: @LK-KFR-BH5B | BA15: @LK-KIN-BH5B | BB15: @LK-MCS-BH5B | BC15: @LK-MGD-BH5B | BD15: @LK-MDS-BH5B | BE15: @LK-MGP-BH5B | BF15: @LK-MPN-BH5B | BG15: @LK-MGW-BH5B | BH15: @LK-MCM-BH5B | BI15: @LK-MDM-BH5B | BJ15: @LK-MTM-BH5B | BK15: @LK-MGM-BH5B | BL15: @LK-MIM-BH5B | BM15: @LK-MGR-BH5B | BN15: @LK-MSM-BH5B | BO15: @LK-MPM-BH5B | BP15: @LK-MTP-BH5B | BQ15: @LK-MWM-BH5B | BR15: @LK-EOG-BH5B | BS15: @LK-EOM-BH5B | BT15: @LK-EPM-BH5B | BU15: @LK-EVM-BH5B | BV15: @LK-ENM-BH5B | BW15: @LK-ELA-BH5B | BX15: @LK-ELD-BH5B | BY15: @LK-ELW-BH5B | BZ15: @LK-CAG-BH5B | CA15: @LK-CAT-BH5B | CB15: @LK-CAB-BH5B | CC15: @LK-CBR-BH5B | CD15: @LK-CBG-BH5B | CE15: @LK-CBW-BH5B | CF15: @LK-CCS-BH5B | CG15: @LK-CDM-BH5B | CH15: @LK-CDR-BH5B | CI15: @LK-CDG-BH5B | CJ15: @LK-CGP-BH5B | CK15: @LK-CHG-BH5B | CL15: @LK-CIN-BH5B | CM15: @LK-CIV-BH5B | CN15: @LK-CLR-BH5B | CO15: @LK-CLG-BH5B | CP15: @LK-CMW-BH5B | CQ15: @LK-CMN-BH5B | CR15: @LK-CMU-BH5B | CS15: @LK-COV-BH5B | CT15: @LK-CPT-BH5B | CU15: @LK-CPE-BH5B | CV15: @LK-CPG-BH5B | CW15: @LK-CPN-BH5B | CX15: @LK-CSG-BH5B | CY15: @LK-CSP-BH5B | CZ15: @LK-CSB-BH5B | DA15: @LK-CSO-BH5B | DB15: @LK-CSY-BH5B | DC15: @LK-CST-BH5B | DD15: @LK-CTP-BH5B | DE15: @LK-CTK-BH5B | DF15: @LK-CWE-BH5B | DG15: @LK-GAG-BH5B | DH15: @LK-GAT-BH5B | DI15: @LK-GAB-BH5B | DJ15: @LK-GBR-BH5B | DK15: @LK-GBG-BH5B | DL15: @LK-GBW-BH5B | DM15: @LK-GCS-BH5B | DN15: @LK-GDM-BH5B | DO15: @LK-GDR-BH5B | DP15: @LK-GDG-BH5B | DQ15: @LK-GGP-BH5B | DR15: @LK-GHG-BH5B | DS15: @LK-GIN-BH5B | DT15: @LK-GIV-BH5B | DU15: @LK-GLR-BH5B | DV15: @LK-GLG-BH5B | DW15: @LK-GMW-BH5B | DX15: @LK-GMN-BH5B | DY15: @LK-GMU-BH5B | DZ15: @LK-GOV-BH5B | EA15: @LK-GPT-BH5B | EB15: @LK-GPE-BH5B | EC15: @LK-GPG-BH5B | ED15: @LK-GPN-BH5B | EE15: @LK-GSG-BH5B | EF15: @LK-GSP-BH5B | EG15: @LK-GSB-BH5B | EH15: @LK-GSO-BH5B | EI15: @LK-GSY-BH5B | EJ15: @LK-GST-BH5B | EK15: @LK-GTP-BH5B | EL15: @LK-GTK-BH5B | EM15: @LK-GWE-BH5B | EN15: @LK-EAG-BH5B | EO15: @LK-EAT-BH5B | EP15: @LK-EAB-BH5B | EQ15: @LK-EBR-BH5B | ER15: @LK-EBG-BH5B | ES15: @LK-EBW-BH5B | ET15: @LK-ECS-BH5B | EU15: @LK-EDM-BH5B | EV15: @LK-EDP-BH5B | EW15: @LK-EDS-BH5B | EX15: @LK-EGP-BH5B | EY15: @LK-EHG-BH5B | EZ15: @LK-EIN-BH5B | FA15: @LK-EIV-BH5B | FB15: @LK-ELN-BH5B | FC15: @LK-EDG-BH5B | FD15: @LK-EME-BH5B | FE15: @LK-EMN-BH5B | FF15: @LK-EMU-BH5B | FG15: @LK-EOV-BH5B | FH15: @LK-EPT-BH5B | FI15: @LK-EPE-BH5B | FJ15: @LK-EPG-BH5B | FK15: @LK-EPN-BH5B | FL15: @LK-ESG-BH5B | FM15: @LK-ESP-BH5B | FN15: @LK-ESK-BH5B | FO15: @LK-ESO-BH5B | FP15: @LK-ESY-BH5B | FQ15: @LK-ESN-BH5B | FR15: @LK-ETP-BH5B | FS15: @LK-ETK-BH5B | FT15: @LK-EWE-BH5B | FU15: @LK-RAG-BH5B | FV15: @LK-RAT-BH5B | FW15: @LK-RAB-BH5B | FX15: @LK-RBR-BH5B | FY15: @LK-RBG-BH5B | FZ15: @LK-RBW-BH5B | GA15: @LK-RCS-BH5B | GB15: @LK-RDM-BH5B | GC15: @LK-RDP-BH5B | GD15: @LK-RDS-BH5B | GE15: @LK-RGP-BH5B | GF15: @LK-RHG-BH5B | GG15: @LK-RIN-BH5B | GH15: @LK-RIV-BH5B | GI15: @LK-RLR-BH5B | GJ15: @LK-RDG-BH5B | GK15: @LK-RMW-BH5B | GL15: @LK-RMN-BH5B | GM15: @LK-RMU-BH5B | GN15: @LK-ROV-BH5B | GO15: @LK-RPT-BH5B | GP15: @LK-RPE-BH5B | GQ15: @LK-RPG-BH5B | GR15: @LK-RPO-BH5B | GS15: @LK-RSG-BH5B | GT15: @LK-RSP-BH5B | GU15: @LK-RSK-BH5B | GV15: @LK-RST-BH5B | GW15: @LK-RSY-BH5B | GX15: @LK-RSN-BH5B | GY15: @LK-RTP-BH5B | GZ15: @LK-RTK-BH5B | HA15: @LK-RWE-BH5B | HB15: @LK-VAG-BH5B | HC15: @LK-VAT-BH5B | HD15: @LK-VAB-BH5B | HE15: @LK-VBR-BH5B | HF15: @LK-VBG-BH5B | HG15: @LK-VBW-BH5B | HH15: @LK-VCS-BH5B | HI15: @LK-VDM-BH5B | HJ15: @LK-VDP-BH5B | HK15: @LK-VDS-BH5B | HL15: @LK-VGP-BH5B | HM15: @LK-VHG-BH5B | HN15: @LK-VIN-BH5B | HO15: @LK-VIY-BH5B | HP15: @LK-VLN-BH5B | HQ15: @LK-VDG-BH5B | HR15: @LK-VME-BH5B | HS15: @LK-VMN-BH5B | HT15: @LK-VMU-BH5B | HU15: @LK-VOV-BH5B | HV15: @LK-VPT-BH5B | HW15: @LK-VPE-BH5B | HX15: @LK-VPG-BH5B | HY15: @LK-VPN-BH5B | HZ15: @LK-VSG-BH5B | IA15: @LK-VSP-BH5B | IB15: @LK-VSB-BH5B | IC15: @LK-VSO-BH5B | ID15: @LK-VSY-BH5B | IE15: @LK-VSN-BH5B | IF15: @LK-VTP-BH5B | IG15: @LK-VTK-BH5B | IH15: @LK-VWE-BH5B | II15: @LK-TAG-BH5B | IJ15: @LK-TAT-BH5B | IK15: @LK-TAB-BH5B | IL15: @LK-TBR-BH5B | IM15: @LK-TBG-BH5B | IN15: @LK-TBW-BH5B | IO15: @LK-TCS-BH5B | IP15: @LK-TDM-BH5B | IQ15: @LK-TDR-BH5B | IR15: @LK-TDS-BH5B | IS15: @LK-TGP-BH5B | IT15: @LK-THG-BH5B | IU15: @LK-TIN-BH5B | IV15: @LK-TIV-BH5B | IW15: @LK-TLR-BH5B | IX15: @LK-TLG-BH5B | IY15: @LK-TMW-BH5B | IZ15: @LK-TMN-BH5B | JA15: @LK-TMU-BH5B | JB15: @LK-TOV-BH5B | JC15: @LK-TPT-BH5B | JD15: @LK-TPE-BH5B | JE15: @LK-TPG-BH5B | JF15: @LK-TPN-BH5B | JG15: @LK-TSG-BH5B | JH15: @LK-TSP-BH5B | JI15: @LK-TSK-BH5B | JJ15: @LK-TSO-BH5B | JK15: @LK-TSY-BH5B | JL15: @LK-TST-BH5B | JM15: @LK-TTP-BH5B | JN15: @LK-TTK-BH5B | JO15: @LK-TWE-BH5B | JP15: @LK-WAG-BH5B | JQ15: @LK-WAT-BH5B | JR15: @LK-WAB-BH5B | JS15: @LK-WBR-BH5B | JT15: @LK-WBG-BH5B | JU15: @LK-WBW-BH5B | JV15: @LK-WCS-BH5B | JW15: @LK-WDM-BH5B | JX15: @LK-WDR-BH5B | JY15: @LK-WDS-BH5B | JZ15: @LK-WGP-BH5B | KA15: @LK-WHE-BH5B | KB15: @LK-WIN-BH5B | KC15: @LK-WIV-BH5B | KD15: @LK-WLR-BH5B | KE15: @LK-WDG-BH5B | KF15: @LK-WMW-BH5B | KG15: @LK-WMN-BH5B | KH15: @LK-WMU-BH5B | KI15: @LK-WOV-BH5B | KJ15: @LK-WPT-BH5B | KK15: @LK-WPE-BH5B | KL15: @LK-WPG-BH5B | KM15: @LK-WPN-BH5B | KN15: @LK-WSG-BH5B | KO15: @LK-WSP-BH5B | KP15: @LK-WSB-BH5B | KQ15: @LK-WSO-BH5B | KR15: @LK-WSY-BH5B | KS15: @LK-WST-BH5B | KT15: @LK-WTP-BH5B | KU15: @LK-WTK-BH5B | KV15: @LK-WWE-BH5B | KW15: @LK-HAG-BH5B | KX15: @LK-HAT-BH5B | KY15: @LK-HAB-BH5B | KZ15: @LK-HBR-BH5B | LA15: @LK-HBG-BH5B | LB15: @LK-HBW-BH5B | LC15: @LK-HCS-BH5B | LD15: @LK-HDM-BH5B | LE15: @LK-HDP-BH5B | LF15: @LK-HDS-BH5B | LG15: @LK-HGP-BH5B | LH15: @LK-HHG-BH5B | LI15: @LK-HIN-BH5B | LJ15: @LK-HIV-BH5B | LK15: @LK-HLR-BH5B | LL15: @LK-HLG-BH5B | LM15: @LK-HMW-BH5B | LN15: @LK-HMN-BH5B | LO15: @LK-HMU-BH5B | LP15: @LK-HOV-BH5B | LQ15: @LK-HPT-BH5B | LR15: @LK-HPE-BH5B | LS15: @LK-HPG-BH5B | LT15: @LK-HPN-BH5B | LU15: @LK-HSG-BH5B | LV15: @LK-HSP-BH5B | LW15: @LK-HSK-BH5B | LX15: @LK-HSO-BH5B | LY15: @LK-HSY-BH5B | LZ15: @LK-HST-BH5B | MA15: @LK-HTP-BH5B | MB15: @LK-HTK-BH5B | MC15: @LK-HWE-BH5B | MD15: @LK-SAG-BH5B | ME15: @LK-SAT-BH5B | MF15: @LK-SAB-BH5B | MG15: @LK-SBR-BH5B | MH15: @LK-SBG-BH5B | MI15: @LK-SBW-BH5B | MJ15: @LK-SCS-BH5B | MK15: @LK-SDM-BH5B | ML15: @LK-SDP-BH5B | MM15: @LK-SDS-BH5B | MN15: @LK-SGP-BH5B | MO15: @LK-SHG-BH5B | MP15: @LK-SIN-BH5B | MQ15: @LK-SIV-BH5B | MR15: @LK-SLR-BH5B | MS15: @LK-SDG-BH5B | MT15: @LK-SMW-BH5B | MU15: @LK-SMN-BH5B | MV15: @LK-SMU-BH5B | MW15: @LK-SOV-BH5B | MX15: @LK-SPT-BH5B | MY15: @LK-SPE-BH5B | MZ15: @LK-SPG-BH5B | NA15: @LK-SPN-BH5B | NB15: @LK-SSG-BH5B | NC15: @LK-SSP-BH5B | ND15: @LK-SSB-BH5B | NE15: @LK-SSO-BH5B | NF15: @LK-SSY-BH5B | NG15: @LK-SST-BH5B | NH15: @LK-STP-BH5B | NI15: @LK-STK-BH5B | NJ15: @LK-SWE-BH5B | NK15: @LK-SBZ-BH5B | NL15: @LK-SBF-BH5B | NM15: @LK-SCB-BH5B | NN15: @LK-SMZ-BH5B | NO15: @LK-SMC-BH5B | NP15: @LK-SPO-BH5B
A16: BH50S | B16: 500 HL Sink Base Unit (Inc Liner) | C16: BH50S | D16: @LK-EMD-BH50S | E16: @LK-EMY-BH50S | F16: @LK-EMG-BH50S | G16: @LK-EMM-BH50S | H16: @LK-EMS-BH50S | I16: @LK-OPC-BH50S | J16: @LK-OPD-BH50S | K16: @LK-OPY-BH50S | L16: @LK-OPF-BH50S | M16: @LK-OPG-BH50S | N16: @LK-OPM-BH50S | O16: @LK-OPR-BH50S | P16: @LK-OPS-BH50S | Q16: @LK-OPW-BH50S | R16: @LK-BCS-BH50S | S16: @LK-BDG-BH50S | T16: @LK-BDY-BH50S | U16: @LK-BGP-BH50S | V16: @LK-BSG-BH50S | W16: @LK-BWH-BH50S | X16: @LK-CSW-BH50S | Y16: @LK-DSS-BH50S | Z16: @LK-DGW-BH50S | AA16: @LK-DYW-BH50S | AB16: @LK-GPW-BH50S | AC16: @LK-INW-BH50S | AD16: @LK-ISW-BH50S | AE16: @LK-MSW-BH50S | AF16: @LK-RGW-BH50S | AG16: @LK-NVW-BH50S | AH16: @LK-SPW-BH50S | AI16: @LK-STW-BH50S | AJ16: @LK-WSW-BH50S | AK16: @LK-AOK-BH50S | AL16: @LK-ABL-BH50S | AM16: @LK-ACH-BH50S | AN16: @LK-ADG-BH50S | AO16: @LK-ARG-BH50S | AP16: @LK-AFR-BH50S | AQ16: @LK-ATP-BH50S | AR16: @LK-ALG-BH50S | AS16: @LK-AIN-BH50S | AT16: @LK-KCH-BH50S | AU16: @LK-KLG-BH50S | AV16: @LK-KDG-BH50S | AW16: @LK-KGP-BH50S | AX16: @LK-KTP-BH50S | AY16: @LK-KRG-BH50S | AZ16: @LK-KFR-BH50S | BA16: @LK-KIN-BH50S | BB16: @LK-MCS-BH50S | BC16: @LK-MGD-BH50S | BD16: @LK-MDS-BH50S | BE16: @LK-MGP-BH50S | BF16: @LK-MPN-BH50S | BG16: @LK-MGW-BH50S | BH16: @LK-MCM-BH50S | BI16: @LK-MDM-BH50S | BJ16: @LK-MTM-BH50S | BK16: @LK-MGM-BH50S | BL16: @LK-MIM-BH50S | BM16: @LK-MGR-BH50S | BN16: @LK-MSM-BH50S | BO16: @LK-MPM-BH50S | BP16: @LK-MTP-BH50S | BQ16: @LK-MWM-BH50S | BR16: @LK-EOG-BH50S | BS16: @LK-EOM-BH50S | BT16: @LK-EPM-BH50S | BU16: @LK-EVM-BH50S | BV16: @LK-ENM-BH50S | BW16: @LK-ELA-BH50S | BX16: @LK-ELD-BH50S | BY16: @LK-ELW-BH50S | BZ16: @LK-CAG-BH50S | CA16: @LK-CAT-BH50S | CB16: @LK-CAB-BH50S | CC16: @LK-CBR-BH50S | CD16: @LK-CBG-BH50S | CE16: @LK-CBW-BH50S | CF16: @LK-CCS-BH50S | CG16: @LK-CDM-BH50S | CH16: @LK-CDR-BH50S | CI16: @LK-CDG-BH50S | CJ16: @LK-CGP-BH50S | CK16: @LK-CHG-BH50S | CL16: @LK-CIN-BH50S | CM16: @LK-CIV-BH50S | CN16: @LK-CLR-BH50S | CO16: @LK-CLG-BH50S | CP16: @LK-CMW-BH50S | CQ16: @LK-CMN-BH50S | CR16: @LK-CMU-BH50S | CS16: @LK-COV-BH50S | CT16: @LK-CPT-BH50S | CU16: @LK-CPE-BH50S | CV16: @LK-CPG-BH50S | CW16: @LK-CPN-BH50S | CX16: @LK-CSG-BH50S | CY16: @LK-CSP-BH50S | CZ16: @LK-CSB-BH50S | DA16: @LK-CSO-BH50S | DB16: @LK-CSY-BH50S | DC16: @LK-CST-BH50S | DD16: @LK-CTP-BH50S | DE16: @LK-CTK-BH50S | DF16: @LK-CWE-BH50S | DG16: @LK-GAG-BH50S | DH16: @LK-GAT-BH50S | DI16: @LK-GAB-BH50S | DJ16: @LK-GBR-BH50S | DK16: @LK-GBG-BH50S | DL16: @LK-GBW-BH50S | DM16: @LK-GCS-BH50S | DN16: @LK-GDM-BH50S | DO16: @LK-GDR-BH50S | DP16: @LK-GDG-BH50S | DQ16: @LK-GGP-BH50S | DR16: @LK-GHG-BH50S | DS16: @LK-GIN-BH50S | DT16: @LK-GIV-BH50S | DU16: @LK-GLR-BH50S | DV16: @LK-GLG-BH50S | DW16: @LK-GMW-BH50S | DX16: @LK-GMN-BH50S | DY16: @LK-GMU-BH50S | DZ16: @LK-GOV-BH50S | EA16: @LK-GPT-BH50S | EB16: @LK-GPE-BH50S | EC16: @LK-GPG-BH50S | ED16: @LK-GPN-BH50S | EE16: @LK-GSG-BH50S | EF16: @LK-GSP-BH50S | EG16: @LK-GSB-BH50S | EH16: @LK-GSO-BH50S | EI16: @LK-GSY-BH50S | EJ16: @LK-GST-BH50S | EK16: @LK-GTP-BH50S | EL16: @LK-GTK-BH50S | EM16: @LK-GWE-BH50S | EN16: @LK-EAG-BH50S | EO16: @LK-EAT-BH50S | EP16: @LK-EAB-BH50S | EQ16: @LK-EBR-BH50S | ER16: @LK-EBG-BH50S | ES16: @LK-EBW-BH50S | ET16: @LK-ECS-BH50S | EU16: @LK-EDM-BH50S | EV16: @LK-EDP-BH50S | EW16: @LK-EDS-BH50S | EX16: @LK-EGP-BH50S | EY16: @LK-EHG-BH50S | EZ16: @LK-EIN-BH50S | FA16: @LK-EIV-BH50S | FB16: @LK-ELN-BH50S | FC16: @LK-EDG-BH50S | FD16: @LK-EME-BH50S | FE16: @LK-EMN-BH50S | FF16: @LK-EMU-BH50S | FG16: @LK-EOV-BH50S | FH16: @LK-EPT-BH50S | FI16: @LK-EPE-BH50S | FJ16: @LK-EPG-BH50S | FK16: @LK-EPN-BH50S | FL16: @LK-ESG-BH50S | FM16: @LK-ESP-BH50S | FN16: @LK-ESK-BH50S | FO16: @LK-ESO-BH50S | FP16: @LK-ESY-BH50S | FQ16: @LK-ESN-BH50S | FR16: @LK-ETP-BH50S | FS16: @LK-ETK-BH50S | FT16: @LK-EWE-BH50S | FU16: @LK-RAG-BH50S | FV16: @LK-RAT-BH50S | FW16: @LK-RAB-BH50S | FX16: @LK-RBR-BH50S | FY16: @LK-RBG-BH50S | FZ16: @LK-RBW-BH50S | GA16: @LK-RCS-BH50S | GB16: @LK-RDM-BH50S | GC16: @LK-RDP-BH50S | GD16: @LK-RDS-BH50S | GE16: @LK-RGP-BH50S | GF16: @LK-RHG-BH50S | GG16: @LK-RIN-BH50S | GH16: @LK-RIV-BH50S | GI16: @LK-RLR-BH50S | GJ16: @LK-RDG-BH50S | GK16: @LK-RMW-BH50S | GL16: @LK-RMN-BH50S | GM16: @LK-RMU-BH50S | GN16: @LK-ROV-BH50S | GO16: @LK-RPT-BH50S | GP16: @LK-RPE-BH50S | GQ16: @LK-RPG-BH50S | GR16: @LK-RPO-BH50S | GS16: @LK-RSG-BH50S | GT16: @LK-RSP-BH50S | GU16: @LK-RSK-BH50S | GV16: @LK-RST-BH50S | GW16: @LK-RSY-BH50S | GX16: @LK-RSN-BH50S | GY16: @LK-RTP-BH50S | GZ16: @LK-RTK-BH50S | HA16: @LK-RWE-BH50S | HB16: @LK-VAG-BH50S | HC16: @LK-VAT-BH50S | HD16: @LK-VAB-BH50S | HE16: @LK-VBR-BH50S | HF16: @LK-VBG-BH50S | HG16: @LK-VBW-BH50S | HH16: @LK-VCS-BH50S | HI16: @LK-VDM-BH50S | HJ16: @LK-VDP-BH50S | HK16: @LK-VDS-BH50S | HL16: @LK-VGP-BH50S | HM16: @LK-VHG-BH50S | HN16: @LK-VIN-BH50S | HO16: @LK-VIY-BH50S | HP16: @LK-VLN-BH50S | HQ16: @LK-VDG-BH50S | HR16: @LK-VME-BH50S | HS16: @LK-VMN-BH50S | HT16: @LK-VMU-BH50S | HU16: @LK-VOV-BH50S | HV16: @LK-VPT-BH50S | HW16: @LK-VPE-BH50S | HX16: @LK-VPG-BH50S | HY16: @LK-VPN-BH50S | HZ16: @LK-VSG-BH50S | IA16: @LK-VSP-BH50S | IB16: @LK-VSB-BH50S | IC16: @LK-VSO-BH50S | ID16: @LK-VSY-BH50S | IE16: @LK-VSN-BH50S | IF16: @LK-VTP-BH50S | IG16: @LK-VTK-BH50S | IH16: @LK-VWE-BH50S | II16: @LK-TAG-BH50S | IJ16: @LK-TAT-BH50S | IK16: @LK-TAB-BH50S | IL16: @LK-TBR-BH50S | IM16: @LK-TBG-BH50S | IN16: @LK-TBW-BH50S | IO16: @LK-TCS-BH50S | IP16: @LK-TDM-BH50S | IQ16: @LK-TDR-BH50S | IR16: @LK-TDS-BH50S | IS16: @LK-TGP-BH50S | IT16: @LK-THG-BH50S | IU16: @LK-TIN-BH50S | IV16: @LK-TIV-BH50S | IW16: @LK-TLR-BH50S | IX16: @LK-TLG-BH50S | IY16: @LK-TMW-BH50S | IZ16: @LK-TMN-BH50S | JA16: @LK-TMU-BH50S | JB16: @LK-TOV-BH50S | JC16: @LK-TPT-BH50S | JD16: @LK-TPE-BH50S | JE16: @LK-TPG-BH50S | JF16: @LK-TPN-BH50S | JG16: @LK-TSG-BH50S | JH16: @LK-TSP-BH50S | JI16: @LK-TSK-BH50S | JJ16: @LK-TSO-BH50S | JK16: @LK-TSY-BH50S | JL16: @LK-TST-BH50S | JM16: @LK-TTP-BH50S | JN16: @LK-TTK-BH50S | JO16: @LK-TWE-BH50S | JP16: @LK-WAG-BH50S | JQ16: @LK-WAT-BH50S | JR16: @LK-WAB-BH50S | JS16: @LK-WBR-BH50S | JT16: @LK-WBG-BH50S | JU16: @LK-WBW-BH50S | JV16: @LK-WCS-BH50S | JW16: @LK-WDM-BH50S | JX16: @LK-WDR-BH50S | JY16: @LK-WDS-BH50S | JZ16: @LK-WGP-BH50S | KA16: @LK-WHE-BH50S | KB16: @LK-WIN-BH50S | KC16: @LK-WIV-BH50S | KD16: @LK-WLR-BH50S | KE16: @LK-WDG-BH50S | KF16: @LK-WMW-BH50S | KG16: @LK-WMN-BH50S | KH16: @LK-WMU-BH50S | KI16: @LK-WOV-BH50S | KJ16: @LK-WPT-BH50S | KK16: @LK-WPE-BH50S | KL16: @LK-WPG-BH50S | KM16: @LK-WPN-BH50S | KN16: @LK-WSG-BH50S | KO16: @LK-WSP-BH50S | KP16: @LK-WSB-BH50S | KQ16: @LK-WSO-BH50S | KR16: @LK-WSY-BH50S | KS16: @LK-WST-BH50S | KT16: @LK-WTP-BH50S | KU16: @LK-WTK-BH50S | KV16: @LK-WWE-BH50S | KW16: @LK-HAG-BH50S | KX16: @LK-HAT-BH50S | KY16: @LK-HAB-BH50S | KZ16: @LK-HBR-BH50S | LA16: @LK-HBG-BH50S | LB16: @LK-HBW-BH50S | LC16: @LK-HCS-BH50S | LD16: @LK-HDM-BH50S | LE16: @LK-HDP-BH50S | LF16: @LK-HDS-BH50S | LG16: @LK-HGP-BH50S | LH16: @LK-HHG-BH50S | LI16: @LK-HIN-BH50S | LJ16: @LK-HIV-BH50S | LK16: @LK-HLR-BH50S | LL16: @LK-HLG-BH50S | LM16: @LK-HMW-BH50S | LN16: @LK-HMN-BH50S | LO16: @LK-HMU-BH50S | LP16: @LK-HOV-BH50S | LQ16: @LK-HPT-BH50S | LR16: @LK-HPE-BH50S | LS16: @LK-HPG-BH50S | LT16: @LK-HPN-BH50S | LU16: @LK-HSG-BH50S | LV16: @LK-HSP-BH50S | LW16: @LK-HSK-BH50S | LX16: @LK-HSO-BH50S | LY16: @LK-HSY-BH50S | LZ16: @LK-HST-BH50S | MA16: @LK-HTP-BH50S | MB16: @LK-HTK-BH50S | MC16: @LK-HWE-BH50S | MD16: @LK-SAG-BH50S | ME16: @LK-SAT-BH50S | MF16: @LK-SAB-BH50S | MG16: @LK-SBR-BH50S | MH16: @LK-SBG-BH50S | MI16: @LK-SBW-BH50S | MJ16: @LK-SCS-BH50S | MK16: @LK-SDM-BH50S | ML16: @LK-SDP-BH50S | MM16: @LK-SDS-BH50S | MN16: @LK-SGP-BH50S | MO16: @LK-SHG-BH50S | MP16: @LK-SIN-BH50S | MQ16: @LK-SIV-BH50S | MR16: @LK-SLR-BH50S | MS16: @LK-SDG-BH50S | MT16: @LK-SMW-BH50S | MU16: @LK-SMN-BH50S | MV16: @LK-SMU-BH50S | MW16: @LK-SOV-BH50S | MX16: @LK-SPT-BH50S | MY16: @LK-SPE-BH50S | MZ16: @LK-SPG-BH50S | NA16: @LK-SPN-BH50S | NB16: @LK-SSG-BH50S | NC16: @LK-SSP-BH50S | ND16: @LK-SSB-BH50S | NE16: @LK-SSO-BH50S | NF16: @LK-SSY-BH50S | NG16: @LK-SST-BH50S | NH16: @LK-STP-BH50S | NI16: @LK-STK-BH50S | NJ16: @LK-SWE-BH50S | NK16: @LK-SBZ-BH50S | NL16: @LK-SBF-BH50S | NM16: @LK-SCB-BH50S | NN16: @LK-SMZ-BH50S | NO16: @LK-SMC-BH50S | NP16: @LK-SPO-BH50S
A17: BH60 | B17: 600 HL Base Unit | C17: BH60 | D17: @LK-EMD-BH60 | E17: @LK-EMY-BH60 | F17: @LK-EMG-BH60 | G17: @LK-EMM-BH60 | H17: @LK-EMS-BH60 | I17: @LK-OPC-BH60 | J17: @LK-OPD-BH60 | K17: @LK-OPY-BH60 | L17: @LK-OPF-BH60 | M17: @LK-OPG-BH60 | N17: @LK-OPM-BH60 | O17: @LK-OPR-BH60 | P17: @LK-OPS-BH60 | Q17: @LK-OPW-BH60 | R17: @LK-BCS-BH60 | S17: @LK-BDG-BH60 | T17: @LK-BDY-BH60 | U17: @LK-BGP-BH60 | V17: @LK-BSG-BH60 | W17: @LK-BWH-BH60 | X17: @LK-CSW-BH60 | Y17: @LK-DSS-BH60 | Z17: @LK-DGW-BH60 | AA17: @LK-DYW-BH60 | AB17: @LK-GPW-BH60 | AC17: @LK-INW-BH60 | AD17: @LK-ISW-BH60 | AE17: @LK-MSW-BH60 | AF17: @LK-RGW-BH60 | AG17: @LK-NVW-BH60 | AH17: @LK-SPW-BH60 | AI17: @LK-STW-BH60 | AJ17: @LK-WSW-BH60 | AK17: @LK-AOK-BH60 | AL17: @LK-ABL-BH60 | AM17: @LK-ACH-BH60 | AN17: @LK-ADG-BH60 | AO17: @LK-ARG-BH60 | AP17: @LK-AFR-BH60 | AQ17: @LK-ATP-BH60 | AR17: @LK-ALG-BH60 | AS17: @LK-AIN-BH60 | AT17: @LK-KCH-BH60 | AU17: @LK-KLG-BH60 | AV17: @LK-KDG-BH60 | AW17: @LK-KGP-BH60 | AX17: @LK-KTP-BH60 | AY17: @LK-KRG-BH60 | AZ17: @LK-KFR-BH60 | BA17: @LK-KIN-BH60 | BB17: @LK-MCS-BH60 | BC17: @LK-MGD-BH60 | BD17: @LK-MDS-BH60 | BE17: @LK-MGP-BH60 | BF17: @LK-MPN-BH60 | BG17: @LK-MGW-BH60 | BH17: @LK-MCM-BH60 | BI17: @LK-MDM-BH60 | BJ17: @LK-MTM-BH60 | BK17: @LK-MGM-BH60 | BL17: @LK-MIM-BH60 | BM17: @LK-MGR-BH60 | BN17: @LK-MSM-BH60 | BO17: @LK-MPM-BH60 | BP17: @LK-MTP-BH60 | BQ17: @LK-MWM-BH60 | BR17: @LK-EOG-BH60 | BS17: @LK-EOM-BH60 | BT17: @LK-EPM-BH60 | BU17: @LK-EVM-BH60 | BV17: @LK-ENM-BH60 | BW17: @LK-ELA-BH60 | BX17: @LK-ELD-BH60 | BY17: @LK-ELW-BH60 | BZ17: @LK-CAG-BH60 | CA17: @LK-CAT-BH60 | CB17: @LK-CAB-BH60 | CC17: @LK-CBR-BH60 | CD17: @LK-CBG-BH60 | CE17: @LK-CBW-BH60 | CF17: @LK-CCS-BH60 | CG17: @LK-CDM-BH60 | CH17: @LK-CDR-BH60 | CI17: @LK-CDG-BH60 | CJ17: @LK-CGP-BH60 | CK17: @LK-CHG-BH60 | CL17: @LK-CIN-BH60 | CM17: @LK-CIV-BH60 | CN17: @LK-CLR-BH60 | CO17: @LK-CLG-BH60 | CP17: @LK-CMW-BH60 | CQ17: @LK-CMN-BH60 | CR17: @LK-CMU-BH60 | CS17: @LK-COV-BH60 | CT17: @LK-CPT-BH60 | CU17: @LK-CPE-BH60 | CV17: @LK-CPG-BH60 | CW17: @LK-CPN-BH60 | CX17: @LK-CSG-BH60 | CY17: @LK-CSP-BH60 | CZ17: @LK-CSB-BH60 | DA17: @LK-CSO-BH60 | DB17: @LK-CSY-BH60 | DC17: @LK-CST-BH60 | DD17: @LK-CTP-BH60 | DE17: @LK-CTK-BH60 | DF17: @LK-CWE-BH60 | DG17: @LK-GAG-BH60 | DH17: @LK-GAT-BH60 | DI17: @LK-GAB-BH60 | DJ17: @LK-GBR-BH60 | DK17: @LK-GBG-BH60 | DL17: @LK-GBW-BH60 | DM17: @LK-GCS-BH60 | DN17: @LK-GDM-BH60 | DO17: @LK-GDR-BH60 | DP17: @LK-GDG-BH60 | DQ17: @LK-GGP-BH60 | DR17: @LK-GHG-BH60 | DS17: @LK-GIN-BH60 | DT17: @LK-GIV-BH60 | DU17: @LK-GLR-BH60 | DV17: @LK-GLG-BH60 | DW17: @LK-GMW-BH60 | DX17: @LK-GMN-BH60 | DY17: @LK-GMU-BH60 | DZ17: @LK-GOV-BH60 | EA17: @LK-GPT-BH60 | EB17: @LK-GPE-BH60 | EC17: @LK-GPG-BH60 | ED17: @LK-GPN-BH60 | EE17: @LK-GSG-BH60 | EF17: @LK-GSP-BH60 | EG17: @LK-GSB-BH60 | EH17: @LK-GSO-BH60 | EI17: @LK-GSY-BH60 | EJ17: @LK-GST-BH60 | EK17: @LK-GTP-BH60 | EL17: @LK-GTK-BH60 | EM17: @LK-GWE-BH60 | EN17: @LK-EAG-BH60 | EO17: @LK-EAT-BH60 | EP17: @LK-EAB-BH60 | EQ17: @LK-EBR-BH60 | ER17: @LK-EBG-BH60 | ES17: @LK-EBW-BH60 | ET17: @LK-ECS-BH60 | EU17: @LK-EDM-BH60 | EV17: @LK-EDP-BH60 | EW17: @LK-EDS-BH60 | EX17: @LK-EGP-BH60 | EY17: @LK-EHG-BH60 | EZ17: @LK-EIN-BH60 | FA17: @LK-EIV-BH60 | FB17: @LK-ELN-BH60 | FC17: @LK-EDG-BH60 | FD17: @LK-EME-BH60 | FE17: @LK-EMN-BH60 | FF17: @LK-EMU-BH60 | FG17: @LK-EOV-BH60 | FH17: @LK-EPT-BH60 | FI17: @LK-EPE-BH60 | FJ17: @LK-EPG-BH60 | FK17: @LK-EPN-BH60 | FL17: @LK-ESG-BH60 | FM17: @LK-ESP-BH60 | FN17: @LK-ESK-BH60 | FO17: @LK-ESO-BH60 | FP17: @LK-ESY-BH60 | FQ17: @LK-ESN-BH60 | FR17: @LK-ETP-BH60 | FS17: @LK-ETK-BH60 | FT17: @LK-EWE-BH60 | FU17: @LK-RAG-BH60 | FV17: @LK-RAT-BH60 | FW17: @LK-RAB-BH60 | FX17: @LK-RBR-BH60 | FY17: @LK-RBG-BH60 | FZ17: @LK-RBW-BH60 | GA17: @LK-RCS-BH60 | GB17: @LK-RDM-BH60 | GC17: @LK-RDP-BH60 | GD17: @LK-RDS-BH60 | GE17: @LK-RGP-BH60 | GF17: @LK-RHG-BH60 | GG17: @LK-RIN-BH60 | GH17: @LK-RIV-BH60 | GI17: @LK-RLR-BH60 | GJ17: @LK-RDG-BH60 | GK17: @LK-RMW-BH60 | GL17: @LK-RMN-BH60 | GM17: @LK-RMU-BH60 | GN17: @LK-ROV-BH60 | GO17: @LK-RPT-BH60 | GP17: @LK-RPE-BH60 | GQ17: @LK-RPG-BH60 | GR17: @LK-RPO-BH60 | GS17: @LK-RSG-BH60 | GT17: @LK-RSP-BH60 | GU17: @LK-RSK-BH60 | GV17: @LK-RST-BH60 | GW17: @LK-RSY-BH60 | GX17: @LK-RSN-BH60 | GY17: @LK-RTP-BH60 | GZ17: @LK-RTK-BH60 | HA17: @LK-RWE-BH60 | HB17: @LK-VAG-BH60 | HC17: @LK-VAT-BH60 | HD17: @LK-VAB-BH60 | HE17: @LK-VBR-BH60 | HF17: @LK-VBG-BH60 | HG17: @LK-VBW-BH60 | HH17: @LK-VCS-BH60 | HI17: @LK-VDM-BH60 | HJ17: @LK-VDP-BH60 | HK17: @LK-VDS-BH60 | HL17: @LK-VGP-BH60 | HM17: @LK-VHG-BH60 | HN17: @LK-VIN-BH60 | HO17: @LK-VIY-BH60 | HP17: @LK-VLN-BH60 | HQ17: @LK-VDG-BH60 | HR17: @LK-VME-BH60 | HS17: @LK-VMN-BH60 | HT17: @LK-VMU-BH60 | HU17: @LK-VOV-BH60 | HV17: @LK-VPT-BH60 | HW17: @LK-VPE-BH60 | HX17: @LK-VPG-BH60 | HY17: @LK-VPN-BH60 | HZ17: @LK-VSG-BH60 | IA17: @LK-VSP-BH60 | IB17: @LK-VSB-BH60 | IC17: @LK-VSO-BH60 | ID17: @LK-VSY-BH60 | IE17: @LK-VSN-BH60 | IF17: @LK-VTP-BH60 | IG17: @LK-VTK-BH60 | IH17: @LK-VWE-BH60 | II17: @LK-TAG-BH60 | IJ17: @LK-TAT-BH60 | IK17: @LK-TAB-BH60 | IL17: @LK-TBR-BH60 | IM17: @LK-TBG-BH60 | IN17: @LK-TBW-BH60 | IO17: @LK-TCS-BH60 | IP17: @LK-TDM-BH60 | IQ17: @LK-TDR-BH60 | IR17: @LK-TDS-BH60 | IS17: @LK-TGP-BH60 | IT17: @LK-THG-BH60 | IU17: @LK-TIN-BH60 | IV17: @LK-TIV-BH60 | IW17: @LK-TLR-BH60 | IX17: @LK-TLG-BH60 | IY17: @LK-TMW-BH60 | IZ17: @LK-TMN-BH60 | JA17: @LK-TMU-BH60 | JB17: @LK-TOV-BH60 | JC17: @LK-TPT-BH60 | JD17: @LK-TPE-BH60 | JE17: @LK-TPG-BH60 | JF17: @LK-TPN-BH60 | JG17: @LK-TSG-BH60 | JH17: @LK-TSP-BH60 | JI17: @LK-TSK-BH60 | JJ17: @LK-TSO-BH60 | JK17: @LK-TSY-BH60 | JL17: @LK-TST-BH60 | JM17: @LK-TTP-BH60 | JN17: @LK-TTK-BH60 | JO17: @LK-TWE-BH60 | JP17: @LK-WAG-BH60 | JQ17: @LK-WAT-BH60 | JR17: @LK-WAB-BH60 | JS17: @LK-WBR-BH60 | JT17: @LK-WBG-BH60 | JU17: @LK-WBW-BH60 | JV17: @LK-WCS-BH60 | JW17: @LK-WDM-BH60 | JX17: @LK-WDR-BH60 | JY17: @LK-WDS-BH60 | JZ17: @LK-WGP-BH60 | KA17: @LK-WHE-BH60 | KB17: @LK-WIN-BH60 | KC17: @LK-WIV-BH60 | KD17: @LK-WLR-BH60 | KE17: @LK-WDG-BH60 | KF17: @LK-WMW-BH60 | KG17: @LK-WMN-BH60 | KH17: @LK-WMU-BH60 | KI17: @LK-WOV-BH60 | KJ17: @LK-WPT-BH60 | KK17: @LK-WPE-BH60 | KL17: @LK-WPG-BH60 | KM17: @LK-WPN-BH60 | KN17: @LK-WSG-BH60 | KO17: @LK-WSP-BH60 | KP17: @LK-WSB-BH60 | KQ17: @LK-WSO-BH60 | KR17: @LK-WSY-BH60 | KS17: @LK-WST-BH60 | KT17: @LK-WTP-BH60 | KU17: @LK-WTK-BH60 | KV17: @LK-WWE-BH60 | KW17: @LK-HAG-BH60 | KX17: @LK-HAT-BH60 | KY17: @LK-HAB-BH60 | KZ17: @LK-HBR-BH60 | LA17: @LK-HBG-BH60 | LB17: @LK-HBW-BH60 | LC17: @LK-HCS-BH60 | LD17: @LK-HDM-BH60 | LE17: @LK-HDP-BH60 | LF17: @LK-HDS-BH60 | LG17: @LK-HGP-BH60 | LH17: @LK-HHG-BH60 | LI17: @LK-HIN-BH60 | LJ17: @LK-HIV-BH60 | LK17: @LK-HLR-BH60 | LL17: @LK-HLG-BH60 | LM17: @LK-HMW-BH60 | LN17: @LK-HMN-BH60 | LO17: @LK-HMU-BH60 | LP17: @LK-HOV-BH60 | LQ17: @LK-HPT-BH60 | LR17: @LK-HPE-BH60 | LS17: @LK-HPG-BH60 | LT17: @LK-HPN-BH60 | LU17: @LK-HSG-BH60 | LV17: @LK-HSP-BH60 | LW17: @LK-HSK-BH60 | LX17: @LK-HSO-BH60 | LY17: @LK-HSY-BH60 | LZ17: @LK-HST-BH60 | MA17: @LK-HTP-BH60 | MB17: @LK-HTK-BH60 | MC17: @LK-HWE-BH60 | MD17: @LK-SAG-BH60 | ME17: @LK-SAT-BH60 | MF17: @LK-SAB-BH60 | MG17: @LK-SBR-BH60 | MH17: @LK-SBG-BH60 | MI17: @LK-SBW-BH60 | MJ17: @LK-SCS-BH60 | MK17: @LK-SDM-BH60 | ML17: @LK-SDP-BH60 | MM17: @LK-SDS-BH60 | MN17: @LK-SGP-BH60 | MO17: @LK-SHG-BH60 | MP17: @LK-SIN-BH60 | MQ17: @LK-SIV-BH60 | MR17: @LK-SLR-BH60 | MS17: @LK-SDG-BH60 | MT17: @LK-SMW-BH60 | MU17: @LK-SMN-BH60 | MV17: @LK-SMU-BH60 | MW17: @LK-SOV-BH60 | MX17: @LK-SPT-BH60 | MY17: @LK-SPE-BH60 | MZ17: @LK-SPG-BH60 | NA17: @LK-SPN-BH60 | NB17: @LK-SSG-BH60 | NC17: @LK-SSP-BH60 | ND17: @LK-SSB-BH60 | NE17: @LK-SSO-BH60 | NF17: @LK-SSY-BH60 | NG17: @LK-SST-BH60 | NH17: @LK-STP-BH60 | NI17: @LK-STK-BH60 | NJ17: @LK-SWE-BH60 | NK17: @LK-SBZ-BH60 | NL17: @LK-SBF-BH60 | NM17: @LK-SCB-BH60 | NN17: @LK-SMZ-BH60 | NO17: @LK-SMC-BH60 | NP17: @LK-SPO-BH60
A18: BH6B4 | B18: 600 HL Base Unit & Bin (4 Bins) | C18: BH6B4 | D18: @LK-EMD-BH6B4 | E18: @LK-EMY-BH6B4 | F18: @LK-EMG-BH6B4 | G18: @LK-EMM-BH6B4 | H18: @LK-EMS-BH6B4 | I18: @LK-OPC-BH6B4 | J18: @LK-OPD-BH6B4 | K18: @LK-OPY-BH6B4 | L18: @LK-OPF-BH6B4 | M18: @LK-OPG-BH6B4 | N18: @LK-OPM-BH6B4 | O18: @LK-OPR-BH6B4 | P18: @LK-OPS-BH6B4 | Q18: @LK-OPW-BH6B4 | R18: @LK-BCS-BH6B4 | S18: @LK-BDG-BH6B4 | T18: @LK-BDY-BH6B4 | U18: @LK-BGP-BH6B4 | V18: @LK-BSG-BH6B4 | W18: @LK-BWH-BH6B4 | X18: @LK-CSW-BH6B4 | Y18: @LK-DSS-BH6B4 | Z18: @LK-DGW-BH6B4 | AA18: @LK-DYW-BH6B4 | AB18: @LK-GPW-BH6B4 | AC18: @LK-INW-BH6B4 | AD18: @LK-ISW-BH6B4 | AE18: @LK-MSW-BH6B4 | AF18: @LK-RGW-BH6B4 | AG18: @LK-NVW-BH6B4 | AH18: @LK-SPW-BH6B4 | AI18: @LK-STW-BH6B4 | AJ18: @LK-WSW-BH6B4 | AK18: @LK-AOK-BH6B4 | AL18: @LK-ABL-BH6B4 | AM18: @LK-ACH-BH6B4 | AN18: @LK-ADG-BH6B4 | AO18: @LK-ARG-BH6B4 | AP18: @LK-AFR-BH6B4 | AQ18: @LK-ATP-BH6B4 | AR18: @LK-ALG-BH6B4 | AS18: @LK-AIN-BH6B4 | AT18: @LK-KCH-BH6B4 | AU18: @LK-KLG-BH6B4 | AV18: @LK-KDG-BH6B4 | AW18: @LK-KGP-BH6B4 | AX18: @LK-KTP-BH6B4 | AY18: @LK-KRG-BH6B4 | AZ18: @LK-KFR-BH6B4 | BA18: @LK-KIN-BH6B4 | BB18: @LK-MCS-BH6B4 | BC18: @LK-MGD-BH6B4 | BD18: @LK-MDS-BH6B4 | BE18: @LK-MGP-BH6B4 | BF18: @LK-MPN-BH6B4 | BG18: @LK-MGW-BH6B4 | BH18: @LK-MCM-BH6B4 | BI18: @LK-MDM-BH6B4 | BJ18: @LK-MTM-BH6B4 | BK18: @LK-MGM-BH6B4 | BL18: @LK-MIM-BH6B4 | BM18: @LK-MGR-BH6B4 | BN18: @LK-MSM-BH6B4 | BO18: @LK-MPM-BH6B4 | BP18: @LK-MTP-BH6B4 | BQ18: @LK-MWM-BH6B4 | BR18: @LK-EOG-BH6B4 | BS18: @LK-EOM-BH6B4 | BT18: @LK-EPM-BH6B4 | BU18: @LK-EVM-BH6B4 | BV18: @LK-ENM-BH6B4 | BW18: @LK-ELA-BH6B4 | BX18: @LK-ELD-BH6B4 | BY18: @LK-ELW-BH6B4 | BZ18: @LK-CAG-BH6B4 | CA18: @LK-CAT-BH6B4 | CB18: @LK-CAB-BH6B4 | CC18: @LK-CBR-BH6B4 | CD18: @LK-CBG-BH6B4 | CE18: @LK-CBW-BH6B4 | CF18: @LK-CCS-BH6B4 | CG18: @LK-CDM-BH6B4 | CH18: @LK-CDR-BH6B4 | CI18: @LK-CDG-BH6B4 | CJ18: @LK-CGP-BH6B4 | CK18: @LK-CHG-BH6B4 | CL18: @LK-CIN-BH6B4 | CM18: @LK-CIV-BH6B4 | CN18: @LK-CLR-BH6B4 | CO18: @LK-CLG-BH6B4 | CP18: @LK-CMW-BH6B4 | CQ18: @LK-CMN-BH6B4 | CR18: @LK-CMU-BH6B4 | CS18: @LK-COV-BH6B4 | CT18: @LK-CPT-BH6B4 | CU18: @LK-CPE-BH6B4 | CV18: @LK-CPG-BH6B4 | CW18: @LK-CPN-BH6B4 | CX18: @LK-CSG-BH6B4 | CY18: @LK-CSP-BH6B4 | CZ18: @LK-CSB-BH6B4 | DA18: @LK-CSO-BH6B4 | DB18: @LK-CSY-BH6B4 | DC18: @LK-CST-BH6B4 | DD18: @LK-CTP-BH6B4 | DE18: @LK-CTK-BH6B4 | DF18: @LK-CWE-BH6B4 | DG18: @LK-GAG-BH6B4 | DH18: @LK-GAT-BH6B4 | DI18: @LK-GAB-BH6B4 | DJ18: @LK-GBR-BH6B4 | DK18: @LK-GBG-BH6B4 | DL18: @LK-GBW-BH6B4 | DM18: @LK-GCS-BH6B4 | DN18: @LK-GDM-BH6B4 | DO18: @LK-GDR-BH6B4 | DP18: @LK-GDG-BH6B4 | DQ18: @LK-GGP-BH6B4 | DR18: @LK-GHG-BH6B4 | DS18: @LK-GIN-BH6B4 | DT18: @LK-GIV-BH6B4 | DU18: @LK-GLR-BH6B4 | DV18: @LK-GLG-BH6B4 | DW18: @LK-GMW-BH6B4 | DX18: @LK-GMN-BH6B4 | DY18: @LK-GMU-BH6B4 | DZ18: @LK-GOV-BH6B4 | EA18: @LK-GPT-BH6B4 | EB18: @LK-GPE-BH6B4 | EC18: @LK-GPG-BH6B4 | ED18: @LK-GPN-BH6B4 | EE18: @LK-GSG-BH6B4 | EF18: @LK-GSP-BH6B4 | EG18: @LK-GSB-BH6B4 | EH18: @LK-GSO-BH6B4 | EI18: @LK-GSY-BH6B4 | EJ18: @LK-GST-BH6B4 | EK18: @LK-GTP-BH6B4 | EL18: @LK-GTK-BH6B4 | EM18: @LK-GWE-BH6B4 | EN18: @LK-EAG-BH6B4 | EO18: @LK-EAT-BH6B4 | EP18: @LK-EAB-BH6B4 | EQ18: @LK-EBR-BH6B4 | ER18: @LK-EBG-BH6B4 | ES18: @LK-EBW-BH6B4 | ET18: @LK-ECS-BH6B4 | EU18: @LK-EDM-BH6B4 | EV18: @LK-EDP-BH6B4 | EW18: @LK-EDS-BH6B4 | EX18: @LK-EGP-BH6B4 | EY18: @LK-EHG-BH6B4 | EZ18: @LK-EIN-BH6B4 | FA18: @LK-EIV-BH6B4 | FB18: @LK-ELN-BH6B4 | FC18: @LK-EDG-BH6B4 | FD18: @LK-EME-BH6B4 | FE18: @LK-EMN-BH6B4 | FF18: @LK-EMU-BH6B4 | FG18: @LK-EOV-BH6B4 | FH18: @LK-EPT-BH6B4 | FI18: @LK-EPE-BH6B4 | FJ18: @LK-EPG-BH6B4 | FK18: @LK-EPN-BH6B4 | FL18: @LK-ESG-BH6B4 | FM18: @LK-ESP-BH6B4 | FN18: @LK-ESK-BH6B4 | FO18: @LK-ESO-BH6B4 | FP18: @LK-ESY-BH6B4 | FQ18: @LK-ESN-BH6B4 | FR18: @LK-ETP-BH6B4 | FS18: @LK-ETK-BH6B4 | FT18: @LK-EWE-BH6B4 | FU18: @LK-RAG-BH6B4 | FV18: @LK-RAT-BH6B4 | FW18: @LK-RAB-BH6B4 | FX18: @LK-RBR-BH6B4 | FY18: @LK-RBG-BH6B4 | FZ18: @LK-RBW-BH6B4 | GA18: @LK-RCS-BH6B4 | GB18: @LK-RDM-BH6B4 | GC18: @LK-RDP-BH6B4 | GD18: @LK-RDS-BH6B4 | GE18: @LK-RGP-BH6B4 | GF18: @LK-RHG-BH6B4 | GG18: @LK-RIN-BH6B4 | GH18: @LK-RIV-BH6B4 | GI18: @LK-RLR-BH6B4 | GJ18: @LK-RDG-BH6B4 | GK18: @LK-RMW-BH6B4 | GL18: @LK-RMN-BH6B4 | GM18: @LK-RMU-BH6B4 | GN18: @LK-ROV-BH6B4 | GO18: @LK-RPT-BH6B4 | GP18: @LK-RPE-BH6B4 | GQ18: @LK-RPG-BH6B4 | GR18: @LK-RPO-BH6B4 | GS18: @LK-RSG-BH6B4 | GT18: @LK-RSP-BH6B4 | GU18: @LK-RSK-BH6B4 | GV18: @LK-RST-BH6B4 | GW18: @LK-RSY-BH6B4 | GX18: @LK-RSN-BH6B4 | GY18: @LK-RTP-BH6B4 | GZ18: @LK-RTK-BH6B4 | HA18: @LK-RWE-BH6B4 | HB18: @LK-VAG-BH6B4 | HC18: @LK-VAT-BH6B4 | HD18: @LK-VAB-BH6B4 | HE18: @LK-VBR-BH6B4 | HF18: @LK-VBG-BH6B4 | HG18: @LK-VBW-BH6B4 | HH18: @LK-VCS-BH6B4 | HI18: @LK-VDM-BH6B4 | HJ18: @LK-VDP-BH6B4 | HK18: @LK-VDS-BH6B4 | HL18: @LK-VGP-BH6B4 | HM18: @LK-VHG-BH6B4 | HN18: @LK-VIN-BH6B4 | HO18: @LK-VIY-BH6B4 | HP18: @LK-VLN-BH6B4 | HQ18: @LK-VDG-BH6B4 | HR18: @LK-VME-BH6B4 | HS18: @LK-VMN-BH6B4 | HT18: @LK-VMU-BH6B4 | HU18: @LK-VOV-BH6B4 | HV18: @LK-VPT-BH6B4 | HW18: @LK-VPE-BH6B4 | HX18: @LK-VPG-BH6B4 | HY18: @LK-VPN-BH6B4 | HZ18: @LK-VSG-BH6B4 | IA18: @LK-VSP-BH6B4 | IB18: @LK-VSB-BH6B4 | IC18: @LK-VSO-BH6B4 | ID18: @LK-VSY-BH6B4 | IE18: @LK-VSN-BH6B4 | IF18: @LK-VTP-BH6B4 | IG18: @LK-VTK-BH6B4 | IH18: @LK-VWE-BH6B4 | II18: @LK-TAG-BH6B4 | IJ18: @LK-TAT-BH6B4 | IK18: @LK-TAB-BH6B4 | IL18: @LK-TBR-BH6B4 | IM18: @LK-TBG-BH6B4 | IN18: @LK-TBW-BH6B4 | IO18: @LK-TCS-BH6B4 | IP18: @LK-TDM-BH6B4 | IQ18: @LK-TDR-BH6B4 | IR18: @LK-TDS-BH6B4 | IS18: @LK-TGP-BH6B4 | IT18: @LK-THG-BH6B4 | IU18: @LK-TIN-BH6B4 | IV18: @LK-TIV-BH6B4 | IW18: @LK-TLR-BH6B4 | IX18: @LK-TLG-BH6B4 | IY18: @LK-TMW-BH6B4 | IZ18: @LK-TMN-BH6B4 | JA18: @LK-TMU-BH6B4 | JB18: @LK-TOV-BH6B4 | JC18: @LK-TPT-BH6B4 | JD18: @LK-TPE-BH6B4 | JE18: @LK-TPG-BH6B4 | JF18: @LK-TPN-BH6B4 | JG18: @LK-TSG-BH6B4 | JH18: @LK-TSP-BH6B4 | JI18: @LK-TSK-BH6B4 | JJ18: @LK-TSO-BH6B4 | JK18: @LK-TSY-BH6B4 | JL18: @LK-TST-BH6B4 | JM18: @LK-TTP-BH6B4 | JN18: @LK-TTK-BH6B4 | JO18: @LK-TWE-BH6B4 | JP18: @LK-WAG-BH6B4 | JQ18: @LK-WAT-BH6B4 | JR18: @LK-WAB-BH6B4 | JS18: @LK-WBR-BH6B4 | JT18: @LK-WBG-BH6B4 | JU18: @LK-WBW-BH6B4 | JV18: @LK-WCS-BH6B4 | JW18: @LK-WDM-BH6B4 | JX18: @LK-WDR-BH6B4 | JY18: @LK-WDS-BH6B4 | JZ18: @LK-WGP-BH6B4 | KA18: @LK-WHE-BH6B4 | KB18: @LK-WIN-BH6B4 | KC18: @LK-WIV-BH6B4 | KD18: @LK-WLR-BH6B4 | KE18: @LK-WDG-BH6B4 | KF18: @LK-WMW-BH6B4 | KG18: @LK-WMN-BH6B4 | KH18: @LK-WMU-BH6B4 | KI18: @LK-WOV-BH6B4 | KJ18: @LK-WPT-BH6B4 | KK18: @LK-WPE-BH6B4 | KL18: @LK-WPG-BH6B4 | KM18: @LK-WPN-BH6B4 | KN18: @LK-WSG-BH6B4 | KO18: @LK-WSP-BH6B4 | KP18: @LK-WSB-BH6B4 | KQ18: @LK-WSO-BH6B4 | KR18: @LK-WSY-BH6B4 | KS18: @LK-WST-BH6B4 | KT18: @LK-WTP-BH6B4 | KU18: @LK-WTK-BH6B4 | KV18: @LK-WWE-BH6B4 | KW18: @LK-HAG-BH6B4 | KX18: @LK-HAT-BH6B4 | KY18: @LK-HAB-BH6B4 | KZ18: @LK-HBR-BH6B4 | LA18: @LK-HBG-BH6B4 | LB18: @LK-HBW-BH6B4 | LC18: @LK-HCS-BH6B4 | LD18: @LK-HDM-BH6B4 | LE18: @LK-HDP-BH6B4 | LF18: @LK-HDS-BH6B4 | LG18: @LK-HGP-BH6B4 | LH18: @LK-HHG-BH6B4 | LI18: @LK-HIN-BH6B4 | LJ18: @LK-HIV-BH6B4 | LK18: @LK-HLR-BH6B4 | LL18: @LK-HLG-BH6B4 | LM18: @LK-HMW-BH6B4 | LN18: @LK-HMN-BH6B4 | LO18: @LK-HMU-BH6B4 | LP18: @LK-HOV-BH6B4 | LQ18: @LK-HPT-BH6B4 | LR18: @LK-HPE-BH6B4 | LS18: @LK-HPG-BH6B4 | LT18: @LK-HPN-BH6B4 | LU18: @LK-HSG-BH6B4 | LV18: @LK-HSP-BH6B4 | LW18: @LK-HSK-BH6B4 | LX18: @LK-HSO-BH6B4 | LY18: @LK-HSY-BH6B4 | LZ18: @LK-HST-BH6B4 | MA18: @LK-HTP-BH6B4 | MB18: @LK-HTK-BH6B4 | MC18: @LK-HWE-BH6B4 | MD18: @LK-SAG-BH6B4 | ME18: @LK-SAT-BH6B4 | MF18: @LK-SAB-BH6B4 | MG18: @LK-SBR-BH6B4 | MH18: @LK-SBG-BH6B4 | MI18: @LK-SBW-BH6B4 | MJ18: @LK-SCS-BH6B4 | MK18: @LK-SDM-BH6B4 | ML18: @LK-SDP-BH6B4 | MM18: @LK-SDS-BH6B4 | MN18: @LK-SGP-BH6B4 | MO18: @LK-SHG-BH6B4 | MP18: @LK-SIN-BH6B4 | MQ18: @LK-SIV-BH6B4 | MR18: @LK-SLR-BH6B4 | MS18: @LK-SDG-BH6B4 | MT18: @LK-SMW-BH6B4 | MU18: @LK-SMN-BH6B4 | MV18: @LK-SMU-BH6B4 | MW18: @LK-SOV-BH6B4 | MX18: @LK-SPT-BH6B4 | MY18: @LK-SPE-BH6B4 | MZ18: @LK-SPG-BH6B4 | NA18: @LK-SPN-BH6B4 | NB18: @LK-SSG-BH6B4 | NC18: @LK-SSP-BH6B4 | ND18: @LK-SSB-BH6B4 | NE18: @LK-SSO-BH6B4 | NF18: @LK-SSY-BH6B4 | NG18: @LK-SST-BH6B4 | NH18: @LK-STP-BH6B4 | NI18: @LK-STK-BH6B4 | NJ18: @LK-SWE-BH6B4 | NK18: @LK-SBZ-BH6B4 | NL18: @LK-SBF-BH6B4 | NM18: @LK-SCB-BH6B4 | NN18: @LK-SMZ-BH6B4 | NO18: @LK-SMC-BH6B4 | NP18: @LK-SPO-BH6B4
A19: BH6B2 | B19: 600 HL Base Unit & Bin (2 Bins) | C19: BH6B2 | D19: @LK-EMD-BH6B2 | E19: @LK-EMY-BH6B2 | F19: @LK-EMG-BH6B2 | G19: @LK-EMM-BH6B2 | H19: @LK-EMS-BH6B2 | I19: @LK-OPC-BH6B2 | J19: @LK-OPD-BH6B2 | K19: @LK-OPY-BH6B2 | L19: @LK-OPF-BH6B2 | M19: @LK-OPG-BH6B2 | N19: @LK-OPM-BH6B2 | O19: @LK-OPR-BH6B2 | P19: @LK-OPS-BH6B2 | Q19: @LK-OPW-BH6B2 | R19: @LK-BCS-BH6B2 | S19: @LK-BDG-BH6B2 | T19: @LK-BDY-BH6B2 | U19: @LK-BGP-BH6B2 | V19: @LK-BSG-BH6B2 | W19: @LK-BWH-BH6B2 | X19: @LK-CSW-BH6B2 | Y19: @LK-DSS-BH6B2 | Z19: @LK-DGW-BH6B2 | AA19: @LK-DYW-BH6B2 | AB19: @LK-GPW-BH6B2 | AC19: @LK-INW-BH6B2 | AD19: @LK-ISW-BH6B2 | AE19: @LK-MSW-BH6B2 | AF19: @LK-RGW-BH6B2 | AG19: @LK-NVW-BH6B2 | AH19: @LK-SPW-BH6B2 | AI19: @LK-STW-BH6B2 | AJ19: @LK-WSW-BH6B2 | AK19: @LK-AOK-BH6B2 | AL19: @LK-ABL-BH6B2 | AM19: @LK-ACH-BH6B2 | AN19: @LK-ADG-BH6B2 | AO19: @LK-ARG-BH6B2 | AP19: @LK-AFR-BH6B2 | AQ19: @LK-ATP-BH6B2 | AR19: @LK-ALG-BH6B2 | AS19: @LK-AIN-BH6B2 | AT19: @LK-KCH-BH6B2 | AU19: @LK-KLG-BH6B2 | AV19: @LK-KDG-BH6B2 | AW19: @LK-KGP-BH6B2 | AX19: @LK-KTP-BH6B2 | AY19: @LK-KRG-BH6B2 | AZ19: @LK-KFR-BH6B2 | BA19: @LK-KIN-BH6B2 | BB19: @LK-MCS-BH6B2 | BC19: @LK-MGD-BH6B2 | BD19: @LK-MDS-BH6B2 | BE19: @LK-MGP-BH6B2 | BF19: @LK-MPN-BH6B2 | BG19: @LK-MGW-BH6B2 | BH19: @LK-MCM-BH6B2 | BI19: @LK-MDM-BH6B2 | BJ19: @LK-MTM-BH6B2 | BK19: @LK-MGM-BH6B2 | BL19: @LK-MIM-BH6B2 | BM19: @LK-MGR-BH6B2 | BN19: @LK-MSM-BH6B2 | BO19: @LK-MPM-BH6B2 | BP19: @LK-MTP-BH6B2 | BQ19: @LK-MWM-BH6B2 | BR19: @LK-EOG-BH6B2 | BS19: @LK-EOM-BH6B2 | BT19: @LK-EPM-BH6B2 | BU19: @LK-EVM-BH6B2 | BV19: @LK-ENM-BH6B2 | BW19: @LK-ELA-BH6B2 | BX19: @LK-ELD-BH6B2 | BY19: @LK-ELW-BH6B2 | BZ19: @LK-CAG-BH6B2 | CA19: @LK-CAT-BH6B2 | CB19: @LK-CAB-BH6B2 | CC19: @LK-CBR-BH6B2 | CD19: @LK-CBG-BH6B2 | CE19: @LK-CBW-BH6B2 | CF19: @LK-CCS-BH6B2 | CG19: @LK-CDM-BH6B2 | CH19: @LK-CDR-BH6B2 | CI19: @LK-CDG-BH6B2 | CJ19: @LK-CGP-BH6B2 | CK19: @LK-CHG-BH6B2 | CL19: @LK-CIN-BH6B2 | CM19: @LK-CIV-BH6B2 | CN19: @LK-CLR-BH6B2 | CO19: @LK-CLG-BH6B2 | CP19: @LK-CMW-BH6B2 | CQ19: @LK-CMN-BH6B2 | CR19: @LK-CMU-BH6B2 | CS19: @LK-COV-BH6B2 | CT19: @LK-CPT-BH6B2 | CU19: @LK-CPE-BH6B2 | CV19: @LK-CPG-BH6B2 | CW19: @LK-CPN-BH6B2 | CX19: @LK-CSG-BH6B2 | CY19: @LK-CSP-BH6B2 | CZ19: @LK-CSB-BH6B2 | DA19: @LK-CSO-BH6B2 | DB19: @LK-CSY-BH6B2 | DC19: @LK-CST-BH6B2 | DD19: @LK-CTP-BH6B2 | DE19: @LK-CTK-BH6B2 | DF19: @LK-CWE-BH6B2 | DG19: @LK-GAG-BH6B2 | DH19: @LK-GAT-BH6B2 | DI19: @LK-GAB-BH6B2 | DJ19: @LK-GBR-BH6B2 | DK19: @LK-GBG-BH6B2 | DL19: @LK-GBW-BH6B2 | DM19: @LK-GCS-BH6B2 | DN19: @LK-GDM-BH6B2 | DO19: @LK-GDR-BH6B2 | DP19: @LK-GDG-BH6B2 | DQ19: @LK-GGP-BH6B2 | DR19: @LK-GHG-BH6B2 | DS19: @LK-GIN-BH6B2 | DT19: @LK-GIV-BH6B2 | DU19: @LK-GLR-BH6B2 | DV19: @LK-GLG-BH6B2 | DW19: @LK-GMW-BH6B2 | DX19: @LK-GMN-BH6B2 | DY19: @LK-GMU-BH6B2 | DZ19: @LK-GOV-BH6B2 | EA19: @LK-GPT-BH6B2 | EB19: @LK-GPE-BH6B2 | EC19: @LK-GPG-BH6B2 | ED19: @LK-GPN-BH6B2 | EE19: @LK-GSG-BH6B2 | EF19: @LK-GSP-BH6B2 | EG19: @LK-GSB-BH6B2 | EH19: @LK-GSO-BH6B2 | EI19: @LK-GSY-BH6B2 | EJ19: @LK-GST-BH6B2 | EK19: @LK-GTP-BH6B2 | EL19: @LK-GTK-BH6B2 | EM19: @LK-GWE-BH6B2 | EN19: @LK-EAG-BH6B2 | EO19: @LK-EAT-BH6B2 | EP19: @LK-EAB-BH6B2 | EQ19: @LK-EBR-BH6B2 | ER19: @LK-EBG-BH6B2 | ES19: @LK-EBW-BH6B2 | ET19: @LK-ECS-BH6B2 | EU19: @LK-EDM-BH6B2 | EV19: @LK-EDP-BH6B2 | EW19: @LK-EDS-BH6B2 | EX19: @LK-EGP-BH6B2 | EY19: @LK-EHG-BH6B2 | EZ19: @LK-EIN-BH6B2 | FA19: @LK-EIV-BH6B2 | FB19: @LK-ELN-BH6B2 | FC19: @LK-EDG-BH6B2 | FD19: @LK-EME-BH6B2 | FE19: @LK-EMN-BH6B2 | FF19: @LK-EMU-BH6B2 | FG19: @LK-EOV-BH6B2 | FH19: @LK-EPT-BH6B2 | FI19: @LK-EPE-BH6B2 | FJ19: @LK-EPG-BH6B2 | FK19: @LK-EPN-BH6B2 | FL19: @LK-ESG-BH6B2 | FM19: @LK-ESP-BH6B2 | FN19: @LK-ESK-BH6B2 | FO19: @LK-ESO-BH6B2 | FP19: @LK-ESY-BH6B2 | FQ19: @LK-ESN-BH6B2 | FR19: @LK-ETP-BH6B2 | FS19: @LK-ETK-BH6B2 | FT19: @LK-EWE-BH6B2 | FU19: @LK-RAG-BH6B2 | FV19: @LK-RAT-BH6B2 | FW19: @LK-RAB-BH6B2 | FX19: @LK-RBR-BH6B2 | FY19: @LK-RBG-BH6B2 | FZ19: @LK-RBW-BH6B2 | GA19: @LK-RCS-BH6B2 | GB19: @LK-RDM-BH6B2 | GC19: @LK-RDP-BH6B2 | GD19: @LK-RDS-BH6B2 | GE19: @LK-RGP-BH6B2 | GF19: @LK-RHG-BH6B2 | GG19: @LK-RIN-BH6B2 | GH19: @LK-RIV-BH6B2 | GI19: @LK-RLR-BH6B2 | GJ19: @LK-RDG-BH6B2 | GK19: @LK-RMW-BH6B2 | GL19: @LK-RMN-BH6B2 | GM19: @LK-RMU-BH6B2 | GN19: @LK-ROV-BH6B2 | GO19: @LK-RPT-BH6B2 | GP19: @LK-RPE-BH6B2 | GQ19: @LK-RPG-BH6B2 | GR19: @LK-RPO-BH6B2 | GS19: @LK-RSG-BH6B2 | GT19: @LK-RSP-BH6B2 | GU19: @LK-RSK-BH6B2 | GV19: @LK-RST-BH6B2 | GW19: @LK-RSY-BH6B2 | GX19: @LK-RSN-BH6B2 | GY19: @LK-RTP-BH6B2 | GZ19: @LK-RTK-BH6B2 | HA19: @LK-RWE-BH6B2 | HB19: @LK-VAG-BH6B2 | HC19: @LK-VAT-BH6B2 | HD19: @LK-VAB-BH6B2 | HE19: @LK-VBR-BH6B2 | HF19: @LK-VBG-BH6B2 | HG19: @LK-VBW-BH6B2 | HH19: @LK-VCS-BH6B2 | HI19: @LK-VDM-BH6B2 | HJ19: @LK-VDP-BH6B2 | HK19: @LK-VDS-BH6B2 | HL19: @LK-VGP-BH6B2 | HM19: @LK-VHG-BH6B2 | HN19: @LK-VIN-BH6B2 | HO19: @LK-VIY-BH6B2 | HP19: @LK-VLN-BH6B2 | HQ19: @LK-VDG-BH6B2 | HR19: @LK-VME-BH6B2 | HS19: @LK-VMN-BH6B2 | HT19: @LK-VMU-BH6B2 | HU19: @LK-VOV-BH6B2 | HV19: @LK-VPT-BH6B2 | HW19: @LK-VPE-BH6B2 | HX19: @LK-VPG-BH6B2 | HY19: @LK-VPN-BH6B2 | HZ19: @LK-VSG-BH6B2 | IA19: @LK-VSP-BH6B2 | IB19: @LK-VSB-BH6B2 | IC19: @LK-VSO-BH6B2 | ID19: @LK-VSY-BH6B2 | IE19: @LK-VSN-BH6B2 | IF19: @LK-VTP-BH6B2 | IG19: @LK-VTK-BH6B2 | IH19: @LK-VWE-BH6B2 | II19: @LK-TAG-BH6B2 | IJ19: @LK-TAT-BH6B2 | IK19: @LK-TAB-BH6B2 | IL19: @LK-TBR-BH6B2 | IM19: @LK-TBG-BH6B2 | IN19: @LK-TBW-BH6B2 | IO19: @LK-TCS-BH6B2 | IP19: @LK-TDM-BH6B2 | IQ19: @LK-TDR-BH6B2 | IR19: @LK-TDS-BH6B2 | IS19: @LK-TGP-BH6B2 | IT19: @LK-THG-BH6B2 | IU19: @LK-TIN-BH6B2 | IV19: @LK-TIV-BH6B2 | IW19: @LK-TLR-BH6B2 | IX19: @LK-TLG-BH6B2 | IY19: @LK-TMW-BH6B2 | IZ19: @LK-TMN-BH6B2 | JA19: @LK-TMU-BH6B2 | JB19: @LK-TOV-BH6B2 | JC19: @LK-TPT-BH6B2 | JD19: @LK-TPE-BH6B2 | JE19: @LK-TPG-BH6B2 | JF19: @LK-TPN-BH6B2 | JG19: @LK-TSG-BH6B2 | JH19: @LK-TSP-BH6B2 | JI19: @LK-TSK-BH6B2 | JJ19: @LK-TSO-BH6B2 | JK19: @LK-TSY-BH6B2 | JL19: @LK-TST-BH6B2 | JM19: @LK-TTP-BH6B2 | JN19: @LK-TTK-BH6B2 | JO19: @LK-TWE-BH6B2 | JP19: @LK-WAG-BH6B2 | JQ19: @LK-WAT-BH6B2 | JR19: @LK-WAB-BH6B2 | JS19: @LK-WBR-BH6B2 | JT19: @LK-WBG-BH6B2 | JU19: @LK-WBW-BH6B2 | JV19: @LK-WCS-BH6B2 | JW19: @LK-WDM-BH6B2 | JX19: @LK-WDR-BH6B2 | JY19: @LK-WDS-BH6B2 | JZ19: @LK-WGP-BH6B2 | KA19: @LK-WHE-BH6B2 | KB19: @LK-WIN-BH6B2 | KC19: @LK-WIV-BH6B2 | KD19: @LK-WLR-BH6B2 | KE19: @LK-WDG-BH6B2 | KF19: @LK-WMW-BH6B2 | KG19: @LK-WMN-BH6B2 | KH19: @LK-WMU-BH6B2 | KI19: @LK-WOV-BH6B2 | KJ19: @LK-WPT-BH6B2 | KK19: @LK-WPE-BH6B2 | KL19: @LK-WPG-BH6B2 | KM19: @LK-WPN-BH6B2 | KN19: @LK-WSG-BH6B2 | KO19: @LK-WSP-BH6B2 | KP19: @LK-WSB-BH6B2 | KQ19: @LK-WSO-BH6B2 | KR19: @LK-WSY-BH6B2 | KS19: @LK-WST-BH6B2 | KT19: @LK-WTP-BH6B2 | KU19: @LK-WTK-BH6B2 | KV19: @LK-WWE-BH6B2 | KW19: @LK-HAG-BH6B2 | KX19: @LK-HAT-BH6B2 | KY19: @LK-HAB-BH6B2 | KZ19: @LK-HBR-BH6B2 | LA19: @LK-HBG-BH6B2 | LB19: @LK-HBW-BH6B2 | LC19: @LK-HCS-BH6B2 | LD19: @LK-HDM-BH6B2 | LE19: @LK-HDP-BH6B2 | LF19: @LK-HDS-BH6B2 | LG19: @LK-HGP-BH6B2 | LH19: @LK-HHG-BH6B2 | LI19: @LK-HIN-BH6B2 | LJ19: @LK-HIV-BH6B2 | LK19: @LK-HLR-BH6B2 | LL19: @LK-HLG-BH6B2 | LM19: @LK-HMW-BH6B2 | LN19: @LK-HMN-BH6B2 | LO19: @LK-HMU-BH6B2 | LP19: @LK-HOV-BH6B2 | LQ19: @LK-HPT-BH6B2 | LR19: @LK-HPE-BH6B2 | LS19: @LK-HPG-BH6B2 | LT19: @LK-HPN-BH6B2 | LU19: @LK-HSG-BH6B2 | LV19: @LK-HSP-BH6B2 | LW19: @LK-HSK-BH6B2 | LX19: @LK-HSO-BH6B2 | LY19: @LK-HSY-BH6B2 | LZ19: @LK-HST-BH6B2 | MA19: @LK-HTP-BH6B2 | MB19: @LK-HTK-BH6B2 | MC19: @LK-HWE-BH6B2 | MD19: @LK-SAG-BH6B2 | ME19: @LK-SAT-BH6B2 | MF19: @LK-SAB-BH6B2 | MG19: @LK-SBR-BH6B2 | MH19: @LK-SBG-BH6B2 | MI19: @LK-SBW-BH6B2 | MJ19: @LK-SCS-BH6B2 | MK19: @LK-SDM-BH6B2 | ML19: @LK-SDP-BH6B2 | MM19: @LK-SDS-BH6B2 | MN19: @LK-SGP-BH6B2 | MO19: @LK-SHG-BH6B2 | MP19: @LK-SIN-BH6B2 | MQ19: @LK-SIV-BH6B2 | MR19: @LK-SLR-BH6B2 | MS19: @LK-SDG-BH6B2 | MT19: @LK-SMW-BH6B2 | MU19: @LK-SMN-BH6B2 | MV19: @LK-SMU-BH6B2 | MW19: @LK-SOV-BH6B2 | MX19: @LK-SPT-BH6B2 | MY19: @LK-SPE-BH6B2 | MZ19: @LK-SPG-BH6B2 | NA19: @LK-SPN-BH6B2 | NB19: @LK-SSG-BH6B2 | NC19: @LK-SSP-BH6B2 | ND19: @LK-SSB-BH6B2 | NE19: @LK-SSO-BH6B2 | NF19: @LK-SSY-BH6B2 | NG19: @LK-SST-BH6B2 | NH19: @LK-STP-BH6B2 | NI19: @LK-STK-BH6B2 | NJ19: @LK-SWE-BH6B2 | NK19: @LK-SBZ-BH6B2 | NL19: @LK-SBF-BH6B2 | NM19: @LK-SCB-BH6B2 | NN19: @LK-SMZ-BH6B2 | NO19: @LK-SMC-BH6B2 | NP19: @LK-SPO-BH6B2
A20: BH60S | B20: 600 HL Sink Base Unit (Inc Liner) | C20: BH60S | D20: @LK-EMD-BH60S | E20: @LK-EMY-BH60S | F20: @LK-EMG-BH60S | G20: @LK-EMM-BH60S | H20: @LK-EMS-BH60S | I20: @LK-OPC-BH60S | J20: @LK-OPD-BH60S | K20: @LK-OPY-BH60S | L20: @LK-OPF-BH60S | M20: @LK-OPG-BH60S | N20: @LK-OPM-BH60S | O20: @LK-OPR-BH60S | P20: @LK-OPS-BH60S | Q20: @LK-OPW-BH60S | R20: @LK-BCS-BH60S | S20: @LK-BDG-BH60S | T20: @LK-BDY-BH60S | U20: @LK-BGP-BH60S | V20: @LK-BSG-BH60S | W20: @LK-BWH-BH60S | X20: @LK-CSW-BH60S | Y20: @LK-DSS-BH60S | Z20: @LK-DGW-BH60S | AA20: @LK-DYW-BH60S | AB20: @LK-GPW-BH60S | AC20: @LK-INW-BH60S | AD20: @LK-ISW-BH60S | AE20: @LK-MSW-BH60S | AF20: @LK-RGW-BH60S | AG20: @LK-NVW-BH60S | AH20: @LK-SPW-BH60S | AI20: @LK-STW-BH60S | AJ20: @LK-WSW-BH60S | AK20: @LK-AOK-BH60S | AL20: @LK-ABL-BH60S | AM20: @LK-ACH-BH60S | AN20: @LK-ADG-BH60S | AO20: @LK-ARG-BH60S | AP20: @LK-AFR-BH60S | AQ20: @LK-ATP-BH60S | AR20: @LK-ALG-BH60S | AS20: @LK-AIN-BH60S | AT20: @LK-KCH-BH60S | AU20: @LK-KLG-BH60S | AV20: @LK-KDG-BH60S | AW20: @LK-KGP-BH60S | AX20: @LK-KTP-BH60S | AY20: @LK-KRG-BH60S | AZ20: @LK-KFR-BH60S | BA20: @LK-KIN-BH60S | BB20: @LK-MCS-BH60S | BC20: @LK-MGD-BH60S | BD20: @LK-MDS-BH60S | BE20: @LK-MGP-BH60S | BF20: @LK-MPN-BH60S | BG20: @LK-MGW-BH60S | BH20: @LK-MCM-BH60S | BI20: @LK-MDM-BH60S | BJ20: @LK-MTM-BH60S | BK20: @LK-MGM-BH60S | BL20: @LK-MIM-BH60S | BM20: @LK-MGR-BH60S | BN20: @LK-MSM-BH60S | BO20: @LK-MPM-BH60S | BP20: @LK-MTP-BH60S | BQ20: @LK-MWM-BH60S | BR20: @LK-EOG-BH60S | BS20: @LK-EOM-BH60S | BT20: @LK-EPM-BH60S | BU20: @LK-EVM-BH60S | BV20: @LK-ENM-BH60S | BW20: @LK-ELA-BH60S | BX20: @LK-ELD-BH60S | BY20: @LK-ELW-BH60S | BZ20: @LK-CAG-BH60S | CA20: @LK-CAT-BH60S | CB20: @LK-CAB-BH60S | CC20: @LK-CBR-BH60S | CD20: @LK-CBG-BH60S | CE20: @LK-CBW-BH60S | CF20: @LK-CCS-BH60S | CG20: @LK-CDM-BH60S | CH20: @LK-CDR-BH60S | CI20: @LK-CDG-BH60S | CJ20: @LK-CGP-BH60S | CK20: @LK-CHG-BH60S | CL20: @LK-CIN-BH60S | CM20: @LK-CIV-BH60S | CN20: @LK-CLR-BH60S | CO20: @LK-CLG-BH60S | CP20: @LK-CMW-BH60S | CQ20: @LK-CMN-BH60S | CR20: @LK-CMU-BH60S | CS20: @LK-COV-BH60S | CT20: @LK-CPT-BH60S | CU20: @LK-CPE-BH60S | CV20: @LK-CPG-BH60S | CW20: @LK-CPN-BH60S | CX20: @LK-CSG-BH60S | CY20: @LK-CSP-BH60S | CZ20: @LK-CSB-BH60S | DA20: @LK-CSO-BH60S | DB20: @LK-CSY-BH60S | DC20: @LK-CST-BH60S | DD20: @LK-CTP-BH60S | DE20: @LK-CTK-BH60S | DF20: @LK-CWE-BH60S | DG20: @LK-GAG-BH60S | DH20: @LK-GAT-BH60S | DI20: @LK-GAB-BH60S | DJ20: @LK-GBR-BH60S | DK20: @LK-GBG-BH60S | DL20: @LK-GBW-BH60S | DM20: @LK-GCS-BH60S | DN20: @LK-GDM-BH60S | DO20: @LK-GDR-BH60S | DP20: @LK-GDG-BH60S | DQ20: @LK-GGP-BH60S | DR20: @LK-GHG-BH60S | DS20: @LK-GIN-BH60S | DT20: @LK-GIV-BH60S | DU20: @LK-GLR-BH60S | DV20: @LK-GLG-BH60S | DW20: @LK-GMW-BH60S | DX20: @LK-GMN-BH60S | DY20: @LK-GMU-BH60S | DZ20: @LK-GOV-BH60S | EA20: @LK-GPT-BH60S | EB20: @LK-GPE-BH60S | EC20: @LK-GPG-BH60S | ED20: @LK-GPN-BH60S | EE20: @LK-GSG-BH60S | EF20: @LK-GSP-BH60S | EG20: @LK-GSB-BH60S | EH20: @LK-GSO-BH60S | EI20: @LK-GSY-BH60S | EJ20: @LK-GST-BH60S | EK20: @LK-GTP-BH60S | EL20: @LK-GTK-BH60S | EM20: @LK-GWE-BH60S | EN20: @LK-EAG-BH60S | EO20: @LK-EAT-BH60S | EP20: @LK-EAB-BH60S | EQ20: @LK-EBR-BH60S | ER20: @LK-EBG-BH60S | ES20: @LK-EBW-BH60S | ET20: @LK-ECS-BH60S | EU20: @LK-EDM-BH60S | EV20: @LK-EDP-BH60S | EW20: @LK-EDS-BH60S | EX20: @LK-EGP-BH60S | EY20: @LK-EHG-BH60S | EZ20: @LK-EIN-BH60S | FA20: @LK-EIV-BH60S | FB20: @LK-ELN-BH60S | FC20: @LK-EDG-BH60S | FD20: @LK-EME-BH60S | FE20: @LK-EMN-BH60S | FF20: @LK-EMU-BH60S | FG20: @LK-EOV-BH60S | FH20: @LK-EPT-BH60S | FI20: @LK-EPE-BH60S | FJ20: @LK-EPG-BH60S | FK20: @LK-EPN-BH60S | FL20: @LK-ESG-BH60S | FM20: @LK-ESP-BH60S | FN20: @LK-ESK-BH60S | FO20: @LK-ESO-BH60S | FP20: @LK-ESY-BH60S | FQ20: @LK-ESN-BH60S | FR20: @LK-ETP-BH60S | FS20: @LK-ETK-BH60S | FT20: @LK-EWE-BH60S | FU20: @LK-RAG-BH60S | FV20: @LK-RAT-BH60S | FW20: @LK-RAB-BH60S | FX20: @LK-RBR-BH60S | FY20: @LK-RBG-BH60S | FZ20: @LK-RBW-BH60S | GA20: @LK-RCS-BH60S | GB20: @LK-RDM-BH60S | GC20: @LK-RDP-BH60S | GD20: @LK-RDS-BH60S | GE20: @LK-RGP-BH60S | GF20: @LK-RHG-BH60S | GG20: @LK-RIN-BH60S | GH20: @LK-RIV-BH60S | GI20: @LK-RLR-BH60S | GJ20: @LK-RDG-BH60S | GK20: @LK-RMW-BH60S | GL20: @LK-RMN-BH60S | GM20: @LK-RMU-BH60S | GN20: @LK-ROV-BH60S | GO20: @LK-RPT-BH60S | GP20: @LK-RPE-BH60S | GQ20: @LK-RPG-BH60S | GR20: @LK-RPO-BH60S | GS20: @LK-RSG-BH60S | GT20: @LK-RSP-BH60S | GU20: @LK-RSK-BH60S | GV20: @LK-RST-BH60S | GW20: @LK-RSY-BH60S | GX20: @LK-RSN-BH60S | GY20: @LK-RTP-BH60S | GZ20: @LK-RTK-BH60S | HA20: @LK-RWE-BH60S | HB20: @LK-VAG-BH60S | HC20: @LK-VAT-BH60S | HD20: @LK-VAB-BH60S | HE20: @LK-VBR-BH60S | HF20: @LK-VBG-BH60S | HG20: @LK-VBW-BH60S | HH20: @LK-VCS-BH60S | HI20: @LK-VDM-BH60S | HJ20: @LK-VDP-BH60S | HK20: @LK-VDS-BH60S | HL20: @LK-VGP-BH60S | HM20: @LK-VHG-BH60S | HN20: @LK-VIN-BH60S | HO20: @LK-VIY-BH60S | HP20: @LK-VLN-BH60S | HQ20: @LK-VDG-BH60S | HR20: @LK-VME-BH60S | HS20: @LK-VMN-BH60S | HT20: @LK-VMU-BH60S | HU20: @LK-VOV-BH60S | HV20: @LK-VPT-BH60S | HW20: @LK-VPE-BH60S | HX20: @LK-VPG-BH60S | HY20: @LK-VPN-BH60S | HZ20: @LK-VSG-BH60S | IA20: @LK-VSP-BH60S | IB20: @LK-VSB-BH60S | IC20: @LK-VSO-BH60S | ID20: @LK-VSY-BH60S | IE20: @LK-VSN-BH60S | IF20: @LK-VTP-BH60S | IG20: @LK-VTK-BH60S | IH20: @LK-VWE-BH60S | II20: @LK-TAG-BH60S | IJ20: @LK-TAT-BH60S | IK20: @LK-TAB-BH60S | IL20: @LK-TBR-BH60S | IM20: @LK-TBG-BH60S | IN20: @LK-TBW-BH60S | IO20: @LK-TCS-BH60S | IP20: @LK-TDM-BH60S | IQ20: @LK-TDR-BH60S | IR20: @LK-TDS-BH60S | IS20: @LK-TGP-BH60S | IT20: @LK-THG-BH60S | IU20: @LK-TIN-BH60S | IV20: @LK-TIV-BH60S | IW20: @LK-TLR-BH60S | IX20: @LK-TLG-BH60S | IY20: @LK-TMW-BH60S | IZ20: @LK-TMN-BH60S | JA20: @LK-TMU-BH60S | JB20: @LK-TOV-BH60S | JC20: @LK-TPT-BH60S | JD20: @LK-TPE-BH60S | JE20: @LK-TPG-BH60S | JF20: @LK-TPN-BH60S | JG20: @LK-TSG-BH60S | JH20: @LK-TSP-BH60S | JI20: @LK-TSK-BH60S | JJ20: @LK-TSO-BH60S | JK20: @LK-TSY-BH60S | JL20: @LK-TST-BH60S | JM20: @LK-TTP-BH60S | JN20: @LK-TTK-BH60S | JO20: @LK-TWE-BH60S | JP20: @LK-WAG-BH60S | JQ20: @LK-WAT-BH60S | JR20: @LK-WAB-BH60S | JS20: @LK-WBR-BH60S | JT20: @LK-WBG-BH60S | JU20: @LK-WBW-BH60S | JV20: @LK-WCS-BH60S | JW20: @LK-WDM-BH60S | JX20: @LK-WDR-BH60S | JY20: @LK-WDS-BH60S | JZ20: @LK-WGP-BH60S | KA20: @LK-WHE-BH60S | KB20: @LK-WIN-BH60S | KC20: @LK-WIV-BH60S | KD20: @LK-WLR-BH60S | KE20: @LK-WDG-BH60S | KF20: @LK-WMW-BH60S | KG20: @LK-WMN-BH60S | KH20: @LK-WMU-BH60S | KI20: @LK-WOV-BH60S | KJ20: @LK-WPT-BH60S | KK20: @LK-WPE-BH60S | KL20: @LK-WPG-BH60S | KM20: @LK-WPN-BH60S | KN20: @LK-WSG-BH60S | KO20: @LK-WSP-BH60S | KP20: @LK-WSB-BH60S | KQ20: @LK-WSO-BH60S | KR20: @LK-WSY-BH60S | KS20: @LK-WST-BH60S | KT20: @LK-WTP-BH60S | KU20: @LK-WTK-BH60S | KV20: @LK-WWE-BH60S | KW20: @LK-HAG-BH60S | KX20: @LK-HAT-BH60S | KY20: @LK-HAB-BH60S | KZ20: @LK-HBR-BH60S | LA20: @LK-HBG-BH60S | LB20: @LK-HBW-BH60S | LC20: @LK-HCS-BH60S | LD20: @LK-HDM-BH60S | LE20: @LK-HDP-BH60S | LF20: @LK-HDS-BH60S | LG20: @LK-HGP-BH60S | LH20: @LK-HHG-BH60S | LI20: @LK-HIN-BH60S | LJ20: @LK-HIV-BH60S | LK20: @LK-HLR-BH60S | LL20: @LK-HLG-BH60S | LM20: @LK-HMW-BH60S | LN20: @LK-HMN-BH60S | LO20: @LK-HMU-BH60S | LP20: @LK-HOV-BH60S | LQ20: @LK-HPT-BH60S | LR20: @LK-HPE-BH60S | LS20: @LK-HPG-BH60S | LT20: @LK-HPN-BH60S | LU20: @LK-HSG-BH60S | LV20: @LK-HSP-BH60S | LW20: @LK-HSK-BH60S | LX20: @LK-HSO-BH60S | LY20: @LK-HSY-BH60S | LZ20: @LK-HST-BH60S | MA20: @LK-HTP-BH60S | MB20: @LK-HTK-BH60S | MC20: @LK-HWE-BH60S | MD20: @LK-SAG-BH60S | ME20: @LK-SAT-BH60S | MF20: @LK-SAB-BH60S | MG20: @LK-SBR-BH60S | MH20: @LK-SBG-BH60S | MI20: @LK-SBW-BH60S | MJ20: @LK-SCS-BH60S | MK20: @LK-SDM-BH60S | ML20: @LK-SDP-BH60S | MM20: @LK-SDS-BH60S | MN20: @LK-SGP-BH60S | MO20: @LK-SHG-BH60S | MP20: @LK-SIN-BH60S | MQ20: @LK-SIV-BH60S | MR20: @LK-SLR-BH60S | MS20: @LK-SDG-BH60S | MT20: @LK-SMW-BH60S | MU20: @LK-SMN-BH60S | MV20: @LK-SMU-BH60S | MW20: @LK-SOV-BH60S | MX20: @LK-SPT-BH60S | MY20: @LK-SPE-BH60S | MZ20: @LK-SPG-BH60S | NA20: @LK-SPN-BH60S | NB20: @LK-SSG-BH60S | NC20: @LK-SSP-BH60S | ND20: @LK-SSB-BH60S | NE20: @LK-SSO-BH60S | NF20: @LK-SSY-BH60S | NG20: @LK-SST-BH60S | NH20: @LK-STP-BH60S | NI20: @LK-STK-BH60S | NJ20: @LK-SWE-BH60S | NK20: @LK-SBZ-BH60S | NL20: @LK-SBF-BH60S | NM20: @LK-SCB-BH60S | NN20: @LK-SMZ-BH60S | NO20: @LK-SMC-BH60S | NP20: @LK-SPO-BH60S
A21: BH70 | B21: 700 HL Base Unit | C21: BH70 | D21: @LK-EMD-BH70 | E21: @LK-EMY-BH70 | F21: @LK-EMG-BH70 | G21: @LK-EMM-BH70 | H21: @LK-EMS-BH70 | I21: @LK-OPC-BH70 | J21: @LK-OPD-BH70 | K21: @LK-OPY-BH70 | L21: @LK-OPF-BH70 | M21: @LK-OPG-BH70 | N21: @LK-OPM-BH70 | O21: @LK-OPR-BH70 | P21: @LK-OPS-BH70 | Q21: @LK-OPW-BH70 | R21: @LK-BCS-BH70 | S21: @LK-BDG-BH70 | T21: @LK-BDY-BH70 | U21: @LK-BGP-BH70 | V21: @LK-BSG-BH70 | W21: @LK-BWH-BH70 | X21: @LK-CSW-BH70 | Y21: @LK-DSS-BH70 | Z21: @LK-DGW-BH70 | AA21: @LK-DYW-BH70 | AB21: @LK-GPW-BH70 | AC21: @LK-INW-BH70 | AD21: @LK-ISW-BH70 | AE21: @LK-MSW-BH70 | AF21: @LK-RGW-BH70 | AG21: @LK-NVW-BH70 | AH21: @LK-SPW-BH70 | AI21: @LK-STW-BH70 | AJ21: @LK-WSW-BH70 | AK21: @LK-AOK-BH70 | AL21: @LK-ABL-BH70 | AM21: @LK-ACH-BH70 | AN21: @LK-ADG-BH70 | AO21: @LK-ARG-BH70 | AP21: @LK-AFR-BH70 | AQ21: @LK-ATP-BH70 | AR21: @LK-ALG-BH70 | AS21: @LK-AIN-BH70 | AT21: @LK-KCH-BH70 | AU21: @LK-KLG-BH70 | AV21: @LK-KDG-BH70 | AW21: @LK-KGP-BH70 | AX21: @LK-KTP-BH70 | AY21: @LK-KRG-BH70 | AZ21: @LK-KFR-BH70 | BA21: @LK-KIN-BH70 | BB21: @LK-MCS-BH70 | BC21: @LK-MGD-BH70 | BD21: @LK-MDS-BH70 | BE21: @LK-MGP-BH70 | BF21: @LK-MPN-BH70 | BG21: @LK-MGW-BH70 | BH21: @LK-MCM-BH70 | BI21: @LK-MDM-BH70 | BJ21: @LK-MTM-BH70 | BK21: @LK-MGM-BH70 | BL21: @LK-MIM-BH70 | BM21: @LK-MGR-BH70 | BN21: @LK-MSM-BH70 | BO21: @LK-MPM-BH70 | BP21: @LK-MTP-BH70 | BQ21: @LK-MWM-BH70 | BR21: @LK-EOG-BH70 | BS21: @LK-EOM-BH70 | BT21: @LK-EPM-BH70 | BU21: @LK-EVM-BH70 | BV21: @LK-ENM-BH70 | BW21: @LK-ELA-BH70 | BX21: @LK-ELD-BH70 | BY21: @LK-ELW-BH70 | BZ21: @LK-CAG-BH70 | CA21: @LK-CAT-BH70 | CB21: @LK-CAB-BH70 | CC21: @LK-CBR-BH70 | CD21: @LK-CBG-BH70 | CE21: @LK-CBW-BH70 | CF21: @LK-CCS-BH70 | CG21: @LK-CDM-BH70 | CH21: @LK-CDR-BH70 | CI21: @LK-CDG-BH70 | CJ21: @LK-CGP-BH70 | CK21: @LK-CHG-BH70 | CL21: @LK-CIN-BH70 | CM21: @LK-CIV-BH70 | CN21: @LK-CLR-BH70 | CO21: @LK-CLG-BH70 | CP21: @LK-CMW-BH70 | CQ21: @LK-CMN-BH70 | CR21: @LK-CMU-BH70 | CS21: @LK-COV-BH70 | CT21: @LK-CPT-BH70 | CU21: @LK-CPE-BH70 | CV21: @LK-CPG-BH70 | CW21: @LK-CPN-BH70 | CX21: @LK-CSG-BH70 | CY21: @LK-CSP-BH70 | CZ21: @LK-CSB-BH70 | DA21: @LK-CSO-BH70 | DB21: @LK-CSY-BH70 | DC21: @LK-CST-BH70 | DD21: @LK-CTP-BH70 | DE21: @LK-CTK-BH70 | DF21: @LK-CWE-BH70 | DG21: @LK-GAG-BH70 | DH21: @LK-GAT-BH70 | DI21: @LK-GAB-BH70 | DJ21: @LK-GBR-BH70 | DK21: @LK-GBG-BH70 | DL21: @LK-GBW-BH70 | DM21: @LK-GCS-BH70 | DN21: @LK-GDM-BH70 | DO21: @LK-GDR-BH70 | DP21: @LK-GDG-BH70 | DQ21: @LK-GGP-BH70 | DR21: @LK-GHG-BH70 | DS21: @LK-GIN-BH70 | DT21: @LK-GIV-BH70 | DU21: @LK-GLR-BH70 | DV21: @LK-GLG-BH70 | DW21: @LK-GMW-BH70 | DX21: @LK-GMN-BH70 | DY21: @LK-GMU-BH70 | DZ21: @LK-GOV-BH70 | EA21: @LK-GPT-BH70 | EB21: @LK-GPE-BH70 | EC21: @LK-GPG-BH70 | ED21: @LK-GPN-BH70 | EE21: @LK-GSG-BH70 | EF21: @LK-GSP-BH70 | EG21: @LK-GSB-BH70 | EH21: @LK-GSO-BH70 | EI21: @LK-GSY-BH70 | EJ21: @LK-GST-BH70 | EK21: @LK-GTP-BH70 | EL21: @LK-GTK-BH70 | EM21: @LK-GWE-BH70 | EN21: @LK-EAG-BH70 | EO21: @LK-EAT-BH70 | EP21: @LK-EAB-BH70 | EQ21: @LK-EBR-BH70 | ER21: @LK-EBG-BH70 | ES21: @LK-EBW-BH70 | ET21: @LK-ECS-BH70 | EU21: @LK-EDM-BH70 | EV21: @LK-EDP-BH70 | EW21: @LK-EDS-BH70 | EX21: @LK-EGP-BH70 | EY21: @LK-EHG-BH70 | EZ21: @LK-EIN-BH70 | FA21: @LK-EIV-BH70 | FB21: @LK-ELN-BH70 | FC21: @LK-EDG-BH70 | FD21: @LK-EME-BH70 | FE21: @LK-EMN-BH70 | FF21: @LK-EMU-BH70 | FG21: @LK-EOV-BH70 | FH21: @LK-EPT-BH70 | FI21: @LK-EPE-BH70 | FJ21: @LK-EPG-BH70 | FK21: @LK-EPN-BH70 | FL21: @LK-ESG-BH70 | FM21: @LK-ESP-BH70 | FN21: @LK-ESK-BH70 | FO21: @LK-ESO-BH70 | FP21: @LK-ESY-BH70 | FQ21: @LK-ESN-BH70 | FR21: @LK-ETP-BH70 | FS21: @LK-ETK-BH70 | FT21: @LK-EWE-BH70 | FU21: @LK-RAG-BH70 | FV21: @LK-RAT-BH70 | FW21: @LK-RAB-BH70 | FX21: @LK-RBR-BH70 | FY21: @LK-RBG-BH70 | FZ21: @LK-RBW-BH70 | GA21: @LK-RCS-BH70 | GB21: @LK-RDM-BH70 | GC21: @LK-RDP-BH70 | GD21: @LK-RDS-BH70 | GE21: @LK-RGP-BH70 | GF21: @LK-RHG-BH70 | GG21: @LK-RIN-BH70 | GH21: @LK-RIV-BH70 | GI21: @LK-RLR-BH70 | GJ21: @LK-RDG-BH70 | GK21: @LK-RMW-BH70 | GL21: @LK-RMN-BH70 | GM21: @LK-RMU-BH70 | GN21: @LK-ROV-BH70 | GO21: @LK-RPT-BH70 | GP21: @LK-RPE-BH70 | GQ21: @LK-RPG-BH70 | GR21: @LK-RPO-BH70 | GS21: @LK-RSG-BH70 | GT21: @LK-RSP-BH70 | GU21: @LK-RSK-BH70 | GV21: @LK-RST-BH70 | GW21: @LK-RSY-BH70 | GX21: @LK-RSN-BH70 | GY21: @LK-RTP-BH70 | GZ21: @LK-RTK-BH70 | HA21: @LK-RWE-BH70 | HB21: @LK-VAG-BH70 | HC21: @LK-VAT-BH70 | HD21: @LK-VAB-BH70 | HE21: @LK-VBR-BH70 | HF21: @LK-VBG-BH70 | HG21: @LK-VBW-BH70 | HH21: @LK-VCS-BH70 | HI21: @LK-VDM-BH70 | HJ21: @LK-VDP-BH70 | HK21: @LK-VDS-BH70 | HL21: @LK-VGP-BH70 | HM21: @LK-VHG-BH70 | HN21: @LK-VIN-BH70 | HO21: @LK-VIY-BH70 | HP21: @LK-VLN-BH70 | HQ21: @LK-VDG-BH70 | HR21: @LK-VME-BH70 | HS21: @LK-VMN-BH70 | HT21: @LK-VMU-BH70 | HU21: @LK-VOV-BH70 | HV21: @LK-VPT-BH70 | HW21: @LK-VPE-BH70 | HX21: @LK-VPG-BH70 | HY21: @LK-VPN-BH70 | HZ21: @LK-VSG-BH70 | IA21: @LK-VSP-BH70 | IB21: @LK-VSB-BH70 | IC21: @LK-VSO-BH70 | ID21: @LK-VSY-BH70 | IE21: @LK-VSN-BH70 | IF21: @LK-VTP-BH70 | IG21: @LK-VTK-BH70 | IH21: @LK-VWE-BH70 | II21: @LK-TAG-BH70 | IJ21: @LK-TAT-BH70 | IK21: @LK-TAB-BH70 | IL21: @LK-TBR-BH70 | IM21: @LK-TBG-BH70 | IN21: @LK-TBW-BH70 | IO21: @LK-TCS-BH70 | IP21: @LK-TDM-BH70 | IQ21: @LK-TDR-BH70 | IR21: @LK-TDS-BH70 | IS21: @LK-TGP-BH70 | IT21: @LK-THG-BH70 | IU21: @LK-TIN-BH70 | IV21: @LK-TIV-BH70 | IW21: @LK-TLR-BH70 | IX21: @LK-TLG-BH70 | IY21: @LK-TMW-BH70 | IZ21: @LK-TMN-BH70 | JA21: @LK-TMU-BH70 | JB21: @LK-TOV-BH70 | JC21: @LK-TPT-BH70 | JD21: @LK-TPE-BH70 | JE21: @LK-TPG-BH70 | JF21: @LK-TPN-BH70 | JG21: @LK-TSG-BH70 | JH21: @LK-TSP-BH70 | JI21: @LK-TSK-BH70 | JJ21: @LK-TSO-BH70 | JK21: @LK-TSY-BH70 | JL21: @LK-TST-BH70 | JM21: @LK-TTP-BH70 | JN21: @LK-TTK-BH70 | JO21: @LK-TWE-BH70 | JP21: @LK-WAG-BH70 | JQ21: @LK-WAT-BH70 | JR21: @LK-WAB-BH70 | JS21: @LK-WBR-BH70 | JT21: @LK-WBG-BH70 | JU21: @LK-WBW-BH70 | JV21: @LK-WCS-BH70 | JW21: @LK-WDM-BH70 | JX21: @LK-WDR-BH70 | JY21: @LK-WDS-BH70 | JZ21: @LK-WGP-BH70 | KA21: @LK-WHE-BH70 | KB21: @LK-WIN-BH70 | KC21: @LK-WIV-BH70 | KD21: @LK-WLR-BH70 | KE21: @LK-WDG-BH70 | KF21: @LK-WMW-BH70 | KG21: @LK-WMN-BH70 | KH21: @LK-WMU-BH70 | KI21: @LK-WOV-BH70 | KJ21: @LK-WPT-BH70 | KK21: @LK-WPE-BH70 | KL21: @LK-WPG-BH70 | KM21: @LK-WPN-BH70 | KN21: @LK-WSG-BH70 | KO21: @LK-WSP-BH70 | KP21: @LK-WSB-BH70 | KQ21: @LK-WSO-BH70 | KR21: @LK-WSY-BH70 | KS21: @LK-WST-BH70 | KT21: @LK-WTP-BH70 | KU21: @LK-WTK-BH70 | KV21: @LK-WWE-BH70 | KW21: @LK-HAG-BH70 | KX21: @LK-HAT-BH70 | KY21: @LK-HAB-BH70 | KZ21: @LK-HBR-BH70 | LA21: @LK-HBG-BH70 | LB21: @LK-HBW-BH70 | LC21: @LK-HCS-BH70 | LD21: @LK-HDM-BH70 | LE21: @LK-HDP-BH70 | LF21: @LK-HDS-BH70 | LG21: @LK-HGP-BH70 | LH21: @LK-HHG-BH70 | LI21: @LK-HIN-BH70 | LJ21: @LK-HIV-BH70 | LK21: @LK-HLR-BH70 | LL21: @LK-HLG-BH70 | LM21: @LK-HMW-BH70 | LN21: @LK-HMN-BH70 | LO21: @LK-HMU-BH70 | LP21: @LK-HOV-BH70 | LQ21: @LK-HPT-BH70 | LR21: @LK-HPE-BH70 | LS21: @LK-HPG-BH70 | LT21: @LK-HPN-BH70 | LU21: @LK-HSG-BH70 | LV21: @LK-HSP-BH70 | LW21: @LK-HSK-BH70 | LX21: @LK-HSO-BH70 | LY21: @LK-HSY-BH70 | LZ21: @LK-HST-BH70 | MA21: @LK-HTP-BH70 | MB21: @LK-HTK-BH70 | MC21: @LK-HWE-BH70 | MD21: @LK-SAG-BH70 | ME21: @LK-SAT-BH70 | MF21: @LK-SAB-BH70 | MG21: @LK-SBR-BH70 | MH21: @LK-SBG-BH70 | MI21: @LK-SBW-BH70 | MJ21: @LK-SCS-BH70 | MK21: @LK-SDM-BH70 | ML21: @LK-SDP-BH70 | MM21: @LK-SDS-BH70 | MN21: @LK-SGP-BH70 | MO21: @LK-SHG-BH70 | MP21: @LK-SIN-BH70 | MQ21: @LK-SIV-BH70 | MR21: @LK-SLR-BH70 | MS21: @LK-SDG-BH70 | MT21: @LK-SMW-BH70 | MU21: @LK-SMN-BH70 | MV21: @LK-SMU-BH70 | MW21: @LK-SOV-BH70 | MX21: @LK-SPT-BH70 | MY21: @LK-SPE-BH70 | MZ21: @LK-SPG-BH70 | NA21: @LK-SPN-BH70 | NB21: @LK-SSG-BH70 | NC21: @LK-SSP-BH70 | ND21: @LK-SSB-BH70 | NE21: @LK-SSO-BH70 | NF21: @LK-SSY-BH70 | NG21: @LK-SST-BH70 | NH21: @LK-STP-BH70 | NI21: @LK-STK-BH70 | NJ21: @LK-SWE-BH70 | NK21: @LK-SBZ-BH70 | NL21: @LK-SBF-BH70 | NM21: @LK-SCB-BH70 | NN21: @LK-SMZ-BH70 | NO21: @LK-SMC-BH70 | NP21: @LK-SPO-BH70
A22: BH80 | B22: 800 HL Base Unit | C22: BH80 | D22: @LK-EMD-BH80 | E22: @LK-EMY-BH80 | F22: @LK-EMG-BH80 | G22: @LK-EMM-BH80 | H22: @LK-EMS-BH80 | I22: @LK-OPC-BH80 | J22: @LK-OPD-BH80 | K22: @LK-OPY-BH80 | L22: @LK-OPF-BH80 | M22: @LK-OPG-BH80 | N22: @LK-OPM-BH80 | O22: @LK-OPR-BH80 | P22: @LK-OPS-BH80 | Q22: @LK-OPW-BH80 | R22: @LK-BCS-BH80 | S22: @LK-BDG-BH80 | T22: @LK-BDY-BH80 | U22: @LK-BGP-BH80 | V22: @LK-BSG-BH80 | W22: @LK-BWH-BH80 | X22: @LK-CSW-BH80 | Y22: @LK-DSS-BH80 | Z22: @LK-DGW-BH80 | AA22: @LK-DYW-BH80 | AB22: @LK-GPW-BH80 | AC22: @LK-INW-BH80 | AD22: @LK-ISW-BH80 | AE22: @LK-MSW-BH80 | AF22: @LK-RGW-BH80 | AG22: @LK-NVW-BH80 | AH22: @LK-SPW-BH80 | AI22: @LK-STW-BH80 | AJ22: @LK-WSW-BH80 | AK22: @LK-AOK-BH80 | AL22: @LK-ABL-BH80 | AM22: @LK-ACH-BH80 | AN22: @LK-ADG-BH80 | AO22: @LK-ARG-BH80 | AP22: @LK-AFR-BH80 | AQ22: @LK-ATP-BH80 | AR22: @LK-ALG-BH80 | AS22: @LK-AIN-BH80 | AT22: @LK-KCH-BH80 | AU22: @LK-KLG-BH80 | AV22: @LK-KDG-BH80 | AW22: @LK-KGP-BH80 | AX22: @LK-KTP-BH80 | AY22: @LK-KRG-BH80 | AZ22: @LK-KFR-BH80 | BA22: @LK-KIN-BH80 | BB22: @LK-MCS-BH80 | BC22: @LK-MGD-BH80 | BD22: @LK-MDS-BH80 | BE22: @LK-MGP-BH80 | BF22: @LK-MPN-BH80 | BG22: @LK-MGW-BH80 | BH22: @LK-MCM-BH80 | BI22: @LK-MDM-BH80 | BJ22: @LK-MTM-BH80 | BK22: @LK-MGM-BH80 | BL22: @LK-MIM-BH80 | BM22: @LK-MGR-BH80 | BN22: @LK-MSM-BH80 | BO22: @LK-MPM-BH80 | BP22: @LK-MTP-BH80 | BQ22: @LK-MWM-BH80 | BR22: @LK-EOG-BH80 | BS22: @LK-EOM-BH80 | BT22: @LK-EPM-BH80 | BU22: @LK-EVM-BH80 | BV22: @LK-ENM-BH80 | BW22: @LK-ELA-BH80 | BX22: @LK-ELD-BH80 | BY22: @LK-ELW-BH80 | BZ22: @LK-CAG-BH80 | CA22: @LK-CAT-BH80 | CB22: @LK-CAB-BH80 | CC22: @LK-CBR-BH80 | CD22: @LK-CBG-BH80 | CE22: @LK-CBW-BH80 | CF22: @LK-CCS-BH80 | CG22: @LK-CDM-BH80 | CH22: @LK-CDR-BH80 | CI22: @LK-CDG-BH80 | CJ22: @LK-CGP-BH80 | CK22: @LK-CHG-BH80 | CL22: @LK-CIN-BH80 | CM22: @LK-CIV-BH80 | CN22: @LK-CLR-BH80 | CO22: @LK-CLG-BH80 | CP22: @LK-CMW-BH80 | CQ22: @LK-CMN-BH80 | CR22: @LK-CMU-BH80 | CS22: @LK-COV-BH80 | CT22: @LK-CPT-BH80 | CU22: @LK-CPE-BH80 | CV22: @LK-CPG-BH80 | CW22: @LK-CPN-BH80 | CX22: @LK-CSG-BH80 | CY22: @LK-CSP-BH80 | CZ22: @LK-CSB-BH80 | DA22: @LK-CSO-BH80 | DB22: @LK-CSY-BH80 | DC22: @LK-CST-BH80 | DD22: @LK-CTP-BH80 | DE22: @LK-CTK-BH80 | DF22: @LK-CWE-BH80 | DG22: @LK-GAG-BH80 | DH22: @LK-GAT-BH80 | DI22: @LK-GAB-BH80 | DJ22: @LK-GBR-BH80 | DK22: @LK-GBG-BH80 | DL22: @LK-GBW-BH80 | DM22: @LK-GCS-BH80 | DN22: @LK-GDM-BH80 | DO22: @LK-GDR-BH80 | DP22: @LK-GDG-BH80 | DQ22: @LK-GGP-BH80 | DR22: @LK-GHG-BH80 | DS22: @LK-GIN-BH80 | DT22: @LK-GIV-BH80 | DU22: @LK-GLR-BH80 | DV22: @LK-GLG-BH80 | DW22: @LK-GMW-BH80 | DX22: @LK-GMN-BH80 | DY22: @LK-GMU-BH80 | DZ22: @LK-GOV-BH80 | EA22: @LK-GPT-BH80 | EB22: @LK-GPE-BH80 | EC22: @LK-GPG-BH80 | ED22: @LK-GPN-BH80 | EE22: @LK-GSG-BH80 | EF22: @LK-GSP-BH80 | EG22: @LK-GSB-BH80 | EH22: @LK-GSO-BH80 | EI22: @LK-GSY-BH80 | EJ22: @LK-GST-BH80 | EK22: @LK-GTP-BH80 | EL22: @LK-GTK-BH80 | EM22: @LK-GWE-BH80 | EN22: @LK-EAG-BH80 | EO22: @LK-EAT-BH80 | EP22: @LK-EAB-BH80 | EQ22: @LK-EBR-BH80 | ER22: @LK-EBG-BH80 | ES22: @LK-EBW-BH80 | ET22: @LK-ECS-BH80 | EU22: @LK-EDM-BH80 | EV22: @LK-EDP-BH80 | EW22: @LK-EDS-BH80 | EX22: @LK-EGP-BH80 | EY22: @LK-EHG-BH80 | EZ22: @LK-EIN-BH80 | FA22: @LK-EIV-BH80 | FB22: @LK-ELN-BH80 | FC22: @LK-EDG-BH80 | FD22: @LK-EME-BH80 | FE22: @LK-EMN-BH80 | FF22: @LK-EMU-BH80 | FG22: @LK-EOV-BH80 | FH22: @LK-EPT-BH80 | FI22: @LK-EPE-BH80 | FJ22: @LK-EPG-BH80 | FK22: @LK-EPN-BH80 | FL22: @LK-ESG-BH80 | FM22: @LK-ESP-BH80 | FN22: @LK-ESK-BH80 | FO22: @LK-ESO-BH80 | FP22: @LK-ESY-BH80 | FQ22: @LK-ESN-BH80 | FR22: @LK-ETP-BH80 | FS22: @LK-ETK-BH80 | FT22: @LK-EWE-BH80 | FU22: @LK-RAG-BH80 | FV22: @LK-RAT-BH80 | FW22: @LK-RAB-BH80 | FX22: @LK-RBR-BH80 | FY22: @LK-RBG-BH80 | FZ22: @LK-RBW-BH80 | GA22: @LK-RCS-BH80 | GB22: @LK-RDM-BH80 | GC22: @LK-RDP-BH80 | GD22: @LK-RDS-BH80 | GE22: @LK-RGP-BH80 | GF22: @LK-RHG-BH80 | GG22: @LK-RIN-BH80 | GH22: @LK-RIV-BH80 | GI22: @LK-RLR-BH80 | GJ22: @LK-RDG-BH80 | GK22: @LK-RMW-BH80 | GL22: @LK-RMN-BH80 | GM22: @LK-RMU-BH80 | GN22: @LK-ROV-BH80 | GO22: @LK-RPT-BH80 | GP22: @LK-RPE-BH80 | GQ22: @LK-RPG-BH80 | GR22: @LK-RPO-BH80 | GS22: @LK-RSG-BH80 | GT22: @LK-RSP-BH80 | GU22: @LK-RSK-BH80 | GV22: @LK-RST-BH80 | GW22: @LK-RSY-BH80 | GX22: @LK-RSN-BH80 | GY22: @LK-RTP-BH80 | GZ22: @LK-RTK-BH80 | HA22: @LK-RWE-BH80 | HB22: @LK-VAG-BH80 | HC22: @LK-VAT-BH80 | HD22: @LK-VAB-BH80 | HE22: @LK-VBR-BH80 | HF22: @LK-VBG-BH80 | HG22: @LK-VBW-BH80 | HH22: @LK-VCS-BH80 | HI22: @LK-VDM-BH80 | HJ22: @LK-VDP-BH80 | HK22: @LK-VDS-BH80 | HL22: @LK-VGP-BH80 | HM22: @LK-VHG-BH80 | HN22: @LK-VIN-BH80 | HO22: @LK-VIY-BH80 | HP22: @LK-VLN-BH80 | HQ22: @LK-VDG-BH80 | HR22: @LK-VME-BH80 | HS22: @LK-VMN-BH80 | HT22: @LK-VMU-BH80 | HU22: @LK-VOV-BH80 | HV22: @LK-VPT-BH80 | HW22: @LK-VPE-BH80 | HX22: @LK-VPG-BH80 | HY22: @LK-VPN-BH80 | HZ22: @LK-VSG-BH80 | IA22: @LK-VSP-BH80 | IB22: @LK-VSB-BH80 | IC22: @LK-VSO-BH80 | ID22: @LK-VSY-BH80 | IE22: @LK-VSN-BH80 | IF22: @LK-VTP-BH80 | IG22: @LK-VTK-BH80 | IH22: @LK-VWE-BH80 | II22: @LK-TAG-BH80 | IJ22: @LK-TAT-BH80 | IK22: @LK-TAB-BH80 | IL22: @LK-TBR-BH80 | IM22: @LK-TBG-BH80 | IN22: @LK-TBW-BH80 | IO22: @LK-TCS-BH80 | IP22: @LK-TDM-BH80 | IQ22: @LK-TDR-BH80 | IR22: @LK-TDS-BH80 | IS22: @LK-TGP-BH80 | IT22: @LK-THG-BH80 | IU22: @LK-TIN-BH80 | IV22: @LK-TIV-BH80 | IW22: @LK-TLR-BH80 | IX22: @LK-TLG-BH80 | IY22: @LK-TMW-BH80 | IZ22: @LK-TMN-BH80 | JA22: @LK-TMU-BH80 | JB22: @LK-TOV-BH80 | JC22: @LK-TPT-BH80 | JD22: @LK-TPE-BH80 | JE22: @LK-TPG-BH80 | JF22: @LK-TPN-BH80 | JG22: @LK-TSG-BH80 | JH22: @LK-TSP-BH80 | JI22: @LK-TSK-BH80 | JJ22: @LK-TSO-BH80 | JK22: @LK-TSY-BH80 | JL22: @LK-TST-BH80 | JM22: @LK-TTP-BH80 | JN22: @LK-TTK-BH80 | JO22: @LK-TWE-BH80 | JP22: @LK-WAG-BH80 | JQ22: @LK-WAT-BH80 | JR22: @LK-WAB-BH80 | JS22: @LK-WBR-BH80 | JT22: @LK-WBG-BH80 | JU22: @LK-WBW-BH80 | JV22: @LK-WCS-BH80 | JW22: @LK-WDM-BH80 | JX22: @LK-WDR-BH80 | JY22: @LK-WDS-BH80 | JZ22: @LK-WGP-BH80 | KA22: @LK-WHE-BH80 | KB22: @LK-WIN-BH80 | KC22: @LK-WIV-BH80 | KD22: @LK-WLR-BH80 | KE22: @LK-WDG-BH80 | KF22: @LK-WMW-BH80 | KG22: @LK-WMN-BH80 | KH22: @LK-WMU-BH80 | KI22: @LK-WOV-BH80 | KJ22: @LK-WPT-BH80 | KK22: @LK-WPE-BH80 | KL22: @LK-WPG-BH80 | KM22: @LK-WPN-BH80 | KN22: @LK-WSG-BH80 | KO22: @LK-WSP-BH80 | KP22: @LK-WSB-BH80 | KQ22: @LK-WSO-BH80 | KR22: @LK-WSY-BH80 | KS22: @LK-WST-BH80 | KT22: @LK-WTP-BH80 | KU22: @LK-WTK-BH80 | KV22: @LK-WWE-BH80 | KW22: @LK-HAG-BH80 | KX22: @LK-HAT-BH80 | KY22: @LK-HAB-BH80 | KZ22: @LK-HBR-BH80 | LA22: @LK-HBG-BH80 | LB22: @LK-HBW-BH80 | LC22: @LK-HCS-BH80 | LD22: @LK-HDM-BH80 | LE22: @LK-HDP-BH80 | LF22: @LK-HDS-BH80 | LG22: @LK-HGP-BH80 | LH22: @LK-HHG-BH80 | LI22: @LK-HIN-BH80 | LJ22: @LK-HIV-BH80 | LK22: @LK-HLR-BH80 | LL22: @LK-HLG-BH80 | LM22: @LK-HMW-BH80 | LN22: @LK-HMN-BH80 | LO22: @LK-HMU-BH80 | LP22: @LK-HOV-BH80 | LQ22: @LK-HPT-BH80 | LR22: @LK-HPE-BH80 | LS22: @LK-HPG-BH80 | LT22: @LK-HPN-BH80 | LU22: @LK-HSG-BH80 | LV22: @LK-HSP-BH80 | LW22: @LK-HSK-BH80 | LX22: @LK-HSO-BH80 | LY22: @LK-HSY-BH80 | LZ22: @LK-HST-BH80 | MA22: @LK-HTP-BH80 | MB22: @LK-HTK-BH80 | MC22: @LK-HWE-BH80 | MD22: @LK-SAG-BH80 | ME22: @LK-SAT-BH80 | MF22: @LK-SAB-BH80 | MG22: @LK-SBR-BH80 | MH22: @LK-SBG-BH80 | MI22: @LK-SBW-BH80 | MJ22: @LK-SCS-BH80 | MK22: @LK-SDM-BH80 | ML22: @LK-SDP-BH80 | MM22: @LK-SDS-BH80 | MN22: @LK-SGP-BH80 | MO22: @LK-SHG-BH80 | MP22: @LK-SIN-BH80 | MQ22: @LK-SIV-BH80 | MR22: @LK-SLR-BH80 | MS22: @LK-SDG-BH80 | MT22: @LK-SMW-BH80 | MU22: @LK-SMN-BH80 | MV22: @LK-SMU-BH80 | MW22: @LK-SOV-BH80 | MX22: @LK-SPT-BH80 | MY22: @LK-SPE-BH80 | MZ22: @LK-SPG-BH80 | NA22: @LK-SPN-BH80 | NB22: @LK-SSG-BH80 | NC22: @LK-SSP-BH80 | ND22: @LK-SSB-BH80 | NE22: @LK-SSO-BH80 | NF22: @LK-SSY-BH80 | NG22: @LK-SST-BH80 | NH22: @LK-STP-BH80 | NI22: @LK-STK-BH80 | NJ22: @LK-SWE-BH80 | NK22: @LK-SBZ-BH80 | NL22: @LK-SBF-BH80 | NM22: @LK-SCB-BH80 | NN22: @LK-SMZ-BH80 | NO22: @LK-SMC-BH80 | NP22: @LK-SPO-BH80
A23: BH80S | B23: 800 HL Sink Base Unit (Inc Liner) | C23: BH80S | D23: @LK-EMD-BH80S | E23: @LK-EMY-BH80S | F23: @LK-EMG-BH80S | G23: @LK-EMM-BH80S | H23: @LK-EMS-BH80S | I23: @LK-OPC-BH80S | J23: @LK-OPD-BH80S | K23: @LK-OPY-BH80S | L23: @LK-OPF-BH80S | M23: @LK-OPG-BH80S | N23: @LK-OPM-BH80S | O23: @LK-OPR-BH80S | P23: @LK-OPS-BH80S | Q23: @LK-OPW-BH80S | R23: @LK-BCS-BH80S | S23: @LK-BDG-BH80S | T23: @LK-BDY-BH80S | U23: @LK-BGP-BH80S | V23: @LK-BSG-BH80S | W23: @LK-BWH-BH80S | X23: @LK-CSW-BH80S | Y23: @LK-DSS-BH80S | Z23: @LK-DGW-BH80S | AA23: @LK-DYW-BH80S | AB23: @LK-GPW-BH80S | AC23: @LK-INW-BH80S | AD23: @LK-ISW-BH80S | AE23: @LK-MSW-BH80S | AF23: @LK-RGW-BH80S | AG23: @LK-NVW-BH80S | AH23: @LK-SPW-BH80S | AI23: @LK-STW-BH80S | AJ23: @LK-WSW-BH80S | AK23: @LK-AOK-BH80S | AL23: @LK-ABL-BH80S | AM23: @LK-ACH-BH80S | AN23: @LK-ADG-BH80S | AO23: @LK-ARG-BH80S | AP23: @LK-AFR-BH80S | AQ23: @LK-ATP-BH80S | AR23: @LK-ALG-BH80S | AS23: @LK-AIN-BH80S | AT23: @LK-KCH-BH80S | AU23: @LK-KLG-BH80S | AV23: @LK-KDG-BH80S | AW23: @LK-KGP-BH80S | AX23: @LK-KTP-BH80S | AY23: @LK-KRG-BH80S | AZ23: @LK-KFR-BH80S | BA23: @LK-KIN-BH80S | BB23: @LK-MCS-BH80S | BC23: @LK-MGD-BH80S | BD23: @LK-MDS-BH80S | BE23: @LK-MGP-BH80S | BF23: @LK-MPN-BH80S | BG23: @LK-MGW-BH80S | BH23: @LK-MCM-BH80S | BI23: @LK-MDM-BH80S | BJ23: @LK-MTM-BH80S | BK23: @LK-MGM-BH80S | BL23: @LK-MIM-BH80S | BM23: @LK-MGR-BH80S | BN23: @LK-MSM-BH80S | BO23: @LK-MPM-BH80S | BP23: @LK-MTP-BH80S | BQ23: @LK-MWM-BH80S | BR23: @LK-EOG-BH80S | BS23: @LK-EOM-BH80S | BT23: @LK-EPM-BH80S | BU23: @LK-EVM-BH80S | BV23: @LK-ENM-BH80S | BW23: @LK-ELA-BH80S | BX23: @LK-ELD-BH80S | BY23: @LK-ELW-BH80S | BZ23: @LK-CAG-BH80S | CA23: @LK-CAT-BH80S | CB23: @LK-CAB-BH80S | CC23: @LK-CBR-BH80S | CD23: @LK-CBG-BH80S | CE23: @LK-CBW-BH80S | CF23: @LK-CCS-BH80S | CG23: @LK-CDM-BH80S | CH23: @LK-CDR-BH80S | CI23: @LK-CDG-BH80S | CJ23: @LK-CGP-BH80S | CK23: @LK-CHG-BH80S | CL23: @LK-CIN-BH80S | CM23: @LK-CIV-BH80S | CN23: @LK-CLR-BH80S | CO23: @LK-CLG-BH80S | CP23: @LK-CMW-BH80S | CQ23: @LK-CMN-BH80S | CR23: @LK-CMU-BH80S | CS23: @LK-COV-BH80S | CT23: @LK-CPT-BH80S | CU23: @LK-CPE-BH80S | CV23: @LK-CPG-BH80S | CW23: @LK-CPN-BH80S | CX23: @LK-CSG-BH80S | CY23: @LK-CSP-BH80S | CZ23: @LK-CSB-BH80S | DA23: @LK-CSO-BH80S | DB23: @LK-CSY-BH80S | DC23: @LK-CST-BH80S | DD23: @LK-CTP-BH80S | DE23: @LK-CTK-BH80S | DF23: @LK-CWE-BH80S | DG23: @LK-GAG-BH80S | DH23: @LK-GAT-BH80S | DI23: @LK-GAB-BH80S | DJ23: @LK-GBR-BH80S | DK23: @LK-GBG-BH80S | DL23: @LK-GBW-BH80S | DM23: @LK-GCS-BH80S | DN23: @LK-GDM-BH80S | DO23: @LK-GDR-BH80S | DP23: @LK-GDG-BH80S | DQ23: @LK-GGP-BH80S | DR23: @LK-GHG-BH80S | DS23: @LK-GIN-BH80S | DT23: @LK-GIV-BH80S | DU23: @LK-GLR-BH80S | DV23: @LK-GLG-BH80S | DW23: @LK-GMW-BH80S | DX23: @LK-GMN-BH80S | DY23: @LK-GMU-BH80S | DZ23: @LK-GOV-BH80S | EA23: @LK-GPT-BH80S | EB23: @LK-GPE-BH80S | EC23: @LK-GPG-BH80S | ED23: @LK-GPN-BH80S | EE23: @LK-GSG-BH80S | EF23: @LK-GSP-BH80S | EG23: @LK-GSB-BH80S | EH23: @LK-GSO-BH80S | EI23: @LK-GSY-BH80S | EJ23: @LK-GST-BH80S | EK23: @LK-GTP-BH80S | EL23: @LK-GTK-BH80S | EM23: @LK-GWE-BH80S | EN23: @LK-EAG-BH80S | EO23: @LK-EAT-BH80S | EP23: @LK-EAB-BH80S | EQ23: @LK-EBR-BH80S | ER23: @LK-EBG-BH80S | ES23: @LK-EBW-BH80S | ET23: @LK-ECS-BH80S | EU23: @LK-EDM-BH80S | EV23: @LK-EDP-BH80S | EW23: @LK-EDS-BH80S | EX23: @LK-EGP-BH80S | EY23: @LK-EHG-BH80S | EZ23: @LK-EIN-BH80S | FA23: @LK-EIV-BH80S | FB23: @LK-ELN-BH80S | FC23: @LK-EDG-BH80S | FD23: @LK-EME-BH80S | FE23: @LK-EMN-BH80S | FF23: @LK-EMU-BH80S | FG23: @LK-EOV-BH80S | FH23: @LK-EPT-BH80S | FI23: @LK-EPE-BH80S | FJ23: @LK-EPG-BH80S | FK23: @LK-EPN-BH80S | FL23: @LK-ESG-BH80S | FM23: @LK-ESP-BH80S | FN23: @LK-ESK-BH80S | FO23: @LK-ESO-BH80S | FP23: @LK-ESY-BH80S | FQ23: @LK-ESN-BH80S | FR23: @LK-ETP-BH80S | FS23: @LK-ETK-BH80S | FT23: @LK-EWE-BH80S | FU23: @LK-RAG-BH80S | FV23: @LK-RAT-BH80S | FW23: @LK-RAB-BH80S | FX23: @LK-RBR-BH80S | FY23: @LK-RBG-BH80S | FZ23: @LK-RBW-BH80S | GA23: @LK-RCS-BH80S | GB23: @LK-RDM-BH80S | GC23: @LK-RDP-BH80S | GD23: @LK-RDS-BH80S | GE23: @LK-RGP-BH80S | GF23: @LK-RHG-BH80S | GG23: @LK-RIN-BH80S | GH23: @LK-RIV-BH80S | GI23: @LK-RLR-BH80S | GJ23: @LK-RDG-BH80S | GK23: @LK-RMW-BH80S | GL23: @LK-RMN-BH80S | GM23: @LK-RMU-BH80S | GN23: @LK-ROV-BH80S | GO23: @LK-RPT-BH80S | GP23: @LK-RPE-BH80S | GQ23: @LK-RPG-BH80S | GR23: @LK-RPO-BH80S | GS23: @LK-RSG-BH80S | GT23: @LK-RSP-BH80S | GU23: @LK-RSK-BH80S | GV23: @LK-RST-BH80S | GW23: @LK-RSY-BH80S | GX23: @LK-RSN-BH80S | GY23: @LK-RTP-BH80S | GZ23: @LK-RTK-BH80S | HA23: @LK-RWE-BH80S | HB23: @LK-VAG-BH80S | HC23: @LK-VAT-BH80S | HD23: @LK-VAB-BH80S | HE23: @LK-VBR-BH80S | HF23: @LK-VBG-BH80S | HG23: @LK-VBW-BH80S | HH23: @LK-VCS-BH80S | HI23: @LK-VDM-BH80S | HJ23: @LK-VDP-BH80S | HK23: @LK-VDS-BH80S | HL23: @LK-VGP-BH80S | HM23: @LK-VHG-BH80S | HN23: @LK-VIN-BH80S | HO23: @LK-VIY-BH80S | HP23: @LK-VLN-BH80S | HQ23: @LK-VDG-BH80S | HR23: @LK-VME-BH80S | HS23: @LK-VMN-BH80S | HT23: @LK-VMU-BH80S | HU23: @LK-VOV-BH80S | HV23: @LK-VPT-BH80S | HW23: @LK-VPE-BH80S | HX23: @LK-VPG-BH80S | HY23: @LK-VPN-BH80S | HZ23: @LK-VSG-BH80S | IA23: @LK-VSP-BH80S | IB23: @LK-VSB-BH80S | IC23: @LK-VSO-BH80S | ID23: @LK-VSY-BH80S | IE23: @LK-VSN-BH80S | IF23: @LK-VTP-BH80S | IG23: @LK-VTK-BH80S | IH23: @LK-VWE-BH80S | II23: @LK-TAG-BH80S | IJ23: @LK-TAT-BH80S | IK23: @LK-TAB-BH80S | IL23: @LK-TBR-BH80S | IM23: @LK-TBG-BH80S | IN23: @LK-TBW-BH80S | IO23: @LK-TCS-BH80S | IP23: @LK-TDM-BH80S | IQ23: @LK-TDR-BH80S | IR23: @LK-TDS-BH80S | IS23: @LK-TGP-BH80S | IT23: @LK-THG-BH80S | IU23: @LK-TIN-BH80S | IV23: @LK-TIV-BH80S | IW23: @LK-TLR-BH80S | IX23: @LK-TLG-BH80S | IY23: @LK-TMW-BH80S | IZ23: @LK-TMN-BH80S | JA23: @LK-TMU-BH80S | JB23: @LK-TOV-BH80S | JC23: @LK-TPT-BH80S | JD23: @LK-TPE-BH80S | JE23: @LK-TPG-BH80S | JF23: @LK-TPN-BH80S | JG23: @LK-TSG-BH80S | JH23: @LK-TSP-BH80S | JI23: @LK-TSK-BH80S | JJ23: @LK-TSO-BH80S | JK23: @LK-TSY-BH80S | JL23: @LK-TST-BH80S | JM23: @LK-TTP-BH80S | JN23: @LK-TTK-BH80S | JO23: @LK-TWE-BH80S | JP23: @LK-WAG-BH80S | JQ23: @LK-WAT-BH80S | JR23: @LK-WAB-BH80S | JS23: @LK-WBR-BH80S | JT23: @LK-WBG-BH80S | JU23: @LK-WBW-BH80S | JV23: @LK-WCS-BH80S | JW23: @LK-WDM-BH80S | JX23: @LK-WDR-BH80S | JY23: @LK-WDS-BH80S | JZ23: @LK-WGP-BH80S | KA23: @LK-WHE-BH80S | KB23: @LK-WIN-BH80S | KC23: @LK-WIV-BH80S | KD23: @LK-WLR-BH80S | KE23: @LK-WDG-BH80S | KF23: @LK-WMW-BH80S | KG23: @LK-WMN-BH80S | KH23: @LK-WMU-BH80S | KI23: @LK-WOV-BH80S | KJ23: @LK-WPT-BH80S | KK23: @LK-WPE-BH80S | KL23: @LK-WPG-BH80S | KM23: @LK-WPN-BH80S | KN23: @LK-WSG-BH80S | KO23: @LK-WSP-BH80S | KP23: @LK-WSB-BH80S | KQ23: @LK-WSO-BH80S | KR23: @LK-WSY-BH80S | KS23: @LK-WST-BH80S | KT23: @LK-WTP-BH80S | KU23: @LK-WTK-BH80S | KV23: @LK-WWE-BH80S | KW23: @LK-HAG-BH80S | KX23: @LK-HAT-BH80S | KY23: @LK-HAB-BH80S | KZ23: @LK-HBR-BH80S | LA23: @LK-HBG-BH80S | LB23: @LK-HBW-BH80S | LC23: @LK-HCS-BH80S | LD23: @LK-HDM-BH80S | LE23: @LK-HDP-BH80S | LF23: @LK-HDS-BH80S | LG23: @LK-HGP-BH80S | LH23: @LK-HHG-BH80S | LI23: @LK-HIN-BH80S | LJ23: @LK-HIV-BH80S | LK23: @LK-HLR-BH80S | LL23: @LK-HLG-BH80S | LM23: @LK-HMW-BH80S | LN23: @LK-HMN-BH80S | LO23: @LK-HMU-BH80S | LP23: @LK-HOV-BH80S | LQ23: @LK-HPT-BH80S | LR23: @LK-HPE-BH80S | LS23: @LK-HPG-BH80S | LT23: @LK-HPN-BH80S | LU23: @LK-HSG-BH80S | LV23: @LK-HSP-BH80S | LW23: @LK-HSK-BH80S | LX23: @LK-HSO-BH80S | LY23: @LK-HSY-BH80S | LZ23: @LK-HST-BH80S | MA23: @LK-HTP-BH80S | MB23: @LK-HTK-BH80S | MC23: @LK-HWE-BH80S | MD23: @LK-SAG-BH80S | ME23: @LK-SAT-BH80S | MF23: @LK-SAB-BH80S | MG23: @LK-SBR-BH80S | MH23: @LK-SBG-BH80S | MI23: @LK-SBW-BH80S | MJ23: @LK-SCS-BH80S | MK23: @LK-SDM-BH80S | ML23: @LK-SDP-BH80S | MM23: @LK-SDS-BH80S | MN23: @LK-SGP-BH80S | MO23: @LK-SHG-BH80S | MP23: @LK-SIN-BH80S | MQ23: @LK-SIV-BH80S | MR23: @LK-SLR-BH80S | MS23: @LK-SDG-BH80S | MT23: @LK-SMW-BH80S | MU23: @LK-SMN-BH80S | MV23: @LK-SMU-BH80S | MW23: @LK-SOV-BH80S | MX23: @LK-SPT-BH80S | MY23: @LK-SPE-BH80S | MZ23: @LK-SPG-BH80S | NA23: @LK-SPN-BH80S | NB23: @LK-SSG-BH80S | NC23: @LK-SSP-BH80S | ND23: @LK-SSB-BH80S | NE23: @LK-SSO-BH80S | NF23: @LK-SSY-BH80S | NG23: @LK-SST-BH80S | NH23: @LK-STP-BH80S | NI23: @LK-STK-BH80S | NJ23: @LK-SWE-BH80S | NK23: @LK-SBZ-BH80S | NL23: @LK-SBF-BH80S | NM23: @LK-SCB-BH80S | NN23: @LK-SMZ-BH80S | NO23: @LK-SMC-BH80S | NP23: @LK-SPO-BH80S
A24: BH90 | B24: 900 HL Base Unit | C24: BH90 | D24: @LK-EMD-BH90 | E24: @LK-EMY-BH90 | F24: @LK-EMG-BH90 | G24: @LK-EMM-BH90 | H24: @LK-EMS-BH90 | I24: @LK-OPC-BH90 | J24: @LK-OPD-BH90 | K24: @LK-OPY-BH90 | L24: @LK-OPF-BH90 | M24: @LK-OPG-BH90 | N24: @LK-OPM-BH90 | O24: @LK-OPR-BH90 | P24: @LK-OPS-BH90 | Q24: @LK-OPW-BH90 | R24: @LK-BCS-BH90 | S24: @LK-BDG-BH90 | T24: @LK-BDY-BH90 | U24: @LK-BGP-BH90 | V24: @LK-BSG-BH90 | W24: @LK-BWH-BH90 | X24: @LK-CSW-BH90 | Y24: @LK-DSS-BH90 | Z24: @LK-DGW-BH90 | AA24: @LK-DYW-BH90 | AB24: @LK-GPW-BH90 | AC24: @LK-INW-BH90 | AD24: @LK-ISW-BH90 | AE24: @LK-MSW-BH90 | AF24: @LK-RGW-BH90 | AG24: @LK-NVW-BH90 | AH24: @LK-SPW-BH90 | AI24: @LK-STW-BH90 | AJ24: @LK-WSW-BH90 | AK24: @LK-AOK-BH90 | AL24: @LK-ABL-BH90 | AM24: @LK-ACH-BH90 | AN24: @LK-ADG-BH90 | AO24: @LK-ARG-BH90 | AP24: @LK-AFR-BH90 | AQ24: @LK-ATP-BH90 | AR24: @LK-ALG-BH90 | AS24: @LK-AIN-BH90 | AT24: @LK-KCH-BH90 | AU24: @LK-KLG-BH90 | AV24: @LK-KDG-BH90 | AW24: @LK-KGP-BH90 | AX24: @LK-KTP-BH90 | AY24: @LK-KRG-BH90 | AZ24: @LK-KFR-BH90 | BA24: @LK-KIN-BH90 | BB24: @LK-MCS-BH90 | BC24: @LK-MGD-BH90 | BD24: @LK-MDS-BH90 | BE24: @LK-MGP-BH90 | BF24: @LK-MPN-BH90 | BG24: @LK-MGW-BH90 | BH24: @LK-MCM-BH90 | BI24: @LK-MDM-BH90 | BJ24: @LK-MTM-BH90 | BK24: @LK-MGM-BH90 | BL24: @LK-MIM-BH90 | BM24: @LK-MGR-BH90 | BN24: @LK-MSM-BH90 | BO24: @LK-MPM-BH90 | BP24: @LK-MTP-BH90 | BQ24: @LK-MWM-BH90 | BR24: @LK-EOG-BH90 | BS24: @LK-EOM-BH90 | BT24: @LK-EPM-BH90 | BU24: @LK-EVM-BH90 | BV24: @LK-ENM-BH90 | BW24: @LK-ELA-BH90 | BX24: @LK-ELD-BH90 | BY24: @LK-ELW-BH90 | BZ24: @LK-CAG-BH90 | CA24: @LK-CAT-BH90 | CB24: @LK-CAB-BH90 | CC24: @LK-CBR-BH90 | CD24: @LK-CBG-BH90 | CE24: @LK-CBW-BH90 | CF24: @LK-CCS-BH90 | CG24: @LK-CDM-BH90 | CH24: @LK-CDR-BH90 | CI24: @LK-CDG-BH90 | CJ24: @LK-CGP-BH90 | CK24: @LK-CHG-BH90 | CL24: @LK-CIN-BH90 | CM24: @LK-CIV-BH90 | CN24: @LK-CLR-BH90 | CO24: @LK-CLG-BH90 | CP24: @LK-CMW-BH90 | CQ24: @LK-CMN-BH90 | CR24: @LK-CMU-BH90 | CS24: @LK-COV-BH90 | CT24: @LK-CPT-BH90 | CU24: @LK-CPE-BH90 | CV24: @LK-CPG-BH90 | CW24: @LK-CPN-BH90 | CX24: @LK-CSG-BH90 | CY24: @LK-CSP-BH90 | CZ24: @LK-CSB-BH90 | DA24: @LK-CSO-BH90 | DB24: @LK-CSY-BH90 | DC24: @LK-CST-BH90 | DD24: @LK-CTP-BH90 | DE24: @LK-CTK-BH90 | DF24: @LK-CWE-BH90 | DG24: @LK-GAG-BH90 | DH24: @LK-GAT-BH90 | DI24: @LK-GAB-BH90 | DJ24: @LK-GBR-BH90 | DK24: @LK-GBG-BH90 | DL24: @LK-GBW-BH90 | DM24: @LK-GCS-BH90 | DN24: @LK-GDM-BH90 | DO24: @LK-GDR-BH90 | DP24: @LK-GDG-BH90 | DQ24: @LK-GGP-BH90 | DR24: @LK-GHG-BH90 | DS24: @LK-GIN-BH90 | DT24: @LK-GIV-BH90 | DU24: @LK-GLR-BH90 | DV24: @LK-GLG-BH90 | DW24: @LK-GMW-BH90 | DX24: @LK-GMN-BH90 | DY24: @LK-GMU-BH90 | DZ24: @LK-GOV-BH90 | EA24: @LK-GPT-BH90 | EB24: @LK-GPE-BH90 | EC24: @LK-GPG-BH90 | ED24: @LK-GPN-BH90 | EE24: @LK-GSG-BH90 | EF24: @LK-GSP-BH90 | EG24: @LK-GSB-BH90 | EH24: @LK-GSO-BH90 | EI24: @LK-GSY-BH90 | EJ24: @LK-GST-BH90 | EK24: @LK-GTP-BH90 | EL24: @LK-GTK-BH90 | EM24: @LK-GWE-BH90 | EN24: @LK-EAG-BH90 | EO24: @LK-EAT-BH90 | EP24: @LK-EAB-BH90 | EQ24: @LK-EBR-BH90 | ER24: @LK-EBG-BH90 | ES24: @LK-EBW-BH90 | ET24: @LK-ECS-BH90 | EU24: @LK-EDM-BH90 | EV24: @LK-EDP-BH90 | EW24: @LK-EDS-BH90 | EX24: @LK-EGP-BH90 | EY24: @LK-EHG-BH90 | EZ24: @LK-EIN-BH90 | FA24: @LK-EIV-BH90 | FB24: @LK-ELN-BH90 | FC24: @LK-EDG-BH90 | FD24: @LK-EME-BH90 | FE24: @LK-EMN-BH90 | FF24: @LK-EMU-BH90 | FG24: @LK-EOV-BH90 | FH24: @LK-EPT-BH90 | FI24: @LK-EPE-BH90 | FJ24: @LK-EPG-BH90 | FK24: @LK-EPN-BH90 | FL24: @LK-ESG-BH90 | FM24: @LK-ESP-BH90 | FN24: @LK-ESK-BH90 | FO24: @LK-ESO-BH90 | FP24: @LK-ESY-BH90 | FQ24: @LK-ESN-BH90 | FR24: @LK-ETP-BH90 | FS24: @LK-ETK-BH90 | FT24: @LK-EWE-BH90 | FU24: @LK-RAG-BH90 | FV24: @LK-RAT-BH90 | FW24: @LK-RAB-BH90 | FX24: @LK-RBR-BH90 | FY24: @LK-RBG-BH90 | FZ24: @LK-RBW-BH90 | GA24: @LK-RCS-BH90 | GB24: @LK-RDM-BH90 | GC24: @LK-RDP-BH90 | GD24: @LK-RDS-BH90 | GE24: @LK-RGP-BH90 | GF24: @LK-RHG-BH90 | GG24: @LK-RIN-BH90 | GH24: @LK-RIV-BH90 | GI24: @LK-RLR-BH90 | GJ24: @LK-RDG-BH90 | GK24: @LK-RMW-BH90 | GL24: @LK-RMN-BH90 | GM24: @LK-RMU-BH90 | GN24: @LK-ROV-BH90 | GO24: @LK-RPT-BH90 | GP24: @LK-RPE-BH90 | GQ24: @LK-RPG-BH90 | GR24: @LK-RPO-BH90 | GS24: @LK-RSG-BH90 | GT24: @LK-RSP-BH90 | GU24: @LK-RSK-BH90 | GV24: @LK-RST-BH90 | GW24: @LK-RSY-BH90 | GX24: @LK-RSN-BH90 | GY24: @LK-RTP-BH90 | GZ24: @LK-RTK-BH90 | HA24: @LK-RWE-BH90 | HB24: @LK-VAG-BH90 | HC24: @LK-VAT-BH90 | HD24: @LK-VAB-BH90 | HE24: @LK-VBR-BH90 | HF24: @LK-VBG-BH90 | HG24: @LK-VBW-BH90 | HH24: @LK-VCS-BH90 | HI24: @LK-VDM-BH90 | HJ24: @LK-VDP-BH90 | HK24: @LK-VDS-BH90 | HL24: @LK-VGP-BH90 | HM24: @LK-VHG-BH90 | HN24: @LK-VIN-BH90 | HO24: @LK-VIY-BH90 | HP24: @LK-VLN-BH90 | HQ24: @LK-VDG-BH90 | HR24: @LK-VME-BH90 | HS24: @LK-VMN-BH90 | HT24: @LK-VMU-BH90 | HU24: @LK-VOV-BH90 | HV24: @LK-VPT-BH90 | HW24: @LK-VPE-BH90 | HX24: @LK-VPG-BH90 | HY24: @LK-VPN-BH90 | HZ24: @LK-VSG-BH90 | IA24: @LK-VSP-BH90 | IB24: @LK-VSB-BH90 | IC24: @LK-VSO-BH90 | ID24: @LK-VSY-BH90 | IE24: @LK-VSN-BH90 | IF24: @LK-VTP-BH90 | IG24: @LK-VTK-BH90 | IH24: @LK-VWE-BH90 | II24: @LK-TAG-BH90 | IJ24: @LK-TAT-BH90 | IK24: @LK-TAB-BH90 | IL24: @LK-TBR-BH90 | IM24: @LK-TBG-BH90 | IN24: @LK-TBW-BH90 | IO24: @LK-TCS-BH90 | IP24: @LK-TDM-BH90 | IQ24: @LK-TDR-BH90 | IR24: @LK-TDS-BH90 | IS24: @LK-TGP-BH90 | IT24: @LK-THG-BH90 | IU24: @LK-TIN-BH90 | IV24: @LK-TIV-BH90 | IW24: @LK-TLR-BH90 | IX24: @LK-TLG-BH90 | IY24: @LK-TMW-BH90 | IZ24: @LK-TMN-BH90 | JA24: @LK-TMU-BH90 | JB24: @LK-TOV-BH90 | JC24: @LK-TPT-BH90 | JD24: @LK-TPE-BH90 | JE24: @LK-TPG-BH90 | JF24: @LK-TPN-BH90 | JG24: @LK-TSG-BH90 | JH24: @LK-TSP-BH90 | JI24: @LK-TSK-BH90 | JJ24: @LK-TSO-BH90 | JK24: @LK-TSY-BH90 | JL24: @LK-TST-BH90 | JM24: @LK-TTP-BH90 | JN24: @LK-TTK-BH90 | JO24: @LK-TWE-BH90 | JP24: @LK-WAG-BH90 | JQ24: @LK-WAT-BH90 | JR24: @LK-WAB-BH90 | JS24: @LK-WBR-BH90 | JT24: @LK-WBG-BH90 | JU24: @LK-WBW-BH90 | JV24: @LK-WCS-BH90 | JW24: @LK-WDM-BH90 | JX24: @LK-WDR-BH90 | JY24: @LK-WDS-BH90 | JZ24: @LK-WGP-BH90 | KA24: @LK-WHE-BH90 | KB24: @LK-WIN-BH90 | KC24: @LK-WIV-BH90 | KD24: @LK-WLR-BH90 | KE24: @LK-WDG-BH90 | KF24: @LK-WMW-BH90 | KG24: @LK-WMN-BH90 | KH24: @LK-WMU-BH90 | KI24: @LK-WOV-BH90 | KJ24: @LK-WPT-BH90 | KK24: @LK-WPE-BH90 | KL24: @LK-WPG-BH90 | KM24: @LK-WPN-BH90 | KN24: @LK-WSG-BH90 | KO24: @LK-WSP-BH90 | KP24: @LK-WSB-BH90 | KQ24: @LK-WSO-BH90 | KR24: @LK-WSY-BH90 | KS24: @LK-WST-BH90 | KT24: @LK-WTP-BH90 | KU24: @LK-WTK-BH90 | KV24: @LK-WWE-BH90 | KW24: @LK-HAG-BH90 | KX24: @LK-HAT-BH90 | KY24: @LK-HAB-BH90 | KZ24: @LK-HBR-BH90 | LA24: @LK-HBG-BH90 | LB24: @LK-HBW-BH90 | LC24: @LK-HCS-BH90 | LD24: @LK-HDM-BH90 | LE24: @LK-HDP-BH90 | LF24: @LK-HDS-BH90 | LG24: @LK-HGP-BH90 | LH24: @LK-HHG-BH90 | LI24: @LK-HIN-BH90 | LJ24: @LK-HIV-BH90 | LK24: @LK-HLR-BH90 | LL24: @LK-HLG-BH90 | LM24: @LK-HMW-BH90 | LN24: @LK-HMN-BH90 | LO24: @LK-HMU-BH90 | LP24: @LK-HOV-BH90 | LQ24: @LK-HPT-BH90 | LR24: @LK-HPE-BH90 | LS24: @LK-HPG-BH90 | LT24: @LK-HPN-BH90 | LU24: @LK-HSG-BH90 | LV24: @LK-HSP-BH90 | LW24: @LK-HSK-BH90 | LX24: @LK-HSO-BH90 | LY24: @LK-HSY-BH90 | LZ24: @LK-HST-BH90 | MA24: @LK-HTP-BH90 | MB24: @LK-HTK-BH90 | MC24: @LK-HWE-BH90 | MD24: @LK-SAG-BH90 | ME24: @LK-SAT-BH90 | MF24: @LK-SAB-BH90 | MG24: @LK-SBR-BH90 | MH24: @LK-SBG-BH90 | MI24: @LK-SBW-BH90 | MJ24: @LK-SCS-BH90 | MK24: @LK-SDM-BH90 | ML24: @LK-SDP-BH90 | MM24: @LK-SDS-BH90 | MN24: @LK-SGP-BH90 | MO24: @LK-SHG-BH90 | MP24: @LK-SIN-BH90 | MQ24: @LK-SIV-BH90 | MR24: @LK-SLR-BH90 | MS24: @LK-SDG-BH90 | MT24: @LK-SMW-BH90 | MU24: @LK-SMN-BH90 | MV24: @LK-SMU-BH90 | MW24: @LK-SOV-BH90 | MX24: @LK-SPT-BH90 | MY24: @LK-SPE-BH90 | MZ24: @LK-SPG-BH90 | NA24: @LK-SPN-BH90 | NB24: @LK-SSG-BH90 | NC24: @LK-SSP-BH90 | ND24: @LK-SSB-BH90 | NE24: @LK-SSO-BH90 | NF24: @LK-SSY-BH90 | NG24: @LK-SST-BH90 | NH24: @LK-STP-BH90 | NI24: @LK-STK-BH90 | NJ24: @LK-SWE-BH90 | NK24: @LK-SBZ-BH90 | NL24: @LK-SBF-BH90 | NM24: @LK-SCB-BH90 | NN24: @LK-SMZ-BH90 | NO24: @LK-SMC-BH90 | NP24: @LK-SPO-BH90
A25: BH90S | B25: 900 HL Sink Base Unit (Inc Liner) | C25: BH90S | D25: @LK-EMD-BH90S | E25: @LK-EMY-BH90S | F25: @LK-EMG-BH90S | G25: @LK-EMM-BH90S | H25: @LK-EMS-BH90S | I25: @LK-OPC-BH90S | J25: @LK-OPD-BH90S | K25: @LK-OPY-BH90S | L25: @LK-OPF-BH90S | M25: @LK-OPG-BH90S | N25: @LK-OPM-BH90S | O25: @LK-OPR-BH90S | P25: @LK-OPS-BH90S | Q25: @LK-OPW-BH90S | R25: @LK-BCS-BH90S | S25: @LK-BDG-BH90S | T25: @LK-BDY-BH90S | U25: @LK-BGP-BH90S | V25: @LK-BSG-BH90S | W25: @LK-BWH-BH90S | X25: @LK-CSW-BH90S | Y25: @LK-DSS-BH90S | Z25: @LK-DGW-BH90S | AA25: @LK-DYW-BH90S | AB25: @LK-GPW-BH90S | AC25: @LK-INW-BH90S | AD25: @LK-ISW-BH90S | AE25: @LK-MSW-BH90S | AF25: @LK-RGW-BH90S | AG25: @LK-NVW-BH90S | AH25: @LK-SPW-BH90S | AI25: @LK-STW-BH90S | AJ25: @LK-WSW-BH90S | AK25: @LK-AOK-BH90S | AL25: @LK-ABL-BH90S | AM25: @LK-ACH-BH90S | AN25: @LK-ADG-BH90S | AO25: @LK-ARG-BH90S | AP25: @LK-AFR-BH90S | AQ25: @LK-ATP-BH90S | AR25: @LK-ALG-BH90S | AS25: @LK-AIN-BH90S | AT25: @LK-KCH-BH90S | AU25: @LK-KLG-BH90S | AV25: @LK-KDG-BH90S | AW25: @LK-KGP-BH90S | AX25: @LK-KTP-BH90S | AY25: @LK-KRG-BH90S | AZ25: @LK-KFR-BH90S | BA25: @LK-KIN-BH90S | BB25: @LK-MCS-BH90S | BC25: @LK-MGD-BH90S | BD25: @LK-MDS-BH90S | BE25: @LK-MGP-BH90S | BF25: @LK-MPN-BH90S | BG25: @LK-MGW-BH90S | BH25: @LK-MCM-BH90S | BI25: @LK-MDM-BH90S | BJ25: @LK-MTM-BH90S | BK25: @LK-MGM-BH90S | BL25: @LK-MIM-BH90S | BM25: @LK-MGR-BH90S | BN25: @LK-MSM-BH90S | BO25: @LK-MPM-BH90S | BP25: @LK-MTP-BH90S | BQ25: @LK-MWM-BH90S | BR25: @LK-EOG-BH90S | BS25: @LK-EOM-BH90S | BT25: @LK-EPM-BH90S | BU25: @LK-EVM-BH90S | BV25: @LK-ENM-BH90S | BW25: @LK-ELA-BH90S | BX25: @LK-ELD-BH90S | BY25: @LK-ELW-BH90S | BZ25: @LK-CAG-BH90S | CA25: @LK-CAT-BH90S | CB25: @LK-CAB-BH90S | CC25: @LK-CBR-BH90S | CD25: @LK-CBG-BH90S | CE25: @LK-CBW-BH90S | CF25: @LK-CCS-BH90S | CG25: @LK-CDM-BH90S | CH25: @LK-CDR-BH90S | CI25: @LK-CDG-BH90S | CJ25: @LK-CGP-BH90S | CK25: @LK-CHG-BH90S | CL25: @LK-CIN-BH90S | CM25: @LK-CIV-BH90S | CN25: @LK-CLR-BH90S | CO25: @LK-CLG-BH90S | CP25: @LK-CMW-BH90S | CQ25: @LK-CMN-BH90S | CR25: @LK-CMU-BH90S | CS25: @LK-COV-BH90S | CT25: @LK-CPT-BH90S | CU25: @LK-CPE-BH90S | CV25: @LK-CPG-BH90S | CW25: @LK-CPN-BH90S | CX25: @LK-CSG-BH90S | CY25: @LK-CSP-BH90S | CZ25: @LK-CSB-BH90S | DA25: @LK-CSO-BH90S | DB25: @LK-CSY-BH90S | DC25: @LK-CST-BH90S | DD25: @LK-CTP-BH90S | DE25: @LK-CTK-BH90S | DF25: @LK-CWE-BH90S | DG25: @LK-GAG-BH90S | DH25: @LK-GAT-BH90S | DI25: @LK-GAB-BH90S | DJ25: @LK-GBR-BH90S | DK25: @LK-GBG-BH90S | DL25: @LK-GBW-BH90S | DM25: @LK-GCS-BH90S | DN25: @LK-GDM-BH90S | DO25: @LK-GDR-BH90S | DP25: @LK-GDG-BH90S | DQ25: @LK-GGP-BH90S | DR25: @LK-GHG-BH90S | DS25: @LK-GIN-BH90S | DT25: @LK-GIV-BH90S | DU25: @LK-GLR-BH90S | DV25: @LK-GLG-BH90S | DW25: @LK-GMW-BH90S | DX25: @LK-GMN-BH90S | DY25: @LK-GMU-BH90S | DZ25: @LK-GOV-BH90S | EA25: @LK-GPT-BH90S | EB25: @LK-GPE-BH90S | EC25: @LK-GPG-BH90S | ED25: @LK-GPN-BH90S | EE25: @LK-GSG-BH90S | EF25: @LK-GSP-BH90S | EG25: @LK-GSB-BH90S | EH25: @LK-GSO-BH90S | EI25: @LK-GSY-BH90S | EJ25: @LK-GST-BH90S | EK25: @LK-GTP-BH90S | EL25: @LK-GTK-BH90S | EM25: @LK-GWE-BH90S | EN25: @LK-EAG-BH90S | EO25: @LK-EAT-BH90S | EP25: @LK-EAB-BH90S | EQ25: @LK-EBR-BH90S | ER25: @LK-EBG-BH90S | ES25: @LK-EBW-BH90S | ET25: @LK-ECS-BH90S | EU25: @LK-EDM-BH90S | EV25: @LK-EDP-BH90S | EW25: @LK-EDS-BH90S | EX25: @LK-EGP-BH90S | EY25: @LK-EHG-BH90S | EZ25: @LK-EIN-BH90S | FA25: @LK-EIV-BH90S | FB25: @LK-ELN-BH90S | FC25: @LK-EDG-BH90S | FD25: @LK-EME-BH90S | FE25: @LK-EMN-BH90S | FF25: @LK-EMU-BH90S | FG25: @LK-EOV-BH90S | FH25: @LK-EPT-BH90S | FI25: @LK-EPE-BH90S | FJ25: @LK-EPG-BH90S | FK25: @LK-EPN-BH90S | FL25: @LK-ESG-BH90S | FM25: @LK-ESP-BH90S | FN25: @LK-ESK-BH90S | FO25: @LK-ESO-BH90S | FP25: @LK-ESY-BH90S | FQ25: @LK-ESN-BH90S | FR25: @LK-ETP-BH90S | FS25: @LK-ETK-BH90S | FT25: @LK-EWE-BH90S | FU25: @LK-RAG-BH90S | FV25: @LK-RAT-BH90S | FW25: @LK-RAB-BH90S | FX25: @LK-RBR-BH90S | FY25: @LK-RBG-BH90S | FZ25: @LK-RBW-BH90S | GA25: @LK-RCS-BH90S | GB25: @LK-RDM-BH90S | GC25: @LK-RDP-BH90S | GD25: @LK-RDS-BH90S | GE25: @LK-RGP-BH90S | GF25: @LK-RHG-BH90S | GG25: @LK-RIN-BH90S | GH25: @LK-RIV-BH90S | GI25: @LK-RLR-BH90S | GJ25: @LK-RDG-BH90S | GK25: @LK-RMW-BH90S | GL25: @LK-RMN-BH90S | GM25: @LK-RMU-BH90S | GN25: @LK-ROV-BH90S | GO25: @LK-RPT-BH90S | GP25: @LK-RPE-BH90S | GQ25: @LK-RPG-BH90S | GR25: @LK-RPO-BH90S | GS25: @LK-RSG-BH90S | GT25: @LK-RSP-BH90S | GU25: @LK-RSK-BH90S | GV25: @LK-RST-BH90S | GW25: @LK-RSY-BH90S | GX25: @LK-RSN-BH90S | GY25: @LK-RTP-BH90S | GZ25: @LK-RTK-BH90S | HA25: @LK-RWE-BH90S | HB25: @LK-VAG-BH90S | HC25: @LK-VAT-BH90S | HD25: @LK-VAB-BH90S | HE25: @LK-VBR-BH90S | HF25: @LK-VBG-BH90S | HG25: @LK-VBW-BH90S | HH25: @LK-VCS-BH90S | HI25: @LK-VDM-BH90S | HJ25: @LK-VDP-BH90S | HK25: @LK-VDS-BH90S | HL25: @LK-VGP-BH90S | HM25: @LK-VHG-BH90S | HN25: @LK-VIN-BH90S | HO25: @LK-VIY-BH90S | HP25: @LK-VLN-BH90S | HQ25: @LK-VDG-BH90S | HR25: @LK-VME-BH90S | HS25: @LK-VMN-BH90S | HT25: @LK-VMU-BH90S | HU25: @LK-VOV-BH90S | HV25: @LK-VPT-BH90S | HW25: @LK-VPE-BH90S | HX25: @LK-VPG-BH90S | HY25: @LK-VPN-BH90S | HZ25: @LK-VSG-BH90S | IA25: @LK-VSP-BH90S | IB25: @LK-VSB-BH90S | IC25: @LK-VSO-BH90S | ID25: @LK-VSY-BH90S | IE25: @LK-VSN-BH90S | IF25: @LK-VTP-BH90S | IG25: @LK-VTK-BH90S | IH25: @LK-VWE-BH90S | II25: @LK-TAG-BH90S | IJ25: @LK-TAT-BH90S | IK25: @LK-TAB-BH90S | IL25: @LK-TBR-BH90S | IM25: @LK-TBG-BH90S | IN25: @LK-TBW-BH90S | IO25: @LK-TCS-BH90S | IP25: @LK-TDM-BH90S | IQ25: @LK-TDR-BH90S | IR25: @LK-TDS-BH90S | IS25: @LK-TGP-BH90S | IT25: @LK-THG-BH90S | IU25: @LK-TIN-BH90S | IV25: @LK-TIV-BH90S | IW25: @LK-TLR-BH90S | IX25: @LK-TLG-BH90S | IY25: @LK-TMW-BH90S | IZ25: @LK-TMN-BH90S | JA25: @LK-TMU-BH90S | JB25: @LK-TOV-BH90S | JC25: @LK-TPT-BH90S | JD25: @LK-TPE-BH90S | JE25: @LK-TPG-BH90S | JF25: @LK-TPN-BH90S | JG25: @LK-TSG-BH90S | JH25: @LK-TSP-BH90S | JI25: @LK-TSK-BH90S | JJ25: @LK-TSO-BH90S | JK25: @LK-TSY-BH90S | JL25: @LK-TST-BH90S | JM25: @LK-TTP-BH90S | JN25: @LK-TTK-BH90S | JO25: @LK-TWE-BH90S | JP25: @LK-WAG-BH90S | JQ25: @LK-WAT-BH90S | JR25: @LK-WAB-BH90S | JS25: @LK-WBR-BH90S | JT25: @LK-WBG-BH90S | JU25: @LK-WBW-BH90S | JV25: @LK-WCS-BH90S | JW25: @LK-WDM-BH90S | JX25: @LK-WDR-BH90S | JY25: @LK-WDS-BH90S | JZ25: @LK-WGP-BH90S | KA25: @LK-WHE-BH90S | KB25: @LK-WIN-BH90S | KC25: @LK-WIV-BH90S | KD25: @LK-WLR-BH90S | KE25: @LK-WDG-BH90S | KF25: @LK-WMW-BH90S | KG25: @LK-WMN-BH90S | KH25: @LK-WMU-BH90S | KI25: @LK-WOV-BH90S | KJ25: @LK-WPT-BH90S | KK25: @LK-WPE-BH90S | KL25: @LK-WPG-BH90S | KM25: @LK-WPN-BH90S | KN25: @LK-WSG-BH90S | KO25: @LK-WSP-BH90S | KP25: @LK-WSB-BH90S | KQ25: @LK-WSO-BH90S | KR25: @LK-WSY-BH90S | KS25: @LK-WST-BH90S | KT25: @LK-WTP-BH90S | KU25: @LK-WTK-BH90S | KV25: @LK-WWE-BH90S | KW25: @LK-HAG-BH90S | KX25: @LK-HAT-BH90S | KY25: @LK-HAB-BH90S | KZ25: @LK-HBR-BH90S | LA25: @LK-HBG-BH90S | LB25: @LK-HBW-BH90S | LC25: @LK-HCS-BH90S | LD25: @LK-HDM-BH90S | LE25: @LK-HDP-BH90S | LF25: @LK-HDS-BH90S | LG25: @LK-HGP-BH90S | LH25: @LK-HHG-BH90S | LI25: @LK-HIN-BH90S | LJ25: @LK-HIV-BH90S | LK25: @LK-HLR-BH90S | LL25: @LK-HLG-BH90S | LM25: @LK-HMW-BH90S | LN25: @LK-HMN-BH90S | LO25: @LK-HMU-BH90S | LP25: @LK-HOV-BH90S | LQ25: @LK-HPT-BH90S | LR25: @LK-HPE-BH90S | LS25: @LK-HPG-BH90S | LT25: @LK-HPN-BH90S | LU25: @LK-HSG-BH90S | LV25: @LK-HSP-BH90S | LW25: @LK-HSK-BH90S | LX25: @LK-HSO-BH90S | LY25: @LK-HSY-BH90S | LZ25: @LK-HST-BH90S | MA25: @LK-HTP-BH90S | MB25: @LK-HTK-BH90S | MC25: @LK-HWE-BH90S | MD25: @LK-SAG-BH90S | ME25: @LK-SAT-BH90S | MF25: @LK-SAB-BH90S | MG25: @LK-SBR-BH90S | MH25: @LK-SBG-BH90S | MI25: @LK-SBW-BH90S | MJ25: @LK-SCS-BH90S | MK25: @LK-SDM-BH90S | ML25: @LK-SDP-BH90S | MM25: @LK-SDS-BH90S | MN25: @LK-SGP-BH90S | MO25: @LK-SHG-BH90S | MP25: @LK-SIN-BH90S | MQ25: @LK-SIV-BH90S | MR25: @LK-SLR-BH90S | MS25: @LK-SDG-BH90S | MT25: @LK-SMW-BH90S | MU25: @LK-SMN-BH90S | MV25: @LK-SMU-BH90S | MW25: @LK-SOV-BH90S | MX25: @LK-SPT-BH90S | MY25: @LK-SPE-BH90S | MZ25: @LK-SPG-BH90S | NA25: @LK-SPN-BH90S | NB25: @LK-SSG-BH90S | NC25: @LK-SSP-BH90S | ND25: @LK-SSB-BH90S | NE25: @LK-SSO-BH90S | NF25: @LK-SSY-BH90S | NG25: @LK-SST-BH90S | NH25: @LK-STP-BH90S | NI25: @LK-STK-BH90S | NJ25: @LK-SWE-BH90S | NK25: @LK-SBZ-BH90S | NL25: @LK-SBF-BH90S | NM25: @LK-SCB-BH90S | NN25: @LK-SMZ-BH90S | NO25: @LK-SMC-BH90S | NP25: @LK-SPO-BH90S
A26: BH100 | B26: 1000 HL Base Unit | C26: BH100 | D26: @LK-EMD-BH100 | E26: @LK-EMY-BH100 | F26: @LK-EMG-BH100 | G26: @LK-EMM-BH100 | H26: @LK-EMS-BH100 | I26: @LK-OPC-BH100 | J26: @LK-OPD-BH100 | K26: @LK-OPY-BH100 | L26: @LK-OPF-BH100 | M26: @LK-OPG-BH100 | N26: @LK-OPM-BH100 | O26: @LK-OPR-BH100 | P26: @LK-OPS-BH100 | Q26: @LK-OPW-BH100 | R26: @LK-BCS-BH100 | S26: @LK-BDG-BH100 | T26: @LK-BDY-BH100 | U26: @LK-BGP-BH100 | V26: @LK-BSG-BH100 | W26: @LK-BWH-BH100 | X26: @LK-CSW-BH100 | Y26: @LK-DSS-BH100 | Z26: @LK-DGW-BH100 | AA26: @LK-DYW-BH100 | AB26: @LK-GPW-BH100 | AC26: @LK-INW-BH100 | AD26: @LK-ISW-BH100 | AE26: @LK-MSW-BH100 | AF26: @LK-RGW-BH100 | AG26: @LK-NVW-BH100 | AH26: @LK-SPW-BH100 | AI26: @LK-STW-BH100 | AJ26: @LK-WSW-BH100 | AK26: @LK-AOK-BH100 | AL26: @LK-ABL-BH100 | AM26: @LK-ACH-BH100 | AN26: @LK-ADG-BH100 | AO26: @LK-ARG-BH100 | AP26: @LK-AFR-BH100 | AQ26: @LK-ATP-BH100 | AR26: @LK-ALG-BH100 | AS26: @LK-AIN-BH100 | AT26: @LK-KCH-BH100 | AU26: @LK-KLG-BH100 | AV26: @LK-KDG-BH100 | AW26: @LK-KGP-BH100 | AX26: @LK-KTP-BH100 | AY26: @LK-KRG-BH100 | AZ26: @LK-KFR-BH100 | BA26: @LK-KIN-BH100 | BB26: @LK-MCS-BH100 | BC26: @LK-MGD-BH100 | BD26: @LK-MDS-BH100 | BE26: @LK-MGP-BH100 | BF26: @LK-MPN-BH100 | BG26: @LK-MGW-BH100 | BH26: @LK-MCM-BH100 | BI26: @LK-MDM-BH100 | BJ26: @LK-MTM-BH100 | BK26: @LK-MGM-BH100 | BL26: @LK-MIM-BH100 | BM26: @LK-MGR-BH100 | BN26: @LK-MSM-BH100 | BO26: @LK-MPM-BH100 | BP26: @LK-MTP-BH100 | BQ26: @LK-MWM-BH100 | BR26: @LK-EOG-BH100 | BS26: @LK-EOM-BH100 | BT26: @LK-EPM-BH100 | BU26: @LK-EVM-BH100 | BV26: @LK-ENM-BH100 | BW26: @LK-ELA-BH100 | BX26: @LK-ELD-BH100 | BY26: @LK-ELW-BH100 | BZ26: @LK-CAG-BH100 | CA26: @LK-CAT-BH100 | CB26: @LK-CAB-BH100 | CC26: @LK-CBR-BH100 | CD26: @LK-CBG-BH100 | CE26: @LK-CBW-BH100 | CF26: @LK-CCS-BH100 | CG26: @LK-CDM-BH100 | CH26: @LK-CDR-BH100 | CI26: @LK-CDG-BH100 | CJ26: @LK-CGP-BH100 | CK26: @LK-CHG-BH100 | CL26: @LK-CIN-BH100 | CM26: @LK-CIV-BH100 | CN26: @LK-CLR-BH100 | CO26: @LK-CLG-BH100 | CP26: @LK-CMW-BH100 | CQ26: @LK-CMN-BH100 | CR26: @LK-CMU-BH100 | CS26: @LK-COV-BH100 | CT26: @LK-CPT-BH100 | CU26: @LK-CPE-BH100 | CV26: @LK-CPG-BH100 | CW26: @LK-CPN-BH100 | CX26: @LK-CSG-BH100 | CY26: @LK-CSP-BH100 | CZ26: @LK-CSB-BH100 | DA26: @LK-CSO-BH100 | DB26: @LK-CSY-BH100 | DC26: @LK-CST-BH100 | DD26: @LK-CTP-BH100 | DE26: @LK-CTK-BH100 | DF26: @LK-CWE-BH100 | DG26: @LK-GAG-BH100 | DH26: @LK-GAT-BH100 | DI26: @LK-GAB-BH100 | DJ26: @LK-GBR-BH100 | DK26: @LK-GBG-BH100 | DL26: @LK-GBW-BH100 | DM26: @LK-GCS-BH100 | DN26: @LK-GDM-BH100 | DO26: @LK-GDR-BH100 | DP26: @LK-GDG-BH100 | DQ26: @LK-GGP-BH100 | DR26: @LK-GHG-BH100 | DS26: @LK-GIN-BH100 | DT26: @LK-GIV-BH100 | DU26: @LK-GLR-BH100 | DV26: @LK-GLG-BH100 | DW26: @LK-GMW-BH100 | DX26: @LK-GMN-BH100 | DY26: @LK-GMU-BH100 | DZ26: @LK-GOV-BH100 | EA26: @LK-GPT-BH100 | EB26: @LK-GPE-BH100 | EC26: @LK-GPG-BH100 | ED26: @LK-GPN-BH100 | EE26: @LK-GSG-BH100 | EF26: @LK-GSP-BH100 | EG26: @LK-GSB-BH100 | EH26: @LK-GSO-BH100 | EI26: @LK-GSY-BH100 | EJ26: @LK-GST-BH100 | EK26: @LK-GTP-BH100 | EL26: @LK-GTK-BH100 | EM26: @LK-GWE-BH100 | EN26: @LK-EAG-BH100 | EO26: @LK-EAT-BH100 | EP26: @LK-EAB-BH100 | EQ26: @LK-EBR-BH100 | ER26: @LK-EBG-BH100 | ES26: @LK-EBW-BH100 | ET26: @LK-ECS-BH100 | EU26: @LK-EDM-BH100 | EV26: @LK-EDP-BH100 | EW26: @LK-EDS-BH100 | EX26: @LK-EGP-BH100 | EY26: @LK-EHG-BH100 | EZ26: @LK-EIN-BH100 | FA26: @LK-EIV-BH100 | FB26: @LK-ELN-BH100 | FC26: @LK-EDG-BH100 | FD26: @LK-EME-BH100 | FE26: @LK-EMN-BH100 | FF26: @LK-EMU-BH100 | FG26: @LK-EOV-BH100 | FH26: @LK-EPT-BH100 | FI26: @LK-EPE-BH100 | FJ26: @LK-EPG-BH100 | FK26: @LK-EPN-BH100 | FL26: @LK-ESG-BH100 | FM26: @LK-ESP-BH100 | FN26: @LK-ESK-BH100 | FO26: @LK-ESO-BH100 | FP26: @LK-ESY-BH100 | FQ26: @LK-ESN-BH100 | FR26: @LK-ETP-BH100 | FS26: @LK-ETK-BH100 | FT26: @LK-EWE-BH100 | FU26: @LK-RAG-BH100 | FV26: @LK-RAT-BH100 | FW26: @LK-RAB-BH100 | FX26: @LK-RBR-BH100 | FY26: @LK-RBG-BH100 | FZ26: @LK-RBW-BH100 | GA26: @LK-RCS-BH100 | GB26: @LK-RDM-BH100 | GC26: @LK-RDP-BH100 | GD26: @LK-RDS-BH100 | GE26: @LK-RGP-BH100 | GF26: @LK-RHG-BH100 | GG26: @LK-RIN-BH100 | GH26: @LK-RIV-BH100 | GI26: @LK-RLR-BH100 | GJ26: @LK-RDG-BH100 | GK26: @LK-RMW-BH100 | GL26: @LK-RMN-BH100 | GM26: @LK-RMU-BH100 | GN26: @LK-ROV-BH100 | GO26: @LK-RPT-BH100 | GP26: @LK-RPE-BH100 | GQ26: @LK-RPG-BH100 | GR26: @LK-RPO-BH100 | GS26: @LK-RSG-BH100 | GT26: @LK-RSP-BH100 | GU26: @LK-RSK-BH100 | GV26: @LK-RST-BH100 | GW26: @LK-RSY-BH100 | GX26: @LK-RSN-BH100 | GY26: @LK-RTP-BH100 | GZ26: @LK-RTK-BH100 | HA26: @LK-RWE-BH100 | HB26: @LK-VAG-BH100 | HC26: @LK-VAT-BH100 | HD26: @LK-VAB-BH100 | HE26: @LK-VBR-BH100 | HF26: @LK-VBG-BH100 | HG26: @LK-VBW-BH100 | HH26: @LK-VCS-BH100 | HI26: @LK-VDM-BH100 | HJ26: @LK-VDP-BH100 | HK26: @LK-VDS-BH100 | HL26: @LK-VGP-BH100 | HM26: @LK-VHG-BH100 | HN26: @LK-VIN-BH100 | HO26: @LK-VIY-BH100 | HP26: @LK-VLN-BH100 | HQ26: @LK-VDG-BH100 | HR26: @LK-VME-BH100 | HS26: @LK-VMN-BH100 | HT26: @LK-VMU-BH100 | HU26: @LK-VOV-BH100 | HV26: @LK-VPT-BH100 | HW26: @LK-VPE-BH100 | HX26: @LK-VPG-BH100 | HY26: @LK-VPN-BH100 | HZ26: @LK-VSG-BH100 | IA26: @LK-VSP-BH100 | IB26: @LK-VSB-BH100 | IC26: @LK-VSO-BH100 | ID26: @LK-VSY-BH100 | IE26: @LK-VSN-BH100 | IF26: @LK-VTP-BH100 | IG26: @LK-VTK-BH100 | IH26: @LK-VWE-BH100 | II26: @LK-TAG-BH100 | IJ26: @LK-TAT-BH100 | IK26: @LK-TAB-BH100 | IL26: @LK-TBR-BH100 | IM26: @LK-TBG-BH100 | IN26: @LK-TBW-BH100 | IO26: @LK-TCS-BH100 | IP26: @LK-TDM-BH100 | IQ26: @LK-TDR-BH100 | IR26: @LK-TDS-BH100 | IS26: @LK-TGP-BH100 | IT26: @LK-THG-BH100 | IU26: @LK-TIN-BH100 | IV26: @LK-TIV-BH100 | IW26: @LK-TLR-BH100 | IX26: @LK-TLG-BH100 | IY26: @LK-TMW-BH100 | IZ26: @LK-TMN-BH100 | JA26: @LK-TMU-BH100 | JB26: @LK-TOV-BH100 | JC26: @LK-TPT-BH100 | JD26: @LK-TPE-BH100 | JE26: @LK-TPG-BH100 | JF26: @LK-TPN-BH100 | JG26: @LK-TSG-BH100 | JH26: @LK-TSP-BH100 | JI26: @LK-TSK-BH100 | JJ26: @LK-TSO-BH100 | JK26: @LK-TSY-BH100 | JL26: @LK-TST-BH100 | JM26: @LK-TTP-BH100 | JN26: @LK-TTK-BH100 | JO26: @LK-TWE-BH100 | JP26: @LK-WAG-BH100 | JQ26: @LK-WAT-BH100 | JR26: @LK-WAB-BH100 | JS26: @LK-WBR-BH100 | JT26: @LK-WBG-BH100 | JU26: @LK-WBW-BH100 | JV26: @LK-WCS-BH100 | JW26: @LK-WDM-BH100 | JX26: @LK-WDR-BH100 | JY26: @LK-WDS-BH100 | JZ26: @LK-WGP-BH100 | KA26: @LK-WHE-BH100 | KB26: @LK-WIN-BH100 | KC26: @LK-WIV-BH100 | KD26: @LK-WLR-BH100 | KE26: @LK-WDG-BH100 | KF26: @LK-WMW-BH100 | KG26: @LK-WMN-BH100 | KH26: @LK-WMU-BH100 | KI26: @LK-WOV-BH100 | KJ26: @LK-WPT-BH100 | KK26: @LK-WPE-BH100 | KL26: @LK-WPG-BH100 | KM26: @LK-WPN-BH100 | KN26: @LK-WSG-BH100 | KO26: @LK-WSP-BH100 | KP26: @LK-WSB-BH100 | KQ26: @LK-WSO-BH100 | KR26: @LK-WSY-BH100 | KS26: @LK-WST-BH100 | KT26: @LK-WTP-BH100 | KU26: @LK-WTK-BH100 | KV26: @LK-WWE-BH100 | KW26: @LK-HAG-BH100 | KX26: @LK-HAT-BH100 | KY26: @LK-HAB-BH100 | KZ26: @LK-HBR-BH100 | LA26: @LK-HBG-BH100 | LB26: @LK-HBW-BH100 | LC26: @LK-HCS-BH100 | LD26: @LK-HDM-BH100 | LE26: @LK-HDP-BH100 | LF26: @LK-HDS-BH100 | LG26: @LK-HGP-BH100 | LH26: @LK-HHG-BH100 | LI26: @LK-HIN-BH100 | LJ26: @LK-HIV-BH100 | LK26: @LK-HLR-BH100 | LL26: @LK-HLG-BH100 | LM26: @LK-HMW-BH100 | LN26: @LK-HMN-BH100 | LO26: @LK-HMU-BH100 | LP26: @LK-HOV-BH100 | LQ26: @LK-HPT-BH100 | LR26: @LK-HPE-BH100 | LS26: @LK-HPG-BH100 | LT26: @LK-HPN-BH100 | LU26: @LK-HSG-BH100 | LV26: @LK-HSP-BH100 | LW26: @LK-HSK-BH100 | LX26: @LK-HSO-BH100 | LY26: @LK-HSY-BH100 | LZ26: @LK-HST-BH100 | MA26: @LK-HTP-BH100 | MB26: @LK-HTK-BH100 | MC26: @LK-HWE-BH100 | MD26: @LK-SAG-BH100 | ME26: @LK-SAT-BH100 | MF26: @LK-SAB-BH100 | MG26: @LK-SBR-BH100 | MH26: @LK-SBG-BH100 | MI26: @LK-SBW-BH100 | MJ26: @LK-SCS-BH100 | MK26: @LK-SDM-BH100 | ML26: @LK-SDP-BH100 | MM26: @LK-SDS-BH100 | MN26: @LK-SGP-BH100 | MO26: @LK-SHG-BH100 | MP26: @LK-SIN-BH100 | MQ26: @LK-SIV-BH100 | MR26: @LK-SLR-BH100 | MS26: @LK-SDG-BH100 | MT26: @LK-SMW-BH100 | MU26: @LK-SMN-BH100 | MV26: @LK-SMU-BH100 | MW26: @LK-SOV-BH100 | MX26: @LK-SPT-BH100 | MY26: @LK-SPE-BH100 | MZ26: @LK-SPG-BH100 | NA26: @LK-SPN-BH100 | NB26: @LK-SSG-BH100 | NC26: @LK-SSP-BH100 | ND26: @LK-SSB-BH100 | NE26: @LK-SSO-BH100 | NF26: @LK-SSY-BH100 | NG26: @LK-SST-BH100 | NH26: @LK-STP-BH100 | NI26: @LK-STK-BH100 | NJ26: @LK-SWE-BH100 | NK26: @LK-SBZ-BH100 | NL26: @LK-SBF-BH100 | NM26: @LK-SCB-BH100 | NN26: @LK-SMZ-BH100 | NO26: @LK-SMC-BH100 | NP26: @LK-SPO-BH100
